Workbook

Sheet PI vs x
A1: Measurement | B1: Hall
A2: Type | B2: Off-axis
A4: PS type | B4: HXR
A5: PS serial no | B5: 16303
A7: Measurement date | B7: ='DF raw data'!B2 -> 12. dec 2017
C11: Nominal gap [mm] | D11: Encoder [counts] | E11: Encoder [mm] | F11: PI [T^2mm^3] | G11: x [mm] | H11: Encoder offset
C12: 10 | D12: =' 10 x=-2'!B3 -> 15632215 | E12: =(D12-$H$12)*-0.00025+10 -> 10.001 | F12: =' 10 x=-2'!Q3 -> 708.0688624 | G12: -2 | H12: 15632219
C13: 10 | D13: ='10 x=-1'!B3 -> 15632210 | E13: =(D13-$H$12)*-0.00025+10 -> 10.00225 | F13: ='10 x=-1'!Q3 -> 708.5391085 | G13: -1
C14: 10 | D14: ='10 x=0'!B3 -> 15632212 | E14: 10.00175 | F14: ='10 x=0'!Q3 -> 708.7443321 | G14: 0
C15: 10 | D15: ='10 x=1'!B3 -> 15632213 | E15: 10.0015 | F15: ='10 x=1'!Q3 -> 708.4858711 | G15: 1
C16: 10 | D16: ='10 x=2'!B3 -> 15632212 | E16: 10.00175 | F16: ='10 x=2'!Q3 -> 708.3984728 | G16: 2
C17: 30 | D17: ='30 x=-2'!B3 -> 15552129 | E17: 30.0225 | F17: ='30 x=-2'!Q3 -> 67.31846549 | G17: -2
C18: 30 | D18: ='30 x=-1'!B3 -> 15552122 | E18: 30.02425 | F18: ='30 x=-1'!Q3 -> 67.42638478 | G18: -1
C19: 30 | D19: ='30 x=0'!B3 -> 15552126 | E19: 30.02325 | F19: ='30 x=0'!Q3 -> 67.47273958 | G19: 0
C20: 30 | D20: ='30 x=1'!B3 -> 15552122 | E20: 30.02425 | F20: ='30 x=1'!Q3 -> 67.45419198 | G20: 1
C21: 30 | D21: ='30 x=2'!B3 -> 15552124 | E21: 30.02375 | F21: ='30 x=2'!Q3 -> 67.37406141 | G21: 2
A41: Measuring series at 10 mm gap:
A42: Reference magnet
A43: Tref | B43: 20.88 | C43: degC
A44: Hall ref field | B44: 0.50555 | C44: T
A45: NMR ref field | B45: 0.506517 | C45: T
A47: Measuring series at larger gaps:
A48: Reference magnet
A49: Tref | B49: 20.59 | C49: degC
A50: Hall ref field | B50: 0.506646 | C50: T
A51: NMR ref field | B51: 0.50566 | C51: T
A53: Offset from Faro | B53: 0.5773333333

Sheet 10 x=-2
A1: dz | B1: ='DF raw data'!B7 -> 0.50011 | C1: mm | F1: T_coeff | G1: -0.0008 | H1: /degC | L1: Hallref | M1: ='PI vs x'!B44 -> 0.50555 | N1: T | P1: IBy total | Q1: =L1203*1000 -> 20.29333608 | R1: muTm | X1: DF ref | Y1: 18
A2: Tref | B2: ='DF raw data'!B8 -> 20.88 | C2: degC | F2: Tcorr | G2: 20 | H2: degC | L2: NMRref | M2: ='PI vs x'!B45 -> 0.506517 | N2: T | P2: JBy total | Q2: =M1203 -> 5.08251752 | R2: muTm^2
A3: Encoder | B3: ='DF raw data'!B9 -> 15632215 | P3: PI total | Q3: =N1203 -> 708.0688624 | R3: T^2mm^3
A5: z [mm] | B5: Bx | C5: By | D5: Bz | F5: Bx_corr | G5: By_corr | H5: Bz_corr | J5: Ix | K5: Jx | L5: Iy | M5: Jy | N5: PI
A6: ='PI vs x'!B53 -> 0.5773333333 | B6: ='DF raw data'!A11 -> -7.2820762e-06 | C6: ='DF raw data'!B11 -> 2.4122837e-06 | D6: ='DF raw data'!C11 -> 1.7794741e-06 | F6: =(1-$G$1*($B$2-$G$2))*B6 -> -7.287202782e-06 | G6: =(1-$G$1*($B$2-$G$2))*C6*$M$2/$M$1 -> 2.418599336e-06 | H6: =(1-$G$1*($B$2-$G$2))*D6 -> 1.78072685e-06 | J6: =F6*$B$1 -> -3.644402983e-06 | K6: =J6*$B$1 -> -1.822602376e-06 | L6: =G6*$B$1 -> 1.209565714e-06 | M6: =L6*$B$1 -> 6.049159091e-07 | N6: =(J6^2+L6^2)*$B$1 -> 7.373983079e-12
A7: =A6+$B$1 -> 1.077443333 | B7: ='DF raw data'!A12 -> -6.7259821e-06 | C7: ='DF raw data'!B12 -> -1.201653e-05 | D7: ='DF raw data'!C12 -> 5.6127906e-06 | F7: =(1-$G$1*($B$2-$G$2))*B7 -> -6.730717191e-06 | G7: =(1-$G$1*($B$2-$G$2))*C7*$M$2/$M$1 -> -1.204799066e-05 | H7: =(1-$G$1*($B$2-$G$2))*D7 -> 5.616742005e-06 | J7: =F7*$B$1+J6 -> -7.010501958e-06 | K7: =J7*$B$1+K6 -> -5.32862451e-06 | L7: =G7*$B$1+L6 -> -4.815754893e-06 | M7: =L7*$B$1+M6 -> -1.80349127e-06 | N7: =(J7^2+L7^2)*$B$1+N6 -> 4.355125677e-11
A8: =A7+$B$1 -> 1.577553333 | B8: ='DF raw data'!A13 -> -7.2676553e-06 | C8: ='DF raw data'!B13 -> 3.0413921e-06 | D8: ='DF raw data'!C13 -> 6.5317076e-06 | F8: -7.272771729e-06 | G8: 3.049354814e-06 | H8: 6.536305922e-06 | J8: =F8*$B$1+J7 -> -1.064768783e-05 | K8: =J8*$B$1+K7 -> -1.065363967e-05 | L8: =G8*$B$1+L7 -> -3.290742057e-06 | M8: =L8*$B$1+M7 -> -3.449224281e-06 | N8: =(J8^2+L8^2)*$B$1+N7 -> 1.056660387e-10
A9: 2.077663333 | B9: ='DF raw data'!A14 -> -7.2937542e-06 | C9: ='DF raw data'!B14 -> 2.9269122e-06 | D9: ='DF raw data'!C14 -> 1.699344e-06 | F9: -7.298889003e-06 | G9: 2.934575192e-06 | H9: 1.700540338e-06 | J9: -1.429793521e-05 | K9: -1.780418005e-05 | L9: -1.823131658e-06 | M9: -4.360990654e-06 | N9: 2.095662718e-10
A10: 2.577773333 | B10: ='DF raw data'!A15 -> -7.3079059e-06 | C10: ='DF raw data'!B15 -> 2.5151585e-06 | D10: ='DF raw data'!C15 -> -2.6283956e-06 | F10: -7.313050666e-06 | G10: 2.521743474e-06 | H10: -2.630245991e-06 | J10: -1.795526497e-05 | K10: -2.678378761e-05 | L10: -5.619825289e-07 | M10: -4.642043736e-06 | N10: 3.70955452e-10
A11: 3.077883333 | B11: ='DF raw data'!A16 -> -7.2036414e-06 | C11: ='DF raw data'!B16 -> 2.7704843e-07 | D11: ='DF raw data'!C16 -> 1.1448869e-06 | F11: =(1-$G$1*($B$2-$G$2))*B11 -> -7.208712764e-06 | G11: 2.777737746e-07 | H11: =(1-$G$1*($B$2-$G$2))*D11 -> 1.1456929e-06 | J11: -2.156041432e-05 | K11: -3.756636642e-05 | L11: -4.230650865e-07 | M11: -4.853622817e-06 | N11: 6.035218301e-10
A12: 3.577993333 | B12: ='DF raw data'!A17 -> -7.1656609e-06 | C12: ='DF raw data'!B17 -> -1.3854533e-06 | D12: ='DF raw data'!C17 -> -2.7343553e-06 | F12: -7.170705525e-06 | G12: -1.389080576e-06 | H12: -2.736280286e-06 | J12: -2.514655586e-05 | K12: -5.014241046e-05 | L12: -1.117758173e-06 | M12: -5.412624857e-06 | N12: 9.203908533e-10
A13: 4.078103333 | B13: ='DF raw data'!A18 -> -7.1196041e-06 | C13: ='DF raw data'!B18 -> -2.3238481e-06 | D13: ='DF raw data'!C18 -> -1.1571533e-06 | F13: -7.124616301e-06 | G13: -2.329932201e-06 | H13: -1.157967936e-06 | J13: -2.870964771e-05 | K13: -6.450039238e-05 | L13: -2.282980566e-06 | M13: -6.554366268e-06 | N13: 1.33521003e-09
A14: 4.578213333 | B14: ='DF raw data'!A19 -> -7.1627287e-06 | C14: ='DF raw data'!B19 -> 7.4751546e-07 | D14: ='DF raw data'!C19 -> 9.6771191e-06 | F14: -7.167771261e-06 | G14: 7.494725413e-07 | H14: 9.683931792e-06 | J14: -3.22943218e-05 | K14: -8.065110566e-05 | L14: -1.908161854e-06 | M14: -7.508657093e-06 | N14: 1.858607303e-09
A15: 5.078323333 | B15: ='DF raw data'!A20 -> -7.1850222e-06 | C15: ='DF raw data'!B20 -> 5.9180269e-07 | D15: ='DF raw data'!C20 -> 4.8221996e-06 | F15: -7.190080456e-06 | G15: 5.933520974e-07 | H15: 4.825594429e-06 | J15: -3.589015294e-05 | K15: -9.860013004e-05 | L15: -1.611420536e-06 | M15: -8.314544617e-06 | N15: 2.504099157e-09
A16: 5.578433333 | B16: ='DF raw data'!A21 -> -7.7270952e-06 | C16: ='DF raw data'!B21 -> 1.5599826e-05 | D16: ='DF raw data'!C21 -> 6.7246442e-06 | F16: -7.732535075e-06 | G16: 1.564066814e-05 | H16: 6.72937835e-06 | J16: -3.975727105e-05 | K16: -0.0001184831389 | L16: 6.210634005e-06 | M16: -5.208544445e-06 | N16: 3.313883558e-09
A17: 6.078543333 | B17: ='DF raw data'!A22 -> -7.6903152e-06 | C17: ='DF raw data'!B22 -> 1.4043666e-05 | D17: ='DF raw data'!C22 -> 4.5036654e-06 | F17: -7.695729182e-06 | G17: 1.408043393e-05 | H17: 4.50683598e-06 | J17: -4.360598217e-05 | K17: -0.0001402909266 | L17: 1.325239982e-05 | M17: 1.419113228e-06 | N17: 4.352665931e-09
A18: 6.578653333 | B18: ='DF raw data'!A23 -> -7.1252794e-06 | C18: ='DF raw data'!B23 -> -2.0192329e-06 | D18: ='DF raw data'!C23 -> 7.7690544e-07 | F18: -7.130295597e-06 | G18: -2.024519484e-06 | H18: 7.774523814e-07 | J18: -4.71719143e-05 | K18: -0.0001638820727 | L18: 1.223991738e-05 | M18: 7.540418309e-06 | N18: 5.54042972e-09
A19: 7.078763333 | B19: ='DF raw data'!A24 -> -7.0126766e-06 | C19: ='DF raw data'!B24 -> -5.6760709e-06 | D19: ='DF raw data'!C24 -> -3.505716e-06 | F19: -7.017613524e-06 | G19: -5.690931506e-06 | H19: -3.508184024e-06 | J19: -5.0681493e-05 | K19: -0.0001892283941 | L19: 9.393825624e-06 | M19: 1.223836444e-05 | N19: 6.869150821e-09
A20: 7.578873333 | B20: ='DF raw data'!A25 -> -7.5116909e-06 | C20: ='DF raw data'!B25 -> 8.1760718e-06 | D20: ='DF raw data'!C25 -> -2.3872049e-06 | F20: -7.51697913e-06 | G20: 8.197477695e-06 | H20: -2.388885492e-06 | J20: -5.444080944e-05 | K20: -0.0002164547873 | L20: 1.349346619e-05 | M20: 1.898658182e-05 | N20: 8.442434548e-09
A21: 8.078983333 | B21: ='DF raw data'!A26 -> -7.2375547e-06 | C21: ='DF raw data'!B26 -> 1.3037734e-06 | D21: ='DF raw data'!C26 -> 1.7409407e-06 | F21: -7.242649939e-06 | G21: 1.307186829e-06 | H21: 1.742166322e-06 | J21: -5.80629311e-05 | K21: -0.0002454926398 | L21: 1.41472034e-05 | M21: 2.606173971e-05 | N21: 1.022855107e-08
A22: 8.579093333 | B22: ='DF raw data'!A27 -> -8.3129553e-06 | C22: ='DF raw data'!B27 -> 2.9754792e-06 | D22: ='DF raw data'!C27 -> 7.099407e-06 | F22: -8.318807621e-06 | G22: 2.983269346e-06 | H22: 7.104404983e-06 | J22: -6.222324998e-05 | K22: -0.0002766111094 | L22: 1.563916623e-05 | M22: 3.388304314e-05 | N22: 1.228716205e-08
A23: 9.079203333 | B23: ='DF raw data'!A28 -> -9.570379e-06 | C23: ='DF raw data'!B28 -> -7.8802859e-06 | D23: ='DF raw data'!C28 -> -3.7395216e-06 | F23: -9.577116547e-06 | G23: -7.900917394e-06 | H23: -3.742154223e-06 | J23: -6.701286173e-05 | K23: -0.0003101249116 | L23: 1.168783843e-05 | M23: 3.972824802e-05 | N23: 1.460133566e-08
A24: 9.579313333 | B24: ='DF raw data'!A29 -> -7.3502956e-06 | C24: ='DF raw data'!B29 -> -7.6562665e-06 | D24: ='DF raw data'!C29 -> -3.7369896e-06 | F24: -7.355470208e-06 | G24: -7.676311485e-06 | H24: -3.739620441e-06 | J24: -7.069140594e-05 | K24: -0.0003454783907 | L24: 7.848838297e-06 | M24: 4.365353054e-05 | N24: 1.71313317e-08
A25: 10.07942333 | B25: ='DF raw data'!A30 -> -2.0930377e-06 | C25: ='DF raw data'!B30 -> -1.316827e-05 | D25: ='DF raw data'!C30 -> 1.5518604e-06 | F25: -2.094511199e-06 | G25: -1.320274604e-05 | H25: 1.55295291e-06 | J25: -7.173889193e-05 | K25: -0.0003813557279 | L25: 1.246012973e-06 | M25: 4.427667408e-05 | N25: 1.970590856e-08
A26: 10.57953333 | B26: ='DF raw data'!A31 -> -1.2419181e-06 | C26: ='DF raw data'!B31 -> -4.4399169e-07 | D26: ='DF raw data'!C31 -> -2.5005497e-06 | F26: -1.24279241e-06 | G26: -4.451541112e-07 | H26: -2.502310087e-06 | J26: -7.236042485e-05 | K26: -0.0004175439 | L26: 1.023386951e-06 | M26: 4.478848013e-05 | N26: 2.232502385e-08
A27: 11.07964333 | B27: ='DF raw data'!A32 -> -5.5365085e-06 | C27: ='DF raw data'!B32 -> -4.2017e-06 | D27: ='DF raw data'!C32 -> -3.9514921e-06 | F27: -5.540406202e-06 | G27: -4.212700533e-06 | H27: -3.95427395e-06 | J27: -7.513123739e-05 | K27: -0.0004551177831 | L27: -1.083426713e-06 | M27: 4.42466476e-05 | N27: 2.514858322e-08
A28: 11.57975333 | B28: ='DF raw data'!A33 -> -7.1035897e-06 | C28: ='DF raw data'!B33 -> 6.1048371e-07 | D28: ='DF raw data'!C33 -> -2.156807e-07 | F28: -7.108590627e-06 | G28: 6.120820265e-07 | H28: -2.158325392e-07 | J28: -7.868631465e-05 | K28: -0.0004944695959 | L28: -7.773183705e-07 | M28: 4.385790291e-05 | N28: 2.824533452e-08
A29: 12.07986333 | B29: ='DF raw data'!A34 -> -7.0584642e-06 | C29: ='DF raw data'!B34 -> 6.0667207e-06 | D29: ='DF raw data'!C34 -> -8.4328298e-07 | F29: -7.063433359e-06 | G29: 6.082604072e-06 | H29: -8.438766512e-07 | J29: -8.221880831e-05 | K29: -0.0005355880442 | L29: 2.264652752e-06 | M29: 4.49904784e-05 | N29: 3.162860922e-08
A30: 12.57997333 | B30: ='DF raw data'!A35 -> -6.8391887e-06 | C30: ='DF raw data'!B35 -> 1.7255352e-06 | D30: ='DF raw data'!C35 -> -1.442269e-06 | F30: -6.844003489e-06 | G30: 1.730052849e-06 | H30: -1.443284357e-06 | J30: -8.564156289e-05 | K30: -0.0005784182462 | L30: 3.129869482e-06 | M30: 4.655575742e-05 | N30: 3.530155378e-08
A31: 13.08008333 | B31: ='DF raw data'!A36 -> -5.8890816e-07 | C31: ='DF raw data'!B36 -> -8.7063327e-06 | D31: ='DF raw data'!C36 -> -3.9168149e-06 | F31: -5.893227513e-07 | G31: -8.729126879e-06 | H31: -3.919572338e-06 | J31: -8.593628909e-05 | K31: -0.0006213958437 | L31: -1.235654161e-06 | M31: 4.593779442e-05 | N31: 3.899565262e-08
A32: 13.58019333 | B32: ='DF raw data'!A37 -> 2.4514018e-06 | C32: ='DF raw data'!B37 -> -3.1829859e-06 | D32: ='DF raw data'!C37 -> 6.4622222e-06 | F32: 2.453127587e-06 | G32: -3.191319323e-06 | H32: 6.466771604e-06 | J32: -8.470945546e-05 | K32: -0.0006637598895 | L32: -2.831664868e-06 | M32: 4.45216505e-05 | N32: 4.258829791e-08
A33: 14.08030333 | B33: ='DF raw data'!A38 -> 6.6057748e-07 | C33: ='DF raw data'!B38 -> -5.1861225e-06 | D33: ='DF raw data'!C38 -> 9.697681e-06 | F33: 6.610425265e-07 | G33: -5.199700364e-06 | H33: 9.704508167e-06 | J33: -8.437886148e-05 | K33: -0.0007059586019 | L33: -5.432087017e-06 | M33: 4.180500947e-05 | N33: 4.616373425e-08
A34: 14.58041333 | B34: ='DF raw data'!A39 -> 3.2264295e-06 | C34: ='DF raw data'!B39 -> -2.1378455e-06 | D34: ='DF raw data'!C39 -> 9.5061165e-07 | F34: 3.228700906e-06 | G34: -2.143442625e-06 | H34: 9.512808806e-07 | J34: -8.276415587e-05 | K34: -0.0007473497839 | L34: -6.504044108e-06 | M34: 3.855227197e-05 | N34: 4.961059643e-08
A35: 15.08052333 | B35: ='DF raw data'!A40 -> 5.126582e-06 | C35: ='DF raw data'!B40 -> -2.9943203e-06 | D35: ='DF raw data'!C40 -> 3.3964678e-08 | F35: 5.130191114e-06 | G35: -3.002159774e-06 | H35: 3.398858913e-08 | J35: -8.019849599e-05 | K35: -0.0007874578537 | L35: -8.005454233e-06 | M35: 3.454866425e-05 | N35: 5.285925401e-08
A36: 15.58063333 | B36: ='DF raw data'!A41 -> 4.4986014e-06 | C36: ='DF raw data'!B41 -> -3.1342806e-06 | D36: ='DF raw data'!C41 -> -7.8378747e-07 | F36: 4.501768415e-06 | G36: -3.142486507e-06 | H36: -7.843392564e-07 | J36: -7.794711659e-05 | K36: -0.0008264399862 | L36: -9.57704316e-06 | M36: 2.97590892e-05 | N36: 5.59436688e-08
A37: 16.08074333 | B37: ='DF raw data'!A42 -> 2.6367641e-06 | C37: ='DF raw data'!B42 -> 6.1618539e-06 | D37: ='DF raw data'!C42 -> 3.5104172e-06 | F37: 2.638620382e-06 | G37: 6.177986341e-06 | H37: 3.512888534e-06 | J37: -7.662751615e-05 | K37: -0.0008647621733 | L37: -6.487370411e-06 | M37: 2.651469038e-05 | N37: 5.890125043e-08
A38: 16.58085333 | B38: ='DF raw data'!A43 -> -1.7468113e-06 | C38: ='DF raw data'!B43 -> 2.5502468e-06 | D38: ='DF raw data'!C43 -> 7.1465988e-06 | F38: -1.748041055e-06 | G38: 2.556923639e-06 | H38: 7.151630006e-06 | J38: -7.750172896e-05 | K38: -0.000903521563 | L38: -5.20862733e-06 | M38: 2.390980377e-05 | N38: 6.191873803e-08
A39: 17.08096333 | B39: ='DF raw data'!A44 -> -4.5173142e-06 | C39: ='DF raw data'!B44 -> -5.2455016e-06 | D39: ='DF raw data'!C44 -> 6.0047973e-06 | F39: -4.520494389e-06 | G39: -5.259234926e-06 | H39: 6.009024677e-06 | J39: -7.976247341e-05 | K39: -0.0009434115735 | L39: -7.838823308e-06 | M39: 1.998952984e-05 | N39: 6.513119427e-08
A40: 17.58107333 | B40: ='DF raw data'!A45 -> -2.5482725e-06 | C40: ='DF raw data'!B45 -> -6.003666e-07 | D40: ='DF raw data'!C45 -> 8.4511275e-06 | F40: -2.550066484e-06 | G40: -6.019384287e-07 | H40: 8.457077094e-06 | J40: -8.103778716e-05 | K40: -0.0009839393813 | L40: -8.139858736e-06 | M40: 1.591870509e-05 | N40: 6.844861407e-08
A41: 18.08118333 | B41: ='DF raw data'!A46 -> 3.3630988e-07 | C41: ='DF raw data'!B46 -> -1.0881758e-06 | D41: ='DF raw data'!C46 -> 1.7319549e-06 | F41: 3.365466422e-07 | G41: -1.091024769e-06 | H41: 1.733174196e-06 | J41: -8.086947682e-05 | K41: -0.001024383015 | L41: -8.685491133e-06 | M41: 1.157500412e-05 | N41: 7.175699677e-08
A42: 18.58129333 | B42: ='DF raw data'!A47 -> 2.1781241e-06 | C42: ='DF raw data'!B47 -> 5.7227462e-06 | D42: ='DF raw data'!C47 -> -4.3578034e-06 | F42: 2.179657499e-06 | G42: 5.737729007e-06 | H42: -4.360871294e-06 | J42: -7.977940831e-05 | K42: -0.001064281495 | L42: -5.81599548e-06 | M42: 8.666366619e-06 | N42: 7.495699051e-08
A43: 19.08140333 | B43: ='DF raw data'!A48 -> 8.2938698e-07 | C43: ='DF raw data'!B48 -> 3.3270608e-06 | D43: ='DF raw data'!C48 -> -4.52419e-06 | F43: 8.299708684e-07 | G43: 3.335771427e-06 | H43: -4.52737503e-06 | J43: -7.936433157e-05 | K43: -0.001103972391 | L43: -4.147742831e-06 | M43: 6.592038952e-06 | N43: 7.811563571e-08
A44: 19.58151333 | B44: ='DF raw data'!A49 -> -9.1152614e-08 | C44: ='DF raw data'!B49 -> -7.5300431e-06 | D44: ='DF raw data'!C49 -> -3.2322419e-06 | F44: -9.121678544e-08 | G44: -7.549757618e-06 | H44: -3.234517398e-06 | J44: -7.940995e-05 | K44: -0.001143686101 | L44: -7.923452113e-06 | M44: 2.629441315e-06 | N44: 8.130069689e-08
A45: 20.08162333 | B45: ='DF raw data'!A50 -> -4.1021792e-07 | C45: ='DF raw data'!B50 -> -4.1787516e-06 | D45: ='DF raw data'!C50 -> 4.6759092e-06 | F45: -4.105067134e-07 | G45: -4.189692052e-06 | H45: 4.67920104e-06 | J45: -7.961524851e-05 | K45: -0.001183502483 | L45: -1.001875901e-05 | M45: -2.381040251e-06 | N45: 8.452088684e-08
A46: 20.58173333 | B46: ='DF raw data'!A51 -> -2.6784198e-07 | C46: ='DF raw data'!B51 -> -3.324285e-06 | D46: ='DF raw data'!C51 -> 3.2444009e-06 | F46: -2.680305408e-07 | G46: -3.33298836e-06 | H46: 3.246684958e-06 | J46: -7.974929327e-05 | K46: -0.001223385902 | L46: -1.168561981e-05 | M46: -8.225135576e-06 | N46: 8.77698532e-08
A47: 21.08184333 | B47: ='DF raw data'!A52 -> 6.4937417e-06 | C47: ='DF raw data'!B52 -> 1.3927693e-06 | D47: ='DF raw data'!C52 -> 3.9764277e-06 | F47: 6.498313294e-06 | G47: 1.39641573e-06 | H47: 3.979227105e-06 | J47: -7.649942181e-05 | K47: -0.001261644028 | L47: -1.098725834e-05 | M47: -1.371997335e-05 | N47: 9.075695091e-08
A48: 21.58195333 | B48: ='DF raw data'!A53 -> 9.6104131e-06 | C48: ='DF raw data'!B53 -> -2.656614e-06 | D48: ='DF raw data'!C53 -> 3.5874186e-06 | F48: 9.617178831e-06 | G48: -2.663569321e-06 | H48: 3.589944143e-06 | J48: -7.16897745e-05 | K48: -0.001297496801 | L48: -1.2319336e-05 | M48: -1.988099647e-05 | N48: 9.340312784e-08
A49: 22.08206333 | B49: ='DF raw data'!A54 -> 1.9239458e-06 | C49: ='DF raw data'!B54 -> 1.0305139e-06 | D49: ='DF raw data'!C54 -> -9.0977182e-06 | F49: 1.925300258e-06 | G49: 1.033211904e-06 | H49: -9.104122994e-06 | J49: -7.072691259e-05 | K49: -0.001332868037 | L49: -1.180261639e-05 | M49: -2.578360295e-05 | N49: 9.597449238e-08
A50: 22.58217333 | B50: ='DF raw data'!A55 -> -9.1784693e-07 | C50: ='DF raw data'!B55 -> 1.0289559e-05 | D50: ='DF raw data'!C55 -> -4.0508598e-06 | F50: -9.184930942e-07 | G50: 1.031649825e-05 | H50: -4.053711605e-06 | J50: -7.118626017e-05 | K50: -0.001368468998 | L50: -6.643232452e-06 | M50: -2.910594994e-05 | N50: 9.853086274e-08
A51: 23.08228333 | B51: ='DF raw data'!A56 -> -1.3840903e-06 | C51: ='DF raw data'!B56 -> 5.5973233e-06 | D51: ='DF raw data'!C56 -> 1.0526423e-06 | F51: -1.3850647e-06 | G51: 5.611977735e-06 | H51: 1.05338336e-06 | J51: -7.187894488e-05 | K51: -0.001404416377 | L51: -3.836626267e-06 | M51: -3.10246851e-05 | N51: 1.011220839e-07
A52: 23.58239333 | B52: ='DF raw data'!A57 -> -5.5975829e-06 | C52: ='DF raw data'!B57 -> 2.2695185e-06 | D52: ='DF raw data'!C57 -> -2.3330281e-06 | F52: -5.601523598e-06 | G52: 2.27546036e-06 | H52: -2.334670552e-06 | J52: -7.468032284e-05 | K52: -0.001441764753 | L52: -2.698645787e-06 | M52: -3.237430484e-05 | N52: 1.039149148e-07
A53: 24.08250333 | B53: ='DF raw data'!A58 -> -5.3803155e-06 | C53: ='DF raw data'!B58 -> 6.2269664e-06 | D53: ='DF raw data'!C58 -> -6.8355388e-07 | F53: -5.384103242e-06 | G53: 6.243269313e-06 | H53: -6.840351019e-07 | J53: -7.737296672e-05 | K53: -0.001480459748 | L53: 4.236756297e-07 | M53: -3.216242042e-05 | N53: 1.069089511e-07
A54: 24.58261333 | B54: ='DF raw data'!A59 -> 2.2550237e-06 | C54: ='DF raw data'!B59 -> 1.1830909e-05 | D54: ='DF raw data'!C59 -> -5.4615371e-06 | F54: 2.256611237e-06 | G54: 1.186188368e-05 | H54: -5.465382022e-06 | J54: -7.624441287e-05 | K54: -0.001518590341 | L54: 6.355922276e-06 | M54: -2.898376013e-05 | N54: 1.098363991e-07
A55: 25.08272333 | B55: ='DF raw data'!A60 -> 6.9145976e-06 | C55: ='DF raw data'!B60 -> 8.9914447e-06 | D55: ='DF raw data'!C60 -> -4.1581438e-06 | F55: 6.919465477e-06 | G55: 9.014985335e-06 | H55: -4.161071133e-06 | J55: -7.278391899e-05 | K55: -0.001554990307 | L55: 1.086440659e-05 | M55: -2.355036175e-05 | N55: 1.125447619e-07
A56: 25.58283333 | B56: ='DF raw data'!A61 -> 3.6958743e-06 | C56: ='DF raw data'!B61 -> -1.9395757e-06 | D56: ='DF raw data'!C61 -> 4.0065793e-06 | F56: 3.698476196e-06 | G56: -1.944653732e-06 | H56: 4.009399932e-06 | J56: -7.093427406e-05 | K56: -0.001590465247 | L56: 9.891865814e-06 | M56: -1.860334074e-05 | N56: 1.151100863e-07
A57: 26.08294333 | B57: ='DF raw data'!A62 -> 1.0746231e-06 | C57: ='DF raw data'!B62 -> 5.2290652e-06 | D57: ='DF raw data'!C62 -> 4.3689656e-06 | F57: 1.075379635e-06 | G57: 5.242755493e-06 | H57: 4.372041352e-06 | J57: -7.039646595e-05 | K57: -0.001625671223 | L57: 1.251382026e-05 | M57: -1.234505409e-05 | N57: 1.176667777e-07
A58: 26.58305333 | B58: ='DF raw data'!A63 -> 3.1363168e-06 | C58: ='DF raw data'!B63 -> 8.0327718e-06 | D58: ='DF raw data'!C63 -> -1.6501867e-06 | F58: 3.138524767e-06 | G58: 8.053802519e-06 | H58: -1.651348431e-06 | J58: -6.882685833e-05 | K58: -0.001660092223 | L58: 1.654160744e-05 | M58: -4.072430791e-06 | N58: 1.201727095e-07
A59: 27.08316333 | B59: ='DF raw data'!A64 -> 3.1452589e-06 | C59: ='DF raw data'!B64 -> -6.5983204e-06 | D59: ='DF raw data'!C64 -> -8.5710117e-06 | F59: 3.147473162e-06 | G59: -6.615595561e-06 | H59: -8.577045692e-06 | J59: -6.725277553e-05 | K59: -0.001693726009 | L59: 1.323308195e-05 | M59: 2.545565821e-06 | N59: 1.225222514e-07
A60: 27.58327333 | B60: ='DF raw data'!A65 -> 4.1692624e-06 | C60: ='DF raw data'!B65 -> -2.905721e-06 | D60: ='DF raw data'!C65 -> -7.5075436e-06 | F60: 4.172197561e-06 | G60: -2.913328511e-06 | H60: -7.512828911e-06 | J60: -6.516621781e-05 | K60: -0.001726316286 | L60: 1.177609722e-05 | M60: 8.434909804e-06 | N60: 1.2471539e-07
A61: 28.08338333 | B61: ='DF raw data'!A66 -> 5.265953e-06 | C61: ='DF raw data'!B66 -> 3.205374e-06 | D61: ='DF raw data'!C66 -> -1.0844501e-05 | F61: 5.269660231e-06 | G61: 3.213766037e-06 | H61: -1.085213553e-05 | J61: -6.253080803e-05 | K61: -0.001757588568 | L61: 1.338333376e-05 | M61: 1.512804885e-05 | N61: 1.267604476e-07
A62: 28.58349333 | B62: ='DF raw data'!A67 -> 2.7050489e-06 | C62: ='DF raw data'!B67 -> -8.0998331e-07 | D62: ='DF raw data'!C67 -> -1.203615e-05 | F62: 2.706953254e-06 | G62: -8.121039393e-07 | H62: -1.204462345e-05 | J62: -6.117703364e-05 | K62: -0.001788183815 | L62: 1.297719246e-05 | M62: 2.161807257e-05 | N62: 1.287163963e-07
A63: 29.08360333 | B63: ='DF raw data'!A68 -> -3.0644435e-06 | C63: ='DF raw data'!B68 -> -1.8221599e-06 | D63: ='DF raw data'!C68 -> -4.781155e-06 | F63: -3.066600868e-06 | G63: -1.826930524e-06 | H63: -4.784520933e-06 | J63: -6.27106714e-05 | K63: -0.001819546049 | L63: 1.206352623e-05 | M63: 2.765116267e-05 | N63: 1.307559234e-07
A64: 29.58371333 | B64: ='DF raw data'!A69 -> -7.714013e-06 | C64: ='DF raw data'!B69 -> 4.8909624e-06 | D64: ='DF raw data'!C69 -> -3.4807595e-06 | F64: -7.719443665e-06 | G64: 4.903767501e-06 | H64: -3.483209955e-06 | J64: -6.657124237e-05 | K64: -0.001852838993 | L64: 1.45159494e-05 | M64: 3.491073413e-05 | N64: 1.330776556e-07
A65: 30.08382333 | B65: ='DF raw data'!A70 -> -6.1730311e-06 | C65: ='DF raw data'!B70 -> 1.5763635e-06 | D65: ='DF raw data'!C70 -> -4.9838777e-06 | F65: -6.177376914e-06 | G65: 1.580490601e-06 | H65: -4.98738635e-06 | J65: -6.966061034e-05 | K65: -0.00188767696 | L65: 1.530636855e-05 | M65: 4.25656021e-05 | N65: 1.35621658e-07
A66: 30.58393333 | B66: ='DF raw data'!A71 -> -5.3479448e-06 | C66: ='DF raw data'!B71 -> 5.7102025e-06 | D66: ='DF raw data'!C71 -> -4.6315395e-06 | F66: -5.351709753e-06 | G66: 5.725152466e-06 | H66: -4.634800104e-06 | J66: -7.23370539e-05 | K66: -0.001923853444 | L66: 1.816957455e-05 | M66: 5.165238803e-05 | N66: 1.384036613e-07
A67: 31.08404333 | B67: ='DF raw data'!A72 -> -6.1249079e-06 | C67: ='DF raw data'!B72 -> -3.2067346e-06 | D67: ='DF raw data'!C72 -> -2.7573765e-06 | F67: -6.129219835e-06 | G67: -3.2151302e-06 | H67: -2.759317693e-06 | J67: -7.540233803e-05 | K67: -0.001961562908 | L67: 1.656165579e-05 | M67: 5.993503771e-05 | N67: 1.413842173e-07
A68: 31.58415333 | B68: ='DF raw data'!A73 -> -5.9760564e-06 | C68: ='DF raw data'!B73 -> -1.1658276e-05 | D68: ='DF raw data'!C73 -> 4.9539744e-06 | F68: -5.980263544e-06 | G68: -1.168879871e-05 | H68: 4.957461998e-06 | J68: -7.839312763e-05 | K68: -0.002000768095 | L68: 1.071597067e-05 | M68: 6.52942018e-05 | N68: 1.445150632e-07
A69: 32.08426333 | B69: ='DF raw data'!A74 -> -4.1786911e-06 | C69: ='DF raw data'!B74 -> -9.257923e-06 | D69: ='DF raw data'!C74 -> 6.3751727e-06 | F69: -4.181632899e-06 | G69: -9.282161306e-06 | H69: 6.379660822e-06 | J69: -8.048440406e-05 | K69: -0.00204101915 | L69: 6.073868976e-06 | M69: 6.833180441e-05 | N69: 1.477730954e-07
A70: 32.58437333 | B70: ='DF raw data'!A75 -> -5.5652777e-06 | C70: ='DF raw data'!B75 -> 3.7029258e-06 | D70: ='DF raw data'!C75 -> 1.4457769e-06 | F70: -5.569195656e-06 | G70: 3.712620485e-06 | H70: 1.446794727e-06 | J70: -8.32696145e-05 | K70: -0.002082663117 | L70: 7.930587606e-06 | M70: 7.229797058e-05 | N70: 1.512722265e-07
A71: 33.08448333 | B71: ='DF raw data'!A76 -> -7.2222679e-06 | C71: ='DF raw data'!B76 -> 2.4649304e-07 | D71: ='DF raw data'!C76 -> -9.0931271e-06 | F71: -7.227352377e-06 | G71: =(1-$G$1*($B$2-$G$2))*C71*$M$2/$M$1 -> 2.471383871e-07 | H71: -9.099528661e-06 | J71: -8.68840857e-05 | K71: -0.002126114717 | L71: 8.054183985e-06 | M71: 7.632594853e-05 | N71: 1.550799211e-07
A72: =A71+$B$1 -> 33.58459333 | B72: ='DF raw data'!A77 -> -5.9913432e-06 | C72: ='DF raw data'!B77 -> 9.8045512e-06 | D72: ='DF raw data'!C77 -> -3.4561303e-06 | F72: -5.995561106e-06 | G72: 9.830220641e-06 | H72: -3.458563416e-06 | J72: =F72*$B$1+J71 -> -8.988252576e-05 | K72: =J72*$B$1+K71 -> -0.002171065867 | L72: =G72*$B$1+L71 -> 1.297037563e-05 | M72: =L72*$B$1+M71 -> 8.281256309e-05 | N72: =(J72^2+L72^2)*$B$1+N71 -> 1.592043779e-07
A73: 34.08470333 | B73: ='DF raw data'!A78 -> -3.4997131e-06 | C73: ='DF raw data'!B78 -> 1.6198592e-06 | D73: ='DF raw data'!C78 -> 4.7501167e-06 | F73: -3.502176898e-06 | G73: 1.624100177e-06 | H73: 4.753460782e-06 | J73: -9.163399945e-05 | K73: -0.002216892947 | L73: 1.378260437e-05 | M73: 8.970538136e-05 | N73: 1.634986974e-07
A74: 34.58481333 | B74: ='DF raw data'!A79 -> -2.277003e-06 | C74: ='DF raw data'!B79 -> -5.3690546e-06 | D74: ='DF raw data'!C79 -> -1.0541985e-06 | F74: -2.27860601e-06 | G74: -5.383111402e-06 | H74: -1.054940656e-06 | J74: -9.27735531e-05 | K74: -0.002263289928 | L74: 1.109045653e-05 | M74: 9.525182957e-05 | N74: 1.678646229e-07
A75: 35.08492333 | B75: ='DF raw data'!A80 -> -1.1502046e-06 | C75: ='DF raw data'!B80 -> 1.8277406e-06 | D75: ='DF raw data'!C80 -> 1.1532902e-08 | F75: =(1-$G$1*($B$2-$G$2))*B75 -> -1.151014344e-06 | G75: 1.832525835e-06 | H75: =(1-$G$1*($B$2-$G$2))*D75 -> 1.154102116e-08 | J75: -9.334918689e-05 | K75: -0.00230997479 | L75: 1.200692102e-05 | M75: 0.0001012566108 | N75: 1.722947157e-07
A76: 35.58503333 | B76: ='DF raw data'!A81 -> 2.9374648e-06 | C76: ='DF raw data'!B81 -> 2.1554111e-07 | D76: ='DF raw data'!C81 -> -4.1523522e-06 | F76: 2.939532775e-06 | G76: 2.161054214e-07 | H76: -4.155275456e-06 | J76: -9.187909715e-05 | K76: -0.002355924445 | L76: 1.21149975e-05 | M76: 0.0001073154422 | N76: 1.765899313e-07
A77: 36.08514333 | B77: ='DF raw data'!A82 -> 9.5909209e-06 | C77: ='DF raw data'!B82 -> -2.9803068e-06 | D77: ='DF raw data'!C82 -> -7.8676667e-06 | F77: 9.597672908e-06 | G77: -2.988109586e-06 | H77: -7.873205537e-06 | J77: -8.707920495e-05 | K77: -0.002399473627 | L77: 1.062061402e-05 | M77: 0.0001126269175 | N77: 1.804385705e-07
A78: 36.58525333 | B78: ='DF raw data'!A83 -> 1.1078563e-05 | C78: ='DF raw data'!B83 -> 1.4534762e-06 | D78: ='DF raw data'!C83 -> -7.2783946e-06 | F78: 1.108636231e-05 | G78: 1.457281568e-06 | H78: -7.28351859e-06 | J78: -8.15348043e-05 | K78: -0.002440249998 | L78: 1.13494151e-05 | M78: 0.0001183028735 | N78: 1.838276827e-07
A79: 37.08536333 | B79: ='DF raw data'!A84 -> 5.1232423e-06 | C79: ='DF raw data'!B84 -> -4.6114528e-06 | D79: ='DF raw data'!C84 -> -5.9924419e-06 | F79: 5.126849063e-06 | G79: -4.623526113e-06 | H79: -5.996660579e-06 | J79: -7.897081581e-05 | K79: -0.002479744092 | L79: 9.03714346e-06 | M79: 0.0001228224393 | N79: 1.869874076e-07
A80: 37.58547333 | B80: ='DF raw data'!A85 -> -1.5008403e-06 | C80: ='DF raw data'!B85 -> 3.7852496e-06 | D80: ='DF raw data'!C85 -> -2.5832774e-06 | F80: -1.501896892e-06 | G80: 3.795159818e-06 | H80: -2.585096027e-06 | J80: -7.972192947e-05 | K80: -0.002519613826 | L80: 1.093514084e-05 | M80: 0.0001282912126 | N80: 1.902257015e-07
A81: 38.08558333 | B81: ='DF raw data'!A86 -> 7.7498464e-07 | C81: ='DF raw data'!B86 -> 1.1812097e-05 | D81: ='DF raw data'!C86 -> -2.8055651e-06 | F81: 7.755302292e-07 | G81: 1.184302243e-05 | H81: -2.807540218e-06 | J81: -7.933407904e-05 | K81: -0.002559289593 | L81: 1.685795478e-05 | M81: 0.0001367220444 | N81: 1.935154685e-07
A82: 38.58569333 | B82: ='DF raw data'!A87 -> 8.4089852e-06 | C82: ='DF raw data'!B87 -> 8.6174496e-06 | D82: ='DF raw data'!C87 -> 2.621186e-06 | F82: 8.414905126e-06 | G82: 8.640011073e-06 | H82: 2.623031315e-06 | J82: -7.512570084e-05 | K82: -0.002596860707 | L82: 2.117891072e-05 | M82: 0.0001473138294 | N82: 1.965623472e-07
A83: 39.08580333 | B83: ='DF raw data'!A88 -> 1.0438373e-05 | C83: ='DF raw data'!B88 -> 7.0305996e-06 | D83: ='DF raw data'!C88 -> 4.7106519e-06 | F83: 1.044572161e-05 | G83: 7.049006517e-06 | H83: 4.713968199e-06 | J83: -6.990169101e-05 | K83: -0.002631819242 | L83: 2.470418937e-05 | M83: 0.0001596686416 | N83: 1.993112235e-07
A84: 39.58591333 | B84: ='DF raw data'!A89 -> 7.7064478e-06 | C84: ='DF raw data'!B89 -> -1.3122026e-06 | D84: ='DF raw data'!C89 -> -5.8538666e-07 | F84: 7.711873139e-06 | G84: -1.315638097e-06 | H84: -5.857987722e-07 | J84: -6.604490613e-05 | K84: -0.00266484896 | L84: 2.40462256e-05 | M84: 0.0001716943994 | N84: 2.017818422e-07
A85: 40.08602333 | B85: ='DF raw data'!A90 -> 4.7011204e-06 | C85: ='DF raw data'!B90 -> -7.571407e-06 | D85: ='DF raw data'!C90 -> 4.5937537e-07 | F85: 4.704429989e-06 | G85: -7.591229813e-06 | H85: 4.596987703e-07 | J85: -6.369217365e-05 | K85: -0.002696702053 | L85: 2.024977566e-05 | M85: 0.0001818215148 | N85: 2.040157068e-07
A86: 40.58613333 | B86: ='DF raw data'!A91 -> 2.6444402e-06 | C86: ='DF raw data'!B91 -> -3.8144572e-09 | D86: ='DF raw data'!C91 -> 7.1280961e-06 | F86: 2.646301886e-06 | G86: -3.824443887e-09 | H86: 7.13311428e-06 | J86: -6.236873161e-05 | K86: -0.002727893279 | L86: 2.024786302e-05 | M86: 0.0001919476735 | N86: 2.061660971e-07
A87: 41.08624333 | B87: ='DF raw data'!A92 -> 2.7236681e-06 | C87: ='DF raw data'!B92 -> 6.0777948e-06 | D87: ='DF raw data'!C92 -> 8.8782699e-06 | F87: 2.725585562e-06 | G87: 6.093707165e-06 | H87: 8.884520202e-06 | J87: -6.100563902e-05 | K87: -0.002758402809 | L87: 2.329538691e-05 | M87: 0.0002035979295 | N87: 2.082987477e-07
A88: 41.58635333 | B88: ='DF raw data'!A93 -> 4.5597485e-06 | C88: ='DF raw data'!B93 -> 7.0691585e-06 | D88: ='DF raw data'!C93 -> 6.472605e-06 | F88: 4.562958563e-06 | G88: 7.087666369e-06 | H88: 6.477161714e-06 | J88: -5.872365781e-05 | K88: -0.002787771098 | L88: 2.683999973e-05 | M88: 0.0002170208817 | N88: 2.10383633e-07
A89: 42.08646333 | B89: ='DF raw data'!A94 -> 6.5928039e-06 | C89: ='DF raw data'!B94 -> 1.1654784e-05 | D89: ='DF raw data'!C94 -> -2.2881063e-06 | F89: 6.597445234e-06 | G89: 1.168529756e-05 | H89: -2.289717127e-06 | J89: -5.542420947e-05 | K89: -0.002815489299 | L89: 3.26839339e-05 | M89: 0.0002333664439 | N89: 2.124541297e-07
A90: 42.58657333 | B90: ='DF raw data'!A95 -> 6.5390709e-06 | C90: ='DF raw data'!B95 -> -8.6602273e-07 | D90: ='DF raw data'!C95 -> -6.4974515e-06 | F90: 6.543674406e-06 | G90: -8.68290077e-07 | H90: -6.502025706e-06 | J90: -5.215165247e-05 | K90: -0.002841570862 | L90: 3.224969335e-05 | M90: 0.0002494948381 | N90: 2.143344621e-07
A91: 43.08668333 | B91: ='DF raw data'!A96 -> 5.2493908e-07 | C91: ='DF raw data'!B96 -> -4.9123355e-06 | D91: ='DF raw data'!C96 -> -4.0535764e-07 | F91: 5.253086371e-07 | G91: -4.925196559e-06 | H91: -4.056430118e-07 | J91: -5.188894036e-05 | K91: -0.00286752104 | L91: 2.97865533e-05 | M91: 0.0002643913912 | N91: 2.161247063e-07
A92: 43.58679333 | B92: ='DF raw data'!A97 -> -8.0678501e-06 | C92: ='DF raw data'!B97 -> -2.3722769e-06 | D92: ='DF raw data'!C97 -> 4.4369158e-06 | F92: -8.073529866e-06 | G92: -2.378487793e-06 | H92: 4.440039389e-06 | J92: -5.592659339e-05 | K92: -0.002895490488 | L92: 2.859704777e-05 | M92: 0.0002786930608 | N92: 2.180979278e-07
A93: 44.08690333 | B93: ='DF raw data'!A98 -> -9.9826202e-06 | C93: ='DF raw data'!B98 -> -1.1830934e-05 | D93: ='DF raw data'!C98 -> 7.75312e-07 | F93: -9.989647965e-06 | G93: -1.186190874e-05 | H93: 7.758578196e-07 | J93: -6.092251623e-05 | K93: -0.002925958448 | L93: 2.266478858e-05 | M93: 0.0002900279482 | N93: 2.202110154e-07
A94: 44.58701333 | B94: ='DF raw data'!A99 -> -5.7181383e-06 | C94: ='DF raw data'!B99 -> -4.5375364e-06 | D94: ='DF raw data'!C99 -> -4.8570942e-06 | F94: -5.722163869e-06 | G94: -4.549416191e-06 | H94: -4.860513594e-06 | J94: -6.37842276e-05 | K94: -0.002957857578 | L94: 2.038958005e-05 | M94: 0.0003002249811 | N94: 2.2245359e-07
A95: 45.08712333 | B95: ='DF raw data'!A100 -> -1.2525992e-06 | C95: ='DF raw data'!B100 -> 2.7247715e-06 | D95: ='DF raw data'!C100 -> 1.7013423e-07 | F95: -1.25348103e-06 | G95: 2.731905265e-06 | H95: 1.702540045e-07 | J95: -6.4411106e-05 | K95: -0.002990070216 | L95: 2.17558332e-05 | M95: 0.0003111052908 | N95: 2.247651519e-07
A96: 45.58723333 | B96: ='DF raw data'!A101 -> -2.5823044e-07 | C96: ='DF raw data'!B101 -> 2.1743854e-06 | D96: ='DF raw data'!C101 -> 8.1087719e-06 | F96: -2.584122342e-07 | G96: 2.180078191e-06 | H96: 8.114480475e-06 | J96: -6.454034054e-05 | K96: -0.003022347486 | L96: 2.28461121e-05 | M96: 0.0003225308599 | N96: 2.271093677e-07
A97: 46.08734333 | B97: ='DF raw data'!A102 -> -1.9749561e-06 | C97: ='DF raw data'!B102 -> 1.6855065e-06 | D97: ='DF raw data'!C102 -> 6.3593984e-06 | F97: -1.976346469e-06 | G97: 1.68991935e-06 | H97: 6.363875416e-06 | J97: -6.552873117e-05 | K97: -0.00305511906 | L97: 2.369125766e-05 | M97: 0.0003343790948 | N97: 2.295375469e-07
A98: 46.58745333 | B98: ='DF raw data'!A103 -> -4.8355064e-06 | C98: ='DF raw data'!B103 -> -1.3846529e-06 | D98: ='DF raw data'!C103 -> 2.0990706e-06 | F98: -4.838910597e-06 | G98: -1.38827808e-06 | H98: 2.100548346e-06 | J98: -6.794871875e-05 | K98: -0.003089100893 | L98: 2.299696591e-05 | M98: 0.0003458801074 | N98: 2.321110574e-07
A99: 47.08756333 | B99: ='DF raw data'!A104 -> -5.3510153e-06 | C99: ='DF raw data'!B104 -> -1.4887246e-06 | D99: ='DF raw data'!C104 -> 3.6111092e-06 | F99: -5.354782415e-06 | G99: -1.492622252e-06 | H99: 3.613651421e-06 | J99: -7.062669899e-05 | K99: -0.003124422012 | L99: 2.22504906e-05 | M99: 0.0003570078003 | N99: 2.34853268e-07
A100: 47.58767333 | B100: ='DF raw data'!A105 -> -3.4082689e-06 | C100: ='DF raw data'!B105 -> 1.7209986e-06 | D100: ='DF raw data'!C105 -> 6.9669045e-06 | F100: -3.410668321e-06 | G100: 1.725504372e-06 | H100: 6.971809201e-06 | J100: -7.233240832e-05 | K100: -0.003160596173 | L100: 2.311343259e-05 | M100: 0.0003685670591 | N100: 2.377370063e-07
A101: 48.08778333 | B101: ='DF raw data'!A106 -> 2.4164917e-06 | C101: ='DF raw data'!B106 -> -1.8627234e-06 | D101: ='DF raw data'!C106 -> 1.8721189e-06 | F101: 2.41819291e-06 | G101: -1.867600224e-06 | H101: 1.873436872e-06 | J101: -7.112304586e-05 | K101: -0.003196165519 | L101: 2.217942704e-05 | M101: 0.0003796592123 | N101: 2.405128242e-07
A102: 48.58789333 | B102: ='DF raw data'!A107 -> 3.0088929e-06 | C102: ='DF raw data'!B107 -> -1.3621526e-05 | D102: ='DF raw data'!C107 -> -7.0861929e-06 | F102: 3.011011161e-06 | G102: -1.365718872e-05 | H102: -7.09118158e-06 | J102: -6.961720907e-05 | K102: -0.003230981782 | L102: 1.534933039e-05 | M102: 0.0003873355659 | N102: 2.430544621e-07
A103: 49.08800333 | B103: ='DF raw data'!A108 -> -2.6949849e-06 | C103: ='DF raw data'!B108 -> -6.8594327e-06 | D103: ='DF raw data'!C108 -> -4.4556432e-06 | F103: -2.696882169e-06 | G103: -6.877391483e-06 | H103: -4.458779973e-06 | J103: -7.096594681e-05 | K103: -0.003266472561 | L103: 1.190987814e-05 | M103: 0.0003932918151 | N103: 2.45644037e-07
A104: 49.58811333 | B104: ='DF raw data'!A109 -> -4.1485905e-06 | C104: ='DF raw data'!B109 -> 4.4305034e-06 | D104: ='DF raw data'!C109 -> 4.4791745e-06 | F104: -4.151511108e-06 | G104: 4.442102967e-06 | H104: 4.482327839e-06 | J104: -7.304215903e-05 | K104: -0.003303001675 | L104: 1.413141825e-05 | M104: 0.0004003590787 | N104: 2.484120729e-07
A105: 50.08822333 | B105: ='DF raw data'!A110 -> -8.114506e-07 | C105: ='DF raw data'!B110 -> -1.522616e-06 | D105: ='DF raw data'!C110 -> 4.1551252e-06 | F105: -8.120218612e-07 | G105: -1.526602384e-06 | H105: 4.158050408e-06 | J105: -7.344825929e-05 | K105: -0.003339733884 | L105: 1.336794914e-05 | M105: 0.0004070445237 | N105: 2.511993604e-07
A106: 50.58833333 | B106: ='DF raw data'!A111 -> -1.9333086e-06 | C106: ='DF raw data'!B111 -> -1.5907268e-05 | D106: ='DF raw data'!C111 -> -7.1512109e-06 | F106: -1.934669649e-06 | G106: -1.594891505e-05 | H106: -7.156245352e-06 | J106: -7.441580693e-05 | K106: -0.003376949974 | L106: 5.391737227e-06 | M106: 0.0004097409854 | N106: 2.539833643e-07
A107: 51.08844333 | B107: ='DF raw data'!A112 -> -2.5522088e-06 | C107: ='DF raw data'!B112 -> -3.9784736e-06 | D107: ='DF raw data'!C112 -> -7.9664305e-06 | F107: -2.554005555e-06 | G107: -3.988889701e-06 | H107: -7.972038867e-06 | J107: -7.569309064e-05 | K107: -0.003414804845 | L107: 3.396853599e-06 | M107: 0.0004114397859 | N107: 2.568544871e-07
A108: 51.58855333 | B108: ='DF raw data'!A113 -> -1.4148769e-07 | C108: ='DF raw data'!B113 -> 9.5198175e-06 | D108: ='DF raw data'!C113 -> -5.116191e-06 | F108: -1.415872973e-07 | G108: 9.544741476e-06 | H108: -5.119792798e-06 | J108: -7.576389987e-05 | K108: -0.003452695129 | L108: 8.170274258e-06 | M108: 0.0004155258217 | N108: 2.597585868e-07
A109: 52.08866333 | B109: ='DF raw data'!A114 -> -2.1935623e-06 | C109: ='DF raw data'!B114 -> 7.2347448e-06 | D109: ='DF raw data'!C114 -> -8.5211641e-06 | F109: -2.195106568e-06 | G109: 7.253686193e-06 | H109: -8.527163e-06 | J109: -7.686169461e-05 | K109: -0.003491134431 | L109: 1.179791526e-05 | M109: 0.0004214260771 | N109: 2.627827074e-07
A110: 52.58877333 | B110: ='DF raw data'!A115 -> -6.8279764e-06 | C110: ='DF raw data'!B115 -> 6.5958939e-06 | D110: ='DF raw data'!C115 -> -5.5734122e-06 | F110: -6.832783295e-06 | G110: 6.613162708e-06 | H110: -5.577335882e-06 | J110: -8.027883787e-05 | K110: -0.003531282681 | L110: 1.510522406e-05 | M110: 0.0004289803508 | N110: 2.661198712e-07
A111: 53.08888333 | B111: ='DF raw data'!A116 -> -4.749199e-06 | C111: ='DF raw data'!B116 -> -3.8318412e-06 | D111: ='DF raw data'!C116 -> -7.2561619e-07 | F111: -4.752542436e-06 | G111: -3.8418734e-06 | H111: -7.261270238e-07 | J111: -8.265563186e-05 | K111: -0.003572619589 | L111: 1.318386476e-05 | M111: 0.0004355737334 | N111: 2.696235257e-07
A112: 53.58899333 | B112: ='DF raw data'!A117 -> 1.3837422e-06 | C112: ='DF raw data'!B117 -> -7.2842686e-06 | D112: ='DF raw data'!C117 -> 6.0388052e-06 | F112: 1.384716355e-06 | G112: -7.303339652e-06 | H112: 6.043056519e-06 | J112: -8.196312137e-05 | K112: -0.003613610165 | L112: 9.531391562e-06 | M112: 0.0004403404776 | N112: 2.730286751e-07
A113: 54.08910333 | B113: ='DF raw data'!A118 -> 4.0091986e-06 | C113: ='DF raw data'!B118 -> -9.9245244e-06 | D113: ='DF raw data'!C118 -> 5.0368985e-06 | F113: 4.012021076e-06 | G113: -9.950507945e-06 | H113: 5.040444477e-06 | J113: -7.995666951e-05 | K113: -0.003653597295 | L113: 4.555043034e-06 | M113: 0.0004426185002 | N113: 2.762362893e-07
A114: 54.58921333 | B114: ='DF raw data'!A119 -> 2.8785951e-06 | C114: ='DF raw data'!B119 -> -1.2512881e-05 | D114: ='DF raw data'!C119 -> -1.652646e-06 | F114: 2.880621631e-06 | G114: -1.254564116e-05 | H114: -1.653809463e-06 | J114: -7.851604182e-05 | K114: -0.003692863953 | L114: -1.719157566e-06 | M114: 0.0004417587323 | N114: 2.793208299e-07
A115: 55.08932333 | B115: ='DF raw data'!A120 -> -2.7547933e-06 | C115: ='DF raw data'!B120 -> 9.4142761e-06 | D115: ='DF raw data'!C120 -> -3.0739752e-06 | F115: -2.756732674e-06 | G115: 9.438923756e-06 | H115: -3.076139279e-06 | J115: -7.98947114e-05 | K115: -0.003732820097 | L115: 3.001342593e-06 | M115: 0.0004432597337 | N115: 2.825176195e-07
A116: 55.58943333 | B116: ='DF raw data'!A121 -> -6.3420443e-06 | C116: ='DF raw data'!B121 -> 8.7349963e-06 | D116: ='DF raw data'!C121 -> 5.4685011e-06 | F116: -6.346509099e-06 | G116: 8.757865524e-06 | H116: 5.472350925e-06 | J116: -8.306866407e-05 | K116: -0.003774363567 | L116: 7.38123872e-06 | M116: 0.000446951165 | N116: 2.859958274e-07
A117: 56.08954333 | B117: ='DF raw data'!A122 -> -2.9889482e-06 | C117: ='DF raw data'!B122 -> -9.9277713e-07 | D117: ='DF raw data'!C122 -> 1.1019846e-05 | F117: -2.99105242e-06 | G117: -9.953763346e-07 | H117: 1.102760397e-05 | J117: -8.456451929e-05 | K117: -0.003816655129 | L117: 6.883441062e-06 | M117: 0.0004503936427 | N117: 2.895958891e-07
A118: 56.58965333 | B118: ='DF raw data'!A123 -> -4.0714747e-07 | C118: ='DF raw data'!B123 -> 1.0070307e-06 | D118: ='DF raw data'!C123 -> 1.8973446e-06 | F118: -4.074341018e-07 | G118: 1.009667222e-06 | H118: 1.898680331e-06 | J118: -8.476828116e-05 | K118: -0.003859048594 | L118: 7.388385736e-06 | M118: 0.0004540886483 | N118: 2.932168104e-07
A119: 57.08976333 | B119: ='DF raw data'!A124 -> 1.2090517e-07 | C119: ='DF raw data'!B124 -> -5.982818e-06 | D119: ='DF raw data'!C124 -> -2.0545044e-06 | F119: 1.209902872e-07 | G119: -5.998481705e-06 | H119: -2.055950771e-06 | J119: -8.470777271e-05 | K119: -0.003901411798 | L119: 4.388485051e-06 | M119: 0.0004562833736 | N119: 2.968149345e-07
A120: 57.58987333 | B120: ='DF raw data'!A125 -> 1.892331e-09 | C120: ='DF raw data'!B125 -> -2.7145234e-06 | D120: ='DF raw data'!C125 -> 6.0368116e-06 | F120: 1.893663201e-09 | G120: -2.721630334e-06 | H120: 6.041061515e-06 | J120: -8.470682567e-05 | K120: -0.003943774528 | L120: 3.027370504e-06 | M120: 0.0004577973918 | N120: 3.004079305e-07
A121: 58.08998333 | B121: ='DF raw data'!A126 -> -7.9763356e-07 | C121: ='DF raw data'!B126 -> 3.2575463e-06 | D121: ='DF raw data'!C126 -> 9.1340999e-06 | F121: -7.98195094e-07 | G121: 3.26607493e-06 | H121: 9.140530306e-06 | J121: -8.510601102e-05 | K121: -0.003986336896 | L121: 4.660767238e-06 | M121: 0.0004601282881 | N121: 3.040411075e-07
A122: 58.59009333 | B122: ='DF raw data'!A127 -> 3.1397874e-06 | C122: ='DF raw data'!B127 -> -5.2524962e-07 | D122: ='DF raw data'!C127 -> 8.1662083e-06 | F122: 3.14199781e-06 | G122: -5.266247838e-07 | H122: 8.171957311e-06 | J122: -8.353466649e-05 | K122: -0.004028113418 | L122: 4.397396917e-06 | M122: 0.0004623274703 | N122: 3.07540566e-07
A123: 59.09020333 | B123: ='DF raw data'!A128 -> 7.1858017e-06 | C123: ='DF raw data'!B128 -> 1.7810398e-06 | D123: ='DF raw data'!C128 -> 8.1111002e-06 | F123: 7.190860504e-06 | G123: 1.785702767e-06 | H123: 8.116810415e-06 | J123: -7.993844525e-05 | K123: -0.004068091434 | L123: 5.290444728e-06 | M123: 0.0004649732746 | N123: 3.10750344e-07
A124: 59.59031333 | B124: ='DF raw data'!A129 -> 6.8607992e-06 | C124: ='DF raw data'!B129 -> -2.1758769e-06 | D124: ='DF raw data'!C129 -> 3.1050372e-06 | F124: 6.865629203e-06 | G124: -2.181573596e-06 | H124: 3.107223146e-06 | J124: -7.650487543e-05 | K124: -0.004106352287 | L124: 4.199417957e-06 | M124: 0.0004670734455 | N124: 3.136863053e-07
A125: 60.09042333 | B125: ='DF raw data'!A130 -> 9.5231671e-06 | C125: ='DF raw data'!B130 -> -5.890086e-06 | D125: ='DF raw data'!C130 -> 1.3334288e-06 | F125: 9.52987141e-06 | G125: -5.905506922e-06 | H125: 1.334367534e-06 | J125: -7.173889144e-05 | K125: -0.004142229624 | L125: 1.24601489e-06 | M125: 0.00046769659 | N125: 3.162608821e-07
A126: 60.59053333 | B126: ='DF raw data'!A131 -> 1.53e-05 | C126: ='DF raw data'!B131 -> -1.1372345e-05 | D126: ='DF raw data'!C131 -> 3.4604313e-06 | F126: 1.53107712e-05 | G126: -1.140211911e-05 | H126: 3.462867444e-06 | J126: -6.408182165e-05 | K126: -0.004174277584 | L126: -4.456298896e-06 | M126: 0.0004654679504 | N126: 3.183245052e-07
A127: 61.09064333 | B127: ='DF raw data'!A132 -> 1.5462734e-05 | C127: ='DF raw data'!B132 -> -8.4477524e-06 | D127: ='DF raw data'!C132 -> -5.862525e-07 | F127: 1.547361976e-05 | G127: -8.469869586e-06 | H127: -5.866652218e-07 | J127: -5.634330967e-05 | K127: -0.004202455436 | L127: -8.692165374e-06 | M127: 0.0004611209116 | N127: 3.199499239e-07
A128: 61.59075333 | B128: ='DF raw data'!A133 -> 6.9838866e-06 | C128: ='DF raw data'!B133 -> -5.1981296e-08 | D128: ='DF raw data'!C133 -> -5.1144838e-07 | F128: 6.988803256e-06 | G128: -5.2117389e-08 | H128: -5.118084397e-07 | J128: -5.284813927e-05 | K128: -0.004228885319 | L128: -8.718229802e-06 | M128: 0.0004567608377 | N128: 3.213847061e-07
A129: 62.09086333 | B129: ='DF raw data'!A134 -> -1.4804094e-06 | C129: ='DF raw data'!B134 -> -2.7923106e-06 | D129: ='DF raw data'!C134 -> 4.2731922e-06 | F129: -1.481451608e-06 | G129: -2.79962119e-06 | H129: 4.276200527e-06 | J129: -5.358902804e-05 | K129: -0.004255685728 | L129: -1.011834835e-05 | M129: 0.0004517005505 | N129: 3.228721158e-07
A130: 62.59097333 | B130: ='DF raw data'!A135 -> -5.456526e-07 | C130: ='DF raw data'!B135 -> 8.1395137e-06 | D130: ='DF raw data'!C135 -> 6.0446623e-06 | F130: -5.460367394e-07 | G130: 8.160823882e-06 | H130: 6.048917742e-06 | J130: -5.386210647e-05 | K130: -0.004282622706 | L130: -6.037038723e-06 | M130: 0.000448681367 | N130: 3.243412251e-07
A131: 63.09108333 | B131: ='DF raw data'!A136 -> 4.109585e-06 | C131: ='DF raw data'!B136 -> 5.5797118e-06 | D131: ='DF raw data'!C136 -> 3.6178976e-06 | F131: 4.112478148e-06 | G131: 5.594320126e-06 | H131: 3.6204446e-06 | J131: -5.180541502e-05 | K131: -0.004308531112 | L131: -3.239263285e-06 | M131: 0.0004470613791 | N131: 3.256886684e-07
A132: 63.59119333 | B132: ='DF raw data'!A137 -> 5.5658222e-07 | C132: ='DF raw data'!B137 -> -1.3833178e-06 | D132: ='DF raw data'!C137 -> 2.6342973e-06 | F132: 5.569740539e-07 | G132: -1.386939485e-06 | H132: 2.636151845e-06 | J132: -5.152686673e-05 | K132: -0.004334300213 | L132: -3.932885591e-06 | M132: 0.0004450945037 | N132: 3.270242049e-07
A133: 64.09130333 | B133: ='DF raw data'!A138 -> -1.464657e-06 | C133: ='DF raw data'!B138 -> 4.0048708e-06 | D133: ='DF raw data'!C138 -> -5.1643968e-07 | F133: -1.465688119e-06 | G133: 4.015356012e-06 | H133: -5.168032535e-07 | J133: -5.225987202e-05 | K133: -0.004360435898 | L133: -1.924765896e-06 | M133: 0.000444131909 | N133: 3.283919052e-07
A134: 64.59141333 | B134: ='DF raw data'!A139 -> 3.8562725e-06 | C134: ='DF raw data'!B139 -> 2.6597936e-06 | D134: ='DF raw data'!C139 -> -2.6084958e-06 | F134: 3.858987316e-06 | G134: 2.666757245e-06 | H134: -2.610332181e-06 | J134: -5.032995387e-05 | K134: -0.004385606411 | L134: -5.910939299e-07 | M134: 0.000443836297 | N134: 3.296589107e-07
A135: 65.09152333 | B135: ='DF raw data'!A140 -> 4.3118421e-06 | C135: ='DF raw data'!B140 -> 3.8482267e-06 | D135: ='DF raw data'!C140 -> -2.5638433e-06 | F135: 4.314877637e-06 | G135: =(1-$G$1*($B$2-$G$2))*C135*$M$2/$M$1 -> 3.8583018e-06 | H135: -2.565648246e-06 | J135: -4.817204041e-05 | K135: -0.00440969773 | L135: 1.338481383e-06 | M135: 0.0004445056849 | N135: 3.308203347e-07
A136: =A135+$B$1 -> 65.59163333 | B136: ='DF raw data'!A141 -> 1.4688491e-06 | C136: ='DF raw data'!B141 -> 9.6627173e-06 | D136: ='DF raw data'!C141 -> -6.6267016e-06 | F136: 1.46988317e-06 | G136: 9.688015404e-06 | H136: -6.631366798e-06 | J136: =F136*$B$1+J135 -> -4.743693714e-05 | K136: =J136*$B$1+K135 -> -0.004433421417 | L136: =G136*$B$1+L135 -> 6.183554767e-06 | M136: =L136*$B$1+M135 -> 0.0004475981425 | N136: =(J136^2+L136^2)*$B$1+N135 -> 3.319648361e-07
A137: 66.09174333 | B137: ='DF raw data'!A142 -> 2.4383123e-06 | C137: ='DF raw data'!B142 -> 7.0446094e-06 | D137: ='DF raw data'!C142 -> -6.6718926e-06 | F137: 2.440028872e-06 | G137: 7.063052997e-06 | H137: -6.676589612e-06 | J137: -4.62166543e-05 | K137: -0.004456534828 | L137: 9.715858201e-06 | M137: 0.0004524571404 | N137: 3.330802699e-07
A138: 66.59185333 | B138: ='DF raw data'!A143 -> 1.5757765e-06 | C138: ='DF raw data'!B143 -> 1.6873764e-06 | D138: ='DF raw data'!C143 -> -8.047361e-06 | F138: 1.576885847e-06 | G138: 1.691794145e-06 | H138: -8.053026342e-06 | J138: -4.542803792e-05 | K138: -0.004479253844 | L138: 1.056194137e-05 | M138: 0.0004577392729 | N138: 3.341681398e-07
A139: 67.09196333 | B139: ='DF raw data'!A144 -> -1.7611595e-06 | C139: ='DF raw data'!B144 -> -3.2974658e-06 | D139: ='DF raw data'!C144 -> -9.6966387e-06 | F139: =(1-$G$1*($B$2-$G$2))*B139 -> -1.762399356e-06 | G139: -3.306098944e-06 | H139: =(1-$G$1*($B$2-$G$2))*D139 -> -9.703465134e-06 | J139: -4.630943146e-05 | K139: -0.004502413654 | L139: 8.908528228e-06 | M139: 0.0004621945169 | N139: 3.352803471e-07
A140: 67.59207333 | B140: ='DF raw data'!A145 -> -2.7020571e-06 | C140: ='DF raw data'!B145 -> -7.9558104e-06 | D140: ='DF raw data'!C145 -> -1.2728974e-05 | F140: -2.703959348e-06 | G140: -7.976639625e-06 | H140: -1.27379352e-05 | J140: -4.766170857e-05 | K140: -0.004526249751 | L140: 4.919330985e-06 | M140: 0.0004646547235 | N140: 3.364285188e-07
A141: 68.09218333 | B141: ='DF raw data'!A146 -> -4.7851786e-06 | C141: ='DF raw data'!B146 -> -1.6599133e-06 | D141: ='DF raw data'!C146 -> -8.9366577e-06 | F141: -4.788547366e-06 | G141: -1.664259144e-06 | H141: -8.942949107e-06 | J141: -5.0056509e-05 | K141: -0.004551283512 | L141: 4.087018344e-06 | M141: 0.0004666986823 | N141: 3.376899752e-07
A142: 68.59229333 | B142: ='DF raw data'!A147 -> -7.9944211e-06 | C142: ='DF raw data'!B147 -> 1.1005928e-05 | D142: ='DF raw data'!C147 -> 1.719513e-06 | F142: -8.000049172e-06 | G142: 1.103474278e-05 | H142: 1.720723537e-06 | J142: -5.405741359e-05 | K142: -0.004578318165 | L142: 9.605603558e-06 | M142: 0.0004715025407 | N142: 3.391975426e-07
A143: 69.09240333 | B143: ='DF raw data'!A148 -> -7.8535804e-06 | C143: ='DF raw data'!B148 -> 1.1440234e-05 | D143: ='DF raw data'!C148 -> 4.46081e-06 | F143: -7.859109321e-06 | G143: 1.147018585e-05 | H143: 4.46395041e-06 | J143: -5.798783275e-05 | K143: -0.00460731846 | L143: 1.53419582e-05 | M143: 0.0004791752074 | N143: 3.409969206e-07
A144: 69.59251333 | B144: ='DF raw data'!A149 -> -9.4755951e-06 | C144: ='DF raw data'!B149 -> 1.0087815e-05 | D144: ='DF raw data'!C149 -> 5.0989916e-06 | F144: -9.482265919e-06 | G144: 1.011422606e-05 | H144: 5.10258129e-06 | J144: -6.273000876e-05 | K144: -0.004638690364 | L144: 2.04001838e-05 | M144: 0.0004893775433 | N144: 3.431730099e-07
A145: 70.09262333 | B145: ='DF raw data'!A150 -> -1.0308692e-05 | C145: ='DF raw data'!B150 -> 5.5567634e-06 | D145: ='DF raw data'!C150 -> -1.5915498e-06 | F145: -1.031594932e-05 | G145: 5.571311645e-06 | H145: -1.592670251e-06 | J145: -6.788911817e-05 | K145: -0.004672642391 | L145: 2.318645246e-05 | M145: 0.00050097332 | N145: 3.45746848e-07
A146: 70.59273333 | B146: ='DF raw data'!A151 -> -7.5095591e-06 | C146: ='DF raw data'!B151 -> -2.8132581e-06 | D146: ='DF raw data'!C151 -> -6.9596713e-06 | F146: -7.51484583e-06 | G146: -2.820623533e-06 | H146: -6.964570909e-06 | J146: -7.164736772e-05 | K146: -0.004708473956 | L146: 2.177583043e-05 | M146: 0.0005118636306 | N146: 3.485512309e-07
A147: 71.09284333 | B147: ='DF raw data'!A152 -> -2.8922288e-06 | C147: ='DF raw data'!B152 -> -3.470117e-06 | D147: ='DF raw data'!C152 -> -4.480396e-06 | F147: -2.894264929e-06 | G147: -3.479202165e-06 | H147: -4.483550199e-06 | J147: -7.309481855e-05 | K147: -0.004745029406 | L147: 2.003584663e-05 | M147: 0.0005218837578 | N147: 3.514240066e-07
A148: 71.59295333 | B148: ='DF raw data'!A153 -> 1.0675343e-07 | C148: ='DF raw data'!B153 -> -3.2400876e-06 | D148: ='DF raw data'!C153 -> 7.7963392e-07 | F148: 1.068285844e-07 | G148: -3.248570521e-06 | H148: 7.801827823e-07 | J148: -7.304139251e-05 | K148: -0.004781558137 | L148: 1.841120403e-05 | M148: 0.0005310913851 | N148: 3.542616395e-07
A149: 72.09306333 | B149: ='DF raw data'!A154 -> 2.9633018e-06 | C149: ='DF raw data'!B154 -> -3.5392313e-06 | D149: ='DF raw data'!C154 -> -1.7594716e-06 | F149: 2.965387964e-06 | G149: -3.548497414e-06 | H149: -1.760710268e-06 | J149: -7.155837234e-05 | K149: -0.004817345194 | L149: 1.663656499e-05 | M149: 0.0005394114976 | N149: 3.569609212e-07
A150: 72.59317333 | B150: ='DF raw data'!A155 -> 6.2059194e-06 | C150: ='DF raw data'!B155 -> -7.3729133e-08 | D150: ='DF raw data'!C155 -> -8.1765456e-06 | F150: 6.210288367e-06 | G150: -7.392216434e-08 | H150: -8.182301888e-06 | J150: -6.845254502e-05 | K150: -0.004851578997 | L150: 1.659959577e-05 | M150: 0.0005477131215 | N150: 3.594421156e-07
A151: 73.09328333 | B151: ='DF raw data'!A156 -> 3.7534126e-06 | C151: ='DF raw data'!B156 -> -1.7609182e-06 | D151: ='DF raw data'!C156 -> -2.0112416e-06 | F151: 3.756055002e-06 | G151: -1.765528486e-06 | H151: -2.012657514e-06 | J151: -6.657410435e-05 | K151: -0.004884873372 | L151: 1.571663732e-05 | M151: 0.0005555731689 | N151: 3.617821924e-07
A152: 73.59339333 | B152: ='DF raw data'!A157 -> -1.934162e-07 | C152: ='DF raw data'!B157 -> 5.3202706e-07 | D152: ='DF raw data'!C157 -> 9.9367071e-07 | F152: -1.93552365e-07 | G152: 5.33419968e-07 | H152: 9.943702542e-07 | J152: -6.667090183e-05 | K152: -0.004918216157 | L152: 1.598340598e-05 | M152: 0.0005635666301 | N152: 3.641329486e-07
A153: 74.09350333 | B153: ='DF raw data'!A158 -> -2.7269555e-06 | C153: ='DF raw data'!B158 -> 9.810019e-06 | D153: ='DF raw data'!C158 -> -5.8677829e-06 | F153: -2.728875277e-06 | G153: 9.835702757e-06 | H153: -5.871913819e-06 | J153: -6.803563964e-05 | K153: -0.004952241461 | L153: 2.090233929e-05 | M153: 0.000574020099 | N153: 3.666663839e-07
A154: 74.59361333 | B154: ='DF raw data'!A159 -> -5.5921114e-06 | C154: ='DF raw data'!B159 -> 5.8607093e-06 | D154: ='DF raw data'!C159 -> -4.1894232e-06 | F154: -5.596048246e-06 | G154: 5.87605331e-06 | H154: -4.192372554e-06 | J154: -7.083427933e-05 | K154: -0.004987666392 | L154: 2.384101231e-05 | M154: 0.0005859432277 | N154: 3.694599428e-07
A155: 75.09372333 | B155: ='DF raw data'!A160 -> -5.9845984e-06 | C155: ='DF raw data'!B160 -> 1.2746841e-06 | D155: ='DF raw data'!C160 -> 1.6181516e-06 | F155: -5.988811557e-06 | G155: 1.278021369e-06 | H155: 1.619290779e-06 | J155: -7.382934388e-05 | K155: -0.005024589185 | L155: 2.448016358e-05 | M155: 0.0005981860023 | N155: 3.724856336e-07
A156: 75.59383333 | B156: ='DF raw data'!A161 -> -4.3333489e-06 | C156: ='DF raw data'!B161 -> 1.0238056e-05 | D156: ='DF raw data'!C161 -> 5.9734208e-07 | F156: -4.336399578e-06 | G156: 1.026486041e-05 | H156: 5.977626088e-07 | J156: -7.599802067e-05 | K156: -0.005062596555 | L156: 2.961372291e-05 | M156: 0.0006129961213 | N156: 3.758127012e-07
A157: 76.09394333 | B157: ='DF raw data'!A162 -> -2.1757965e-07 | C157: ='DF raw data'!B162 -> 9.8649925e-06 | D157: ='DF raw data'!C162 -> 2.202964e-06 | F157: -2.177328261e-07 | G157: 9.890820183e-06 | H157: 2.204514887e-06 | J157: -7.610691103e-05 | K157: -0.005100658383 | L157: 3.4560221e-05 | M157: 0.0006302800334 | N157: 3.793068051e-07
A158: 76.59405333 | B158: ='DF raw data'!A163 -> 5.0333988e-06 | C158: ='DF raw data'!B163 -> 4.7528647e-06 | D158: ='DF raw data'!C163 -> 3.9591255e-06 | F158: 5.036942313e-06 | G158: 4.765308246e-06 | H158: 3.961912724e-06 | J158: -7.358788581e-05 | K158: -0.00513746042 | L158: 3.69433993e-05 | M158: 0.0006487557968 | N158: 3.826975468e-07
A159: 77.09416333 | B159: ='DF raw data'!A164 -> 7.4495988e-06 | C159: ='DF raw data'!B164 -> -3.7375085e-06 | D159: ='DF raw data'!C164 -> 5.2160664e-07 | F159: 7.454843318e-06 | G159: -3.747293727e-06 | H159: 5.219738511e-07 | J159: -6.985964412e-05 | K159: -0.005172397927 | L159: 3.506934024e-05 | M159: 0.0006662943245 | N159: 3.857533332e-07
A160: 77.59427333 | B160: ='DF raw data'!A165 -> 6.330411e-06 | C160: ='DF raw data'!B165 -> -1.1878163e-05 | D160: ='DF raw data'!C165 -> 2.9304651e-06 | F160: 6.334867609e-06 | G160: -1.19092614e-05 | H160: 2.932528147e-06 | J160: -6.669151348e-05 | K160: -0.00520575102 | L160: 2.911339952e-05 | M160: 0.0006808542268 | N160: 3.884015897e-07
A161: 78.09438333 | B161: ='DF raw data'!A166 -> 3.912814e-06 | C161: ='DF raw data'!B166 -> -2.0161624e-06 | D161: ='DF raw data'!C166 -> 3.4906484e-06 | F161: 3.915568621e-06 | G161: -2.021440945e-06 | H161: 3.493105816e-06 | J161: -6.473329846e-05 | K161: -0.005238124789 | L161: 2.810245669e-05 | M161: 0.0006949085464 | N161: 3.908922115e-07
A162: 78.59449333 | B162: ='DF raw data'!A167 -> 6.8678787e-06 | C162: ='DF raw data'!B167 -> -2.4526034e-06 | D162: ='DF raw data'!C167 -> 5.6047361e-06 | F162: 6.872713687e-06 | G162: -2.459024597e-06 | H162: 5.608681834e-06 | J162: -6.129618562e-05 | K162: -0.005268779625 | L162: 2.68726739e-05 | M162: 0.0007083478393 | N162: 3.931323857e-07
A163: 79.09460333 | B163: ='DF raw data'!A168 -> 8.2100751e-06 | C163: ='DF raw data'!B168 -> -7.5480511e-06 | D163: ='DF raw data'!C168 -> 1.1879391e-05 | F163: 8.215854993e-06 | G163: -7.567812765e-06 | H163: 1.188775409e-05 | J163: -5.718735438e-05 | K163: -0.005297379593 | L163: 2.308793506e-05 | M163: 0.0007198943465 | N163: 3.950345272e-07
A164: 79.59471333 | B164: ='DF raw data'!A169 -> 7.8683815e-06 | C164: ='DF raw data'!B169 -> -9.0744597e-06 | D164: ='DF raw data'!C169 -> 2.4158003e-06 | F164: 7.873920841e-06 | G164: -9.098217678e-06 | H164: 2.417501023e-06 | J164: -5.324952783e-05 | K164: -0.005324010214 | L164: 1.853782541e-05 | M164: 0.0007291652984 | N164: 3.966244585e-07
A165: 80.09482333 | B165: ='DF raw data'!A170 -> 8.054144e-06 | C165: ='DF raw data'!B170 -> -7.810102e-06 | D165: ='DF raw data'!C170 -> -2.3424894e-07 | F165: 8.059814117e-06 | G165: -7.830549744e-06 | H165: -2.344138513e-07 | J165: -4.921873419e-05 | K165: -0.005348624995 | L165: 1.462168918e-05 | M165: 0.0007364777514 | N165: 3.979428873e-07
A166: 80.59493333 | B166: ='DF raw data'!A171 -> 6.9528473e-06 | C166: ='DF raw data'!B171 -> -2.7865699e-06 | D166: ='DF raw data'!C171 -> 6.1866235e-06 | F166: 6.957742104e-06 | G166: -2.79386546e-06 | H166: 6.190978883e-06 | J166: -4.573909778e-05 | K166: -0.005371499575 | L166: 1.322444913e-05 | M166: 0.0007430914306 | N166: 3.990766122e-07
A167: 81.09504333 | B167: ='DF raw data'!A172 -> 7.9722458e-06 | C167: ='DF raw data'!B172 -> 3.1641136e-07 | D167: ='DF raw data'!C172 -> 5.5974165e-06 | F167: 7.977858261e-06 | G167: 3.172397613e-07 | H167: 5.601357081e-06 | J167: -4.174929109e-05 | K167: -0.005392378813 | L167: 1.33831039e-05 | M167: 0.0007497844547 | N167: 4.00037879e-07
A168: 81.59515333 | B168: ='DF raw data'!A173 -> 1.0758035e-05 | C168: ='DF raw data'!B173 -> 1.6653594e-06 | D168: ='DF raw data'!C173 -> 4.9314117e-06 | F168: 1.076560866e-05 | G168: 1.669719502e-06 | H168: 4.934883414e-06 | J168: -3.636530254e-05 | K168: -0.005410565465 | L168: 1.421814732e-05 | M168: 0.0007568950924 | N168: 4.008003422e-07
A169: 82.09526333 | B169: ='DF raw data'!A174 -> 1.0120778e-05 | C169: ='DF raw data'!B174 -> 5.8657806e-06 | D169: ='DF raw data'!C174 -> 2.6472776e-06 | F169: 1.012790303e-05 | G169: 5.881137887e-06 | H169: 2.649141283e-06 | J169: -3.130023696e-05 | K169: -0.005426219026 | L169: 1.715936319e-05 | M169: 0.0007654766615 | N169: 4.014375566e-07
A170: 82.59537333 | B170: ='DF raw data'!A175 -> 5.924107e-06 | C170: ='DF raw data'!B175 -> 1.9035269e-06 | D170: ='DF raw data'!C175 -> 7.6336373e-06 | F170: 5.928277571e-06 | G170: 1.908510552e-06 | H170: 7.639011381e-06 | J170: -2.833544606e-05 | K170: -0.005440389866 | L170: 1.81138284e-05 | M170: 0.0007745355682 | N170: 4.020031852e-07
A171: 83.09548333 | B171: ='DF raw data'!A176 -> -6.3382993e-07 | C171: ='DF raw data'!B176 -> 5.2641572e-06 | D171: ='DF raw data'!C176 -> 6.6774596e-06 | F171: -6.342761463e-07 | G171: 5.277939368e-06 | H171: 6.682160532e-06 | J171: -2.865265391e-05 | K171: -0.005454719345 | L171: 2.075337866e-05 | M171: 0.0007849145404 | N171: 4.026291615e-07
A172: 83.59559333 | B172: ='DF raw data'!A177 -> -1.5204636e-06 | C172: ='DF raw data'!B177 -> 2.7266378e-06 | D172: ='DF raw data'!C177 -> -4.2403403e-06 | F172: -1.521534006e-06 | G172: 2.733776451e-06 | H172: -4.2433255e-06 | J172: -2.941358828e-05 | K172: -0.005469429375 | L172: 2.21205676e-05 | M172: 0.0007959772575 | N172: 4.033065499e-07
A173: 84.09570333 | B173: ='DF raw data'!A178 -> 3.5374767e-06 | C173: ='DF raw data'!B178 -> 2.5204954e-06 | D173: ='DF raw data'!C178 -> -9.9044182e-06 | F173: 3.539967084e-06 | G173: 2.527094346e-06 | H173: -9.91139091e-06 | J173: -2.764321534e-05 | K173: -0.005483254023 | L173: 2.338439276e-05 | M173: 0.0008076720262 | N173: 4.039621827e-07
A174: 84.59581333 | B174: ='DF raw data'!A179 -> 4.886017e-06 | C174: ='DF raw data'!B179 -> 5.0837643e-06 | D174: ='DF raw data'!C179 -> 3.3769106e-06 | F174: 4.889456756e-06 | G174: 5.097074179e-06 | H174: 3.379287945e-06 | J174: -2.519794912e-05 | K174: -0.005495855769 | L174: 2.593349052e-05 | M174: 0.0008206416241 | N174: 4.046160678e-07
A175: 85.09592333 | B175: ='DF raw data'!A180 -> 1.9238803e-06 | C175: ='DF raw data'!B180 -> 2.8771447e-06 | D175: ='DF raw data'!C180 -> 1.201436e-05 | F175: 1.925234712e-06 | G175: 2.884677395e-06 | H175: 1.202281811e-05 | J175: -2.423511999e-05 | K175: -0.005507975995 | L175: 2.737614654e-05 | M175: 0.0008343327088 | N175: 4.05284612e-07
A176: 85.59603333 | B176: ='DF raw data'!A181 -> 1.2177339e-06 | C176: ='DF raw data'!B181 -> 2.2024051e-06 | D176: ='DF raw data'!C181 -> 3.5006965e-06 | F176: 1.218591185e-06 | G176: 2.20817125e-06 | H176: 3.50316099e-06 | J176: -2.362569035e-05 | K176: -0.005519791439 | L176: 2.848047506e-05 | M176: 0.0008485760791 | N176: 4.05969418e-07
A177: 86.09614333 | B177: ='DF raw data'!A182 -> 3.2661417e-06 | C177: ='DF raw data'!B182 -> 1.7854454e-06 | D177: ='DF raw data'!C182 -> -4.765519e-06 | F177: 3.268441064e-06 | G177: 1.790119901e-06 | H177: -4.768873925e-06 | J177: -2.199111029e-05 | K177: -0.005530789413 | L177: 2.937573192e-05 | M177: 0.0008632671764 | N177: 4.066428374e-07
A178: 86.59625333 | B178: ='DF raw data'!A183 -> 3.4507036e-06 | C178: ='DF raw data'!B183 -> 5.2322666e-06 | D178: ='DF raw data'!C183 -> -7.4929044e-06 | F178: 3.453132895e-06 | G178: 5.245965275e-06 | H178: -7.498179405e-06 | J178: -2.0264164e-05 | K178: -0.005540923724 | L178: 3.199929162e-05 | M178: 0.0008792703422 | N178: 4.073602907e-07
A179: 87.09636333 | B179: ='DF raw data'!A184 -> 4.5151542e-06 | C179: ='DF raw data'!B184 -> 1.7491529e-06 | D179: ='DF raw data'!C184 -> -5.0716621e-06 | F179: 4.518332869e-06 | G179: 1.753732383e-06 | H179: -5.07523255e-06 | J179: -1.800450055e-05 | K179: -0.005549927955 | L179: 3.287635072e-05 | M179: 0.0008957121339 | N179: 4.080629535e-07
A180: 87.59647333 | B180: ='DF raw data'!A185 -> 5.0603708e-06 | C180: ='DF raw data'!B185 -> -1.1459506e-06 | D180: ='DF raw data'!C185 -> -4.0783484e-06 | F180: 5.063933301e-06 | G180: -1.14895083e-06 | H180: -4.081219557e-06 | J180: -1.547197687e-05 | K180: -0.005557665646 | L180: 3.230174892e-05 | M180: 0.0009118665616 | N180: 4.087044871e-07
A181: 88.09658333 | B181: ='DF raw data'!A186 -> 5.026392e-06 | C181: ='DF raw data'!B186 -> -1.5408968e-06 | D181: ='DF raw data'!C186 -> -3.2913445e-06 | F181: 5.02993058e-06 | G181: -1.544931045e-06 | H181: -3.293661607e-06 | J181: -1.295645829e-05 | K181: -0.0055641453 | L181: 3.152911346e-05 | M181: 0.0009276345865 | N181: 4.092855924e-07
A182: 88.59669333 | B182: ='DF raw data'!A187 -> 8.2279666e-06 | C182: ='DF raw data'!B187 -> 2.1522337e-06 | D182: ='DF raw data'!C187 -> -1.2691667e-06 | F182: 8.233759088e-06 | G182: 2.157868495e-06 | H182: -1.270060193e-06 | J182: -8.838673028e-06 | K182: -0.005568565609 | L182: 3.260828507e-05 | M182: 0.0009439423159 | N182: 4.098564291e-07
A183: 89.09680333 | B183: ='DF raw data'!A188 -> 7.7109225e-06 | C183: ='DF raw data'!B188 -> 3.5098583e-06 | D183: ='DF raw data'!C188 -> -2.1294395e-06 | F183: 7.716350989e-06 | G183: 3.519047512e-06 | H183: -2.130938625e-06 | J183: -4.979648734e-06 | K183: -0.005571055981 | L183: 3.436819592e-05 | M183: 0.0009611301944 | N183: 4.104595467e-07
A184: 89.59691333 | B184: ='DF raw data'!A189 -> 1.1606613e-06 | C184: ='DF raw data'!B189 -> 1.7961192e-06 | D184: ='DF raw data'!C189 -> -6.574191e-06 | F184: 1.161478406e-06 | G184: 1.800821646e-06 | H184: -6.57881923e-06 | J184: -4.398781769e-06 | K184: -0.005573255856 | L184: 3.526880483e-05 | M184: 0.0009787684764 | N184: 4.110913046e-07
A185: 90.09702333 | B185: ='DF raw data'!A190 -> -2.2935558e-06 | C185: ='DF raw data'!B190 -> 5.9631802e-06 | D185: ='DF raw data'!C190 -> -3.6647102e-06 | F185: -2.295170463e-06 | G185: 5.978792491e-06 | H185: -3.667290156e-06 | J185: -5.546619469e-06 | K185: -0.005576029775 | L185: 3.825885875e-05 | M185: 0.0009979021142 | N185: 4.118387216e-07
A186: 90.59713333 | B186: ='DF raw data'!A191 -> 3.2495939e-07 | C186: ='DF raw data'!B191 -> 2.4731289e-06 | D186: ='DF raw data'!C191 -> -6.9080801e-07 | F186: 3.251881614e-07 | G186: 2.479603836e-06 | H186: -6.912943388e-07 | J186: -5.383989618e-06 | K186: -0.005578722362 | L186: 3.949893342e-05 | M186: 0.001017655926 | N186: 4.126334729e-07
A187: 91.09724333 | B187: ='DF raw data'!A192 -> 3.3969052e-06 | C187: ='DF raw data'!B192 -> 6.8215177e-06 | D187: ='DF raw data'!C192 -> 4.3307596e-06 | F187: 3.399296621e-06 | G187: 6.839377217e-06 | H187: 4.333808455e-06 | J187: -3.683967385e-06 | K187: -0.005580564751 | L187: 4.291937436e-05 | M187: 0.001039120334 | N187: 4.135614992e-07
A188: 91.59735333 | B188: ='DF raw data'!A193 -> 2.6493078e-06 | C188: ='DF raw data'!B193 -> 1.3946797e-05 | D188: ='DF raw data'!C193 -> 6.904404e-06 | F188: 2.651172913e-06 | G188: 1.398331132e-05 | H188: 6.9092647e-06 | J188: -2.358089299e-06 | K188: -0.005581744055 | L188: 4.991256818e-05 | M188: 0.001064082109 | N188: 4.148101864e-07
A189: 92.09746333 | B189: ='DF raw data'!A194 -> 6.306733e-07 | C189: ='DF raw data'!B194 -> 4.0582436e-06 | D189: ='DF raw data'!C194 -> -2.1697047e-06 | F189: 6.31117294e-07 | G189: 4.068868548e-06 | H189: -2.171232172e-06 | J189: -2.042461229e-06 | K189: -0.005582765511 | L189: 5.194745003e-05 | M189: 0.001090061548 | N189: 4.161618383e-07
A190: 92.59757333 | B190: ='DF raw data'!A195 -> 5.2093731e-07 | C190: ='DF raw data'!B195 -> -1.3016874e-07 | D190: ='DF raw data'!C195 -> -3.2117455e-06 | F190: 5.213040499e-07 | G190: -1.305095367e-07 | H190: -3.214006569e-06 | J190: -1.781751861e-06 | K190: -0.005583656583 | L190: 5.188218091e-05 | M190: 0.001116008345 | N190: 4.175096024e-07
A191: 93.09768333 | B191: ='DF raw data'!A196 -> 2.5134075e-06 | C191: ='DF raw data'!B196 -> 7.3657702e-06 | D191: ='DF raw data'!C196 -> 1.1094094e-06 | F191: 2.515176939e-06 | G191: 7.385054632e-06 | H191: 1.110190424e-06 | J191: -5.23886722e-07 | K191: -0.005583918584 | L191: 5.557552058e-05 | M191: 0.001143802219 | N191: 4.190543987e-07
A192: 93.59779333 | B192: ='DF raw data'!A197 -> 5.0368039e-06 | C192: ='DF raw data'!B197 -> 6.2269664e-06 | D192: ='DF raw data'!C197 -> -2.5850018e-06 | F192: 5.04034981e-06 | G192: 6.243269313e-06 | H192: -2.586821641e-06 | J192: 1.996842621e-06 | K192: -0.005582919943 | L192: 5.8697842e-05 | M192: 0.001173157597 | N192: 4.207794901e-07
A193: 94.09790333 | B193: ='DF raw data'!A198 -> 3.919617e-06 | C193: ='DF raw data'!B198 -> 2.7263723e-06 | D193: ='DF raw data'!C198 -> -2.6952279e-07 | F193: 3.92237641e-06 | G193: 2.733510256e-06 | H193: -2.69712534e-07 | J193: 3.958462288e-06 | K193: -0.005580940276 | L193: 6.006489781e-05 | M193: 0.001203196653 | N193: 4.225916194e-07
A194: 94.59801333 | B194: ='DF raw data'!A199 -> -4.4761109e-08 | C194: ='DF raw data'!B199 -> 4.6213045e-06 | D194: ='DF raw data'!C199 -> 3.5777052e-06 | F194: -4.479262082e-08 | G194: 4.633403606e-06 | H194: 3.580223904e-06 | J194: 3.93606105e-06 | K194: -0.005578971813 | L194: 6.238210929e-05 | M194: 0.001234394569 | N194: 4.245455592e-07
A195: 95.09812333 | B195: ='DF raw data'!A200 -> -1.7061606e-06 | C195: ='DF raw data'!B200 -> 1.2837349e-05 | D195: ='DF raw data'!C200 -> 1.9424047e-06 | F195: -1.707361737e-06 | G195: 1.287095865e-05 | H195: 1.943772153e-06 | J195: 3.082192372e-06 | K195: -0.005577430377 | L195: 6.881900442e-05 | M195: 0.001268811642 | N195: 4.269188589e-07
A196: 95.59823333 | B196: ='DF raw data'!A201 -> -1.48989e-06 | C196: ='DF raw data'!B201 -> 9.0646954e-06 | D196: ='DF raw data'!C201 -> 5.6925205e-06 | F196: -1.490938883e-06 | G196: 9.088427814e-06 | H196: 5.696528034e-06 | J196: 2.336558928e-06 | K196: -0.005576261841 | L196: 7.336421805e-05 | M196: 0.001305501821 | N196: 4.296133355e-07
A197: 96.09834333 | B197: ='DF raw data'!A202 -> -1.6103726e-06 | C197: ='DF raw data'!B202 -> -6.4638243e-06 | D197: ='DF raw data'!C202 -> 5.1101092e-06 | F197: -1.611506302e-06 | G197: -6.480747334e-06 | H197: 5.113706717e-06 | J197: 1.530628511e-06 | K197: -0.005575496358 | L197: 7.01231315e-05 | M197: 0.0013405711 | N197: 4.320736749e-07
A198: 96.59845333 | B198: ='DF raw data'!A203 -> -2.2820743e-06 | C198: ='DF raw data'!B203 -> 2.5234312e-06 | D198: ='DF raw data'!C203 -> 3.0753513e-06 | F198: -2.28368088e-06 | G198: 2.530037833e-06 | H198: 3.077516347e-06 | J198: 3.885368657e-07 | K198: -0.005575302047 | L198: 7.138842872e-05 | M198: 0.001376273167 | N198: 4.346224648e-07
A199: 97.09856333 | B199: ='DF raw data'!A204 -> -7.8735263e-07 | C199: ='DF raw data'!B204 -> -1.342758e-06 | D199: ='DF raw data'!C204 -> 1.4248803e-06 | F199: -7.879069263e-07 | G199: =(1-$G$1*($B$2-$G$2))*C199*$M$2/$M$1 -> -1.346273495e-06 | H199: 1.425883416e-06 | J199: -5.503267175e-09 | K199: -0.005575304799 | L199: 7.071514389e-05 | M199: 0.001411638518 | N199: 4.371233307e-07
A200: =A199+$B$1 -> 97.59867333 | B200: ='DF raw data'!A205 -> 9.8271323e-07 | C200: ='DF raw data'!B205 -> 4.9526043e-06 | D200: ='DF raw data'!C205 -> -1.3444364e-06 | F200: 9.834050601e-07 | G200: 4.965570787e-06 | H200: -1.345382883e-06 | J200: =F200*$B$1+J199 -> 4.863074374e-07 | K200: =J200*$B$1+K199 -> -0.005575061592 | L200: =G200*$B$1+L199 -> 7.319847549e-05 | M200: =L200*$B$1+M199 -> 0.001448245807 | N200: =(J200^2+L200^2)*$B$1+N199 -> 4.398030468e-07
A201: 98.09878333 | B201: ='DF raw data'!A206 -> 9.17899e-07 | C201: ='DF raw data'!B206 -> 1.1496273e-05 | D201: ='DF raw data'!C206 -> 6.1305087e-07 | F201: 9.185452009e-07 | G201: 1.152637156e-05 | H201: 6.134824578e-07 | J201: 9.456810779e-07 | K201: -0.005574588648 | L201: 7.896292918e-05 | M201: 0.001487735958 | N201: 4.42921752e-07
... 1002 more rows

Sheet 10 x=-1
A1: dz | B1: ='DF raw data'!E7 -> 0.50012 | C1: mm | F1: T_coeff | G1: -0.0008 | H1: /degC | L1: Hallref | M1: ='PI vs x'!B44 -> 0.50555 | N1: T | P1: IBy total | Q1: =L1203*1000 -> 16.29856828 | R1: muTm | X1: DF ref | Y1: 19
A2: Tref | B2: ='DF raw data'!E8 -> 20.87 | C2: degC | F2: Tcorr | G2: 20 | H2: degC | L2: NMRref | M2: ='PI vs x'!B45 -> 0.506517 | N2: T | P2: JBy total | Q2: =M1203 -> 3.89932984 | R2: muTm^2
A3: Encoder | B3: ='DF raw data'!E9 -> 15632210 | P3: PI total | Q3: =N1203 -> 708.5391085 | R3: T^2mm^3
A5: z [mm] | B5: Bx | C5: By | D5: Bz | F5: Bx_corr | G5: By_corr | H5: Bz_corr | J5: Ix | K5: Jx | L5: Iy | M5: Jy | N5: PI
A6: ='PI vs x'!B53 -> 0.5773333333 | B6: ='DF raw data'!D11 -> -8.4803933e-06 | C6: ='DF raw data'!E11 -> 1.262608e-05 | D6: ='DF raw data'!F11 -> -1.3327133e-06 | F6: =(1-$G$1*($B$2-$G$2))*B6 -> -8.486295654e-06 | G6: =(1-$G$1*($B$2-$G$2))*C6*$M$2/$M$1 -> 1.265903533e-05 | H6: =(1-$G$1*($B$2-$G$2))*D6 -> -1.333640868e-06 | J6: =F6*$B$1 -> -4.244166182e-06 | K6: =J6*$B$1 -> -2.122592391e-06 | L6: =G6*$B$1 -> 6.331036747e-06 | M6: =L6*$B$1 -> 3.166278098e-06 | N6: =(J6^2+L6^2)*$B$1 -> 2.905445784e-11
A7: =A6+$B$1 -> 1.077453333 | B7: ='DF raw data'!D12 -> -7.9684278e-06 | C7: ='DF raw data'!E12 -> -2.1854046e-06 | D7: ='DF raw data'!F12 -> -6.8290155e-06 | F7: =(1-$G$1*($B$2-$G$2))*B7 -> -7.973973826e-06 | G7: =(1-$G$1*($B$2-$G$2))*C7*$M$2/$M$1 -> -2.191108724e-06 | H7: -6.833768495e-06 | J7: =F7*$B$1+J6 -> -8.232109972e-06 | K7: =J7*$B$1+K6 -> -6.23963523e-06 | L7: =G7*$B$1+L6 -> 5.235219452e-06 | M7: =L7*$B$1+M6 -> 5.78451605e-06 | N7: =(J7^2+L7^2)*$B$1+N6 -> 7.665345751e-11
A8: =A7+$B$1 -> 1.577573333 | B8: ='DF raw data'!D13 -> -7.7884715e-06 | C8: ='DF raw data'!E13 -> -6.0386465e-06 | D8: ='DF raw data'!F13 -> -1.6115789e-06 | F8: -7.793892276e-06 | G8: -6.054407969e-06 | H8: -1.612700559e-06 | J8: =F8*$B$1+J7 -> -1.212999138e-05 | K8: =J8*$B$1+K7 -> -1.230608652e-05 | L8: =G8*$B$1+L7 -> 2.207288939e-06 | M8: =L8*$B$1+M7 -> 6.888425395e-06 | N8: =(J8^2+L8^2)*$B$1+N7 -> 1.526761062e-10
A9: 2.077693333 | B9: ='DF raw data'!D14 -> -7.5414314e-06 | C9: ='DF raw data'!E14 -> -1.1965882e-05 | D9: ='DF raw data'!F14 -> 2.0600075e-06 | F9: -7.546680236e-06 | G9: -1.199711414e-05 | H9: 2.061441265e-06 | J9: -1.59042371e-05 | K9: -2.026011357e-05 | L9: -3.792707786e-06 | M9: 4.991616377e-06 | N9: 2.863728807e-10
A10: 2.577813333 | B10: ='DF raw data'!D15 -> -7.9953925e-06 | C10: ='DF raw data'!E15 -> 5.9802022e-07 | D10: ='DF raw data'!F15 -> 2.4259227e-06 | F10: -8.000957293e-06 | G10: 5.995811123e-07 | H10: 2.427611142e-06 | J10: -1.990567586e-05 | K10: -3.021534019e-05 | L10: -3.49284528e-06 | M10: 3.244774595e-06 | N10: 4.906398428e-10
A11: 3.077933333 | B11: ='DF raw data'!D16 -> -8.0624768e-06 | C11: ='DF raw data'!E16 -> 2.4956228e-06 | D11: ='DF raw data'!F16 -> 2.8236557e-06 | F11: -8.068088284e-06 | G11: 2.502136624e-06 | H11: 2.825620964e-06 | J11: -2.394068817e-05 | K11: -4.218855715e-05 | L11: -2.241476712e-06 | M11: 2.123767262e-06 | N11: 7.797996085e-10
A12: 3.578053333 | B12: ='DF raw data'!D17 -> -8.3833393e-06 | C12: ='DF raw data'!E17 -> 1.1321294e-05 | D12: ='DF raw data'!F17 -> 3.7789671e-06 | F12: -8.389174104e-06 | G12: 1.13508437e-05 | H12: 3.781597261e-06 | J12: -2.813628192e-05 | K12: -5.626007447e-05 | L12: 3.435307241e-06 | M12: 3.841833119e-06 | N12: 1.181621871e-09
A13: 4.078173333 | B13: ='DF raw data'!D18 -> -8.3479636e-06 | C13: ='DF raw data'!E18 -> 1.0106842e-05 | D13: ='DF raw data'!F18 -> 2.886811e-06 | F13: -8.353773783e-06 | G13: 1.013322186e-05 | H13: 2.88882022e-06 | J13: -3.231417127e-05 | K13: -7.24210378e-05 | L13: 8.50313416e-06 | M13: 8.094420575e-06 | N13: 1.74001033e-09
A14: 4.578293333 | B14: ='DF raw data'!D19 -> -8.2356228e-06 | C14: ='DF raw data'!E19 -> 6.4510696e-06 | D14: ='DF raw data'!F19 -> -4.0328973e-07 | F14: -8.241354793e-06 | G14: 6.467907534e-06 | H14: -4.035704197e-07 | J14: -3.643583763e-05 | K14: -9.064332892e-05 | L14: 1.173786408e-05 | M14: 1.396476116e-05 | N14: 2.47286003e-09
A15: 5.078413333 | B15: ='DF raw data'!D20 -> -8.1517892e-06 | C15: ='DF raw data'!E20 -> 5.1121297e-06 | D15: ='DF raw data'!F20 -> 5.1361367e-06 | F15: -8.157462845e-06 | G15: 5.125472867e-06 | H15: 5.139711451e-06 | J15: -4.051554795e-05 | K15: -0.0001109059648 | L15: 1.430121557e-05 | M15: 2.111708509e-05 | N15: 3.39609875e-09
A16: 5.578533333 | B16: ='DF raw data'!D21 -> -8.1814896e-06 | C16: ='DF raw data'!E21 -> 5.1498882e-06 | D16: ='DF raw data'!F21 -> 4.2158558e-07 | F16: -8.187183917e-06 | G16: 5.163329921e-06 | H16: 4.218790036e-07 | J16: -4.461012237e-05 | K16: -0.0001332163792 | L16: 1.688350013e-05 | M16: 2.956086117e-05 | N16: 4.533929561e-09
A17: 6.078653333 | B17: ='DF raw data'!D22 -> -8.3055156e-06 | C17: ='DF raw data'!E22 -> 8.473291e-06 | D17: ='DF raw data'!F22 -> 6.1658504e-08 | F17: -8.311296239e-06 | G17: 8.495407133e-06 | H17: 6.170141832e-08 | J17: -4.876676784e-05 | K17: -0.0001576056151 | L17: 2.113222314e-05 | M17: 4.012950861e-05 | N17: 5.946652783e-09
A18: 6.578773333 | B18: ='DF raw data'!D23 -> -7.9691627e-06 | C18: ='DF raw data'!E23 -> -1.1291939e-06 | D18: ='DF raw data'!F23 -> -2.461207e-06 | F18: -7.974709237e-06 | G18: -1.132141209e-06 | H18: -2.46292e-06 | J18: -5.275507942e-05 | K18: -0.0001839894854 | L18: 2.056601668e-05 | M18: 5.041498487e-05 | N18: 7.550067234e-09
A19: 7.078893333 | B19: ='DF raw data'!D24 -> -8.4272642e-06 | C19: ='DF raw data'!E24 -> 1.2182836e-05 | D19: ='DF raw data'!F24 -> 2.6552682e-06 | F19: -8.433129576e-06 | G19: 1.221463441e-05 | H19: 2.657116267e-06 | J19: -5.697265619e-05 | K19: -0.0002124826502 | L19: 2.667479964e-05 | M19: 6.375558567e-05 | N19: 9.52925637e-09
A20: 7.579013333 | B20: ='DF raw data'!D25 -> -7.9329138e-06 | C20: ='DF raw data'!E25 -> -9.8682892e-07 | D20: ='DF raw data'!F25 -> 4.6922887e-06 | F20: -7.938435108e-06 | G20: -9.894046417e-07 | H20: 4.695554533e-06 | J20: -6.094282635e-05 | K20: -0.0002429613765 | L20: 2.617997859e-05 | M20: 7.684871656e-05 | N20: 1.172949398e-08
A21: 8.079133333 | B21: ='DF raw data'!D26 -> -7.8524854e-06 | C21: ='DF raw data'!E26 -> -3.4146667e-06 | D21: ='DF raw data'!F26 -> 2.8905363e-06 | F21: -7.85795073e-06 | G21: -3.42357932e-06 | H21: 2.892548113e-06 | J21: -6.487274467e-05 | K21: -0.0002754055336 | L21: 2.446777811e-05 | M21: 8.908554175e-05 | N21: 1.413364342e-08
A22: 8.579253333 | B22: ='DF raw data'!D27 -> -6.7756805e-06 | C22: ='DF raw data'!E27 -> 7.5052793e-07 | D22: ='DF raw data'!F27 -> 9.8336227e-07 | F22: -6.780396374e-06 | G22: 7.524868826e-07 | H22: 9.840466901e-07 | J22: -6.826375651e-05 | K22: -0.0003095456035 | L22: 2.484411184e-05 | M22: 0.000101510579 | N22: 1.677286186e-08
A23: 9.079373333 | B23: ='DF raw data'!D28 -> -3.5129008e-06 | C23: ='DF raw data'!E28 -> 5.3477615e-06 | D23: ='DF raw data'!F28 -> 8.5771376e-07 | F23: =(1-$G$1*($B$2-$G$2))*B23 -> -3.515345779e-06 | G23: 5.36171969e-06 | H23: 8.583107288e-07 | J23: -7.002185124e-05 | K23: -0.0003445649318 | L23: 2.75256151e-05 | M23: 0.0001152766896 | N23: 1.960390071e-08
A24: 9.579493333 | B24: ='DF raw data'!D29 -> 2.078493e-07 | C24: ='DF raw data'!E29 -> 3.5017968e-06 | D24: ='DF raw data'!F29 -> -4.1320686e-07 | F24: 2.079939631e-07 | G24: 3.510936838e-06 | H24: -4.13494452e-07 | J24: -6.99178293e-05 | K24: -0.0003795322365 | L24: 2.928150483e-05 | M24: 0.0001299209558 | N24: 2.247754491e-08
A25: 10.07961333 | B25: ='DF raw data'!D30 -> 1.5311568e-06 | C25: ='DF raw data'!E30 -> 5.3042622e-06 | D25: ='DF raw data'!F30 -> -8.7468416e-06 | F25: 1.532222485e-06 | G25: 5.318106852e-06 | H25: -8.752929402e-06 | J25: -6.915153419e-05 | K25: -0.0004141163018 | L25: 3.194119643e-05 | M25: 0.0001458953869 | N25: 2.537932853e-08
A26: 10.57973333 | B26: ='DF raw data'!D31 -> -3.441349e-06 | C26: ='DF raw data'!E31 -> -7.9303809e-06 | D26: ='DF raw data'!F31 -> -5.3435997e-06 | F26: -3.443744179e-06 | G26: -7.951079984e-06 | H26: -5.347318845e-06 | J26: -7.087381953e-05 | K26: -0.0004495617164 | L26: 2.796470231e-05 | M26: 0.0001598810939 | N26: 2.828258657e-08
A27: 11.07985333 | B27: ='DF raw data'!D32 -> -1.0244653e-05 | C27: ='DF raw data'!E32 -> -9.0067351e-06 | D27: ='DF raw data'!F32 -> 4.9124519e-06 | F27: -1.025178328e-05 | G27: -9.030243575e-06 | H27: 4.915870967e-06 | J27: -7.600094138e-05 | K27: -0.0004875713072 | L27: 2.344849689e-05 | M27: 0.0001716081561 | N27: 3.144633324e-08
A28: 11.57997333 | B28: ='DF raw data'!D33 -> -9.2867294e-06 | C28: ='DF raw data'!E33 -> -3.2666956e-06 | D28: ='DF raw data'!F33 -> 5.9508807e-07 | F28: -9.293192964e-06 | G28: -3.275222001e-06 | H28: 5.955022513e-07 | J28: -8.064865305e-05 | K28: -0.0005279053116 | L28: 2.181049286e-05 | M28: 0.0001825160198 | N28: 3.493712225e-08
A29: 12.08009333 | B29: ='DF raw data'!D34 -> -4.2143033e-06 | C29: ='DF raw data'!E34 -> -6.6416051e-06 | D29: ='DF raw data'!F34 -> 4.586067e-06 | F29: -4.217236455e-06 | G29: -6.658940351e-06 | H29: 4.589258903e-06 | J29: -8.275777734e-05 | K29: -0.0005692941312 | L29: 1.848022361e-05 | M29: 0.0001917583492 | N29: 3.853316928e-08
A30: 12.58021333 | B30: ='DF raw data'!D35 -> -3.6448648e-06 | C30: ='DF raw data'!E35 -> 8.9079967e-06 | D30: ='DF raw data'!F35 -> 8.2884744e-06 | F30: -3.647401626e-06 | G30: 8.931247458e-06 | H30: 8.294243178e-06 | J30: -8.458191584e-05 | K30: -0.000611595239 | L30: 2.294691909e-05 | M30: 0.0002032345624 | N30: 4.237442175e-08
A31: 13.08033333 | B31: ='DF raw data'!D36 -> -4.0159243e-06 | C31: ='DF raw data'!E36 -> -1.3560219e-06 | D31: ='DF raw data'!F36 -> 3.4504627e-08 | F31: -4.018719383e-06 | G31: -1.359561252e-06 | H31: 3.452864222e-08 | J31: -8.659175778e-05 | K31: -0.0006549015089 | L31: 2.226697532e-05 | M31: 0.0002143707221 | N31: 4.637235638e-08
A32: 13.58045333 | B32: ='DF raw data'!D37 -> -1.9657193e-06 | C32: ='DF raw data'!E37 -> 3.7473021e-06 | D32: ='DF raw data'!F37 -> -1.610975e-06 | F32: -1.967087441e-06 | G32: 3.757082932e-06 | H32: -1.612096239e-06 | J32: -8.757553755e-05 | K32: -0.0006986997867 | L32: 2.414596763e-05 | M32: 0.0002264466034 | N32: 5.049959794e-08
A33: 14.08057333 | B33: ='DF raw data'!D38 -> -4.4284347e-06 | C33: ='DF raw data'!E38 -> 1.3405961e-05 | D33: ='DF raw data'!F38 -> -8.598488e-07 | F33: -4.431516891e-06 | G33: 1.344095189e-05 | H33: -8.604472548e-07 | J33: -8.979182778e-05 | K33: -0.0007436064756 | L33: 3.08680565e-05 | M33: 0.0002418843359 | N33: 5.500838442e-08
A34: 14.58069333 | B34: ='DF raw data'!D39 -> -1.06053e-05 | C34: ='DF raw data'!E39 -> 1.3313498e-05 | D34: ='DF raw data'!F39 -> -8.8314641e-07 | F34: -1.061268129e-05 | G34: 1.334824756e-05 | H34: -8.837610799e-07 | J34: -9.509944195e-05 | K34: -0.0007911676085 | L34: 3.754378206e-05 | M34: 0.0002606607321 | N34: 6.023635854e-08
A35: 15.08081333 | B35: ='DF raw data'!D40 -> -1.0844265e-05 | C35: ='DF raw data'!E40 -> 8.1594717e-06 | D35: ='DF raw data'!F40 -> -4.1558069e-06 | F35: -1.085181261e-05 | G35: 8.180768733e-06 | H35: -4.158699342e-06 | J35: -0.0001005266505 | K35: -0.0008414429969 | L35: 4.163514812e-05 | M35: 0.0002814833024 | N35: 6.615732574e-08
A36: 15.58093333 | B36: ='DF raw data'!D41 -> -7.2739672e-06 | C36: ='DF raw data'!E41 -> -2.8753582e-06 | D36: ='DF raw data'!F41 -> -1.1870268e-06 | F36: -7.279029881e-06 | G36: -2.882863171e-06 | H36: -1.187852971e-06 | J36: -0.0001041670389 | K36: -0.0008935390164 | L36: 4.019337059e-05 | M36: 0.0003015848109 | N36: 7.239196121e-08
A37: 16.08105333 | B37: ='DF raw data'!D42 -> -1.256037e-06 | C37: ='DF raw data'!E42 -> -4.190546e-06 | D37: ='DF raw data'!F42 -> 7.4643526e-07 | F37: -1.256911202e-06 | G37: -4.201483742e-06 | H37: 7.469547789e-07 | J37: -0.0001047956453 | K37: -0.0009459494146 | L37: 3.809212454e-05 | M37: 0.0003206354443 | N37: 7.86100218e-08
A38: 16.58117333 | B38: ='DF raw data'!D43 -> 7.1269646e-06 | C38: ='DF raw data'!E43 -> -5.9899485e-06 | D38: ='DF raw data'!F43 -> 2.9878925e-07 | F38: 7.131924967e-06 | G38: -6.005582862e-06 | H38: 2.989972073e-07 | J38: -0.000101228827 | K38: -0.0009965759755 | L38: 3.508861244e-05 | M38: 0.0003381839611 | N38: 8.435064229e-08
A39: 17.08129333 | B39: ='DF raw data'!D44 -> 7.9967767e-06 | C39: ='DF raw data'!E44 -> -4.7674857e-06 | D39: ='DF raw data'!F44 -> 2.8477464e-06 | F39: 8.002342457e-06 | G39: -4.779929312e-06 | H39: 2.849728431e-06 | J39: -9.72266955e-05 | K39: -0.00104520099 | L39: 3.269807419e-05 | M39: 0.000354536922 | N39: 8.961300214e-08
A40: 17.58141333 | B40: ='DF raw data'!D45 -> -7.3665728e-07 | C40: ='DF raw data'!E45 -> 5.4375578e-06 | D40: ='DF raw data'!F45 -> 3.4924074e-07 | F40: -7.371699935e-07 | G40: 5.451750367e-06 | H40: 3.494838116e-07 | J40: -9.759536895e-05 | K40: -0.001094010386 | L40: 3.542460359e-05 | M40: 0.0003722534747 | N40: 9.5004175e-08
A41: 18.08153333 | B41: ='DF raw data'!D46 -> -4.7613171e-06 | C41: ='DF raw data'!E46 -> -1.0783582e-05 | D41: ='DF raw data'!F46 -> 3.0406175e-06 | F41: -4.764630977e-06 | G41: -1.081172822e-05 | H41: 3.04273377e-06 | J41: -9.99782562e-05 | K41: -0.001144011512 | L41: 3.001744207e-05 | M41: 0.0003872657978 | N41: 1.004538319e-07
A42: 18.58165333 | B42: ='DF raw data'!D47 -> -1.1272089e-06 | C42: ='DF raw data'!E47 -> 5.3050661e-07 | D42: ='DF raw data'!F47 -> 4.2059783e-06 | F42: -1.127993437e-06 | G42: 5.318912851e-07 | H42: 4.208905661e-06 | J42: -0.0001005423883 | K42: -0.001194294771 | L42: 3.028345154e-05 | M42: 0.0004024111576 | N42: 1.059680846e-07
A43: 19.08177333 | B43: ='DF raw data'!D48 -> 4.361395e-06 | C43: ='DF raw data'!E48 -> -3.2010519e-06 | D43: ='DF raw data'!F48 -> -9.6072527e-06 | F43: 4.364430531e-06 | G43: -3.209406964e-06 | H43: -9.613939348e-06 | J43: -9.835964928e-05 | K43: -0.001243486399 | L43: 2.867836293e-05 | M43: 0.0004167537805 | N43: 1.112178788e-07
A44: 19.58189333 | B44: ='DF raw data'!D49 -> 6.2912554e-06 | C44: ='DF raw data'!E49 -> 2.9043097e-06 | D44: ='DF raw data'!F49 -> -3.2896694e-06 | F44: 6.295634114e-06 | G44: 2.911890237e-06 | H44: -3.29195901e-06 | J44: -9.521107675e-05 | K44: -0.001291103363 | L44: 3.013465747e-05 | M44: 0.0004318247254 | N44: 1.16205699e-07
A45: 20.08201333 | B45: ='DF raw data'!D50 -> 5.9354829e-06 | C45: ='DF raw data'!E50 -> -3.8421658e-06 | D45: ='DF raw data'!F50 -> 6.2541822e-06 | F45: 5.939613996e-06 | G45: -3.852194235e-06 | H45: 6.258535111e-06 | J45: -9.224055699e-05 | K45: -0.00133723471 | L45: 2.820809809e-05 | M45: 0.0004459321594 | N45: 1.20858824e-07
A46: 20.58213333 | B46: ='DF raw data'!D51 -> 4.9135529e-06 | C46: ='DF raw data'!E51 -> -3.6768558e-06 | D46: ='DF raw data'!F51 -> 4.999436e-06 | F46: 4.916972733e-06 | G46: -3.68645276e-06 | H46: 5.002915607e-06 | J46: -8.978148059e-05 | K46: -0.001382136224 | L46: 2.636442934e-05 | M46: 0.0004591175378 | N46: 1.252377734e-07
A47: 21.08225333 | B47: ='DF raw data'!D52 -> 3.1824718e-06 | C47: ='DF raw data'!E52 -> -2.7115072e-06 | D47: ='DF raw data'!F52 -> -7.3971878e-06 | F47: 3.1846868e-06 | G47: -2.718584504e-06 | H47: -7.402336243e-06 | J47: -8.818875503e-05 | K47: -0.001426241184 | L47: 2.500481086e-05 | M47: 0.0004716229438 | N47: 1.294400303e-07
A48: 21.58237333 | B48: ='DF raw data'!D53 -> -7.0628744e-07 | C48: ='DF raw data'!E53 -> -2.414499e-06 | D48: ='DF raw data'!F53 -> -5.8725691e-06 | F48: -7.067790161e-07 | G48: -2.420801083e-06 | H48: -5.876656408e-06 | J48: -8.854222935e-05 | K48: -0.001470522924 | L48: 2.379411982e-05 | M48: 0.000483522859 | N48: 1.336439822e-07
A49: 22.08249333 | B49: ='DF raw data'!D54 -> -5.0432677e-06 | C49: ='DF raw data'!E54 -> 3.2217342e-06 | D49: ='DF raw data'!F54 -> -9.6110434e-06 | F49: -5.046777814e-06 | G49: 3.230143247e-06 | H49: -9.617732686e-06 | J49: -9.106622387e-05 | K49: -0.001516066964 | L49: 2.540957906e-05 | M49: 0.0004962306977 | N49: 1.381144068e-07
A50: 22.58261333 | B50: ='DF raw data'!D55 -> -5.8217006e-06 | C50: ='DF raw data'!E55 -> -3.7875959e-06 | D50: ='DF raw data'!F55 -> -4.540625e-06 | F50: -5.825752504e-06 | G50: -3.797481902e-06 | H50: -4.543785275e-06 | J50: -9.397979921e-05 | K50: -0.001563068141 | L50: 2.351038241e-05 | M50: 0.0005079887102 | N50: 1.428080033e-07
A51: 23.08273333 | B51: ='DF raw data'!D56 -> 5.2103564e-07 | C51: ='DF raw data'!E56 -> 3.8903363e-06 | D51: ='DF raw data'!F56 -> -2.2053698e-06 | F51: 5.213982808e-07 | G51: 3.900490465e-06 | H51: -2.206904737e-06 | J51: -9.37190375e-05 | K51: -0.001609938906 | L51: 2.54610957e-05 | M51: 0.0005207223133 | N51: 1.475248978e-07
A52: 23.58285333 | B52: ='DF raw data'!D57 -> 8.2796587e-06 | C52: ='DF raw data'!E57 -> 2.0490427e-06 | D52: ='DF raw data'!F57 -> -8.8494357e-07 | F52: 8.285421342e-06 | G52: 2.054390905e-06 | H52: -8.855594907e-07 | J52: -8.957533258e-05 | K52: -0.001654737321 | L52: 2.648853768e-05 | M52: 0.0005339697608 | N52: 1.518886363e-07
A53: 24.08297333 | B53: ='DF raw data'!D58 -> 7.7840423e-06 | C53: ='DF raw data'!E58 -> -3.2686964e-06 | D53: ='DF raw data'!F58 -> 3.2907178e-07 | F53: 7.789459993e-06 | G53: -3.277228023e-06 | H53: 3.29300814e-07 | J53: -8.567966785e-05 | K53: -0.001697587437 | L53: 2.48495304e-05 | M53: 0.0005463975079 | N53: 1.558688436e-07
A54: 24.58309333 | B54: ='DF raw data'!D59 -> 3.8492258e-06 | C54: ='DF raw data'!E59 -> -4.2209667e-06 | D54: ='DF raw data'!F59 -> -1.8645494e-06 | F54: 3.851904861e-06 | G54: -4.231983843e-06 | H54: -1.865847126e-06 | J54: -8.375325319e-05 | K54: -0.001739474114 | L54: 2.273303064e-05 | M54: 0.0005577667512 | N54: 1.596354464e-07
A55: 25.08321333 | B55: ='DF raw data'!D60 -> -6.2345066e-07 | C55: ='DF raw data'!E60 -> 3.9175557e-06 | D55: ='DF raw data'!F60 -> -3.6474646e-06 | F55: -6.238845817e-07 | G55: 3.92778091e-06 | H55: -3.650003235e-06 | J55: -8.406527035e-05 | K55: -0.001781516837 | L55: 2.469739243e-05 | M55: 0.0005701184111 | N55: 1.634748331e-07
A56: 25.58333333 | B56: ='DF raw data'!D61 -> -1.4267164e-06 | C56: ='DF raw data'!E61 -> -1.0252008e-05 | D56: ='DF raw data'!F61 -> 4.5018385e-08 | F56: -1.427709395e-06 | G56: -1.027876676e-05 | H56: 4.50497178e-08 | J56: -8.477929637e-05 | K56: -0.001823916659 | L56: 1.95567756e-05 | M56: 0.0005798991457 | N56: 1.672607398e-07
A57: 26.08345333 | B57: ='DF raw data'!D62 -> -2.2172928e-06 | C57: ='DF raw data'!E62 -> 1.0500858e-07 | D57: ='DF raw data'!F62 -> -8.9948207e-06 | F57: -2.218836036e-06 | G57: 1.052826628e-07 | H57: -9.001081095e-06 | J57: -8.588898065e-05 | K57: -0.001866871456 | L57: 1.960942956e-05 | M57: 0.0005897062137 | N57: 1.711423945e-07
A58: 26.58357333 | B58: ='DF raw data'!D63 -> -2.9967953e-06 | C58: ='DF raw data'!E63 -> 6.8284007e-06 | D58: ='DF raw data'!F63 -> -3.0675126e-06 | F58: -2.99888107e-06 | G58: 6.846223506e-06 | H58: -3.069647589e-06 | J58: -8.738878105e-05 | K58: -0.001910576333 | L58: 2.303336286e-05 | M58: 0.0006012256591 | N58: 1.75227042e-07
A59: 27.08369333 | B59: ='DF raw data'!D64 -> -2.8897296e-06 | C59: ='DF raw data'!E64 -> 7.2583043e-06 | D59: ='DF raw data'!F64 -> 7.7589011e-06 | F59: -2.891740852e-06 | G59: 7.277249197e-06 | H59: 7.764301295e-06 | J59: -8.883499848e-05 | K59: -0.001955004492 | L59: 2.667286073e-05 | M59: 0.0006145652902 | N59: 1.795296236e-07
A60: 27.58381333 | B60: ='DF raw data'!D65 -> -2.6916198e-06 | C60: ='DF raw data'!E65 -> -1.268092e-06 | D60: ='DF raw data'!F65 -> 7.931545e-06 | F60: -2.693493167e-06 | G60: -1.271401846e-06 | H60: 7.937065355e-06 | J60: -9.018206829e-05 | K60: -0.002000106348 | L60: 2.603700724e-05 | M60: 0.0006275869183 | N60: 1.839360465e-07
A61: 28.08393333 | B61: ='DF raw data'!D66 -> -4.1119815e-06 | C61: ='DF raw data'!E66 -> 3.3799754e-06 | D61: ='DF raw data'!F66 -> 4.7127924e-06 | F61: -4.114843439e-06 | G61: 3.388797472e-06 | H61: 4.716072504e-06 | J61: -9.223998379e-05 | K61: -0.002046237409 | L61: 2.773181263e-05 | M61: 0.0006414561524 | N61: 1.885757938e-07
A62: 28.58405333 | B62: ='DF raw data'!D67 -> -3.7404491e-06 | C62: ='DF raw data'!E67 -> -7.5356966e-06 | D62: ='DF raw data'!F67 -> 5.2484847e-06 | F62: -3.743052453e-06 | G62: -7.555365518e-06 | H62: 5.252137645e-06 | J62: -9.411195918e-05 | K62: -0.002093304682 | L62: 2.395322323e-05 | M62: 0.0006534356384 | N62: 1.932923344e-07
A63: 29.08417333 | B63: ='DF raw data'!D68 -> -4.5141455e-06 | C63: ='DF raw data'!E68 -> 4.6794248e-06 | D63: ='DF raw data'!F68 -> 7.7670866e-06 | F63: -4.517287345e-06 | G63: 4.691638565e-06 | H63: 7.772492492e-06 | J63: -9.637114493e-05 | K63: -0.002141501819 | L63: 2.629960551e-05 | M63: 0.0006665885971 | N63: 1.982830653e-07
A64: 29.58429333 | B64: ='DF raw data'!D69 -> -3.9971014e-06 | C64: ='DF raw data'!E69 -> 2.8409324e-06 | D64: ='DF raw data'!F69 -> 4.2144984e-06 | F64: -3.999883383e-06 | G64: 2.848347516e-06 | H64: 4.217431691e-06 | J64: -9.837156661e-05 | K64: -0.002190699407 | L64: 2.772412107e-05 | M64: 0.0006804539845 | N64: 2.035071148e-07
A65: 30.08441333 | B65: ='DF raw data'!D70 -> 5.6589192e-07 | C65: ='DF raw data'!E70 -> -3.142073e-06 | D65: ='DF raw data'!F70 -> 1.8126977e-06 | F65: 5.662857808e-07 | G65: -3.150274123e-06 | H65: 1.813959338e-06 | J65: -9.808835576e-05 | K65: -0.002239755355 | L65: 2.614860597e-05 | M65: 0.0006935314254 | N65: 2.086608889e-07
A66: 30.58453333 | B66: ='DF raw data'!D71 -> 1.9653569e-06 | C66: ='DF raw data'!E71 -> 8.6407289e-07 | D66: ='DF raw data'!F71 -> 5.1949701e-06 | F66: 1.966724788e-06 | G66: 8.663282063e-07 | H66: 5.198585799e-06 | J66: -9.710475736e-05 | K66: -0.002288319387 | L66: 2.658187404e-05 | M66: 0.0007068255522 | N66: 2.137300702e-07
A67: 31.08465333 | B67: ='DF raw data'!D72 -> 4.8652578e-07 | C67: ='DF raw data'!E72 -> -9.9480621e-06 | D67: ='DF raw data'!F72 -> 1.5316348e-06 | F67: 4.868644019e-07 | G67: -9.974027532e-06 | H67: 1.532700818e-06 | J67: -9.686126673e-05 | K67: -0.002336761643 | L67: 2.159366339e-05 | M67: 0.0007176249751 | N67: 2.186554477e-07
A68: 31.58477333 | B68: ='DF raw data'!D73 -> -1.3871352e-06 | C68: ='DF raw data'!E73 -> -1.025601e-05 | D68: ='DF raw data'!F73 -> 1.8395658e-08 | F68: -1.388100646e-06 | G68: -1.028277921e-05 | H68: 1.840846138e-08 | J68: -9.755548363e-05 | K68: -0.002385551092 | L68: 1.645103985e-05 | M68: 0.0007258524692 | N68: 2.235504767e-07
A69: 32.08489333 | B69: ='DF raw data'!D74 -> -2.7960807e-06 | C69: ='DF raw data'!E74 -> -1.438879e-05 | D69: ='DF raw data'!F74 -> -1.9135966e-06 | F69: -2.798026772e-06 | G69: -1.442634617e-05 | H69: -1.914928463e-06 | J69: -9.895483278e-05 | K69: -0.002435040383 | L69: 9.236135601e-06 | M69: 0.0007304716453 | N69: 2.284903446e-07
A70: 32.58501333 | B70: ='DF raw data'!D75 -> -3.2647251e-06 | C70: ='DF raw data'!E75 -> 1.2564034e-05 | D70: ='DF raw data'!F75 -> -5.9453796e-06 | F70: -3.266997349e-06 | G70: 1.259682738e-05 | H70: -5.949517584e-06 | J70: -0.0001005887235 | K70: -0.002485346815 | L70: 1.553606091e-05 | M70: 0.0007382415401 | N70: 2.33671318e-07
A71: 33.08513333 | B71: ='DF raw data'!D76 -> 1.1353106e-07 | C71: ='DF raw data'!E76 -> -5.5819273e-06 | D71: ='DF raw data'!F76 -> -1.0365853e-07 | F71: 1.136100776e-07 | G71: =(1-$G$1*($B$2-$G$2))*C71*$M$2/$M$1 -> -5.596496686e-06 | H71: -1.037306763e-07 | J71: -0.0001005319048 | K71: -0.002535624831 | L71: 1.273714099e-05 | M71: 0.0007446116391 | N71: 2.388069996e-07
A72: =A71+$B$1 -> 33.58525333 | B72: ='DF raw data'!D77 -> 2.9094633e-06 | C72: ='DF raw data'!E77 -> -7.4528452e-06 | D72: ='DF raw data'!F77 -> -6.1732658e-07 | F72: 2.911488286e-06 | G72: -7.472297868e-06 | H72: -6.177562393e-07 | J72: =F72*$B$1+J71 -> -9.90758113e-05 | K72: =J72*$B$1+K71 -> -0.002585174626 | L72: =G72*$B$1+L71 -> 9.000095378e-06 | M72: =L72*$B$1+M71 -> 0.0007491127668 | N72: =(J72^2+L72^2)*$B$1+N71 -> 2.437566963e-07
A73: 34.08537333 | B73: ='DF raw data'!D78 -> 1.9134284e-06 | C73: ='DF raw data'!E78 -> 2.3292398e-06 | D73: ='DF raw data'!F78 -> -1.100695e-05 | F73: 1.914760146e-06 | G73: 2.335319348e-06 | H73: -1.101461084e-05 | J73: -9.811820146e-05 | K73: -0.002634245501 | L73: 1.016803529e-05 | M73: 0.0007541980046 | N73: 2.486231491e-07
A74: 34.58549333 | B74: ='DF raw data'!D79 -> 1.465273e-06 | C74: ='DF raw data'!E79 -> -6.2854906e-06 | D74: ='DF raw data'!F79 -> -9.1514212e-06 | F74: 1.46629283e-06 | G74: -6.301896356e-06 | H74: -9.157790589e-06 | J74: -9.738487908e-05 | K74: -0.002682949627 | L74: 7.016330885e-06 | M74: 0.000757707012 | N74: 2.533908149e-07
A75: 35.08561333 | B75: ='DF raw data'!D80 -> 5.5675596e-06 | C75: ='DF raw data'!E80 -> 1.1725589e-06 | D75: ='DF raw data'!F80 -> -7.3926622e-06 | F75: 5.571434621e-06 | G75: 1.175619395e-06 | H75: -7.397807493e-06 | J75: -9.45984932e-05 | K75: -0.002730260225 | L75: 7.604281657e-06 | M75: 0.0007615100653 | N75: 2.578952457e-07
A76: 35.58573333 | B76: ='DF raw data'!D81 -> 6.8769846e-06 | C76: ='DF raw data'!E81 -> -1.1021092e-06 | D76: ='DF raw data'!F81 -> -1.591279e-06 | F76: 6.881770981e-06 | G76: -1.104985815e-06 | H76: -1.59238653e-06 | J76: -9.11567819e-05 | K76: -0.002775849555 | L76: 7.051656151e-06 | M76: 0.0007650367396 | N76: 2.620758912e-07
A77: 36.08585333 | B77: ='DF raw data'!D82 -> 6.3307057e-06 | C77: ='DF raw data'!E82 -> -1.0762904e-05 | D77: ='DF raw data'!F82 -> 1.245857e-06 | F77: 6.335111871e-06 | G77: -1.079099625e-05 | H77: 1.246724116e-06 | J77: -8.798846575e-05 | K77: -0.002819854346 | L77: 1.654863106e-06 | M77: 0.0007658643697 | N77: 2.659491749e-07
A78: 36.58597333 | B78: ='DF raw data'!D83 -> 6.431565e-06 | C78: ='DF raw data'!E83 -> -5.6678564e-06 | D78: ='DF raw data'!F83 -> -2.7027324e-06 | F78: 6.436041369e-06 | G78: -5.682650069e-06 | H78: -2.704613502e-06 | J78: -8.476967274e-05 | K78: -0.002862249355 | L78: -1.187143847e-06 | M78: 0.0007652706553 | N78: 2.695436907e-07
A79: 37.08609333 | B79: ='DF raw data'!D84 -> 2.4378794e-06 | C79: ='DF raw data'!E84 -> 4.0234972e-06 | D79: ='DF raw data'!F84 -> 2.0994141e-06 | F79: 2.439576164e-06 | G79: 4.033998928e-06 | H79: 2.100875292e-06 | J79: -8.354959191e-05 | K79: -0.002904034177 | L79: 8.303396973e-07 | M79: 0.0007656859248 | N79: 2.730351404e-07
A80: 37.58621333 | B80: ='DF raw data'!D85 -> 1.8807229e-06 | C80: ='DF raw data'!E85 -> -1.1689571e-06 | D80: ='DF raw data'!F85 -> 7.1443446e-06 | F80: 1.882031883e-06 | G80: -1.172008194e-06 | H80: 7.149317064e-06 | J80: -8.260835012e-05 | K80: -0.002945348265 | L80: 2.441949591e-07 | M80: 0.0007658080516 | N80: 2.764480588e-07
A81: 38.08633333 | B81: ='DF raw data'!D86 -> 4.7102335e-06 | C81: ='DF raw data'!E86 -> 6.72633e-06 | D81: ='DF raw data'!F86 -> 6.8086465e-06 | F81: 4.713511823e-06 | G81: 6.743886391e-06 | H81: 6.813385318e-06 | J81: -8.025102859e-05 | K81: -0.00298548341 | L81: 3.616947421e-06 | M81: 0.0007676169594 | N81: 2.796754882e-07
A82: 38.58645333 | B82: ='DF raw data'!D87 -> 6.5033205e-06 | C82: ='DF raw data'!E87 -> -2.7032345e-06 | D82: ='DF raw data'!F87 -> 3.7629309e-06 | F82: 6.507846811e-06 | G82: -2.710290211e-06 | H82: 3.7655499e-06 | J82: -7.699632424e-05 | K82: -0.003023990811 | L82: 2.261477081e-06 | M82: 0.0007687479693 | N82: 2.826429743e-07
A83: 39.08657333 | B83: ='DF raw data'!D88 -> 6.0344723e-06 | C83: ='DF raw data'!E88 -> 9.6578606e-06 | D83: ='DF raw data'!F88 -> -6.6389384e-06 | F83: 6.038672293e-06 | G83: 9.683068578e-06 | H83: -6.643559101e-06 | J83: -7.397626346e-05 | K83: -0.00306098782 | L83: 7.104173338e-06 | M83: 0.0007723009084 | N83: 2.854051155e-07
A84: 39.58669333 | B84: ='DF raw data'!D89 -> 7.4086461e-06 | C84: ='DF raw data'!E89 -> 4.1609255e-06 | D84: ='DF raw data'!F89 -> -2.2344591e-06 | F84: 7.413802518e-06 | G84: 4.17178593e-06 | H84: -2.236014284e-06 | J84: -7.026847254e-05 | K84: -0.003096130489 | L84: 9.190566917e-06 | M84: 0.0007768972948 | N84: 2.879167805e-07
A85: 40.08681333 | B85: ='DF raw data'!D90 -> 1.008283e-05 | C85: ='DF raw data'!E90 -> 2.0930731e-06 | D85: ='DF raw data'!F90 -> 3.559808e-06 | F85: 1.008984765e-05 | G85: 2.098536229e-06 | H85: 3.562285626e-06 | J85: -6.522233794e-05 | K85: -0.003128749484 | L85: 1.024008686e-05 | M85: 0.000782018567 | N85: 2.900967099e-07
A86: 40.58693333 | B86: ='DF raw data'!D91 -> 1.0678164e-05 | C86: ='DF raw data'!E91 -> 1.2487448e-05 | D86: ='DF raw data'!F91 -> 1.1330661e-05 | F86: 1.0685596e-05 | G86: 1.252004148e-05 | H86: 1.133854714e-05 | J86: -5.987825766e-05 | K86: -0.003158695798 | L86: 1.650161e-05 | M86: 0.0007902713522 | N86: 2.920260273e-07
A87: 41.08705333 | B87: ='DF raw data'!D92 -> 8.5451875e-06 | C87: ='DF raw data'!E92 -> 6.3120406e-06 | D87: ='DF raw data'!F92 -> 7.8372341e-06 | F87: =(1-$G$1*($B$2-$G$2))*B87 -> 8.551134951e-06 | G87: 6.328515654e-06 | H87: 7.842688815e-06 | J87: -5.560166405e-05 | K87: -0.003186503303 | L87: 1.966662725e-05 | M87: 0.0008001070258 | N87: 2.937656053e-07
A88: 41.58717333 | B88: ='DF raw data'!D93 -> 6.296334e-06 | C88: ='DF raw data'!E93 -> -5.1336119e-06 | D88: ='DF raw data'!F93 -> 3.5538853e-06 | F88: 6.300716248e-06 | G88: -5.147011138e-06 | H88: 3.556358804e-06 | J88: -5.245054984e-05 | K88: -0.003212734872 | L88: 1.709250404e-05 | M88: 0.0008086553289 | N88: 2.952875775e-07
A89: 42.08729333 | B89: ='DF raw data'!D94 -> 5.0045314e-06 | C89: ='DF raw data'!E94 -> 6.1151022e-06 | D89: ='DF raw data'!F94 -> 6.0014486e-07 | F89: 5.008014554e-06 | G89: 6.131063226e-06 | H89: 6.005625608e-07 | J89: -4.99459416e-05 | K89: -0.003237713836 | L89: 2.015877138e-05 | M89: 0.0008187371337 | N89: 2.967384122e-07
A90: 42.58741333 | B90: ='DF raw data'!D95 -> 4.0570853e-06 | C90: ='DF raw data'!E95 -> -3.3282065e-06 | D90: ='DF raw data'!F95 -> 7.0770566e-06 | F90: 4.059909031e-06 | G90: -3.33689345e-06 | H90: 7.081982231e-06 | J90: -4.79154999e-05 | K90: -0.003261677336 | L90: 1.848992423e-05 | M90: 0.0008279843146 | N90: 2.980576149e-07
A91: 43.08753333 | B91: ='DF raw data'!D96 -> 1.8064936e-06 | C91: ='DF raw data'!E96 -> -3.5331484e-06 | D91: ='DF raw data'!F96 -> 1.2060622e-05 | F91: 1.80775092e-06 | G91: -3.542370269e-06 | H91: 1.206901619e-05 | J91: -4.701140751e-05 | K91: -0.003285188681 | L91: 1.671831401e-05 | M91: 0.0008363454778 | N91: 2.993027009e-07
A92: 43.58765333 | B92: ='DF raw data'!D97 -> -1.3062993e-06 | C92: ='DF raw data'!E97 -> -5.2407504e-06 | D92: ='DF raw data'!F97 -> 3.475014e-06 | F92: -1.307208484e-06 | G92: -5.25442928e-06 | H92: 3.47743261e-06 | J92: -4.766516861e-05 | K92: -0.003309026985 | L92: 1.409046884e-05 | M92: 0.0008433924031 | N92: 3.005382521e-07
A93: 44.08777333 | B93: ='DF raw data'!D98 -> -2.2881825e-06 | C93: ='DF raw data'!E98 -> -9.0036647e-06 | D93: ='DF raw data'!F98 -> 4.0131072e-06 | F93: -2.289775075e-06 | G93: -9.027165161e-06 | H93: 4.015900323e-06 | J93: -4.881033093e-05 | K93: -0.003333438008 | L93: 9.575802998e-06 | M93: 0.0008481814537 | N93: 3.017756212e-07
A94: 44.58789333 | B94: ='DF raw data'!D99 -> -6.0269235e-07 | C94: ='DF raw data'!E99 -> 5.4299508e-06 | D94: ='DF raw data'!F99 -> 7.2000494e-06 | F94: -6.031118239e-07 | G94: 5.444123512e-06 | H94: 7.205060634e-06 | J94: -4.911195921e-05 | K94: -0.003357999881 | L94: 1.229851805e-05 | M94: 0.0008543321885 | N94: 3.030575479e-07
A95: 45.08801333 | B95: ='DF raw data'!D100 -> 4.3592631e-06 | C95: ='DF raw data'!E100 -> 2.0139507e-06 | D95: ='DF raw data'!F100 -> 4.4259377e-06 | F95: 4.362297147e-06 | G95: 2.019207312e-06 | H95: 4.429018153e-06 | J95: -4.693028716e-05 | K95: -0.003381470656 | L95: 1.330836401e-05 | M95: 0.0008609879675 | N95: 3.042476156e-07
A96: 45.58813333 | B96: ='DF raw data'!D101 -> 8.8826755e-06 | C96: ='DF raw data'!E101 -> -5.0909166e-06 | D96: ='DF raw data'!F101 -> -1.4521117e-06 | F96: 8.888857842e-06 | G96: -5.104204399e-06 | H96: -1.45312237e-06 | J96: -4.248479158e-05 | K96: -0.00340271815 | L96: 1.075564931e-05 | M96: 0.0008663670829 | N96: 3.052081669e-07
A97: 46.08825333 | B97: ='DF raw data'!D102 -> 7.0520005e-06 | C97: ='DF raw data'!E102 -> -1.8655791e-06 | D97: ='DF raw data'!F102 -> 6.7728456e-07 | F97: 7.056908692e-06 | G97: -1.870448447e-06 | H97: 6.777559501e-07 | J97: -3.89554904e-05 | K97: -0.00342220057 | L97: 9.820200628e-06 | M97: 0.0008712783616 | N97: 3.060153438e-07
A98: 46.58837333 | B98: ='DF raw data'!D103 -> 3.7948964e-06 | C98: ='DF raw data'!E103 -> 8.9915247e-06 | D98: ='DF raw data'!F103 -> -5.4464235e-06 | F98: 3.797537648e-06 | G98: 9.014993475e-06 | H98: -5.450214211e-06 | J98: -3.705626587e-05 | K98: -0.003440733149 | L98: 1.432877916e-05 | M98: 0.0008784444706 | N98: 3.068047736e-07
A99: 47.08849333 | B99: ='DF raw data'!D104 -> 2.4223234e-06 | C99: ='DF raw data'!E104 -> -1.782986e-06 | D99: ='DF raw data'!F104 -> -9.1038364e-06 | F99: 2.424009337e-06 | G99: -1.787639771e-06 | H99: -9.11017267e-06 | J99: -3.584397032e-05 | K99: -0.003458659436 | L99: 1.343474476e-05 | M99: 0.0008851634552 | N99: 3.075375907e-07
A100: 47.58861333 | B100: ='DF raw data'!D105 -> 1.488236e-06 | C100: ='DF raw data'!E105 -> -2.3519221e-06 | D100: ='DF raw data'!F105 -> -6.2718955e-06 | F100: 1.489271812e-06 | G100: -2.358060851e-06 | H100: -6.276260739e-06 | J100: -3.509915571e-05 | K100: -0.003476213226 | L100: 1.225543137e-05 | M100: 0.0008912926415 | N100: 3.082288298e-07
A101: 48.08873333 | B101: ='DF raw data'!D106 -> 2.2470456e-06 | C101: ='DF raw data'!E106 -> 6.9302059e-06 | D101: ='DF raw data'!F106 -> -1.3330819e-05 | F101: 2.248609544e-06 | G101: 6.948294427e-06 | H101: -1.334009725e-05 | J101: -3.39745811e-05 | K101: -0.003493204593 | L101: 1.573041238e-05 | M101: 0.0008991597354 | N101: 3.08929857e-07
A102: 48.58885333 | B102: ='DF raw data'!D107 -> 4.0162381e-06 | C102: ='DF raw data'!E107 -> -9.8469343e-07 | D102: ='DF raw data'!F107 -> -1.4563533e-05 | F102: 4.019033402e-06 | G102: -9.872635779e-07 | H102: -1.457366922e-05 | J102: -3.196458212e-05 | K102: -0.00350919072 | L102: 1.523666212e-05 | M102: 0.0009067798948 | N102: 3.095569526e-07
A103: 49.08897333 | B103: ='DF raw data'!D108 -> 3.6126046e-06 | C103: ='DF raw data'!E108 -> -1.4615349e-05 | D103: ='DF raw data'!F108 -> -9.4650877e-06 | F103: 3.615118973e-06 | G103: -1.465349652e-05 | H103: -9.471675401e-06 | J103: -3.015658881e-05 | K103: -0.003524272633 | L103: 7.90815544e-06 | M103: 0.0009107349215 | N103: 3.100430487e-07
A104: 49.58909333 | B104: ='DF raw data'!D109 -> -1.1077821e-06 | C104: ='DF raw data'!E109 -> 2.6326509e-06 | D104: ='DF raw data'!F109 -> -7.9815595e-07 | F104: -1.108553116e-06 | G104: 2.639522381e-06 | H104: -7.987114665e-07 | J104: -3.07109984e-05 | K104: -0.003539631818 | L104: 9.228233373e-06 | M104: 0.0009153501456 | N104: 3.105573349e-07
A105: 50.08921333 | B105: ='DF raw data'!D110 -> -4.2408024e-06 | C105: ='DF raw data'!E110 -> 3.6847252e-06 | D105: ='DF raw data'!F110 -> -7.7028726e-06 | F105: -4.243753998e-06 | G105: 3.6943427e-06 | H105: -7.708233799e-06 | J105: -3.283338465e-05 | K105: -0.00355605245 | L105: 1.107584804e-05 | M105: 0.0009208893987 | N105: 3.111578318e-07
A106: 50.58933333 | B106: ='DF raw data'!D111 -> -4.2900679e-06 | C106: ='DF raw data'!E111 -> -8.3302602e-06 | D106: ='DF raw data'!F111 -> -9.0857338e-06 | F106: -4.293053787e-06 | G106: -8.352003008e-06 | H106: -9.092057471e-06 | J106: -3.498042671e-05 | K106: -0.003573546861 | L106: 6.8988443e-06 | M106: 0.0009243396487 | N106: 3.117935965e-07
A107: 51.08945333 | B107: ='DF raw data'!D112 -> -4.9907353e-06 | C107: ='DF raw data'!E112 -> 6.586366e-06 | D107: ='DF raw data'!F112 -> 3.5882279e-06 | F107: -4.994208852e-06 | G107: 6.603557071e-06 | H107: 3.590725307e-06 | J107: -3.747813044e-05 | K107: -0.003592290424 | L107: 1.020141526e-05 | M107: 0.0009294415805 | N107: 3.125481171e-07
A108: 51.58957333 | B108: ='DF raw data'!D113 -> -4.8887409e-06 | C108: ='DF raw data'!E113 -> 2.713243e-06 | D108: ='DF raw data'!F113 -> 3.5017022e-06 | F108: -4.892143464e-06 | G108: 2.720324834e-06 | H108: 3.504139385e-06 | J108: -3.992478923e-05 | K108: -0.003612257609 | L108: 1.156190412e-05 | M108: 0.00093522392 | N108: 3.134121576e-07
A109: 52.08969333 | B109: ='DF raw data'!D114 -> -4.9567566e-06 | C109: ='DF raw data'!E114 -> -1.1003739e-06 | D109: ='DF raw data'!F114 -> -1.0954516e-06 | F109: -4.960206503e-06 | G109: -1.103245985e-06 | H109: -1.096214034e-06 | J109: -4.240548771e-05 | K109: -0.003633465442 | L109: 1.101014874e-05 | M109: 0.0009407303156 | N109: 3.143721123e-07
A110: 52.58981333 | B110: ='DF raw data'!D115 -> -6.7535907e-06 | C110: ='DF raw data'!E115 -> 1.3369938e-05 | D110: ='DF raw data'!F115 -> -8.8393949e-07 | F110: -6.758291199e-06 | G110: 1.340483487e-05 | H110: -8.845547119e-07 | J110: -4.57854443e-05 | K110: -0.003656363658 | L110: 1.771417475e-05 | M110: 0.0009495895287 | N110: 3.15577451e-07
A111: 53.08993333 | B111: ='DF raw data'!D116 -> -2.1041517e-06 | C111: ='DF raw data'!E116 -> 1.1861686e-06 | D111: ='DF raw data'!F116 -> 3.1077745e-06 | F111: -2.10561619e-06 | G111: 1.189264618e-06 | H111: 3.109937511e-06 | J111: -4.683850507e-05 | K111: -0.003679788531 | L111: 1.830894977e-05 | M111: 0.0009587462006 | N111: 3.168422861e-07
A112: 53.59005333 | B112: ='DF raw data'!D117 -> 6.0587668e-06 | C112: ='DF raw data'!E117 -> -4.3498603e-06 | D112: ='DF raw data'!F117 -> -1.0106829e-07 | F112: 6.062983702e-06 | G112: -4.361213868e-06 | H112: -1.011386335e-07 | J112: -4.380628566e-05 | K112: -0.003701696931 | L112: 1.612781949e-05 | M112: 0.0009668120457 | N112: 3.179320962e-07
A113: 54.09017333 | B113: ='DF raw data'!D118 -> 9.2250966e-06 | C113: ='DF raw data'!E118 -> -2.0888017e-06 | D113: ='DF raw data'!F118 -> -5.9403883e-06 | F113: 9.231517267e-06 | G113: -2.09425368e-06 | H113: -5.94452281e-06 | J113: -3.918941924e-05 | K113: -0.003721296343 | L113: 1.508044134e-05 | M113: 0.000974354076 | N113: 3.188139229e-07
A114: 54.59029333 | B114: ='DF raw data'!D119 -> 4.1305798e-06 | C114: ='DF raw data'!E119 -> -6.2653435e-06 | D114: ='DF raw data'!F119 -> -3.8481285e-06 | F114: 4.133454684e-06 | G114: -6.28169667e-06 | H114: -3.850806797e-06 | J114: -3.712219589e-05 | K114: -0.003739861896 | L114: 1.19388392e-05 | M114: 0.0009803249283 | N114: 3.19574402e-07
A115: 55.09041333 | B115: ='DF raw data'!D120 -> -4.3438663e-06 | C115: ='DF raw data'!E120 -> 1.6087307e-06 | D115: ='DF raw data'!F120 -> -4.4775934e-06 | F115: -4.346889631e-06 | G115: 1.612929647e-06 | H115: -4.480709805e-06 | J115: -3.929616233e-05 | K115: -0.003759514693 | L115: 1.274549758e-05 | M115: 0.0009866992065 | N115: 3.204279249e-07
A116: 55.59053333 | B116: ='DF raw data'!D121 -> -7.8189723e-06 | C116: ='DF raw data'!E121 -> 2.6507971e-06 | D116: ='DF raw data'!F121 -> 3.3013805e-06 | F116: -7.824414305e-06 | G116: 2.657715944e-06 | H116: 3.303678261e-06 | J116: -4.320930841e-05 | K116: -0.003781124532 | L116: 1.407467448e-05 | M116: 0.0009937382327 | N116: 3.214607431e-07
A117: 56.09065333 | B117: ='DF raw data'!D122 -> -6.7705437e-06 | C117: ='DF raw data'!E122 -> 3.7232842e-06 | D117: ='DF raw data'!F122 -> 7.6309825e-06 | F117: -6.775255998e-06 | G117: 3.733002342e-06 | H117: 7.636293664e-06 | J117: -4.659774944e-05 | K117: -0.003804428998 | L117: 1.594162361e-05 | M117: 0.001001710958 | N117: 3.22673777e-07
A118: 56.59077333 | B118: ='DF raw data'!D123 -> -4.8188554e-06 | C118: ='DF raw data'!E123 -> 9.6586609e-06 | D118: ='DF raw data'!F123 -> -9.0237677e-07 | F118: -4.822209323e-06 | G118: 9.683870967e-06 | H118: -9.030048242e-07 | J118: -4.900943277e-05 | K118: -0.003828939596 | L118: 2.078472115e-05 | M118: 0.001012105812 | N118: 3.240910816e-07
A119: 57.09089333 | B119: ='DF raw data'!D124 -> -5.8503315e-06 | C119: ='DF raw data'!E124 -> 6.2838863e-06 | D119: ='DF raw data'!F124 -> 4.1671756e-06 | F119: -5.854403331e-06 | G119: 6.300287869e-06 | H119: 4.170075954e-06 | J119: -5.193733696e-05 | K119: -0.003854914497 | L119: 2.393562112e-05 | M119: 0.001024076495 | N119: 3.257266745e-07
A120: 57.59101333 | B120: ='DF raw data'!D125 -> -6.0252164e-06 | C120: ='DF raw data'!E125 -> -1.3127918e-06 | D120: ='DF raw data'!F125 -> 1.1704959e-05 | F120: -6.029409951e-06 | G120: -1.316218317e-06 | H120: 1.171310565e-05 | J120: -5.495276547e-05 | K120: -0.003882397474 | L120: 2.327735402e-05 | M120: 0.001035717965 | N120: 3.275079227e-07
A121: 58.09113333 | B121: ='DF raw data'!D126 -> -4.6995078e-06 | C121: ='DF raw data'!E126 -> -1.7821857e-06 | D121: ='DF raw data'!F126 -> 2.9797905e-06 | F121: -4.702778657e-06 | G121: -1.786837382e-06 | H121: 2.981864434e-06 | J121: -5.730471913e-05 | K121: -0.00391105671 | L121: 2.238372091e-05 | M121: 0.001046912512 | N121: 3.294008078e-07
A122: 58.59125333 | B122: ='DF raw data'!D127 -> -4.7898825e-06 | C122: ='DF raw data'!E127 -> -1.0662169e-06 | D122: ='DF raw data'!F127 -> -2.4538874e-06 | F122: -4.793216258e-06 | G122: -1.068999832e-06 | H122: -2.455595306e-06 | J122: -5.970190244e-05 | K122: -0.003940914825 | L122: 2.184909271e-05 | M122: 0.00105783968 | N122: 3.314221428e-07
A123: 59.09137333 | B123: ='DF raw data'!D128 -> -5.075442e-06 | C123: ='DF raw data'!E128 -> 8.3050418e-06 | D123: ='DF raw data'!F128 -> 1.4012242e-07 | F123: -5.078974508e-06 | G123: 8.326718786e-06 | H123: 1.402199452e-07 | J123: -6.224199917e-05 | K123: -0.003972043294 | L123: 2.601345131e-05 | M123: 0.001070849527 | N123: 3.33698072e-07
A124: 59.59149333 | B124: ='DF raw data'!D129 -> -6.0035268e-06 | C124: ='DF raw data'!E129 -> 9.609159e-06 | D124: ='DF raw data'!F129 -> 3.2321643e-06 | F124: -6.007705255e-06 | G124: 9.634239862e-06 | H124: 3.234413886e-06 | J124: -6.524657273e-05 | K124: -0.00400467441 | L124: 3.083172735e-05 | M124: 0.001086269091 | N124: 3.363025522e-07
A125: 60.09161333 | B125: ='DF raw data'!D130 -> -7.8026233e-06 | C125: ='DF raw data'!E130 -> 2.2126244e-06 | D125: ='DF raw data'!F130 -> 3.294723e-06 | F125: -7.808053926e-06 | G125: 2.21839957e-06 | H125: 3.297016127e-06 | J125: -6.915153666e-05 | K125: -0.004039258477 | L125: 3.194119334e-05 | M125: 0.001102243521 | N125: 3.392043359e-07
A126: 60.59173333 | B126: ='DF raw data'!D131 -> -6.0963753e-06 | C126: ='DF raw data'!E131 -> 3.3119306e-06 | D126: ='DF raw data'!F131 -> -1.7094114e-06 | F126: -6.100618377e-06 | G126: 3.320575069e-06 | H126: -1.71060115e-06 | J126: -7.220257792e-05 | K126: -0.00407536843 | L126: 3.360187935e-05 | M126: 0.001119048492 | N126: 3.423762463e-07
A127: 61.09185333 | B127: ='DF raw data'!D132 -> -3.3245335e-06 | C127: ='DF raw data'!E132 -> 7.9764086e-06 | D127: ='DF raw data'!F132 -> 6.4727124e-07 | F127: -3.326847375e-06 | G127: 7.997227821e-06 | H127: 6.477217408e-07 | J127: -7.386640083e-05 | K127: -0.004112310494 | L127: 3.760145292e-05 | M127: 0.001137853731 | N127: 3.458121279e-07
A128: 61.59197333 | B128: ='DF raw data'!D133 -> -1.7119339e-06 | C128: ='DF raw data'!E133 -> 1.2670226e-06 | D128: ='DF raw data'!F133 -> -2.5802053e-06 | F128: -1.713125406e-06 | G128: 1.270329655e-06 | H128: -2.582001123e-06 | J128: -7.472316911e-05 | K128: -0.004149681046 | L128: 3.823677019e-05 | M128: 0.001156976705 | N128: 3.493357747e-07
A129: 62.09209333 | B129: ='DF raw data'!D134 -> -1.5152939e-06 | C129: ='DF raw data'!E134 -> 4.4309836e-06 | D129: ='DF raw data'!F134 -> 2.6403598e-06 | F129: -1.516348545e-06 | G129: 4.442548908e-06 | H129: 2.64219749e-06 | J129: -7.548152534e-05 | K129: -0.004187430866 | L129: 4.045857775e-05 | M129: 0.001177210848 | N129: 3.530038334e-07
A130: 62.59221333 | B130: ='DF raw data'!D135 -> -2.8782481e-06 | C130: ='DF raw data'!E135 -> 5.9794056e-06 | D130: ='DF raw data'!F135 -> 4.2544184e-07 | F130: -2.880251361e-06 | G130: 5.995012444e-06 | H130: 4.257379475e-07 | J130: -7.692199665e-05 | K130: -0.004225901095 | L130: 4.345680337e-05 | M130: 0.001198944465 | N130: 3.569075137e-07
A131: 63.09233333 | B131: ='DF raw data'!D136 -> -4.850091e-06 | C131: ='DF raw data'!E136 -> 2.5300453e-06 | D131: ='DF raw data'!F136 -> 1.3759767e-07 | F131: -4.853466663e-06 | G131: 2.53664897e-06 | H131: 1.37693438e-07 | J131: -7.93493124e-05 | K131: -0.004265585273 | L131: 4.472543226e-05 | M131: 0.001221312548 | N131: 3.610568481e-07
A132: 63.59245333 | B132: ='DF raw data'!D137 -> 1.0191863e-07 | C132: ='DF raw data'!E137 -> -1.1973769e-06 | D132: ='DF raw data'!F137 -> -5.9203535e-07 | F132: 1.019895654e-07 | G132: -1.200502173e-06 | H132: -5.924474066e-07 | J132: -7.929830538e-05 | K132: -0.004305243942 | L132: 4.412503711e-05 | M132: 0.001243380362 | N132: 3.651754564e-07
A133: 64.09257333 | B133: ='DF raw data'!D138 -> 6.8584309e-06 | C133: ='DF raw data'!E138 -> -5.645039e-06 | D133: ='DF raw data'!F138 -> -4.4876488e-06 | F133: 6.863204368e-06 | G133: -5.659773114e-06 | H133: -4.490772204e-06 | J133: -7.586587961e-05 | K133: -0.004343185985 | L133: 4.129447138e-05 | M133: 0.001264032553 | N133: 3.689067843e-07
A134: 64.59269333 | B134: ='DF raw data'!D139 -> 7.3643864e-06 | C134: ='DF raw data'!E139 -> -3.7235529e-06 | D134: ='DF raw data'!F139 -> 8.155132e-07 | F134: 7.369512013e-06 | G134: -3.733271744e-06 | H134: 8.160807972e-07 | J134: -7.218023926e-05 | K134: -0.004379284767 | L134: 3.942738752e-05 | M134: 0.001283750978 | N134: 3.722898489e-07
A135: 65.09281333 | B135: ='DF raw data'!D140 -> 4.9907799e-06 | C135: ='DF raw data'!E140 -> 9.7666034e-06 | D135: ='DF raw data'!F140 -> 6.0179173e-06 | F135: 4.994253483e-06 | G135: =(1-$G$1*($B$2-$G$2))*C135*$M$2/$M$1 -> 9.792095207e-06 | H135: 6.02210577e-06 | J135: -6.968251321e-05 | K135: -0.004414134385 | L135: 4.432461017e-05 | M135: 0.001305918602 | N135: 3.757008292e-07
A136: =A135+$B$1 -> 65.59293333 | B136: ='DF raw data'!D141 -> 3.4706943e-06 | C136: ='DF raw data'!E141 -> 1.0712602e-05 | D136: ='DF raw data'!F141 -> 9.552934e-06 | F136: 3.473109903e-06 | G136: 1.074056296e-05 | H136: 9.559582842e-06 | J136: =F136*$B$1+J135 -> -6.794554148e-05 | K136: =J136*$B$1+K135 -> -0.004448115309 | L136: =G136*$B$1+L135 -> 4.969618052e-05 | M136: =L136*$B$1+M135 -> 0.001330772656 | N136: =(J136^2+L136^2)*$B$1+N135 -> 3.792448331e-07
A137: 66.09305333 | B137: ='DF raw data'!D142 -> 1.1610289e-06 | C137: ='DF raw data'!E142 -> 5.7899397e-06 | D137: ='DF raw data'!F142 -> 7.2568164e-06 | F137: 1.161836976e-06 | G137: 5.805052019e-06 | H137: 7.261867144e-06 | J137: -6.736448358e-05 | K137: -0.004481805635 | L137: 5.259940313e-05 | M137: 0.001357078669 | N137: 3.82898045e-07
A138: 66.59317333 | B138: ='DF raw data'!D143 -> 8.3489135e-07 | C138: ='DF raw data'!E143 -> 2.3192317e-06 | D138: ='DF raw data'!F143 -> 4.6837031e-06 | F138: 8.354724344e-07 | G138: 2.325285126e-06 | H138: 4.686962957e-06 | J138: -6.69466471e-05 | K138: -0.004515286992 | L138: 5.376232473e-05 | M138: 0.001383966283 | N138: 3.865850503e-07
A139: 67.09329333 | B139: ='DF raw data'!D144 -> 5.0242857e-06 | C139: ='DF raw data'!E144 -> -1.4871783e-06 | D139: ='DF raw data'!F144 -> 4.313335e-06 | F139: 5.027782603e-06 | G139: -1.491059983e-06 | H139: 4.316337081e-06 | J139: -6.443215247e-05 | K139: -0.0045475108 | L139: 5.301661581e-05 | M139: 0.001410480953 | N139: 3.900670177e-07
A140: 67.59341333 | B140: ='DF raw data'!D145 -> 5.2189976e-06 | C140: ='DF raw data'!E145 -> -5.2123305e-06 | D140: ='DF raw data'!F145 -> -4.1013682e-06 | F140: 5.222630022e-06 | G140: -5.225935202e-06 | H140: -4.104222752e-06 | J140: -6.182021074e-05 | K140: -0.004578428324 | L140: 5.04030211e-05 | M140: 0.001435688512 | N140: 3.932488826e-07
A141: 68.09353333 | B141: ='DF raw data'!D146 -> -3.9216255e-07 | C141: ='DF raw data'!E146 -> 3.0365356e-06 | D141: ='DF raw data'!F146 -> -4.5436809e-06 | F141: -3.924354951e-07 | G141: 3.04446126e-06 | H141: -4.546843302e-06 | J141: -6.201647558e-05 | K141: -0.004609444004 | L141: 5.192561706e-05 | M141: 0.001461657551 | N141: 3.965208242e-07
A142: 68.59365333 | B142: ='DF raw data'!D147 -> -2.3675486e-06 | C142: ='DF raw data'!E147 -> 3.9840033e-06 | D142: ='DF raw data'!F147 -> -3.4783495e-06 | F142: -2.369196414e-06 | G142: 3.994401945e-06 | H142: -3.480770431e-06 | J142: -6.320135809e-05 | K142: -0.004641052267 | L142: 5.392329737e-05 | M142: 0.001488625671 | N142: 3.999727193e-07
A143: 69.09377333 | B143: ='DF raw data'!D148 -> 4.3338943e-07 | C143: ='DF raw data'!E148 -> -7.6552478e-06 | D143: ='DF raw data'!F148 -> -6.661232e-06 | F143: 4.33691069e-07 | G143: -7.675228759e-06 | H143: -6.665868217e-06 | J143: -6.298446051e-05 | K143: -0.004672552055 | L143: 5.008476196e-05 | M143: 0.001513674062 | N143: 4.032112591e-07
A144: 69.59389333 | B144: ='DF raw data'!D149 -> 4.6619066e-06 | C144: ='DF raw data'!E149 -> -1.7410911e-06 | D144: ='DF raw data'!F149 -> -7.7289642e-06 | F144: 4.665151287e-06 | G144: -1.745635521e-06 | H144: -7.734343559e-06 | J144: -6.065132505e-05 | K144: -0.004702884996 | L144: 4.921173472e-05 | M144: 0.001538285835 | N144: 4.062621802e-07
A145: 70.09401333 | B145: ='DF raw data'!D150 -> 7.7146224e-06 | C145: ='DF raw data'!E150 -> 8.760695e-06 | D145: ='DF raw data'!F150 -> -7.1876766e-06 | F145: 7.719991777e-06 | G145: 8.783561286e-06 | H145: -7.192679223e-06 | J145: -5.679040276e-05 | K145: -0.004731287012 | L145: 5.360456939e-05 | M145: 0.001565094552 | N145: 4.093122119e-07
A146: 70.59413333 | B146: ='DF raw data'!D151 -> 6.076993e-06 | C146: ='DF raw data'!E151 -> 9.9167064e-06 | D146: ='DF raw data'!F151 -> -5.3342137e-06 | F146: 6.081222587e-06 | G146: 9.942589991e-06 | H146: -5.337926313e-06 | J146: -5.374906172e-05 | K146: -0.004758167993 | L146: 5.85770575e-05 | M146: 0.00159439011 | N146: 4.12473087e-07
A147: 71.09425333 | B147: ='DF raw data'!D152 -> 1.1811906e-06 | C147: ='DF raw data'!E152 -> 5.0974504e-06 | D147: ='DF raw data'!F152 -> -3.200226e-06 | F147: 1.182012709e-06 | G147: 5.110755253e-06 | H147: -3.202453357e-06 | J147: -5.315791353e-05 | K147: -0.004784753329 | L147: 6.113304842e-05 | M147: 0.00162496397 | N147: 4.157553812e-07
A148: 71.59437333 | B148: ='DF raw data'!D153 -> -2.9020114e-06 | C148: ='DF raw data'!E153 -> 4.539057e-06 | D148: ='DF raw data'!F153 -> 1.8704507e-07 | F148: -2.9040312e-06 | G148: 4.550904391e-06 | H148: 1.871752534e-07 | J148: -5.461027761e-05 | K148: -0.004812065021 | L148: 6.340904672e-05 | M148: 0.001656676103 | N148: 4.192577164e-07
A149: 72.09449333 | B149: ='DF raw data'!D154 -> -2.597367e-06 | C149: ='DF raw data'!E154 -> 2.6363871e-06 | D149: ='DF raw data'!F154 -> -7.4460386e-06 | F149: -2.599174767e-06 | G149: 2.643268333e-06 | H149: -7.451221043e-06 | J149: -5.59101769e-05 | K149: -0.004840026818 | L149: 6.473099808e-05 | M149: 0.001689049369 | N149: 4.229166193e-07
A150: 72.59461333 | B150: ='DF raw data'!D155 -> -1.0918986e-06 | C150: ='DF raw data'!E155 -> -8.0508635e-06 | D150: ='DF raw data'!F155 -> -2.6955438e-06 | F150: -1.092658561e-06 | G150: -8.071877055e-06 | H150: -2.697419898e-06 | J150: -5.64566373e-05 | K150: -0.004868261912 | L150: 6.069409093e-05 | M150: 0.001719403698 | N150: 4.263530062e-07
A151: 73.09473333 | B151: ='DF raw data'!D156 -> -1.3592319e-06 | C151: ='DF raw data'!E156 -> 1.1653263e-05 | D151: ='DF raw data'!F156 -> 6.4489886e-06 | F151: =(1-$G$1*($B$2-$G$2))*B151 -> -1.360177925e-06 | G151: 1.168367918e-05 | H151: 6.453477096e-06 | J151: -5.713688948e-05 | K151: -0.004896837213 | L151: 6.653733255e-05 | M151: 0.001752680349 | N151: 4.301998496e-07
A152: 73.59485333 | B152: ='DF raw data'!D157 -> -1.7873638e-06 | C152: ='DF raw data'!E157 -> 1.4605072e-05 | D152: ='DF raw data'!F157 -> 8.8350807e-06 | F152: -1.788607805e-06 | G152: 1.464319269e-05 | H152: 8.841229916e-06 | J152: -5.803140801e-05 | K152: -0.004925859881 | L152: 7.386068608e-05 | M152: 0.001789619555 | N152: 4.34612431e-07
A153: 74.09497333 | B153: ='DF raw data'!D158 -> -3.1311604e-06 | C153: ='DF raw data'!E158 -> 2.0633181e-06 | D153: ='DF raw data'!F158 -> 3.0351605e-06 | F153: -3.133339688e-06 | G153: 2.068703566e-06 | H153: 3.037272972e-06 | J153: -5.959845386e-05 | K153: -0.004955666259 | L153: 7.489528611e-05 | M153: 0.001827076186 | N153: 4.391941701e-07
A154: 74.59509333 | B154: ='DF raw data'!D159 -> -3.009681e-06 | C154: ='DF raw data'!E159 -> 8.2803581e-06 | D154: ='DF raw data'!F159 -> 3.1523291e-07 | F154: -3.011775738e-06 | G154: 8.301970659e-06 | H154: 3.154523121e-07 | J154: -6.110470314e-05 | K154: -0.004986225943 | L154: 7.904726768e-05 | M154: 0.001866609305 | N154: 4.441864956e-07
A155: 75.09521333 | B155: ='DF raw data'!D160 -> 2.0807026e-06 | C155: ='DF raw data'!E160 -> 3.6987351e-06 | D155: ='DF raw data'!F160 -> -3.7094921e-06 | F155: 2.082150769e-06 | G155: 3.708389167e-06 | H155: -3.712073907e-06 | J155: -6.00633779e-05 | K155: -0.00501626484 | L155: 8.090190727e-05 | M155: 0.001907069967 | N155: 4.492640779e-07
A156: 75.59533333 | B156: ='DF raw data'!D161 -> 2.244841e-06 | C156: ='DF raw data'!E161 -> 3.9681236e-06 | D156: ='DF raw data'!F161 -> -1.0933197e-06 | F156: 2.246403409e-06 | G156: 3.978480798e-06 | H156: -1.094080651e-06 | J156: -5.893990663e-05 | K156: -0.005045741866 | L156: 8.289162508e-05 | M156: 0.001948525727 | N156: 4.544377864e-07
A157: 76.09545333 | B157: ='DF raw data'!D162 -> -3.6377198e-06 | C157: ='DF raw data'!E162 -> 4.997115e-06 | D157: ='DF raw data'!F162 -> -2.4201415e-06 | F157: -3.640251653e-06 | G157: 5.010157968e-06 | H157: -2.421825918e-06 | J157: -6.076046928e-05 | K157: -0.005076129392 | L157: 8.539730529e-05 | M157: 0.001991234627 | N157: 4.599313717e-07
A158: 76.59557333 | B158: ='DF raw data'!D163 -> -5.637939e-06 | C158: ='DF raw data'!E163 -> 2.02449e-06 | D158: ='DF raw data'!F163 -> -1.4000418e-05 | F158: -5.641863006e-06 | G158: 2.02977412e-06 | H158: -1.401016229e-05 | J158: -6.358207781e-05 | K158: -0.005107928061 | L158: 8.641243592e-05 | M158: 0.002034451214 | N158: 4.656876477e-07
A159: 77.09569333 | B159: ='DF raw data'!D164 -> -5.2873688e-06 | C159: ='DF raw data'!E164 -> 7.9201036e-06 | D159: ='DF raw data'!F164 -> -1.1951683e-05 | F159: -5.291048809e-06 | G159: 7.940775859e-06 | H159: -1.196000137e-05 | J159: -6.622823714e-05 | K159: -0.005141050127 | L159: 9.038377674e-05 | M159: 0.002079653949 | N159: 4.719668576e-07
A160: 77.59581333 | B160: ='DF raw data'!D165 -> 9.8814485e-07 | C160: ='DF raw data'!E165 -> 1.447111e-05 | D160: ='DF raw data'!F165 -> -6.4647406e-07 | F160: 9.888325988e-07 | G160: 1.450888104e-05 | H160: -6.469240059e-07 | J160: -6.573370218e-05 | K160: -0.005173924866 | L160: 9.763995833e-05 | M160: 0.002128485645 | N160: 4.788957607e-07
A161: 78.09593333 | B161: ='DF raw data'!D166 -> 7.57512e-06 | C161: ='DF raw data'!E166 -> 8.0563314e-06 | D161: ='DF raw data'!F166 -> -6.5645345e-06 | F161: 7.580392284e-06 | G161: 8.077359227e-06 | H161: -6.569103416e-06 | J161: -6.194259639e-05 | K161: -0.005204903597 | L161: 0.0001016796072 | M161: 0.00217933765 | N161: 4.859852756e-07
A162: 78.59605333 | B162: ='DF raw data'!D167 -> 2.8604015e-06 | C162: ='DF raw data'!E167 -> 5.7894049e-06 | D162: ='DF raw data'!F167 -> -1.0724098e-05 | F162: 2.862392339e-06 | G162: 5.804515823e-06 | H162: -1.073156197e-05 | J162: -6.051105673e-05 | K162: -0.005235166387 | L162: 0.0001045825617 | M162: 0.002231641481 | N162: 4.932865776e-07
A163: 79.09617333 | B163: ='DF raw data'!D168 -> -5.2893697e-06 | C163: ='DF raw data'!E168 -> 1.3861483e-05 | D163: ='DF raw data'!F168 -> -7.2560924e-06 | F163: -5.293051101e-06 | G163: 1.389766285e-05 | H163: -7.26114264e-06 | J163: -6.315821745e-05 | K163: -0.005266753075 | L163: 0.0001115330608 | M163: 0.002287421395 | N163: 5.015028411e-07
A164: 79.59629333 | B164: ='DF raw data'!D169 -> -5.8752953e-06 | C164: ='DF raw data'!E169 -> 1.4548632e-05 | D164: ='DF raw data'!F169 -> -7.2260136e-06 | F164: -5.879384506e-06 | G164: 1.458660538e-05 | H164: -7.231042905e-06 | J164: -6.609861523e-05 | K164: -0.005299810314 | L164: 0.0001188281139 | M164: 0.002346849711 | N164: 5.107496336e-07
A165: 80.09641333 | B165: ='DF raw data'!D170 -> -6.8354889e-06 | C165: ='DF raw data'!E170 -> 7.193068e-07 | D165: ='DF raw data'!F170 -> -2.7557742e-06 | F165: -6.8402464e-06 | G165: 7.211842624e-07 | H165: -2.757692219e-06 | J165: -6.951955926e-05 | K165: -0.005334578436 | L165: 0.0001191887926 | M165: 0.00240645841 | N165: 5.20271387e-07
A166: 80.59653333 | B166: ='DF raw data'!D171 -> -6.6513926e-06 | C166: ='DF raw data'!E171 -> 7.2849889e-06 | D166: ='DF raw data'!F171 -> -2.2116926e-06 | F166: -6.656021969e-06 | G166: 7.304003446e-06 | H166: -2.213231938e-06 | J166: -7.284836897e-05 | K166: -0.005371011362 | L166: 0.0001228416708 | M166: 0.002467893987 | N166: 5.304723151e-07
A167: 81.09665333 | B167: ='DF raw data'!D172 -> -4.0595552e-08 | C167: ='DF raw data'!E172 -> -1.6291401e-07 | D167: ='DF raw data'!F172 -> -1.9464767e-06 | F167: -4.06238065e-08 | G167: -1.633392318e-07 | H167: -1.947831448e-06 | J167: -7.286868574e-05 | K167: -0.005407454449 | L167: 0.0001227599816 | M167: 0.002529288709 | N167: 5.406646899e-07
A168: 81.59677333 | B168: ='DF raw data'!D173 -> 4.5200618e-06 | C168: ='DF raw data'!E173 -> -4.0175095e-07 | D168: ='DF raw data'!F173 -> 3.4274947e-06 | F168: 4.523207763e-06 | G168: -4.0279956e-07 | H168: 3.429880236e-06 | J168: -7.060653908e-05 | K168: -0.005442766192 | L168: 0.0001225585334 | M168: 0.002590582682 | N168: 5.506700293e-07
A169: 82.09689333 | B169: ='DF raw data'!D174 -> 3.9483534e-06 | C169: ='DF raw data'!E174 -> 3.1444781e-06 | D169: ='DF raw data'!F174 -> 5.7592861e-06 | F169: 3.951101454e-06 | G169: 3.152685501e-06 | H169: 5.763294563e-06 | J169: -6.863051422e-05 | K169: -0.005477089685 | L169: 0.0001241352545 | M169: 0.002652665206 | N169: 5.607322981e-07
A170: 82.59701333 | B170: ='DF raw data'!D175 -> -8.8758247e-07 | C170: ='DF raw data'!E175 -> 2.0787971e-07 | D170: ='DF raw data'!F175 -> 5.306918e-06 | F170: -8.882002274e-07 | G170: 2.084222967e-07 | H170: 5.310611615e-06 | J170: -6.907472092e-05 | K170: -0.005511635334 | L170: 0.0001242394907 | M170: 0.00271479986 | N170: 5.70838107e-07
A171: 83.09713333 | B171: ='DF raw data'!D176 -> -8.6468017e-06 | C171: ='DF raw data'!E176 -> 7.1192717e-06 | D171: ='DF raw data'!F176 -> -1.2605722e-06 | F171: -8.652819874e-06 | G171: 7.137853708e-06 | H171: -1.261449558e-06 | J171: -7.340216919e-05 | K171: -0.005548345227 | L171: 0.0001278092741 | M171: 0.002778719834 | N171: 5.817022583e-07
A172: 83.59725333 | B172: ='DF raw data'!D177 -> -1.1742707e-05 | C172: ='DF raw data'!E177 -> 4.344789e-06 | D172: ='DF raw data'!F177 -> -9.5739069e-06 | F172: -1.175087992e-05 | G172: 4.356129332e-06 | H172: -9.580570339e-06 | J172: -7.927901926e-05 | K172: -0.00558799425 | L172: 0.0001299878615 | M172: 0.002843729363 | N172: 5.932960436e-07
A173: 84.09737333 | B173: ='DF raw data'!D178 -> -8.4579033e-06 | C173: ='DF raw data'!E178 -> -3.3660997e-06 | D173: ='DF raw data'!F178 -> -1.0406364e-05 | F173: -8.463790001e-06 | G173: -3.374885555e-06 | H173: -1.041360683e-05 | J173: -8.351192992e-05 | K173: -0.005629760236 | L173: 0.0001283000137 | M173: 0.002907894766 | N173: 6.050164238e-07
A174: 84.59749333 | B174: ='DF raw data'!D179 -> -4.4735602e-06 | C174: ='DF raw data'!E179 -> 9.0579688e-06 | D174: ='DF raw data'!F179 -> 1.999599e-07 | F174: -4.476673798e-06 | G174: 9.081611e-06 | H174: 2.000990721e-07 | J174: -8.575080401e-05 | K174: -0.005672645928 | L174: 0.000132841909 | M174: 0.002974331662 | N174: 6.175195104e-07
A175: 85.09761333 | B175: ='DF raw data'!D180 -> -4.575089e-06 | C175: ='DF raw data'!E180 -> 1.2495721e-05 | D175: ='DF raw data'!F180 -> -1.5379026e-06 | F175: -4.578273262e-06 | G175: 1.252833608e-05 | H175: -1.53897298e-06 | J175: -8.804049004e-05 | K175: -0.005716676738 | L175: 0.0001391075804 | M175: 0.003043902145 | N175: 6.310737861e-07
A176: 85.59773333 | B176: ='DF raw data'!D181 -> -5.759091e-06 | C176: ='DF raw data'!E181 -> -1.9761881e-06 | D176: ='DF raw data'!F181 -> -9.1257953e-06 | F176: -5.763099327e-06 | G176: -1.981346148e-06 | H176: -9.132146854e-06 | J176: -9.092273127e-05 | K176: -0.005762149015 | L176: 0.0001381166696 | M176: 0.003112977054 | N176: 6.44748646e-07
A177: 86.09785333 | B177: ='DF raw data'!D182 -> -1.3707133e-06 | C177: ='DF raw data'!E182 -> 3.259893e-06 | D177: ='DF raw data'!F182 -> -1.0033333e-05 | F177: -1.371667316e-06 | G177: 3.268401645e-06 | H177: -1.00403162e-05 | J177: -9.160872953e-05 | K177: -0.005807964372 | L177: 0.0001397512626 | M177: 0.003182869455 | N177: 6.587132841e-07
A178: 86.59797333 | B178: ='DF raw data'!D183 -> 4.9536652e-06 | C178: ='DF raw data'!E183 -> 5.6889348e-06 | D178: ='DF raw data'!F183 -> -8.6335622e-06 | F178: 4.957112951e-06 | G178: 5.703783486e-06 | H178: -8.639571159e-06 | J178: -8.91295782e-05 | K178: -0.005852539857 | L178: 0.0001426038388 | M178: 0.003254188487 | N178: 6.72856646e-07
A179: 87.09809333 | B179: ='DF raw data'!D184 -> 6.5491081e-06 | C179: ='DF raw data'!E184 -> 1.1806836e-05 | D179: ='DF raw data'!F184 -> -7.7542554e-06 | F179: 6.553666279e-06 | G179: 1.183765302e-05 | H179: -7.759652362e-06 | J179: -8.585195862e-05 | K179: -0.005895476139 | L179: 0.0001485240859 | M179: 0.003328468353 | N179: 6.87575159e-07
A180: 87.59821333 | B180: ='DF raw data'!D185 -> 4.2730212e-06 | C180: ='DF raw data'!E185 -> 1.5389506e-06 | D180: ='DF raw data'!F185 -> -4.7313642e-06 | F180: 4.275995223e-06 | G180: 1.542967414e-06 | H180: -4.734657229e-06 | J180: -8.371344789e-05 | K180: -0.005937342908 | L180: 0.0001492957547 | M180: 0.003403134146 | N180: 7.022272565e-07
A181: 88.09833333 | B181: ='DF raw data'!D186 -> 7.3182741e-07 | C181: ='DF raw data'!E186 -> -9.8958935e-06 | D181: ='DF raw data'!F186 -> -1.9084089e-06 | F181: 7.323367619e-07 | G181: -9.921722767e-06 | H181: -1.909737153e-06 | J181: -8.334719163e-05 | K181: -0.005979026506 | L181: 0.0001443337027 | M181: 0.003475318317 | N181: 7.16120076e-07
A182: 88.59845333 | B182: ='DF raw data'!D187 -> -4.4075867e-07 | C182: ='DF raw data'!E187 -> 1.3019691e-05 | D182: ='DF raw data'!F187 -> 2.8468116e-07 | F182: -4.41065438e-07 | G182: 1.305367369e-05 | H182: 2.848792981e-07 | J182: -8.356777728e-05 | K182: -0.006020820422 | L182: 0.000150862106 | M182: 0.003550767474 | N182: 7.309951194e-07
A183: 89.09857333 | B183: ='DF raw data'!D188 -> 3.5921082e-06 | C183: ='DF raw data'!E188 -> 1.0617199e-05 | D183: ='DF raw data'!F188 -> 3.0464746e-06 | F183: 3.594608307e-06 | G183: 1.064491095e-05 | H183: 3.048594946e-06 | J183: -8.177004177e-05 | K183: -0.006061715256 | L183: 0.0001561858389 | M183: 0.003628879135 | N183: 7.465390271e-07
A184: 89.59869333 | B184: ='DF raw data'!D189 -> 3.3007498e-06 | C184: ='DF raw data'!E189 -> 2.3693995e-06 | D184: ='DF raw data'!F189 -> -3.9387724e-06 | F184: 3.303047122e-06 | G184: 2.375583869e-06 | H184: -3.941513786e-06 | J184: -8.011812185e-05 | K184: -0.006101783931 | L184: 0.0001573739159 | M184: 0.003707584978 | N184: 7.621355007e-07
A185: 90.09881333 | B185: ='DF raw data'!D190 -> -3.8369067e-06 | C185: ='DF raw data'!E190 -> 3.6456315e-06 | D185: ='DF raw data'!F190 -> -8.3726754e-06 | F185: -3.839577187e-06 | G185: 3.655146961e-06 | H185: -8.378502782e-06 | J185: -8.203837119e-05 | K185: -0.006142812961 | L185: 0.000159201928 | M185: 0.003787205046 | N185: 7.781771239e-07
A186: 90.59893333 | B186: ='DF raw data'!D191 -> -7.9183692e-06 | C186: ='DF raw data'!E191 -> 5.141881e-06 | D186: ='DF raw data'!F191 -> -1.1554757e-05 | F186: -7.923880385e-06 | G186: 5.155301821e-06 | H186: -1.156279911e-05 | J186: -8.600126225e-05 | K186: -0.006185823912 | L186: 0.0001617801975 | M186: 0.003868114559 | N186: 7.949656769e-07
A187: 91.09905333 | B187: ='DF raw data'!D192 -> -5.6841268e-06 | C187: ='DF raw data'!E192 -> 1.2220995e-05 | D187: ='DF raw data'!F192 -> -4.1868243e-06 | F187: -5.688082952e-06 | G187: 1.225289301e-05 | H187: -4.18973833e-06 | J187: -8.884598629e-05 | K187: -0.006230257567 | L187: 0.0001679081144 | M187: 0.003952088765 | N187: 8.130133794e-07
A188: 91.59917333 | B188: ='DF raw data'!D193 -> -3.8359026e-06 | C188: ='DF raw data'!E193 -> 2.7412627e-06 | D188: ='DF raw data'!F193 -> 4.4181525e-06 | F188: -3.838572388e-06 | G188: 2.748417669e-06 | H188: 4.421227534e-06 | J188: -9.076573312e-05 | K188: -0.006275651325 | L188: 0.000169282653 | M188: 0.004036750405 | N188: 8.314653243e-07
A189: 92.09929333 | B189: ='DF raw data'!D194 -> -8.2132638e-06 | C189: ='DF raw data'!E194 -> -4.5516008e-06 | D189: ='DF raw data'!F194 -> 5.1312181e-06 | F189: -8.218980232e-06 | G189: -4.563480931e-06 | H189: 5.134789428e-06 | J189: -9.487620951e-05 | K189: -0.006323100815 | L189: 0.000167000365 | M189: 0.004120270628 | N189: 8.499150597e-07
A190: 92.59941333 | B190: ='DF raw data'!D195 -> -1.2055966e-05 | C190: ='DF raw data'!E195 -> -4.8514067e-07 | D190: ='DF raw data'!F195 -> 7.100216e-06 | F190: -1.206435695e-05 | G190: -4.864069354e-07 | H190: 7.10515775e-06 | J190: -0.0001009098357 | K190: -0.006373567842 | L190: 0.0001667571031 | M190: 0.00420366919 | N190: 8.689149817e-07
A191: 93.09953333 | B191: ='DF raw data'!D196 -> -7.804224e-06 | C191: ='DF raw data'!E196 -> 1.826351e-06 | D191: ='DF raw data'!F196 -> 5.6796871e-06 | F191: -7.80965574e-06 | G191: 1.831117958e-06 | H191: 5.683640162e-06 | J191: -0.0001048156007 | K191: -0.006425988221 | L191: 0.0001676728818 | M191: 0.004287525752 | N191: 8.884699265e-07
A192: 93.59965333 | B192: ='DF raw data'!D197 -> -3.8321627e-06 | C192: ='DF raw data'!E197 -> 4.9632235e-06 | D192: ='DF raw data'!F197 -> -4.1554067e-06 | F192: -3.834829885e-06 | G192: 4.976178007e-06 | H192: -4.158298863e-06 | J192: -0.0001067334759 | K192: -0.006479367767 | L192: 0.000170161568 | M192: 0.004372626955 | N192: 9.086482652e-07
A193: 94.09977333 | B193: ='DF raw data'!D198 -> -7.4030572e-06 | C193: ='DF raw data'!E198 -> -1.2024447e-06 | D193: ='DF raw data'!F198 -> -1.0377878e-05 | F193: -7.408209728e-06 | G193: -1.2055832e-06 | H193: -1.0385101e-05 | J193: -0.0001104384697 | K193: -0.006534600254 | L193: 0.0001695586317 | M193: 0.004457426618 | N193: 9.291265714e-07
A194: 94.59989333 | B194: ='DF raw data'!D199 -> -8.7684193e-06 | C194: ='DF raw data'!E199 -> 1.7856565e-06 | D194: ='DF raw data'!F199 -> -9.3811668e-06 | F194: -8.77452212e-06 | G194: 1.790317241e-06 | H194: -9.387696092e-06 | J194: -0.0001148267837 | K194: -0.006592027425 | L194: 0.0001704540052 | M194: 0.004542674075 | N194: 9.502515192e-07
A195: 95.10001333 | B195: ='DF raw data'!D200 -> -2.9303803e-06 | C195: ='DF raw data'!E200 -> 5.8610549e-06 | D195: ='DF raw data'!F200 -> -4.9476639e-06 | F195: -2.932419845e-06 | G195: 5.876352837e-06 | H195: -4.951107474e-06 | J195: -0.0001162933455 | K195: -0.006650188053 | L195: 0.0001733928867 | M195: 0.004629391326 | N195: 9.720513676e-07
A196: 95.60013333 | B196: ='DF raw data'!D201 -> 3.3544172e-06 | C196: ='DF raw data'!E201 -> 3.754509e-06 | D196: ='DF raw data'!F201 -> -6.5954137e-06 | F196: 3.356751874e-06 | G196: 3.764308642e-06 | H196: -6.600004108e-06 | J196: -0.0001146145668 | K196: -0.00670750909 | L196: 0.0001752754928 | M196: 0.004717050105 | N196: 9.939856292e-07
A197: 96.10025333 | B197: ='DF raw data'!D202 -> 6.1056312e-06 | C197: ='DF raw data'!E202 -> 5.4738503e-06 | D197: ='DF raw data'!F202 -> -6.8396021e-06 | F197: 6.109880719e-06 | G197: 5.488137594e-06 | H197: -6.844362463e-06 | J197: -0.0001115588932 | K197: -0.006763301924 | L197: 0.0001780202202 | M197: 0.004806081578 | N197: 1.016059218e-06
A198: 96.60037333 | B198: ='DF raw data'!D203 -> 5.9551717e-06 | C198: ='DF raw data'!E203 -> -6.9902472e-07 | D198: ='DF raw data'!F203 -> 3.3132258e-06 | F198: 5.9593165e-06 | G198: -7.008492441e-07 | H198: 3.315531805e-06 | J198: -0.0001085785199 | K198: -0.006817604213 | L198: 0.0001776697114 | M198: 0.004894937754 | N198: 1.037742332e-06
A199: 97.10049333 | B199: ='DF raw data'!D204 -> 2.4789304e-06 | C199: ='DF raw data'!E204 -> 2.1467115e-06 | D199: ='DF raw data'!F204 -> 7.9397305e-06 | F199: 2.480655736e-06 | G199: =(1-$G$1*($B$2-$G$2))*C199*$M$2/$M$1 -> 2.152314631e-06 | H199: 7.945256552e-06 | J199: -0.0001073378943 | K199: -0.006871286041 | L199: 0.000178746127 | M199: 0.004984332267 | N199: 1.059483349e-06
A200: =A199+$B$1 -> 97.60061333 | B200: ='DF raw data'!D205 -> -1.2843404e-06 | C200: ='DF raw data'!E205 -> -1.6799803e-06 | D200: ='DF raw data'!F205 -> 5.5659493e-06 | F200: -1.285234301e-06 | G200: -1.684365216e-06 | H200: 5.569823201e-06 | J200: =F200*$B$1+J199 -> -0.0001079806657 | K200: =J200*$B$1+K199 -> -0.006925289331 | L200: =G200*$B$1+L199 -> 0.0001779037423 | M200: =L200*$B$1+M199 -> 0.005073305487 | N200: =(J200^2+L200^2)*$B$1+N199 -> 1.081143329e-06
A201: 98.10073333 | B201: ='DF raw data'!D206 -> 1.9624247e-06 | C201: ='DF raw data'!E206 -> 6.6412049e-06 | D201: ='DF raw data'!F206 -> 6.2168419e-06 | F201: 1.963790548e-06 | G201: 6.658539106e-06 | H201: 6.221168822e-06 | J201: -0.0001069985348 | K201: -0.006978801439 | L201: 0.0001812338109 | M201: 0.00516394414 | N201: 1.103295835e-06
... 1002 more rows

Sheet 10 x=0
A1: dz | B1: ='DF raw data'!H7 -> 0.50013 | C1: mm | F1: T_coeff | G1: -0.0008 | H1: /degC | L1: Hallref | M1: ='PI vs x'!B44 -> 0.50555 | N1: T | P1: IBy total | Q1: =L1203*1000 -> 15.83842715 | R1: muTm | X1: DF ref | Y1: 19
A2: Tref | B2: ='DF raw data'!H8 -> 20.91 | C2: degC | F2: Tcorr | G2: 20 | H2: degC | L2: NMRref | M2: ='PI vs x'!B45 -> 0.506517 | N2: T | P2: JBy total | Q2: =M1203 -> 3.585986502 | R2: muTm^2
A3: Encoder | B3: ='DF raw data'!H9 -> 15632212 | P3: PI total | Q3: =N1203 -> 708.7443321 | R3: T^2mm^3
A5: z [mm] | B5: Bx | C5: By | D5: Bz | F5: Bx_corr | G5: By_corr | H5: Bz_corr | J5: Ix | K5: Jx | L5: Iy | M5: Jy | N5: PI
A6: ='PI vs x'!B53 -> 0.5773333333 | B6: ='DF raw data'!G11 -> 3.7988079e-06 | C6: ='DF raw data'!H11 -> -8.0375548e-06 | D6: ='DF raw data'!I11 -> 2.7439876e-07 | F6: =(1-$G$1*($B$2-$G$2))*B6 -> 3.801573432e-06 | G6: =(1-$G$1*($B$2-$G$2))*C6*$M$2/$M$1 -> -8.058791312e-06 | H6: =(1-$G$1*($B$2-$G$2))*D6 -> 2.745985223e-07 | J6: =F6*$B$1 -> 1.901280921e-06 | K6: =J6*$B$1 -> 9.508876268e-07 | L6: =G6*$B$1 -> -4.030443299e-06 | M6: =L6*$B$1 -> -2.015745607e-06 | N6: =(J6^2+L6^2)*$B$1 -> 9.932252877e-12
A7: =A6+$B$1 -> 1.077463333 | B7: ='DF raw data'!G12 -> 3.7914592e-06 | C7: ='DF raw data'!H12 -> -7.5182556e-06 | D7: ='DF raw data'!I12 -> 1.999412e-06 | F7: =(1-$G$1*($B$2-$G$2))*B7 -> 3.794219382e-06 | G7: =(1-$G$1*($B$2-$G$2))*C7*$M$2/$M$1 -> -7.53812004e-06 | H7: 2.000867572e-06 | J7: =F7*$B$1+J6 -> 3.79888386e-06 | K7: =J7*$B$1+K6 -> 2.850823412e-06 | L7: =G7*$B$1+L6 -> -7.800483274e-06 | M7: =L7*$B$1+M6 -> -5.917001307e-06 | N7: =(J7^2+L7^2)*$B$1+N6 -> 4.75815681e-11
A8: =A7+$B$1 -> 1.577593333 | B8: ='DF raw data'!G13 -> 3.4173295e-06 | C8: ='DF raw data'!H13 -> 1.8252454e-06 | D8: ='DF raw data'!I13 -> -3.0577642e-06 | F8: 3.419817316e-06 | G8: 1.830067992e-06 | H8: -3.059990252e-06 | J8: =F8*$B$1+J7 -> 5.509237094e-06 | K8: =J8*$B$1+K7 -> 5.60615816e-06 | L8: =G8*$B$1+L7 -> -6.88521137e-06 | M8: =L8*$B$1+M7 -> -9.360502069e-06 | N8: =(J8^2+L8^2)*$B$1+N7 -> 8.647059111e-11
A9: 2.077723333 | B9: ='DF raw data'!G14 -> 2.9844609e-06 | C9: ='DF raw data'!H14 -> 1.3289845e-05 | D9: ='DF raw data'!I14 -> -4.2693787e-06 | F9: 2.986633588e-06 | G9: 1.332495891e-05 | H9: -4.272486808e-06 | J9: 7.002942151e-06 | K9: 9.108539618e-06 | L9: -2.209996715e-07 | M9: -9.471030635e-06 | N9: 1.110219926e-10
A10: 2.577853333 | B10: ='DF raw data'!G15 -> 3.5575736e-06 | C10: ='DF raw data'!H15 -> -2.1064493e-06 | D10: ='DF raw data'!I15 -> -2.0691725e-06 | F10: 3.560163514e-06 | G10: -2.112014878e-06 | H10: -2.070678858e-06 | J10: 8.783486729e-06 | K10: 1.350142484e-05 | L10: -1.277281672e-06 | M10: -1.010983752e-05 | N10: 1.50422778e-10
A11: 3.077983333 | B11: ='DF raw data'!G16 -> 3.4589189e-06 | C11: ='DF raw data'!H16 -> 2.069019e-06 | D11: ='DF raw data'!I16 -> 6.8480736e-06 | F11: 3.461436993e-06 | G11: 2.074485681e-06 | H11: 6.853058998e-06 | J11: 1.051465521e-05 | K11: 1.876011935e-05 | L11: -2.397691488e-07 | M11: -1.022975326e-05 | N11: 2.057448897e-10
A12: 3.578113333 | B12: ='DF raw data'!G17 -> 3.9290985e-06 | C12: ='DF raw data'!H17 -> -9.9295512e-06 | D12: ='DF raw data'!I17 -> 1.1334619e-05 | F12: 3.931958884e-06 | G12: -9.955786671e-06 | H12: 1.13428706e-05 | J12: 1.248114581e-05 | K12: 2.50023148e-05 | L12: -5.218956736e-06 | M12: -1.283991009e-05 | N12: 2.972769369e-10
A13: 4.078243333 | B13: ='DF raw data'!G18 -> 3.5296048e-06 | C13: ='DF raw data'!H18 -> -1.5635355e-06 | D13: ='DF raw data'!I18 -> -4.1597009e-06 | F13: 3.532174352e-06 | G13: -1.567666612e-06 | H13: -4.162729162e-06 | J13: 1.424769217e-05 | K13: 3.212801308e-05 | L13: -6.002993839e-06 | M13: -1.58421874e-05 | N13: 4.168243447e-10
A14: 4.578373333 | B14: ='DF raw data'!G19 -> 3.5967546e-06 | C14: ='DF raw data'!H19 -> -3.8624871e-06 | D14: ='DF raw data'!I19 -> -6.9549055e-06 | F14: 3.599373037e-06 | G14: -3.872692412e-06 | H14: -6.959968671e-06 | J14: 1.60478466e-05 | K14: 4.015402261e-05 | L14: -7.939843495e-06 | M14: -1.981314133e-05 | N14: 5.771532671e-10
A15: 5.078503333 | B15: ='DF raw data'!G20 -> 3.4791387e-06 | C15: ='DF raw data'!H20 -> -3.1519218e-07 | D15: ='DF raw data'!I20 -> -4.8314319e-06 | F15: 3.481671513e-06 | G15: -3.160249684e-07 | H15: -4.834949182e-06 | J15: 1.778913498e-05 | K15: 4.905090268e-05 | L15: -8.097897062e-06 | M15: -2.386314259e-05 | N15: 7.682175609e-10
A16: 5.578633333 | B16: ='DF raw data'!G21 -> 3.7805162e-06 | C16: ='DF raw data'!H21 -> -7.9502943e-06 | D16: ='DF raw data'!I21 -> -1.284628e-06 | F16: 3.783268416e-06 | G16: -7.971300256e-06 | H16: -1.285563209e-06 | J16: 1.968126101e-05 | K16: 5.889409175e-05 | L16: -1.208458346e-05 | M16: -2.990700531e-05 | N16: 1.034981498e-09
A17: 6.078763333 | B17: ='DF raw data'!G22 -> 3.3475822e-06 | C17: ='DF raw data'!H22 -> 3.2541197e-06 | D17: ='DF raw data'!I22 -> -4.6685086e-06 | F17: 3.35001924e-06 | G17: 3.262717607e-06 | H17: -4.671907274e-06 | J17: 2.135670613e-05 | K17: 6.957522119e-05 | L17: -1.04528005e-05 | M17: -3.513476443e-05 | N17: 1.317739963e-09
A18: 6.578893333 | B18: ='DF raw data'!G23 -> 3.7390651e-06 | C18: ='DF raw data'!H23 -> -6.8962195e-06 | D18: ='DF raw data'!I23 -> -1.4657265e-06 | F18: 3.741787139e-06 | G18: -6.914440421e-06 | H18: -1.466793549e-06 | J18: 2.322808614e-05 | K18: 8.119228391e-05 | L18: -1.391091959e-05 | M18: -4.209203264e-05 | N18: 1.684364096e-09
A19: 7.079023333 | B19: ='DF raw data'!G24 -> 3.9020683e-06 | C19: ='DF raw data'!H24 -> -1.2029567e-05 | D19: ='DF raw data'!I24 -> -6.0421148e-06 | F19: 3.904909006e-06 | G19: -1.206135105e-05 | H19: -6.04651346e-06 | J19: 2.518104828e-05 | K19: 9.378608158e-05 | L19: -1.994316309e-05 | M19: -5.20662068e-05 | N19: 2.200405705e-09
A20: 7.579153333 | B20: ='DF raw data'!G25 -> 3.5114513e-06 | C20: ='DF raw data'!H25 -> -7.1053864e-07 | D20: ='DF raw data'!I25 -> -2.3643363e-06 | F20: 3.514007637e-06 | G20: -7.124159973e-07 | H20: -2.366057537e-06 | J20: 2.693850892e-05 | K20: 0.000107258838 | L20: -2.02994637e-05 | M20: -6.221857758e-05 | N20: 2.769429357e-09
A21: 8.079283333 | B21: ='DF raw data'!G26 -> 3.4240743e-06 | C21: ='DF raw data'!H26 -> 1.8111045e-06 | D21: ='DF raw data'!I26 -> -1.3999664e-06 | F21: 3.426567026e-06 | G21: 1.815889729e-06 | H21: -1.400985576e-06 | J21: 2.865223788e-05 | K21: 0.0001215886818 | L21: -1.939128277e-05 | M21: -7.191673984e-05 | N21: 3.368071255e-09
A22: 8.579413333 | B22: ='DF raw data'!G27 -> -1.5609709e-07 | C22: ='DF raw data'!H27 -> -9.1602133e-06 | D22: ='DF raw data'!I27 -> -8.5689089e-06 | F22: -1.562107287e-07 | G22: -9.184416056e-06 | H22: -8.575147066e-06 | J22: 2.857411221e-05 | K22: 0.0001358794525 | L22: -2.398468478e-05 | M22: -8.391220023e-05 | N22: 4.064124678e-09
A23: 9.079543333 | B23: ='DF raw data'!G28 -> -8.8501465e-06 | C23: ='DF raw data'!H28 -> 8.4273552e-06 | D23: ='DF raw data'!I28 -> -3.6240738e-06 | F23: =(1-$G$1*($B$2-$G$2))*B23 -> -8.856589407e-06 | G23: 8.449621627e-06 | H23: -3.626712126e-06 | J23: 2.414466615e-05 | K23: 0.0001479549244 | L23: -1.975877551e-05 | M23: -9.379415663e-05 | N23: 4.550938273e-09
A24: 9.579673333 | B24: ='DF raw data'!G29 -> -7.0351657e-06 | C24: ='DF raw data'!H29 -> -2.1300671e-06 | D24: ='DF raw data'!I29 -> 3.7430661e-06 | F24: -7.040287301e-06 | G24: -2.13569508e-06 | H24: 3.745791052e-06 | J24: 2.062360726e-05 | K24: 0.0001582694091 | L24: -2.082690069e-05 | M24: -0.0001042103145 | N24: 4.98059644e-09
A25: 10.07980333 | B25: ='DF raw data'!G30 -> 1.2894902e-06 | C25: ='DF raw data'!H30 -> 5.702374e-06 | D25: ='DF raw data'!I30 -> -4.3573013e-06 | F25: 1.290428949e-06 | G25: 5.717440589e-06 | H25: -4.360473415e-06 | J25: 2.126898949e-05 | K25: 0.0001689066688 | L25: -1.796743713e-05 | M25: -0.0001131963688 | N25: 5.368296571e-09
A26: 10.57993333 | B26: ='DF raw data'!G31 -> 6.0046746e-06 | C26: ='DF raw data'!H31 -> 1.0801427e-05 | D26: ='DF raw data'!I31 -> -7.5000514e-07 | F26: 6.009046003e-06 | G26: 1.082996611e-05 | H26: -7.505511437e-07 | J26: 2.427429367e-05 | K26: 0.0001810469713 | L26: -1.255104618e-05 | M26: -0.0001194735235 | N26: 5.741778698e-09
A27: 11.08006333 | B27: ='DF raw data'!G32 -> 4.2573097e-06 | C27: ='DF raw data'!H32 -> 1.283132e-06 | D27: ='DF raw data'!I32 -> 9.5363293e-06 | F27: 4.260409021e-06 | G27: 1.286522241e-06 | H27: 9.543271748e-06 | J27: 2.640505203e-05 | K27: 0.00019425293 | L27: -1.190761781e-05 | M27: -0.0001254288804 | N27: 6.161396838e-09
A28: 11.58019333 | B28: ='DF raw data'!G33 -> -5.2119708e-06 | C28: ='DF raw data'!H33 -> -1.9602171e-06 | D28: ='DF raw data'!I33 -> -8.0537518e-07 | F28: -5.215765115e-06 | G28: -1.965396309e-06 | H28: -8.059614931e-07 | J28: 2.379649143e-05 | K28: 0.0002061542692 | L28: -1.289057147e-05 | M28: -0.0001318758419 | N28: 6.527711974e-09
A29: 12.08032333 | B29: ='DF raw data'!G34 -> -1.2806725e-05 | C29: ='DF raw data'!H34 -> 6.8338363e-06 | D29: ='DF raw data'!I34 -> -1.8594577e-06 | F29: -1.28160483e-05 | G29: 6.851892394e-06 | H29: -1.860811385e-06 | J29: 1.738680119e-05 | K29: 0.0002148499301 | L29: -9.463734525e-06 | M29: -0.0001366089395 | N29: 6.723694479e-09
A30: 12.58045333 | B30: ='DF raw data'!G35 -> -9.1119355e-06 | C30: ='DF raw data'!H35 -> -4.0695681e-06 | D30: ='DF raw data'!I35 -> 2.785019e-06 | F30: -9.118568989e-06 | G30: -4.080320553e-06 | H30: 2.787046494e-06 | J30: 1.282633129e-05 | K30: 0.0002212647632 | L30: -1.150442524e-05 | M30: -0.0001423626477 | N30: 6.872166359e-09
A31: 13.08058333 | B31: ='DF raw data'!G36 -> -2.4901951e-06 | C31: ='DF raw data'!H36 -> -4.263436e-06 | D31: ='DF raw data'!I36 -> 4.1963654e-06 | F31: -2.492007962e-06 | G31: -4.274700683e-06 | H31: 4.199420354e-06 | J31: 1.158000334e-05 | K31: 0.0002270562703 | L31: -1.36423313e-05 | M31: -0.0001491855868 | N31: 7.032312827e-09
A32: 13.58071333 | B32: ='DF raw data'!G37 -> -1.6406761e-06 | C32: ='DF raw data'!H37 -> -7.4679569e-06 | D32: ='DF raw data'!I37 -> 1.2591341e-06 | F32: -1.641870512e-06 | G32: -7.487688443e-06 | H32: 1.26005075e-06 | J32: 1.075885464e-05 | K32: 0.0002324370962 | L32: -1.738714892e-05 | M32: -0.0001578814216 | N32: 7.241400126e-09
A33: 14.08084333 | B33: ='DF raw data'!G38 -> -2.1053843e-06 | C33: ='DF raw data'!H38 -> -2.9179587e-06 | D33: ='DF raw data'!I38 -> -6.7201686e-06 | F33: -2.10691702e-06 | G33: -2.925668416e-06 | H33: -6.725060883e-06 | J33: 9.705122235e-06 | K33: 0.000237290919 | L33: -1.885036346e-05 | M33: -0.0001673090539 | N33: 7.466221364e-09
A34: 14.58097333 | B34: ='DF raw data'!G39 -> -3.3334422e-06 | C34: ='DF raw data'!H39 -> 6.6322764e-07 | D34: ='DF raw data'!I39 -> 2.1985404e-06 | F34: -3.335868946e-06 | G34: 6.649799941e-07 | H34: 2.200140937e-06 | J34: 8.036754099e-06 | K34: 0.0002413103408 | L34: -1.851778702e-05 | M34: -0.0001765703547 | N34: 7.670023265e-09
A35: 15.08110333 | B35: ='DF raw data'!G40 -> -4.4877365e-06 | C35: ='DF raw data'!H40 -> 6.5925983e-06 | D35: ='DF raw data'!I40 -> 4.7051658e-06 | F35: -4.491003572e-06 | G35: 6.610017005e-06 | H35: 4.708591161e-06 | J35: 5.790668482e-06 | K35: 0.0002442064279 | L35: -1.521191921e-05 | M35: -0.0001841782919 | N35: 7.80252487e-09
A36: 15.58123333 | B36: ='DF raw data'!G41 -> -3.4013924e-06 | C36: ='DF raw data'!H41 -> -2.9622547e-06 | D36: ='DF raw data'!I41 -> -7.9104202e-06 | F36: -3.403868614e-06 | G36: -2.970081453e-06 | H36: -7.916178986e-06 | J36: 4.088291673e-06 | K36: 0.0002462511052 | L36: -1.669734605e-05 | M36: -0.0001925291356 | N36: 7.950321034e-09
A37: 16.08136333 | B37: ='DF raw data'!G42 -> -8.8233224e-07 | C37: ='DF raw data'!H42 -> -4.9479145e-06 | D37: ='DF raw data'!I42 -> -1.4432589e-05 | F37: -8.829745779e-07 | G37: -4.960987686e-06 | H37: -1.444309592e-05 | J37: 3.646689597e-06 | K37: 0.0002480749241 | L37: -1.917848482e-05 | M37: -0.0002021208712 | N37: 8.140926891e-09
A38: 16.58149333 | B38: ='DF raw data'!G43 -> 6.6932392e-07 | C38: ='DF raw data'!H43 -> -2.5970671e-06 | D38: ='DF raw data'!I43 -> -4.0367081e-06 | F38: 6.698111878e-07 | G38: -2.603928969e-06 | H38: -4.039646823e-06 | J38: 3.981682266e-06 | K38: 0.0002500662828 | L38: -2.048078782e-05 | M38: -0.0002123639276 | N38: 8.358641714e-09
A39: 17.08162333 | B39: ='DF raw data'!G44 -> -9.051642e-07 | C39: ='DF raw data'!H44 -> -1.0718591e-06 | D39: ='DF raw data'!I44 -> 3.2870651e-07 | F39: -9.058231595e-07 | G39: -1.074691124e-06 | H39: 3.289458083e-07 | J39: 3.52865293e-06 | K39: 0.000251831068 | L39: -2.101827309e-05 | M39: -0.0002228757965 | N39: 8.58581036e-09
A40: 17.58175333 | B40: ='DF raw data'!G45 -> -5.4952267e-07 | C40: ='DF raw data'!H45 -> 9.3027729e-06 | D40: ='DF raw data'!I45 -> -5.5532962e-07 | F40: -5.499227225e-07 | G40: 9.327352322e-06 | H40: -5.557339e-07 | J40: 3.253620078e-06 | K40: 0.000253458301 | L40: -1.635338437e-05 | M40: -0.0002310546146 | N40: 8.724856115e-09
A41: 18.08188333 | B41: ='DF raw data'!G46 -> 5.4462448e-06 | C41: ='DF raw data'!H46 -> 1.3467748e-06 | D41: ='DF raw data'!I46 -> -3.2978271e-06 | F41: 5.450209666e-06 | G41: 1.350333196e-06 | H41: -3.300227918e-06 | J41: 5.979433439e-06 | K41: 0.0002564487951 | L41: -1.567804223e-05 | M41: -0.0002388956739 | N41: 8.865670033e-09
A42: 18.58201333 | B42: ='DF raw data'!G47 -> 6.4237915e-06 | C42: ='DF raw data'!H47 -> -2.0225284e-06 | D42: ='DF raw data'!I47 -> 1.7321951e-06 | F42: 6.42846802e-06 | G42: -2.027872245e-06 | H42: 1.733456138e-06 | J42: 9.19450315e-06 | K42: 0.0002610472419 | L42: -1.669224198e-05 | M42: -0.0002472439649 | N42: 9.04730216e-09
A43: 19.08214333 | B43: ='DF raw data'!G48 -> 5.7212542e-06 | C43: ='DF raw data'!H48 -> 9.9109338e-06 | D43: ='DF raw data'!I48 -> -5.0412777e-06 | F43: 5.725419273e-06 | G43: 9.93712008e-06 | H43: -5.04494775e-06 | J43: 1.205795709e-05 | K43: 0.000267077788 | L43: -1.172239011e-05 | M43: -0.0002531066838 | N43: 9.188743305e-09
A44: 19.58227333 | B44: ='DF raw data'!G49 -> 4.7639346e-06 | C44: ='DF raw data'!H49 -> 1.5438477e-06 | D44: ='DF raw data'!I49 -> 1.0494192e-06 | F44: 4.767402744e-06 | G44: 1.547926794e-06 | H44: 1.050183177e-06 | J44: 1.444227823e-05 | K44: 0.0002743008046 | L44: -1.094822548e-05 | M44: -0.0002585822198 | N44: 9.353007523e-09
A45: 20.08240333 | B45: ='DF raw data'!G50 -> 1.5533528e-06 | C45: ='DF raw data'!H50 -> -2.775721e-06 | D45: ='DF raw data'!I50 -> -3.2485761e-06 | F45: 1.554483641e-06 | G45: -2.783054901e-06 | H45: -3.250941063e-06 | J45: 1.521972213e-05 | K45: 0.0002819126442 | L45: -1.234011473e-05 | M45: -0.0002647538814 | N45: 9.545016619e-09
A46: 20.58253333 | B46: ='DF raw data'!G51 -> 3.9328384e-06 | C46: ='DF raw data'!H51 -> -2.4885899e-06 | D46: ='DF raw data'!I51 -> -8.58974e-06 | F46: 3.935701506e-06 | G46: -2.495165155e-06 | H46: -8.595993331e-06 | J46: 1.718808452e-05 | K46: 0.0002905089209 | L46: -1.358802168e-05 | M46: -0.0002715496587 | N46: 9.785111319e-09
A47: 21.08266333 | B47: ='DF raw data'!G52 -> 7.0481706e-06 | C47: ='DF raw data'!H52 -> 4.4276117e-06 | D47: ='DF raw data'!I52 -> 2.7071517e-06 | F47: 7.053301668e-06 | G47: 4.439310162e-06 | H47: 2.709122506e-06 | J47: 2.071565229e-05 | K47: 0.0003008694401 | L47: -1.136778949e-05 | M47: -0.0002772350313 | N47: 1.006436635e-08
A48: 21.58279333 | B48: ='DF raw data'!G53 -> 2.2481486e-06 | C48: ='DF raw data'!H53 -> -6.720898e-06 | D48: ='DF raw data'!I53 -> 1.0473276e-05 | F48: 2.249785252e-06 | G48: -6.738655693e-06 | H48: 1.048090054e-05 | J48: 2.184083738e-05 | K48: 0.0003117926981 | L48: -1.473799336e-05 | M48: -0.0002846059439 | N48: 1.041157191e-08
A49: 22.08292333 | B49: ='DF raw data'!G54 -> -9.692435e-07 | C49: ='DF raw data'!H54 -> -2.4112028e-06 | D49: ='DF raw data'!I54 -> 3.2613468e-06 | F49: -9.699491093e-07 | G49: -2.417573585e-06 | H49: 3.26372106e-06 | J49: 2.135573674e-05 | K49: 0.0003224733427 | L49: -1.594709444e-05 | M49: -0.0002925815642 | N49: 1.076685292e-08
A50: 22.58305333 | B50: ='DF raw data'!G55 -> 1.4215925e-06 | C50: ='DF raw data'!H55 -> -1.7409961e-06 | D50: ='DF raw data'!I55 -> -2.6695432e-07 | F50: 1.422627419e-06 | G50: -1.745596092e-06 | H50: -2.671486627e-07 | J50: 2.206723539e-05 | K50: 0.0003335098292 | L50: -1.682011941e-05 | M50: -0.0003009938105 | N50: 1.115189265e-08
A51: 23.08318333 | B51: ='DF raw data'!G56 -> 5.2100891e-06 | C51: ='DF raw data'!H56 -> -6.8161621e-06 | D51: ='DF raw data'!I56 -> -1.0199145e-05 | F51: 5.213882045e-06 | G51: -6.834171496e-06 | H51: -1.020656998e-05 | J51: 2.467485421e-05 | K51: 0.000345850464 | L51: -2.02380936e-05 | M51: -0.0003111154883 | N51: 1.166123948e-08
A52: 23.58331333 | B52: ='DF raw data'!G57 -> 8.5897491e-06 | C52: ='DF raw data'!H57 -> 4.7605122e-06 | D52: ='DF raw data'!I57 -> -1.0143113e-05 | F52: 8.596002437e-06 | G52: 4.773090239e-06 | H52: -1.015049719e-05 | J52: 2.897397291e-05 | K52: 0.0003603412171 | L52: -1.785092798e-05 | M52: -0.0003200432729 | N52: 1.22404634e-08
A53: 24.08344333 | B53: ='DF raw data'!G58 -> 3.8497978e-06 | C53: ='DF raw data'!H58 -> -2.1646279e-06 | D53: ='DF raw data'!I58 -> 4.2159304e-06 | F53: 3.852600453e-06 | G53: -2.170347195e-06 | H53: 4.218999597e-06 | J53: 3.090077398e-05 | K53: 0.0003757956212 | L53: -1.893638372e-05 | M53: -0.0003295139265 | N53: 1.289735638e-08
A54: 24.58357333 | B54: ='DF raw data'!G59 -> -1.9445856e-06 | C54: ='DF raw data'!H59 -> -5.2753471e-06 | D54: ='DF raw data'!I59 -> -1.2251979e-06 | F54: -1.946001258e-06 | G54: -5.289285415e-06 | H54: -1.226089844e-06 | J54: 2.992752037e-05 | K54: 0.0003907632719 | L54: -2.158171404e-05 | M54: -0.0003403075891 | N54: 1.35782468e-08
A55: 25.08370333 | B55: ='DF raw data'!G60 -> -3.7704508e-06 | C55: ='DF raw data'!H60 -> 7.626792e-06 | D55: ='DF raw data'!I60 -> -1.280933e-05 | F55: -3.773195688e-06 | G55: 7.646943211e-06 | H55: -1.281865519e-05 | J55: 2.804043201e-05 | K55: 0.0004047871332 | L55: -1.775724833e-05 | M55: -0.0003491885217 | N55: 1.412918285e-08
A56: 25.58383333 | B56: ='DF raw data'!G61 -> -2.2526351e-06 | C56: ='DF raw data'!H61 -> 9.9592353e-06 | D56: ='DF raw data'!I61 -> -8.0842574e-06 | F56: -2.254275018e-06 | G56: 9.985549201e-06 | H56: -8.090142739e-06 | J56: 2.691300144e-05 | K56: 0.0004182471326 | L56: -1.276317561e-05 | M56: -0.0003555717688 | N56: 1.457290234e-08
A57: 26.08396333 | B57: ='DF raw data'!G62 -> 2.4406603e-07 | C57: ='DF raw data'!H62 -> 6.7808637e-06 | D57: ='DF raw data'!I62 -> -4.9709286e-07 | F57: 2.442437101e-07 | G57: 6.798779832e-06 | H57: -4.974547436e-07 | J57: 2.703515505e-05 | K57: 0.0004317682247 | L57: -9.36290185e-06 | M57: -0.0003602544369 | N57: 1.498229052e-08
A58: 26.58409333 | B58: ='DF raw data'!G63 -> -3.2951925e-06 | C58: ='DF raw data'!H63 -> 7.3092365e-06 | D58: ='DF raw data'!I63 -> -3.9497895e-06 | F58: -3.2975914e-06 | G58: 7.328548678e-06 | H58: -3.952664947e-06 | J58: 2.538593066e-05 | K58: 0.0004444644902 | L58: -5.6976748e-06 | M58: -0.000363104015 | N58: 1.5320833e-08
A59: 27.08422333 | B59: ='DF raw data'!G64 -> -4.2136003e-06 | C59: ='DF raw data'!H64 -> 4.1670269e-06 | D59: ='DF raw data'!I64 -> -4.4788899e-06 | F59: -4.216667801e-06 | G59: 4.178036855e-06 | H59: -4.482150532e-06 | J59: 2.32770486e-05 | K59: 0.0004561060405 | L59: -3.608113227e-06 | M59: -0.0003649085406 | N59: 1.559832487e-08
A60: 27.58435333 | B60: ='DF raw data'!G65 -> -1.5442188e-06 | C60: ='DF raw data'!H65 -> -1.8501391e-06 | D60: ='DF raw data'!I65 -> -1.5180334e-06 | F60: -1.545342991e-06 | G60: -1.855027465e-06 | H60: -1.519138528e-06 | J60: 2.250417621e-05 | K60: 0.0004673610542 | L60: -4.535868113e-06 | M60: -0.0003671770643 | N60: 1.58618994e-08
A61: 28.08448333 | B61: ='DF raw data'!G66 -> 7.2539245e-07 | C61: ='DF raw data'!H66 -> -3.0651295e-06 | D61: ='DF raw data'!I66 -> -6.6960581e-07 | F61: 7.259205357e-07 | G61: -3.073228065e-06 | H61: -6.70093283e-07 | J61: 2.286723084e-05 | K61: 0.0004787976423 | L61: -6.072881666e-06 | M61: -0.0003702142947 | N61: 1.614186725e-08
A62: 28.58461333 | B62: ='DF raw data'!G67 -> 2.717656e-07 | C62: ='DF raw data'!H67 -> 2.8964009e-06 | D62: ='DF raw data'!I67 -> -2.6644987e-06 | F62: 2.719634454e-07 | G62: 2.904053657e-06 | H62: -2.666438455e-06 | J62: 2.300324792e-05 | K62: 0.0004903022567 | L62: -4.62047731e-06 | M62: -0.000372525134 | N62: 1.641718792e-08
A63: 29.08474333 | B63: ='DF raw data'!G68 -> -2.7093979e-06 | C63: ='DF raw data'!H68 -> -2.3576954e-06 | D63: ='DF raw data'!I68 -> 2.9084774e-06 | F63: -2.711370342e-06 | G63: -2.36392481e-06 | H63: 2.910594772e-06 | J63: 2.164721027e-05 | K63: 0.000501128676 | L63: -5.802747026e-06 | M63: -0.0003754272618 | N63: 1.666839001e-08
A64: 29.58487333 | B64: ='DF raw data'!G69 -> -5.0752701e-06 | C64: ='DF raw data'!H69 -> -1.1218922e-06 | D64: ='DF raw data'!I69 -> 4.1183598e-06 | F64: -5.078964897e-06 | G64: -1.12485642e-06 | H64: 4.121357966e-06 | J64: 1.910706756e-05 | K64: 0.0005106846937 | L64: -6.365321467e-06 | M64: -0.0003786107501 | N64: 1.687124141e-08
A65: 30.08500333 | B65: ='DF raw data'!G70 -> 8.0175363e-07 | C65: ='DF raw data'!H70 -> 5.9714971e-06 | D65: ='DF raw data'!I70 -> -1.4862884e-06 | F65: 8.023373066e-07 | G65: 5.987274755e-06 | H65: -1.487370418e-06 | J65: 1.950834052e-05 | K65: 0.0005204414 | L65: -3.370905743e-06 | M65: -0.0003802966412 | N65: 1.706726154e-08
A66: 30.58513333 | B66: ='DF raw data'!G71 -> 2.0314604e-07 | C66: ='DF raw data'!H71 -> 2.7524316e-06 | D66: ='DF raw data'!I71 -> -6.7519375e-07 | F66: 2.032939303e-07 | G66: 2.759703967e-06 | H66: -6.75685291e-07 | J66: 1.961001391e-05 | K66: 0.0005302489563 | L66: -1.990694998e-06 | M66: -0.0003812922474 | N66: 1.726156981e-08
A67: 31.08526333 | B67: ='DF raw data'!G72 -> -2.4529495e-06 | C67: ='DF raw data'!H72 -> 5.0636577e-06 | D67: ='DF raw data'!I72 -> 5.1742395e-06 | F67: -2.454735247e-06 | G67: 5.077036698e-06 | H67: 5.178006346e-06 | J67: 1.838232717e-05 | K67: 0.0005394425096 | L67: 5.484833653e-07 | M67: -0.0003810179345 | N67: 1.743071917e-08
A68: 31.58539333 | B68: ='DF raw data'!G73 -> 4.1734296e-07 | C68: ='DF raw data'!H73 -> -9.5578225e-06 | D68: ='DF raw data'!I73 -> 1.5857155e-06 | F68: 4.176467857e-07 | G68: -9.583075804e-06 | H68: 1.586869901e-06 | J68: 1.859120486e-05 | K68: 0.0005487405289 | L68: -4.244300336e-06 | M68: -0.0003831406364 | N68: 1.761258993e-08
A69: 32.08552333 | B69: ='DF raw data'!G74 -> 1.3123877e-06 | C69: ='DF raw data'!H74 -> -4.1745748e-06 | D69: ='DF raw data'!I74 -> 3.5617711e-06 | F69: 1.313343118e-06 | G69: -4.185604698e-06 | H69: 3.564364069e-06 | J69: 1.924804715e-05 | K69: 0.0005583670547 | L69: -6.337646814e-06 | M69: -0.0003863102837 | N69: 1.781796986e-08
A70: 32.58565333 | B70: ='DF raw data'!G75 -> -2.1405635e-06 | C70: ='DF raw data'!H75 -> 6.6218186e-06 | D70: ='DF raw data'!I75 -> 9.5094447e-06 | F70: -2.14212183e-06 | G70: 6.639314509e-06 | H70: 9.516367576e-06 | J70: 1.817670776e-05 | K70: 0.0005674577715 | L70: -3.017126448e-06 | M70: -0.0003878192391 | N70: 1.798776187e-08
A71: 33.08578333 | B71: ='DF raw data'!G76 -> -5.6217455e-06 | C71: ='DF raw data'!H76 -> -3.1697359e-06 | D71: ='DF raw data'!I76 -> 1.0180637e-05 | F71: -5.625838131e-06 | G71: =(1-$G$1*($B$2-$G$2))*C71*$M$2/$M$1 -> -3.178110852e-06 | H71: 1.01880485e-05 | J71: 1.536305734e-05 | K71: 0.0005751412974 | L71: -4.606595029e-06 | M71: -0.0003901231355 | N71: 1.811641744e-08
A72: =A71+$B$1 -> 33.58591333 | B72: ='DF raw data'!G77 -> -1.2534051e-05 | C72: ='DF raw data'!H77 -> 4.0121181e-06 | D72: ='DF raw data'!I77 -> 3.3698313e-06 | F72: -1.254317579e-05 | G72: 4.022718761e-06 | H72: 3.372284537e-06 | J72: =F72*$B$1+J71 -> 9.089838829e-06 | K72: =J72*$B$1+K71 -> 0.0005796873985 | L72: =G72*$B$1+L71 -> -2.594712695e-06 | M72: =L72*$B$1+M71 -> -0.0003914208292 | N72: =(J72^2+L72^2)*$B$1+N71 -> 1.816110791e-08
A73: 34.08604333 | B73: ='DF raw data'!G78 -> -1.3440039e-05 | C73: ='DF raw data'!H78 -> 2.0076427e-06 | D73: ='DF raw data'!I78 -> -7.1375975e-06 | F73: -1.344982335e-05 | G73: 2.012947215e-06 | H73: -7.142793671e-06 | J73: 2.363178677e-06 | K73: 0.000580869295 | L73: -1.587977404e-06 | M73: -0.0003922150243 | N73: 1.816516211e-08
A74: 34.58617333 | B74: ='DF raw data'!G79 -> -4.9964351e-06 | C74: ='DF raw data'!H79 -> -9.7110033e-06 | D74: ='DF raw data'!I79 -> -4.5448464e-06 | F74: -5.000072505e-06 | G74: -9.736661332e-06 | H74: -4.548155048e-06 | J74: -1.375075844e-07 | K74: 0.0005808005234 | L74: -6.457573836e-06 | M74: -0.0003954446507 | N74: 1.818602711e-08
A75: 35.08630333 | B75: ='DF raw data'!G80 -> -6.5532237e-07 | C75: ='DF raw data'!H80 -> -1.4220969e-05 | D75: ='DF raw data'!I80 -> -4.9166188e-06 | F75: -6.557994447e-07 | G75: -1.425854309e-05 | H75: -4.920198098e-06 | J75: -4.654925606e-07 | K75: 0.0005805677166 | L75: -1.358869899e-05 | M75: -0.0004022407667 | N75: 1.827848586e-08
A76: 35.58643333 | B76: ='DF raw data'!G81 -> -9.3433351e-07 | C76: ='DF raw data'!H81 -> -1.454066e-05 | D76: ='DF raw data'!I81 -> -1.1860072e-05 | F76: -9.350137048e-07 | G76: -1.457907876e-05 | H76: -1.186870613e-05 | J76: -9.331209648e-07 | K76: 0.0005801010348 | L76: -2.088013365e-05 | M76: -0.000412683548 | N76: 1.8496968e-08
A77: 36.08656333 | B77: ='DF raw data'!G82 -> 7.7031422e-07 | C77: ='DF raw data'!H82 -> -9.6268059e-06 | D77: ='DF raw data'!I82 -> -3.0448493e-06 | F77: 7.708750088e-07 | G77: -9.652241469e-06 | H77: -3.04706595e-06 | J77: -5.475832467e-07 | K77: 0.000579827172 | L77: -2.570750918e-05 | M77: -0.0004255406445 | N77: 1.882764189e-08
A78: 36.58669333 | B78: ='DF raw data'!G83 -> -2.1033179e-06 | C78: ='DF raw data'!H83 -> 2.4296701e-06 | D78: ='DF raw data'!I83 -> -2.8740099e-06 | F78: -2.104849115e-06 | G78: 2.436089679e-06 | H78: -2.876102179e-06 | J78: -1.600281435e-06 | K78: 0.0005790268232 | L78: -2.448914765e-05 | M78: -0.000437788402 | N78: 1.912885981e-08
A79: 37.08682333 | B79: ='DF raw data'!G84 -> -2.7146075e-06 | C79: ='DF raw data'!H84 -> 1.2346513e-05 | D79: ='DF raw data'!I84 -> -4.1887829e-06 | F79: -2.716583734e-06 | G79: 1.237913447e-05 | H79: -4.191832334e-06 | J79: -2.958926458e-06 | K79: 0.0005775469753 | L79: -1.829797112e-05 | M79: -0.0004469397663 | N79: 1.930068997e-08
A80: 37.58695333 | B80: ='DF raw data'!G85 -> -8.1545164e-07 | C80: ='DF raw data'!H85 -> 6.158562e-06 | D80: ='DF raw data'!I85 -> 6.0318566e-06 | F80: -8.160452888e-07 | G80: 6.174833911e-06 | H80: 6.036247792e-06 | J80: -3.367055188e-06 | K80: 0.00057586301 | L80: -1.520975144e-05 | M80: -0.0004545466192 | N80: 1.942205832e-08
A81: 38.08708333 | B81: ='DF raw data'!G86 -> -8.9147812e-07 | C81: ='DF raw data'!H86 -> -3.108225e-06 | D81: ='DF raw data'!I86 -> 9.4516736e-06 | F81: -8.921271161e-07 | G81: -3.11643743e-06 | H81: 9.458554418e-06 | J81: -3.813234723e-06 | K81: 0.0005739558969 | L81: -1.676837529e-05 | M81: -0.0004629329868 | N81: 1.956995635e-08
A82: 38.58721333 | B82: ='DF raw data'!G87 -> -8.2573257e-07 | C82: ='DF raw data'!H87 -> -4.2738407e-06 | D82: ='DF raw data'!I87 -> 2.7588619e-06 | F82: -8.263337033e-07 | G82: -4.285132874e-06 | H82: 2.760870351e-06 | J82: -4.226508998e-06 | K82: 0.000571842093 | L82: -1.891149879e-05 | M82: -0.0004723911947 | N82: 1.975775924e-08
A83: 39.08734333 | B83: ='DF raw data'!G88 -> -4.6640912e-06 | C83: ='DF raw data'!H88 -> -1.6633398e-06 | D83: ='DF raw data'!I88 -> -1.6570697e-06 | F83: -4.667486658e-06 | G83: -1.667734611e-06 | H83: -1.658276047e-06 | J83: -6.5608591e-06 | K83: 0.0005685608105 | L83: -1.974558291e-05 | M83: -0.000482266553 | N83: 1.997428198e-08
A84: 39.58747333 | B84: ='DF raw data'!G89 -> -7.5520716e-06 | C84: ='DF raw data'!H89 -> -1.2639201e-07 | D84: ='DF raw data'!I89 -> 4.68181e-06 | F84: -7.557569508e-06 | G84: -1.26725958e-07 | H84: 4.685218358e-06 | J84: -1.034062634e-05 | K84: 0.0005633891531 | L84: -1.980896236e-05 | M84: -0.0004921736094 | N84: 2.022400867e-08
A85: 40.08760333 | B85: ='DF raw data'!G90 -> -8.8293227e-06 | C85: ='DF raw data'!H90 -> 5.1779216e-07 | D85: ='DF raw data'!I90 -> 7.6672886e-06 | F85: -8.835750447e-06 | G85: 5.191602501e-07 | H85: 7.672870386e-06 | J85: -1.475965021e-05 | K85: 0.0005560074092 | L85: -1.954931474e-05 | M85: -0.0005019508082 | N85: 2.052409816e-08
A86: 40.58773333 | B86: ='DF raw data'!G91 -> -6.3593966e-06 | C86: ='DF raw data'!H91 -> -7.4999784e-06 | D86: ='DF raw data'!I91 -> 5.9155868e-06 | F86: -6.364026241e-06 | G86: -7.519794549e-06 | H86: 5.919893347e-06 | J86: -1.794249065e-05 | K86: 0.0005470338314 | L86: -2.331018959e-05 | M86: -0.0005136089333 | N86: 2.09568596e-08
A87: 41.08786333 | B87: ='DF raw data'!G92 -> -2.620493e-06 | C87: ='DF raw data'!H92 -> -8.8853039e-07 | D87: ='DF raw data'!I92 -> 1.5932637e-05 | F87: =(1-$G$1*($B$2-$G$2))*B87 -> -2.622400719e-06 | G87: -8.908780301e-07 | H87: 1.594423596e-05 | J87: -1.925403192e-05 | K87: 0.0005374043124 | L87: -2.375574442e-05 | M87: -0.0005254898937 | N87: 2.142450773e-08
A88: 41.58799333 | B88: ='DF raw data'!G93 -> -1.3601953e-06 | C88: ='DF raw data'!H93 -> -2.0135863e-06 | D88: ='DF raw data'!I93 -> 5.6575595e-06 | F88: -1.361185522e-06 | G88: -2.018906519e-06 | H88: 5.661678203e-06 | J88: -1.993480164e-05 | K88: 0.00052743432 | L88: -2.476546014e-05 | M88: -0.0005378758433 | N88: 2.193000129e-08
A89: 42.08812333 | B89: ='DF raw data'!G94 -> 1.1832249e-06 | C89: ='DF raw data'!H94 -> -1.621077e-05 | D89: ='DF raw data'!I94 -> 2.8278816e-06 | F89: 1.184086288e-06 | G89: -1.625360146e-05 | H89: 2.829940298e-06 | J89: -1.934260456e-05 | K89: 0.0005177605032 | L89: -3.289437384e-05 | M89: -0.0005543273065 | N89: 2.265827868e-08
A90: 42.58825333 | B90: ='DF raw data'!G95 -> 5.355339e-06 | C90: ='DF raw data'!H95 -> -7.6813094e-06 | D90: ='DF raw data'!I95 -> 3.0814465e-07 | F90: 5.359237687e-06 | G90: -7.701604654e-06 | H90: 3.083689793e-07 | J90: -1.666228902e-05 | K90: 0.0005094271926 | L90: -3.674617737e-05 | M90: -0.0005727051722 | N90: 2.347244703e-08
A91: 43.08838333 | B91: ='DF raw data'!G96 -> 6.9821558e-06 | C91: ='DF raw data'!H96 -> 2.0050221e-07 | D91: ='DF raw data'!I96 -> -3.9730799e-06 | F91: 6.987238809e-06 | G91: 2.010319691e-07 | H91: -3.975972302e-06 | J91: -1.316776127e-05 | K91: 0.0005028416002 | L91: -3.664563525e-05 | M91: -0.0005910327538 | N91: 2.42307904e-08
A92: 43.58851333 | B92: ='DF raw data'!G97 -> 3.2889088e-06 | C92: ='DF raw data'!H97 -> 9.6274007e-06 | D92: ='DF raw data'!I97 -> -3.1994562e-06 | F92: 3.291303126e-06 | G92: 9.65283784e-06 | H92: -3.201785404e-06 | J92: -1.152168184e-05 | K92: 0.0004970792614 | L92: -3.181796146e-05 | M92: -0.0006069458708 | N92: 2.480350518e-08
A93: 44.08864333 | B93: ='DF raw data'!G98 -> 5.7961137e-07 | C93: ='DF raw data'!H98 -> 1.5922893e-05 | D93: ='DF raw data'!I98 -> 2.2066604e-06 | F93: 5.800333271e-07 | G93: 1.596496384e-05 | H93: 2.208266849e-06 | J93: -1.123158977e-05 | K93: 0.0004914620064 | L93: -2.38334041e-05 | M93: -0.0006188656712 | N93: 2.515068531e-08
A94: 44.58877333 | B94: ='DF raw data'!G99 -> 4.2727274e-06 | C94: ='DF raw data'!H99 -> 1.2082805e-06 | D94: ='DF raw data'!I99 -> 4.7954823e-06 | F94: 4.275837946e-06 | G94: 1.211472971e-06 | H94: 4.798973411e-06 | J94: -9.093114943e-06 | K94: 0.0004869142669 | L94: -2.322751012e-05 | M94: -0.0006304824459 | N94: 2.546186718e-08
A95: 45.08890333 | B95: ='DF raw data'!G100 -> 7.1723857e-06 | C95: ='DF raw data'!H100 -> 1.6013569e-06 | D95: ='DF raw data'!I100 -> 2.0471693e-07 | F95: 7.177607197e-06 | G95: 1.605587942e-06 | H95: 2.048659639e-07 | J95: -5.503378256e-06 | K95: 0.0004841618623 | L95: -2.242450742e-05 | M95: -0.0006416976147 | N95: 2.572850934e-08
A96: 45.58903333 | B96: ='DF raw data'!G101 -> 4.8750749e-06 | C96: ='DF raw data'!H101 -> -4.8792003e-06 | D96: ='DF raw data'!I101 -> -3.9778092e-06 | F96: 4.878623955e-06 | G96: -4.892091932e-06 | H96: -3.980705045e-06 | J96: -3.063432057e-06 | K96: 0.000482629748 | L96: -2.487118936e-05 | M96: -0.0006541364427 | N96: 2.604257131e-08
A97: 46.08916333 | B97: ='DF raw data'!G102 -> -6.9637332e-07 | C97: ='DF raw data'!H102 -> -1.1705605e-05 | D97: ='DF raw data'!I102 -> -7.3009865e-06 | F97: -6.968802798e-07 | G97: -1.173653309e-05 | H97: -7.306301618e-06 | J97: -3.411962792e-06 | K97: 0.0004809233231 | L97: -3.074098165e-05 | M97: -0.0006695109298 | N97: 2.65210204e-08
A98: 46.58929333 | B98: ='DF raw data'!G103 -> -7.1962991e-06 | C98: ='DF raw data'!H103 -> -4.0492828e-06 | D98: ='DF raw data'!I103 -> -1.2157637e-05 | F98: -7.201538006e-06 | G98: -4.059981656e-06 | H98: -1.216648776e-05 | J98: -7.013667994e-06 | K98: 0.0004774155773 | L98: -3.277150028e-05 | M98: -0.0006859009403 | N98: 2.708274779e-08
A99: 47.08942333 | B99: ='DF raw data'!G104 -> -7.3370743e-06 | C99: ='DF raw data'!H104 -> 8.1116696e-06 | D99: ='DF raw data'!I104 -> -7.9416341e-06 | F99: -7.34241569e-06 | G99: 8.133101935e-06 | H99: -7.94741561e-06 | J99: -1.068583035e-05 | K99: 0.000472071273 | L99: -2.870389201e-05 | M99: -0.0007002566178 | N99: 2.755191994e-08
A100: 47.58955333 | B100: ='DF raw data'!G105 -> -5.5112338e-07 | C100: ='DF raw data'!H105 -> 5.5337209e-06 | D100: ='DF raw data'!I105 -> -9.5824571e-06 | F100: -5.515245978e-07 | G100: 5.54834188e-06 | H100: -9.589433129e-06 | J100: -1.096166435e-05 | K100: 0.0004665890158 | L100: -2.592899978e-05 | M100: -0.0007132244884 | N100: 2.794825852e-08
A101: 48.08968333 | B101: ='DF raw data'!G106 -> 1.4347402e-06 | C101: ='DF raw data'!H106 -> 2.5617651e-06 | D101: ='DF raw data'!I106 -> -1.1397387e-05 | F101: 1.435784691e-06 | G101: 2.568533695e-06 | H101: -1.14056843e-05 | J101: -1.024358535e-05 | K101: 0.0004614658914 | L101: -2.464439903e-05 | M101: -0.0007255498917 | N101: 2.830448984e-08
A102: 48.58981333 | B102: ='DF raw data'!G107 -> -3.2187004e-06 | C102: ='DF raw data'!H107 -> 7.1766103e-06 | D102: ='DF raw data'!I107 -> -9.6646536e-06 | F102: -3.221043614e-06 | G102: 7.195572058e-06 | H102: -9.671689468e-06 | J102: -1.18545259e-05 | K102: 0.0004555370874 | L102: -2.104567757e-05 | M102: -0.0007360754665 | N102: 2.859629085e-08
A103: 49.08994333 | B103: ='DF raw data'!G108 -> -6.0230436e-06 | C103: ='DF raw data'!H108 -> 9.3713525e-06 | D103: ='DF raw data'!I108 -> -1.1382682e-05 | F103: -6.027428376e-06 | G103: 9.39611312e-06 | H103: -1.139096859e-05 | J103: -1.486902365e-05 | K103: 0.0004481006426 | L103: -1.634639952e-05 | M103: -0.0007442507912 | N103: 2.884050065e-08
A104: 49.59007333 | B104: ='DF raw data'!G109 -> -2.4279857e-06 | C104: ='DF raw data'!H109 -> -6.2047998e-06 | D104: ='DF raw data'!I109 -> -1.7021224e-06 | F104: -2.429753274e-06 | G104: -6.221193879e-06 | H104: -1.703361545e-06 | J104: -1.608421615e-05 | K104: 0.0004400564436 | L104: -1.945780521e-05 | M104: -0.0007539822234 | N104: 2.915923759e-08
A105: 50.09020333 | B105: ='DF raw data'!G110 -> -1.2007281e-06 | C105: ='DF raw data'!H110 -> -7.8108651e-06 | D105: ='DF raw data'!I110 -> 3.3426047e-06 | F105: -1.20160223e-06 | G105: -7.831502661e-06 | H105: 3.345038116e-06 | J105: -1.668517348e-05 | K105: 0.0004317116878 | L105: -2.337457464e-05 | M105: -0.0007656725494 | N105: 2.957172769e-08
A106: 50.59033333 | B106: ='DF raw data'!G111 -> 2.3957341e-06 | C106: ='DF raw data'!H111 -> 8.9625346e-06 | D106: ='DF raw data'!I111 -> 9.3368008e-06 | F106: 2.397478194e-06 | G106: 8.986215057e-06 | H106: 9.343597991e-06 | J106: -1.548612271e-05 | K106: 0.0004239666132 | L106: -1.88802989e-05 | M106: -0.0007751151533 | N106: 2.986994805e-08
A107: 51.09046333 | B107: ='DF raw data'!G112 -> 4.4766434e-06 | C107: ='DF raw data'!H112 -> 1.4655204e-05 | D107: ='DF raw data'!I112 -> 2.5836277e-06 | F107: 4.479902396e-06 | G107: 1.469392541e-05 | H107: 2.585508581e-06 | J107: -1.324558912e-05 | K107: 0.0004173420967 | L107: -1.153142599e-05 | M107: -0.0007808823654 | N107: 3.002419785e-08
A108: 51.59059333 | B108: ='DF raw data'!G113 -> 1.4406119e-06 | C108: ='DF raw data'!H113 -> 5.5047662e-06 | D108: ='DF raw data'!I113 -> -4.9709286e-07 | F108: 1.441660665e-06 | G108: 5.519310677e-06 | H108: -4.974547436e-07 | J108: -1.252457137e-05 | K108: 0.0004110781828 | L108: -8.771053141e-06 | M108: -0.0007852690322 | N108: 3.014112638e-08
A109: 52.09072333 | B109: ='DF raw data'!G114 -> 1.1211537e-06 | C109: ='DF raw data'!H114 -> -3.7141158e-06 | D109: ='DF raw data'!I114 -> -2.3159512e-06 | F109: 1.1219699e-06 | G109: -3.723929091e-06 | H109: -2.317637212e-06 | J109: -1.196344057e-05 | K109: 0.0004050949073 | L109: -1.06335018e-05 | M109: -0.0007905871654 | N109: 3.026925732e-08
A110: 52.59085333 | B110: ='DF raw data'!G115 -> 3.837989e-06 | C110: ='DF raw data'!H115 -> 7.7580871e-06 | D110: ='DF raw data'!I115 -> 1.48335e-06 | F110: 3.840783056e-06 | G110: 7.778585213e-06 | H110: 1.484429879e-06 | J110: -1.004254974e-05 | K110: 0.0004000723269 | L110: -6.743197975e-06 | M110: -0.000793959641 | N110: 3.03424381e-08
A111: 53.09098333 | B111: ='DF raw data'!G116 -> 6.4122446e-06 | C111: ='DF raw data'!H116 -> 3.0751337e-07 | D111: ='DF raw data'!I116 -> 9.6271115e-06 | F111: 6.416912714e-06 | G111: 3.083258698e-07 | H111: 9.634120037e-06 | J111: -6.833259182e-06 | K111: 0.000396654809 | L111: -6.588994957e-06 | M111: -0.0007972549951 | N111: 3.038750396e-08
A112: 53.59111333 | B112: ='DF raw data'!G117 -> 7.7919549e-06 | C112: ='DF raw data'!H117 -> -4.2423576e-06 | D112: ='DF raw data'!I117 -> 1.4997758e-05 | F112: 7.797627443e-06 | G112: -4.253566591e-06 | H112: 1.500867637e-05 | J112: -2.933431769e-06 | K112: 0.0003951877118 | L112: -8.716331216e-06 | M112: -0.0008016142938 | N112: 3.042980468e-08
A113: 54.09124333 | B113: ='DF raw data'!G118 -> 4.3589694e-06 | C113: ='DF raw data'!H118 -> -4.6658547e-06 | D113: ='DF raw data'!I118 -> 7.1916297e-06 | F113: 4.36214273e-06 | G113: -4.678182638e-06 | H113: 7.196865206e-06 | J113: -7.517933257e-07 | K113: 0.0003948117174 | L113: -1.10560307e-05 | M113: -0.0008071437464 | N113: 3.049122115e-08
A114: 54.59137333 | B114: ='DF raw data'!G119 -> 2.1906758e-06 | C114: ='DF raw data'!H119 -> -1.2272002e-05 | D114: ='DF raw data'!I119 -> 6.024668e-06 | F114: 2.192270612e-06 | G114: -1.23044266e-05 | H114: 6.029053958e-06 | J114: 3.446269755e-07 | K114: 0.0003949840757 | L114: -1.720984358e-05 | M114: -0.0008157509055 | N114: 3.063940841e-08
A115: 55.09150333 | B115: ='DF raw data'!G120 -> 2.6730063e-06 | C115: ='DF raw data'!H120 -> -8.61442e-07 | D115: ='DF raw data'!I120 -> 7.7476225e-06 | F115: 2.674952249e-06 | G115: -8.637180683e-07 | H115: 7.753262769e-06 | J115: 1.682450844e-06 | K115: 0.0003958255198 | L115: -1.764181489e-05 | M115: -0.0008245741064 | N115: 3.079648137e-08
A116: 55.59163333 | B116: ='DF raw data'!G121 -> 2.7077199e-06 | C116: ='DF raw data'!H121 -> 2.0792927e-06 | D116: ='DF raw data'!I121 -> 1.2239821e-05 | F116: 2.70969112e-06 | G116: 2.084786526e-06 | H116: 1.224873159e-05 | J116: 3.037648663e-06 | K116: 0.000397344739 | L116: -1.659915061e-05 | M116: -0.0008328758396 | N116: 3.093889795e-08
A117: 56.09176333 | B117: ='DF raw data'!G122 -> 3.7558871e-06 | C117: ='DF raw data'!H122 -> -3.7114455e-06 | D117: ='DF raw data'!I122 -> 8.4289359e-06 | F117: 3.758621386e-06 | G117: -3.721251736e-06 | H117: 8.435072165e-06 | J117: 4.917447977e-06 | K117: 0.0003998041023 | L117: -1.846026024e-05 | M117: -0.0008421083695 | N117: 3.112142664e-08
A118: 56.59189333 | B118: ='DF raw data'!G123 -> 5.192132e-06 | C118: ='DF raw data'!H123 -> -2.8716545e-06 | D118: ='DF raw data'!I123 -> 7.8495805e-06 | F118: 5.195911872e-06 | G118: -2.879241873e-06 | H118: 7.855294995e-06 | J118: 7.516079382e-06 | K118: 0.0004035631191 | L118: -1.990025548e-05 | M118: -0.0008520610843 | N118: 3.134774128e-08
A119: 57.09202333 | B119: ='DF raw data'!G124 -> 9.7397069e-06 | C119: ='DF raw data'!H124 -> 2.406056e-06 | D119: ='DF raw data'!I124 -> 4.9032319e-06 | F119: 9.746797407e-06 | G119: 2.412413187e-06 | H119: 4.906801453e-06 | J119: 1.239074517e-05 | K119: 0.0004097601024 | L119: -1.869373527e-05 | M119: -0.0008614103821 | N119: 3.159929982e-08
A120: 57.59215333 | B120: ='DF raw data'!G125 -> 7.5678777e-06 | C120: ='DF raw data'!H125 -> 1.0856266e-05 | D120: ='DF raw data'!I125 -> -5.1409729e-06 | F120: 7.573387115e-06 | G120: 1.088495e-05 | H120: -5.144715528e-06 | J120: 1.617842327e-05 | K120: 0.0004178514173 | L120: -1.324984523e-05 | M120: -0.0008680370272 | N120: 3.181800656e-08
A121: 58.09228333 | B121: ='DF raw data'!G126 -> -3.7466875e-06 | C121: ='DF raw data'!H126 -> -4.2178012e-06 | D121: ='DF raw data'!I126 -> -1.7748674e-06 | F121: -3.749415089e-06 | G121: -4.228945309e-06 | H121: -1.776159503e-06 | J121: 1.43032283e-05 | K121: 0.0004250048908 | L121: -1.536486764e-05 | M121: -0.0008757214585 | N121: 3.203839459e-08
A122: 58.59241333 | B122: ='DF raw data'!G127 -> -8.031936e-06 | C122: ='DF raw data'!H127 -> -1.633985e-06 | D122: ='DF raw data'!I127 -> -1.7337821e-07 | F122: -8.037783249e-06 | G122: -1.638302251e-06 | H122: -1.735044293e-07 | J122: 1.028329176e-05 | K122: 0.0004301478735 | L122: -1.618423175e-05 | M122: -0.0008838156783 | N122: 3.222228011e-08
A123: 59.09254333 | B123: ='DF raw data'!G128 -> -9.5755831e-07 | C123: ='DF raw data'!H128 -> -1.0982781e-06 | D123: ='DF raw data'!I128 -> 2.8447837e-06 | F123: -9.582554124e-07 | G123: -1.101179927e-06 | H123: 2.846854703e-06 | J123: 9.804039482e-06 | K123: 0.0004350511678 | L123: -1.673496487e-05 | M123: -0.0008921853363 | N123: 3.241041814e-08
A124: 59.59267333 | B124: ='DF raw data'!G129 -> 8.4879512e-06 | C124: ='DF raw data'!H129 -> -1.75167e-06 | D124: ='DF raw data'!I129 -> -1.0571524e-06 | F124: 8.494130428e-06 | G124: -1.756298194e-06 | H124: -1.057922007e-06 | J124: 1.405220893e-05 | K124: 0.0004420790991 | L124: -1.761334228e-05 | M124: -0.0009009942971 | N124: 3.266433134e-08
A125: 60.09280333 | B125: ='DF raw data'!G130 -> 1.4419312e-05 | C125: ='DF raw data'!H130 -> -7.0613305e-07 | D125: ='DF raw data'!I130 -> -6.5207055e-06 | F125: 1.442980926e-05 | G125: -7.07998767e-07 | H125: -6.525452574e-06 | J125: 2.126898944e-05 | K125: 0.0004527163588 | L125: -1.79674337e-05 | M125: -0.0009099803498 | N125: 3.305203141e-08
A126: 60.59293333 | B126: ='DF raw data'!G131 -> 9.1473057e-06 | C126: ='DF raw data'!H131 -> -1.5870187e-06 | D126: ='DF raw data'!I131 -> 8.7737919e-07 | F126: 9.153964939e-06 | G126: -1.591211859e-06 | H126: 8.780179221e-07 | J126: 2.584716192e-05 | K126: 0.0004656432998 | L126: -1.876324649e-05 | M126: -0.0009193644122 | N126: 3.356223162e-08
A127: 61.09306333 | B127: ='DF raw data'!G132 -> 3.936178e-06 | C127: ='DF raw data'!H132 -> -1.9608865e-06 | D127: ='DF raw data'!I132 -> -2.6549089e-06 | F127: 3.939043538e-06 | G127: -1.966067477e-06 | H127: -2.656841674e-06 | J127: 2.781719577e-05 | K127: 0.000479555514 | L127: -1.974653582e-05 | M127: -0.0009292402472 | N127: 3.414424393e-08
A128: 61.59319333 | B128: ='DF raw data'!G133 -> 4.929077e-06 | C128: ='DF raw data'!H133 -> -6.4053397e-06 | D128: ='DF raw data'!I133 -> -2.2502638e-06 | F128: 4.932665368e-06 | G128: -6.422263637e-06 | H128: -2.251901992e-06 | J128: 3.02841697e-05 | K128: 0.0004947015358 | L128: -2.295850253e-05 | M128: -0.0009407224831 | N128: 3.486654357e-08
A129: 62.09332333 | B129: ='DF raw data'!G134 -> 4.1611215e-06 | C129: ='DF raw data'!H134 -> -6.7335727e-06 | D129: ='DF raw data'!I134 -> -3.6528211e-06 | F129: 4.164150796e-06 | G129: -6.751363882e-06 | H129: -3.655480354e-06 | J129: 3.236678644e-05 | K129: 0.0005108891367 | L129: -2.633506215e-05 | M129: -0.0009538934377 | N129: 3.57373421e-08
A130: 62.59345333 | B130: ='DF raw data'!G135 -> 2.9236558e-06 | C130: ='DF raw data'!H135 -> -4.8743982e-06 | D130: ='DF raw data'!I135 -> -1.2204625e-05 | F130: 2.925784221e-06 | G130: -4.887277144e-06 | H130: -1.221350997e-05 | J130: 3.38300589e-05 | K130: 0.000527808564 | L130: -2.877933607e-05 | M130: -0.000968286847 | N130: 3.672396009e-08
A131: 63.09358333 | B131: ='DF raw data'!G136 -> 4.1212056e-06 | C131: ='DF raw data'!H136 -> -4.7124208e-06 | D131: ='DF raw data'!I136 -> -5.5389023e-06 | F131: 4.124205838e-06 | G131: -4.724871773e-06 | H131: -5.542934621e-06 | J131: 3.589269796e-05 | K131: 0.000545759579 | L131: -3.114238619e-05 | M131: -0.0009838620886 | N131: 3.785332064e-08
A132: 63.59371333 | B132: ='DF raw data'!G137 -> 5.8959426e-06 | C132: ='DF raw data'!H137 -> 2.3582893e-06 | D132: ='DF raw data'!I137 -> 2.8693401e-06 | F132: 5.900234846e-06 | G132: 2.364520279e-06 | H132: 2.87142898e-06 | J132: 3.884358242e-05 | K132: 0.0005651864199 | L132: -2.995981866e-05 | M132: -0.0009988458928 | N132: 3.905684079e-08
A133: 64.09384333 | B133: ='DF raw data'!G138 -> 4.9611785e-06 | C133: ='DF raw data'!H138 -> 1.3283704e-05 | D133: ='DF raw data'!I138 -> -3.9851288e-06 | F133: 4.964790238e-06 | G133: 1.331880168e-05 | H133: -3.988029974e-06 | J133: 4.132662296e-05 | K133: 0.0005858551039 | L133: -2.329868638e-05 | M133: -0.001010498265 | N133: 4.018249266e-08
A134: 64.59397333 | B134: ='DF raw data'!G139 -> 3.3796837e-06 | C134: ='DF raw data'!H139 -> 4.3813111e-06 | D134: ='DF raw data'!I139 -> -3.3615136e-06 | F134: 3.38214411e-06 | G134: 4.392887228e-06 | H134: -3.363960782e-06 | J134: 4.301813469e-05 | K134: 0.0006073697636 | L134: -2.110167169e-05 | M134: -0.001021051844 | N134: 4.133071135e-08
A135: 65.09410333 | B135: ='DF raw data'!G140 -> 3.006689e-06 | C135: ='DF raw data'!H140 -> -3.4784839e-06 | D135: ='DF raw data'!I140 -> 2.5917477e-06 | F135: 3.00887787e-06 | G135: =(1-$G$1*($B$2-$G$2))*C135*$M$2/$M$1 -> -3.487674614e-06 | H135: 2.593634492e-06 | J135: 4.452296478e-05 | K135: 0.0006296370339 | L135: -2.284596239e-05 | M135: -0.001032477795 | N135: 4.258315309e-08
A136: =A135+$B$1 -> 65.59423333 | B136: ='DF raw data'!G141 -> 7.0723894e-07 | C136: ='DF raw data'!H141 -> -4.2660528e-07 | D136: ='DF raw data'!I141 -> 6.618066e-06 | F136: 7.077538099e-07 | G136: -4.277324397e-07 | H136: 6.622883952e-06 | J136: =F136*$B$1+J135 -> 4.487693369e-05 | K136: =J136*$B$1+K135 -> 0.0006520813348 | L136: =G136*$B$1+L135 -> -2.305988422e-05 | M136: =L136*$B$1+M135 -> -0.001044010735 | N136: =(J136^2+L136^2)*$B$1+N135 -> 4.385633275e-08
A137: 66.09436333 | B137: ='DF raw data'!G142 -> -1.8373162e-06 | C137: ='DF raw data'!H142 -> -1.2503894e-05 | D137: ='DF raw data'!I142 -> 7.0709652e-06 | F137: -1.838653766e-06 | G137: -1.25369313e-05 | H137: 7.076112863e-06 | J137: 4.395736779e-05 | K137: 0.0006740657331 | L137: -2.932997967e-05 | M137: -0.001058679538 | N137: 4.525294472e-08
A138: 66.59449333 | B138: ='DF raw data'!G143 -> -1.5420869e-06 | C138: ='DF raw data'!H143 -> -1.5975676e-05 | D138: ='DF raw data'!I143 -> -7.1319607e-07 | F138: -1.543209539e-06 | G138: -1.60178863e-05 | H138: -7.137152767e-07 | J138: 4.31855624e-05 | K138: 0.0006956641285 | L138: -3.734100514e-05 | M138: -0.001077354895 | N138: 4.688304017e-08
A139: 67.09462333 | B139: ='DF raw data'!G144 -> 1.4688499e-06 | C139: ='DF raw data'!H144 -> -4.7361696e-06 | D139: ='DF raw data'!I144 -> -9.5588321e-06 | F139: 1.469919223e-06 | G139: -4.748683322e-06 | H139: -9.56579093e-06 | J139: 4.39207131e-05 | K139: 0.0007176301947 | L139: -3.971596413e-05 | M139: -0.00109721804 | N139: 4.863668942e-08
A140: 67.59475333 | B140: ='DF raw data'!G145 -> 4.7037915e-06 | C140: ='DF raw data'!H145 -> -6.9769462e-06 | D140: ='DF raw data'!I145 -> -9.0882304e-06 | F140: 4.70721586e-06 | G140: -6.995380414e-06 | H140: -9.094846632e-06 | J140: 4.627493297e-05 | K140: 0.0007407736769 | L140: -4.321456374e-05 | M140: -0.001118830939 | N140: 5.064164454e-08
A141: 68.09488333 | B141: ='DF raw data'!G146 -> -1.3918311e-06 | C141: ='DF raw data'!H146 -> -1.329639e-06 | D141: ='DF raw data'!I146 -> -9.5491841e-06 | F141: -1.392844353e-06 | G141: -1.33315212e-06 | H141: -9.556135906e-06 | J141: 4.557832972e-05 | K141: 0.000763568767 | L141: -4.388131311e-05 | M141: -0.001140777301 | N141: 5.264364182e-08
A142: 68.59501333 | B142: ='DF raw data'!G147 -> -6.9674848e-06 | C142: ='DF raw data'!H147 -> -6.3932034e-06 | D142: ='DF raw data'!I147 -> -8.3359037e-06 | F142: -6.972557129e-06 | G142: -6.410095271e-06 | H142: -8.341972238e-06 | J142: 4.209114473e-05 | K142: 0.0007846198112 | L142: -4.708719406e-05 | M142: -0.001164327019 | N142: 5.463859453e-08
A143: 69.09514333 | B143: ='DF raw data'!G148 -> -5.3440658e-06 | C143: ='DF raw data'!H148 -> 4.8416355e-06 | D143: ='DF raw data'!I148 -> 1.5295378e-06 | F143: -5.34795628e-06 | G143: 4.854427879e-06 | H143: 1.530651304e-06 | J143: 3.941647135e-05 | K143: 0.000804333171 | L143: -4.465934904e-05 | M143: -0.001186662499 | N143: 5.641311362e-08
A144: 69.59527333 | B144: ='DF raw data'!G149 -> -7.5516059e-06 | C144: ='DF raw data'!H149 -> 1.5812097e-06 | D144: ='DF raw data'!I149 -> 3.4585471e-06 | F144: -7.557103469e-06 | G144: 1.58538751e-06 | H144: 3.461064922e-06 | J144: 3.563693719e-05 | K144: 0.0008221562724 | L144: -4.386644919e-05 | M144: -0.001208601426 | N144: 5.80106572e-08
A145: 70.09540333 | B145: ='DF raw data'!G150 -> -1.2807933e-05 | C145: ='DF raw data'!H150 -> -6.3043349e-06 | D145: ='DF raw data'!I150 -> 1.5322736e-06 | F145: -1.281725718e-05 | G145: -6.320991966e-06 | H145: 1.533389095e-06 | J145: 2.922664236e-05 | K145: 0.0008367733931 | L145: -4.70277669e-05 | M145: -0.001232121423 | N145: 5.954395949e-08
A146: 70.59553333 | B146: ='DF raw data'!G151 -> -9.7132934e-06 | C146: ='DF raw data'!H151 -> -2.8803274e-06 | D146: ='DF raw data'!I151 -> -7.3048427e-06 | F146: -9.720364678e-06 | G146: -2.887937688e-06 | H146: -7.310160625e-06 | J146: 2.436519638e-05 | K146: 0.0008489591587 | L146: -4.847211117e-05 | M146: -0.00125636378 | N146: 6.101594629e-08
A147: 71.09566333 | B147: ='DF raw data'!G152 -> -2.5225004e-06 | C147: ='DF raw data'!H152 -> -4.5643114e-06 | D147: ='DF raw data'!I152 -> -3.7069979e-06 | F147: -2.52433678e-06 | G147: -4.576371045e-06 | H147: -3.709696594e-06 | J147: 2.310269982e-05 | K147: 0.000860513512 | L147: -5.076089162e-05 | M147: -0.001281750825 | N147: 6.257155207e-08
A148: 71.59579333 | B148: ='DF raw data'!G153 -> 5.0585498e-07 | C148: ='DF raw data'!H153 -> -8.5328365e-06 | D148: ='DF raw data'!I153 -> -4.3787945e-06 | F148: 5.062232424e-07 | G148: -8.555381626e-06 | H148: -4.381982262e-06 | J148: 2.335587725e-05 | K148: 0.0008721944869 | L148: -5.503969464e-05 | M148: -0.001309277828 | N148: 6.43594493e-08
A149: 72.09592333 | B149: ='DF raw data'!G154 -> -2.7072529e-08 | C149: ='DF raw data'!H154 -> 7.5692874e-09 | D149: ='DF raw data'!I154 -> -4.9059013e-06 | F149: -2.70922378e-08 | G149: 7.589286674e-09 | H149: -4.909472796e-06 | J149: 2.334232761e-05 | K149: 0.0008838686852 | L149: -5.503589901e-05 | M149: -0.001336802932 | N149: 6.614682111e-08
A150: 72.59605333 | B150: ='DF raw data'!G155 -> 2.6739449e-06 | C150: ='DF raw data'!H155 -> 2.6835828e-06 | D150: ='DF raw data'!I155 -> -5.1379752e-06 | F150: 2.675891532e-06 | G150: 2.690673257e-06 | H150: -5.141715646e-06 | J150: 2.468062124e-05 | K150: 0.0008962122043 | L150: -5.369021259e-05 | M150: -0.001363655018 | N150: 6.789316104e-08
A151: 73.09618333 | B151: ='DF raw data'!G156 -> 5.1771144e-06 | C151: ='DF raw data'!H156 -> 1.0058707e-06 | D151: ='DF raw data'!I156 -> -7.1841855e-06 | F151: =(1-$G$1*($B$2-$G$2))*B151 -> 5.180883339e-06 | G151: 1.008528372e-06 | H151: -7.189415587e-06 | J151: 2.727173643e-05 | K151: 0.0009098516178 | L151: -5.31858173e-05 | M151: -0.001390254841 | N151: 6.967986485e-08
A152: 73.59631333 | B152: ='DF raw data'!G157 -> 3.4000418e-06 | C152: ='DF raw data'!H157 -> 2.0099092e-06 | D152: ='DF raw data'!I157 -> -3.3579265e-06 | F152: 3.40251703e-06 | G152: 2.015219703e-06 | H152: -3.36037107e-06 | J152: 2.897343727e-05 | K152: 0.000924342103 | L152: -5.217794547e-05 | M152: -0.001416350596 | N152: 7.146132694e-08
A153: 74.09644333 | B153: ='DF raw data'!G158 -> 3.5912831e-06 | C153: ='DF raw data'!H158 -> 2.8098061e-06 | D153: ='DF raw data'!I158 -> 1.9986844e-06 | F153: 3.593897554e-06 | G153: 2.817230059e-06 | H153: 2.000139442e-06 | J153: 3.077085325e-05 | K153: 0.0009397315298 | L153: -5.07689642e-05 | M153: -0.001441741679 | N153: 7.322395167e-08
A154: 74.59657333 | B154: ='DF raw data'!G159 -> 4.9127862e-06 | C154: ='DF raw data'!H159 -> 2.7162737e-06 | D154: ='DF raw data'!I159 -> 5.4440538e-06 | F154: 4.916362708e-06 | G154: 2.723450532e-06 | H154: 5.448017071e-06 | J154: 3.322967374e-05 | K154: 0.0009563506866 | L154: -4.940688488e-05 | M154: -0.001466451544 | N154: 7.499703829e-08
A155: 75.09670333 | B155: ='DF raw data'!G160 -> 7.9263928e-06 | C155: ='DF raw data'!H160 -> -6.9510584e-06 | D155: ='DF raw data'!I160 -> 8.8230502e-07 | F155: 7.932163214e-06 | G155: -6.969424214e-06 | H155: 8.829473381e-07 | J155: 3.719678652e-05 | K155: 0.0009749539154 | L155: -5.289250301e-05 | M155: -0.001492904671 | N155: 7.708819075e-08
A156: 75.59683333 | B156: ='DF raw data'!G161 -> 9.1310148e-06 | C156: ='DF raw data'!H161 -> -1.0463265e-05 | D156: ='DF raw data'!I161 -> -3.5151891e-06 | F156: 9.137662179e-06 | G156: -1.049091063e-05 | H156: -3.517748158e-06 | J156: 4.176680551e-05 | K156: 0.0009958427478 | L156: -5.813932215e-05 | M156: -0.001521981891 | N156: 7.965118037e-08
A157: 76.09696333 | B157: ='DF raw data'!G162 -> 3.2731564e-06 | C157: ='DF raw data'!H162 -> -7.8967942e-06 | D157: ='DF raw data'!I162 -> -1.8926652e-06 | F157: 3.275539258e-06 | G157: -7.9176588e-06 | H157: -1.89404306e-06 | J157: 4.340500096e-05 | K157: 0.001017550891 | L157: -6.209918084e-05 | M157: -0.001553039554 | N157: 8.252207779e-08
A158: 76.59709333 | B158: ='DF raw data'!G163 -> -2.9991629e-06 | C158: ='DF raw data'!H163 -> -6.837779e-06 | D158: ='DF raw data'!I163 -> -3.2158998e-06 | F158: -3.001346291e-06 | G158: -6.855845511e-06 | H158: -3.218240975e-06 | J158: 4.190393764e-05 | K158: 0.001038508307 | L158: -6.552799486e-05 | M158: -0.00158581207 | N158: 8.554779332e-08
A159: 77.09722333 | B159: ='DF raw data'!G164 -> -4.1733497e-06 | C159: ='DF raw data'!H164 -> 1.5487844e-06 | D159: ='DF raw data'!I164 -> -5.9756271e-06 | F159: -4.176387899e-06 | G159: 1.552876537e-06 | H159: -5.979977357e-06 | J159: 3.981520076e-05 | K159: 0.001058421084 | L159: -6.475135471e-05 | M159: -0.001618196165 | N159: 8.843753854e-08
A160: 77.59735333 | B160: ='DF raw data'!G165 -> 2.7366855e-06 | C160: ='DF raw data'!H165 -> 1.5582577e-06 | D160: ='DF raw data'!I165 -> 1.0394366e-06 | F160: 2.738677807e-06 | G160: 1.562374867e-06 | H160: 1.04019331e-06 | J160: 4.118489569e-05 | K160: 0.001079018886 | L160: -6.396996417e-05 | M160: -0.001650189463 | N160: 9.1332467e-08
A161: 78.09748333 | B161: ='DF raw data'!G166 -> 6.0555408e-06 | C161: ='DF raw data'!H166 -> 1.2161315e-05 | D161: ='DF raw data'!I166 -> 2.036614e-06 | F161: 6.059949234e-06 | G161: 1.219344715e-05 | H161: 2.038096655e-06 | J161: 4.42156581e-05 | K161: 0.001101132463 | L161: -5.787165545e-05 | M161: -0.001679132814 | N161: 9.3985233e-08
A162: 78.59761333 | B162: ='DF raw data'!G167 -> 5.7827987e-07 | C162: ='DF raw data'!H167 -> 1.3395917e-05 | D162: ='DF raw data'!I167 -> -5.6089116e-06 | F162: 5.787008577e-07 | G162: 1.343131117e-05 | H162: -5.612994888e-06 | J162: 4.450508376e-05 | K162: 0.00112339079 | L162: -5.11542538e-05 | M162: -0.001704716591 | N162: 9.628456075e-08
A163: 79.09774333 | B163: ='DF raw data'!G168 -> -1.3652011e-06 | C163: ='DF raw data'!H168 -> 6.9040166e-06 | D163: ='DF raw data'!I168 -> 2.3196051e-06 | F163: -1.366194966e-06 | G163: 6.922258122e-06 | H163: 2.321293773e-06 | J163: 4.382180867e-05 | K163: 0.001145307391 | L163: -4.769222484e-05 | M163: -0.001728568904 | N163: 9.83825557e-08
A164: 79.59787333 | B164: ='DF raw data'!G169 -> 1.7761645e-06 | C164: ='DF raw data'!H169 -> 4.41987e-06 | D164: ='DF raw data'!I169 -> 3.6546123e-06 | F164: 1.777457548e-06 | G164: 4.431548007e-06 | H164: 3.657272858e-06 | J164: 4.471076851e-05 | K164: 0.001167668588 | L164: -4.547587474e-05 | M164: -0.001751312753 | N164: 1.004166384e-07
A165: 80.09800333 | B165: ='DF raw data'!G170 -> 4.8084562e-06 | C165: ='DF raw data'!H170 -> -7.7237355e-06 | D165: ='DF raw data'!I170 -> 6.9895691e-06 | F165: 4.811956756e-06 | G165: -7.744142851e-06 | H165: 6.994657506e-06 | J165: 4.711737245e-05 | K165: 0.001191233399 | L165: -4.93489529e-05 | M165: -0.001775993645 | N165: 1.027449266e-07
A166: 80.59813333 | B166: ='DF raw data'!G171 -> 4.3468185e-06 | C166: ='DF raw data'!H171 -> -8.8978932e-06 | D166: ='DF raw data'!I171 -> 5.7014845e-06 | F166: 4.349982984e-06 | G166: -8.921402864e-06 | H166: 5.705635181e-06 | J166: 4.929292944e-05 | K166: 0.001215886272 | L166: -5.381081412e-05 | M166: -0.001802906047 | N166: 1.054083172e-07
A167: 81.09826333 | B167: ='DF raw data'!G172 -> 6.6372593e-08 | C167: ='DF raw data'!H172 -> -6.531563e-06 | D167: ='DF raw data'!I172 -> 3.2641408e-06 | F167: 6.642091225e-08 | G167: -6.54882044e-06 | H167: 3.266517095e-06 | J167: 4.932614853e-05 | K167: 0.001240555759 | L167: -5.708607568e-05 | M167: -0.001831456506 | N167: 1.082550016e-07
A168: 81.59839333 | B168: ='DF raw data'!G173 -> -1.8293082e-07 | C168: ='DF raw data'!H173 -> -6.5516497e-07 | D168: ='DF raw data'!I173 -> 6.0445677e-06 | F168: -1.830639936e-07 | G168: -6.568960212e-07 | H168: 6.048968145e-06 | J168: 4.923459273e-05 | K168: 0.001265179456 | L168: -5.741460909e-05 | M168: -0.001860171275 | N168: 1.111159865e-07
A169: 82.09852333 | B169: ='DF raw data'!G174 -> 5.0807298e-06 | C169: ='DF raw data'!H174 -> 2.3101225e-06 | D169: ='DF raw data'!I174 -> 5.8806529e-07 | F169: 5.084428571e-06 | G169: 2.316226215e-06 | H169: 5.884934015e-07 | J169: 5.177746799e-05 | K169: 0.001291074921 | L169: -5.625619487e-05 | M169: -0.001888306685 | N169: 1.140395793e-07
A170: 82.59865333 | B170: ='DF raw data'!G175 -> 8.8320458e-06 | C170: ='DF raw data'!H175 -> -7.6588922e-06 | D170: ='DF raw data'!I175 -> 1.4956682e-06 | F170: 8.838475529e-06 | G170: -7.679128224e-06 | H170: 1.496757046e-06 | J170: 5.619785476e-05 | K170: 0.001319181154 | L170: -6.009675727e-05 | M170: -0.001918362877 | N170: 1.174253689e-07
A171: 83.09878333 | B171: ='DF raw data'!G176 -> 5.7487573e-06 | C171: ='DF raw data'!H176 -> -4.3446939e-06 | D171: ='DF raw data'!I176 -> 6.719893e-06 | F171: 5.752942395e-06 | G171: -4.35617328e-06 | H171: 6.724785082e-06 | J171: 5.907507384e-05 | K171: 0.001348726371 | L171: -6.227541021e-05 | M171: -0.001949508677 | N171: 1.211103723e-07
A172: 83.59891333 | B172: ='DF raw data'!G177 -> 1.8253572e-06 | C172: ='DF raw data'!H177 -> -1.4349594e-05 | D172: ='DF raw data'!I177 -> 4.0201271e-06 | F172: 1.82668606e-06 | G172: -1.438750793e-05 | H172: 4.023053753e-06 | J172: 5.998865434e-05 | K172: 0.001378728496 | L172: -6.947103456e-05 | M172: -0.001984253226 | N172: 1.253238992e-07
A173: 84.09904333 | B173: ='DF raw data'!G178 -> 1.179958e-06 | C173: ='DF raw data'!H178 -> -1.2578618e-05 | D173: ='DF raw data'!I178 -> -2.3055684e-06 | F173: 1.180817009e-06 | G173: -1.261185273e-05 | H173: -2.307246854e-06 | J173: 6.057921635e-05 | K173: 0.00140902598 | L173: -7.577860046e-05 | M173: -0.002022152377 | N173: 1.300312416e-07
A174: 84.59917333 | B174: ='DF raw data'!G179 -> 5.5458381e-06 | C174: ='DF raw data'!H179 -> -6.8545937e-06 | D174: ='DF raw data'!I179 -> -1.2389713e-06 | F174: 5.54987547e-06 | G174: -6.872704639e-06 | H174: -1.239873271e-06 | J174: 6.335487557e-05 | K174: 0.001440711654 | L174: -7.921584623e-05 | M174: -0.002061770599 | N174: 1.351770745e-07
A175: 85.09930333 | B175: ='DF raw data'!G180 -> 8.6639711e-06 | C175: ='DF raw data'!H180 -> -4.7092194e-06 | D175: ='DF raw data'!I180 -> 9.3774054e-07 | F175: 8.670278471e-06 | G175: -4.721661915e-06 | H175: 9.384232151e-07 | J175: 6.769114194e-05 | K175: 0.001474566025 | L175: -8.157729101e-05 | M175: -0.002102569849 | N175: 1.407970078e-07
A176: 85.59943333 | B176: ='DF raw data'!G181 -> 7.6407023e-06 | C176: ='DF raw data'!H181 -> -5.0365138e-06 | D176: ='DF raw data'!I181 -> -7.2417549e-07 | F176: 7.646264731e-06 | G176: -5.049821079e-06 | H176: -7.247026898e-07 | J176: 7.151526832e-05 | K176: 0.001510332956 | L176: -8.410285802e-05 | M176: -0.002144632212 | N176: 1.468924544e-07
A177: 86.09956333 | B177: ='DF raw data'!G182 -> 6.3143248e-06 | C177: ='DF raw data'!H182 -> -3.1322429e-06 | D177: ='DF raw data'!I182 -> -1.2683225e-06 | F177: 6.318921628e-06 | G177: -3.140518789e-06 | H177: -1.269245839e-06 | J177: 7.46755506e-05 | K177: 0.001547680439 | L177: -8.567352569e-05 | M177: -0.002187480112 | N177: 1.53352329e-07
A178: 86.59969333 | B178: ='DF raw data'!G183 -> 3.3439078e-06 | C178: ='DF raw data'!H183 -> 9.5404057e-06 | D178: ='DF raw data'!I183 -> -6.5119234e-06 | F178: 3.346342165e-06 | G178: 9.565612986e-06 | H178: -6.51666408e-06 | J178: 7.63491567e-05 | K178: 0.001585864943 | L178: -8.088947566e-05 | M178: -0.002227935365 | N178: 1.595400879e-07
A179: 87.09982333 | B179: ='DF raw data'!G184 -> 6.1137412e-06 | C179: ='DF raw data'!H184 -> 1.059128e-05 | D179: ='DF raw data'!I184 -> -1.4517494e-06 | F179: 6.118192004e-06 | G179: 1.061926386e-05 | H179: -1.452806274e-06 | J179: 7.940904807e-05 | K179: 0.00162557979 | L179: -7.557846323e-05 | M179: -0.002265734422 | N179: 1.655506007e-07
A180: 87.59995333 | B180: ='DF raw data'!G185 -> 9.9490289e-06 | C180: ='DF raw data'!H185 -> 6.0396765e-06 | D180: ='DF raw data'!I185 -> 1.7399221e-06 | F180: 9.956271793e-06 | G180: 6.055634296e-06 | H180: 1.741188763e-06 | J180: 8.438847828e-05 | K180: 0.001667784999 | L180: -7.254985885e-05 | M180: -0.002302018783 | N180: 1.717446594e-07
A181: 88.10008333 | B181: ='DF raw data'!G186 -> 9.8414321e-06 | C181: ='DF raw data'!H186 -> -8.4809371e-06 | D181: ='DF raw data'!I186 -> 4.4655758e-06 | F181: 9.848596663e-06 | G181: -8.503345099e-06 | H181: 4.468826739e-06 | J181: 8.931405693e-05 | K181: 0.001712453639 | L181: -7.680263683e-05 | M181: -0.002340430086 | N181: 1.786842861e-07
A182: 88.60021333 | B182: ='DF raw data'!G187 -> 9.3042336e-06 | C182: ='DF raw data'!H187 -> -8.7365779e-06 | D182: ='DF raw data'!I187 -> 7.6533115e-06 | F182: 9.311007082e-06 | G182: -8.759661343e-06 | H182: 7.658883111e-06 | J182: 9.39707709e-05 | K182: 0.00175945124 | L182: -8.118360626e-05 | M182: -0.002381032443 | N182: 1.863969327e-07
A183: 89.10034333 | B183: ='DF raw data'!G188 -> 6.5895961e-06 | C183: ='DF raw data'!H188 -> -2.7761212e-06 | D183: ='DF raw data'!I188 -> 1.2931786e-05 | F183: 6.594393326e-06 | G183: -2.783456159e-06 | H183: 1.294120034e-05 | J183: 9.726882484e-05 | K183: 0.001808098298 | L183: -8.257569619e-05 | M183: -0.002422331026 | N183: 1.945390341e-07
A184: 89.60047333 | B184: ='DF raw data'!G189 -> 3.4481723e-06 | C184: ='DF raw data'!H189 -> -5.8149249e-06 | D184: ='DF raw data'!I189 -> 1.7027924e-05 | F184: 3.450682569e-06 | G184: -5.830288866e-06 | H184: 1.704032033e-05 | J184: 9.899461471e-05 | K184: 0.001857608474 | L184: -8.549159856e-05 | M184: -0.002465087939 | N184: 2.030956318e-07
A185: 90.10060333 | B185: ='DF raw data'!G190 -> 3.1493341e-06 | C185: ='DF raw data'!H190 -> 3.0364257e-07 | D185: ='DF raw data'!I190 -> 6.7439182e-06 | F185: 3.151626815e-06 | G185: 3.044448425e-07 | H185: 6.748827772e-06 | J185: 0.0001005708378 | K185: 0.001907906968 | L185: -8.533933656e-05 | M185: -0.002507768701 | N185: 2.117965413e-07
A186: 90.60073333 | B186: ='DF raw data'!G191 -> 3.5570351e-06 | C186: ='DF raw data'!H191 -> 1.4272267e-05 | D186: ='DF raw data'!I191 -> -1.1968435e-06 | F186: 3.559624622e-06 | G186: 1.430997662e-05 | H186: -1.197714802e-06 | J186: 0.0001023511129 | K186: 0.00195909583 | L186: -7.818248795e-05 | M186: -0.002546870109 | N186: 2.200928237e-07
A187: 91.10086333 | B187: ='DF raw data'!G192 -> 3.4870186e-06 | C187: ='DF raw data'!H192 -> 8.8400475e-06 | D187: ='DF raw data'!I192 -> -2.8932402e-06 | F187: 3.48955715e-06 | G187: 8.863404327e-06 | H187: -2.895346479e-06 | J187: 0.0001040963451 | K187: 0.002011157535 | L187: -7.374963354e-05 | M187: -0.002583754513 | N187: 2.282324682e-07
A188: 91.60099333 | B188: ='DF raw data'!G193 -> 4.7046647e-06 | C188: ='DF raw data'!H193 -> -9.4777124e-07 | D188: ='DF raw data'!I193 -> -1.272448e-06 | F188: 4.708089696e-06 | G188: -9.50275404e-07 | H188: -1.273374342e-06 | J188: 0.000106451002 | K188: 0.002064396874 | L188: -7.422489478e-05 | M188: -0.00262087661 | N188: 2.36655233e-07
A189: 92.10112333 | B189: ='DF raw data'!G194 -> 2.6641296e-06 | C189: ='DF raw data'!H194 -> -4.9493842e-06 | D189: ='DF raw data'!I194 -> 2.242931e-06 | F189: 2.666069086e-06 | G189: -4.962461269e-06 | H189: 2.244563854e-06 | J189: 0.0001077843831 | K189: 0.002118303078 | L189: -7.670677054e-05 | M189: -0.002659239967 | N189: 2.454082091e-07
A190: 92.60125333 | B190: ='DF raw data'!G195 -> -8.6371307e-07 | C190: ='DF raw data'!H195 -> 1.123067e-07 | D190: ='DF raw data'!I195 -> 5.6614813e-06 | F190: -8.643418531e-07 | G190: 1.126034324e-07 | H190: 5.665602858e-06 | J190: 0.0001073520998 | K190: 0.002171993084 | L190: -7.665045418e-05 | M190: -0.002697575159 | N190: 2.541103538e-07
A191: 93.10138333 | B191: ='DF raw data'!G196 -> -4.4205677e-07 | C191: ='DF raw data'!H196 -> 7.1519266e-06 | D191: ='DF raw data'!I196 -> 6.2505574e-06 | F191: -4.423785873e-07 | G191: 7.17082314e-06 | H191: 6.255107806e-06 | J191: 0.000107130853 | K191: 0.002225572437 | L191: -7.30641104e-05 | M191: -0.002734116712 | N191: 2.625202317e-07
A192: 93.60151333 | B192: ='DF raw data'!G197 -> -1.6330756e-07 | C192: ='DF raw data'!H197 -> 9.3335939e-06 | D192: ='DF raw data'!I197 -> 3.3985132e-06 | F192: -1.634264479e-07 | G192: 9.358254756e-06 | H192: 3.400987318e-06 | J192: 0.0001070491186 | K192: 0.002279110913 | L192: -6.838376645e-05 | M192: -0.002768317485 | N192: 2.705902561e-07
A193: 94.10164333 | B193: ='DF raw data'!G198 -> 1.1198804e-06 | C193: ='DF raw data'!H198 -> 4.7164781e-06 | D193: ='DF raw data'!I198 -> 4.7458966e-06 | F193: 1.120695673e-06 | G193: 4.728939793e-06 | H193: 4.749351613e-06 | J193: 0.0001076096121 | K193: 0.002332929708 | L193: -6.601868179e-05 | M193: -0.002801335409 | N193: 2.785614755e-07
A194: 94.60177333 | B194: ='DF raw data'!G199 -> 5.8272576e-06 | C194: ='DF raw data'!H199 -> 2.718009e-06 | D194: ='DF raw data'!I199 -> 2.1593448e-06 | F194: 5.831499844e-06 | G194: 2.725190417e-06 | H194: 2.160916803e-06 | J194: 0.0001105261201 | K194: 0.002388207137 | L194: -6.465573231e-05 | M194: -0.00283367168 | N194: 2.867618005e-07
A195: 95.10190333 | B195: ='DF raw data'!G200 -> 1.0890065e-05 | C195: ='DF raw data'!H200 -> 3.1717923e-06 | D195: ='DF raw data'!I200 -> -9.2723292e-07 | F195: 1.089799297e-05 | G195: 3.180172685e-06 | H195: -9.279079456e-07 | J195: 0.0001159765333 | K195: 0.00244621048 | L195: -6.306523255e-05 | M195: -0.002865212495 | N195: 2.954779561e-07
A196: 95.60203333 | B196: ='DF raw data'!G201 -> 1.0638688e-05 | C196: ='DF raw data'!H201 -> 4.3056557e-06 | D196: ='DF raw data'!I201 -> -1.6565385e-06 | F196: 1.064643296e-05 | G196: 4.317031935e-06 | H196: -1.65774446e-06 | J196: 0.0001213011339 | K196: 0.002506876816 | L196: -6.090615536e-05 | M196: -0.00289567349 | N196: 3.046921135e-07
A197: 96.10216333 | B197: ='DF raw data'!G202 -> 4.1248727e-06 | C197: ='DF raw data'!H202 -> 5.8352657e-06 | D197: ='DF raw data'!I202 -> 4.5952188e-06 | F197: 4.127875607e-06 | G197: 5.85068341e-06 | H197: 4.598564119e-06 | J197: 0.0001233656083 | K197: 0.002568575658 | L197: -5.798005307e-05 | M197: -0.002924671054 | N197: 3.13984909e-07
A198: 96.60229333 | B198: ='DF raw data'!G203 -> -2.6250259e-06 | C198: ='DF raw data'!H203 -> 2.1357323e-06 | D198: ='DF raw data'!I203 -> -8.8630566e-07 | F198: -2.626936919e-06 | G198: 2.141375248e-06 | H198: -8.869508905e-07 | J198: 0.0001220517983 | K198: 0.002629617424 | L198: -5.690908707e-05 | M198: -0.002953132996 | N198: 3.230549094e-07
A199: 97.10242333 | B199: ='DF raw data'!G204 -> -5.6447084e-06 | C199: ='DF raw data'!H204 -> -7.8031235e-06 | D199: ='DF raw data'!I204 -> -6.3546536e-06 | F199: -5.648817748e-06 | G199: =(1-$G$1*($B$2-$G$2))*C199*$M$2/$M$1 -> -7.823740607e-06 | H199: -6.359279788e-06 | J199: 0.0001192266551 | K199: 0.002689246251 | L199: -6.082197446e-05 | M199: -0.00298355189 | N199: 3.320143922e-07
A200: =A199+$B$1 -> 97.60255333 | B200: ='DF raw data'!G205 -> -1.0719e-06 | C200: ='DF raw data'!H205 -> 2.2811678e-06 | D200: ='DF raw data'!I205 -> 1.5785268e-06 | F200: -1.072680343e-06 | G200: 2.287195012e-06 | H200: 1.579675968e-06 | J200: =F200*$B$1+J199 -> 0.0001186901755 | K200: =J200*$B$1+K199 -> 0.002748606768 | L200: =G200*$B$1+L199 -> -5.967807962e-05 | M200: =L200*$B$1+M199 -> -0.003013398688 | N200: =(J200^2+L200^2)*$B$1+N199 -> 3.40841102e-07
A201: 98.10268333 | B201: ='DF raw data'!G206 -> 4.570496e-06 | C201: ='DF raw data'!H206 -> 8.9311789e-06 | D201: ='DF raw data'!I206 -> 4.7433064e-06 | F201: 4.573823321e-06 | G201: 8.95477651e-06 | H201: 4.746759527e-06 | J201: 0.0001209776817 | K201: 0.002809111336 | L201: -5.519952724e-05 | M201: -0.003041005628 | N201: 3.496846944e-07
... 1002 more rows

Sheet 10 x=1
A1: dz | B1: ='DF raw data'!K7 -> 0.50012 | C1: mm | F1: T_coeff | G1: -0.0008 | H1: /degC | L1: Hallref | M1: ='PI vs x'!B44 -> 0.50555 | N1: T | P1: IBy total | Q1: =L1203*1000 -> 14.44379969 | R1: muTm | X1: DF ref | Y1: 20
A2: Tref | B2: ='DF raw data'!K8 -> 20.86 | C2: degC | F2: Tcorr | G2: 20 | H2: degC | L2: NMRref | M2: ='PI vs x'!B45 -> 0.506517 | N2: T | P2: JBy total | Q2: =M1203 -> 3.20993433 | R2: muTm^2
A3: Encoder | B3: ='DF raw data'!K9 -> 15632213 | P3: PI total | Q3: =N1203 -> 708.4858711 | R3: T^2mm^3
A5: z [mm] | B5: Bx | C5: By | D5: Bz | F5: Bx_corr | G5: By_corr | H5: Bz_corr | J5: Ix | K5: Jx | L5: Iy | M5: Jy | N5: PI
A6: ='PI vs x'!B53 -> 0.5773333333 | B6: ='DF raw data'!J11 -> 5.9047029e-06 | C6: ='DF raw data'!K11 -> -1.3389352e-05 | D6: ='DF raw data'!L11 -> 6.3487764e-06 | F6: =(1-$G$1*($B$2-$G$2))*B6 -> 5.908765336e-06 | G6: =(1-$G$1*($B$2-$G$2))*C6*$M$2/$M$1 -> -1.342419222e-05 | H6: =(1-$G$1*($B$2-$G$2))*D6 -> 6.353144358e-06 | J6: =F6*$B$1 -> 2.95509172e-06 | K6: =J6*$B$1 -> 1.477900471e-06 | L6: =G6*$B$1 -> -6.713707014e-06 | M6: =L6*$B$1 -> -3.357659152e-06 | N6: =(J6^2+L6^2)*$B$1 -> 2.690967124e-11
A7: =A6+$B$1 -> 1.077453333 | B7: ='DF raw data'!J12 -> 5.5322466e-06 | C7: ='DF raw data'!K12 -> -4.5895617e-06 | D7: ='DF raw data'!L12 -> -1.1724976e-06 | F7: =(1-$G$1*($B$2-$G$2))*B7 -> 5.536052786e-06 | G7: =(1-$G$1*($B$2-$G$2))*C7*$M$2/$M$1 -> -4.601504126e-06 | H7: -1.173304278e-06 | J7: =F7*$B$1+J6 -> 5.723782439e-06 | K7: =J7*$B$1+K6 -> 4.340478544e-06 | L7: =G7*$B$1+L6 -> -9.015011258e-06 | M7: =L7*$B$1+M6 -> -7.866246582e-06 | N7: =(J7^2+L7^2)*$B$1+N6 -> 8.393941179e-11
A8: =A7+$B$1 -> 1.577573333 | B8: ='DF raw data'!J13 -> 5.5000723e-06 | C8: ='DF raw data'!K13 -> -4.049984e-06 | D8: ='DF raw data'!L13 -> -2.3103701e-06 | F8: 5.50385635e-06 | G8: -4.0605224e-06 | H8: -2.311959635e-06 | J8: =F8*$B$1+J7 -> 8.476371076e-06 | K8: =J8*$B$1+K7 -> 8.579681247e-06 | L8: =G8*$B$1+L7 -> -1.104575972e-05 | M8: =L8*$B$1+M7 -> -1.339045193e-05 | N8: =(J8^2+L8^2)*$B$1+N7 -> 1.808915119e-10
A9: 2.077693333 | B9: ='DF raw data'!J14 -> 6.1057522e-06 | C9: ='DF raw data'!K14 -> -2.0832053e-05 | D9: ='DF raw data'!L14 -> -4.1282315e-06 | F9: 6.109952958e-06 | G9: -2.088625976e-05 | H9: -4.131071723e-06 | J9: 1.153208075e-05 | K9: 1.434710547e-05 | L9: -2.149139595e-05 | M9: -2.413872888e-05 | N9: 4.783973893e-10
A10: 2.577813333 | B10: ='DF raw data'!J15 -> 5.923795e-06 | C10: ='DF raw data'!K15 -> -1.5608242e-05 | D10: ='DF raw data'!L15 -> -3.5219261e-06 | F10: 5.927870571e-06 | G10: -1.564885596e-05 | H10: -3.524349185e-06 | J10: 1.449672738e-05 | K10: 2.159720877e-05 | L10: -2.931770179e-05 | M10: -3.88010979e-05 | N10: 1.013367123e-09
A11: 3.077933333 | B11: ='DF raw data'!J16 -> 5.399344e-06 | C11: ='DF raw data'!K16 -> -8.8508784e-07 | D11: ='DF raw data'!L16 -> -1.1135332e-06 | F11: 5.403058749e-06 | G11: -8.873909131e-07 | H11: -1.114299311e-06 | J11: 1.719890512e-05 | K11: 3.01987252e-05 | L11: -2.976150374e-05 | M11: -5.368542115e-05 | N11: 1.60428363e-09
A12: 3.578053333 | B12: ='DF raw data'!J17 -> 5.3715789e-06 | C12: ='DF raw data'!K17 -> -3.7873212e-07 | D12: ='DF raw data'!L17 -> -2.0835566e-06 | F12: 5.375274546e-06 | G12: -3.797176129e-07 | H12: -2.084990087e-06 | J12: 1.988718743e-05 | K12: 4.014470537e-05 | L12: -2.995140811e-05 | M12: -6.866471937e-05 | N12: 2.250732276e-09
A13: 4.078173333 | B13: ='DF raw data'!J18 -> 5.7689408e-06 | C13: ='DF raw data'!K18 -> -1.092735e-05 | D13: ='DF raw data'!L18 -> -4.119199e-07 | F13: 5.772909831e-06 | G13: -1.095578389e-05 | H13: -4.122033009e-07 | J13: 2.277433509e-05 | K13: 5.153460584e-05 | L13: -3.543061475e-05 | M13: -8.638427842e-05 | N13: 3.137944556e-09
A14: 4.578293333 | B14: ='DF raw data'!J19 -> 5.343079e-06 | C14: ='DF raw data'!K19 -> 7.8715277e-07 | D14: ='DF raw data'!L19 -> -4.3872859e-08 | F14: 5.346755038e-06 | G14: 7.892010078e-07 | H14: -4.390304353e-08 | J14: 2.544835422e-05 | K14: 6.426183675e-05 | L14: -3.503591954e-05 | M14: -0.0001039064425 | N14: 4.075736767e-09
A15: 5.078413333 | B15: ='DF raw data'!J20 -> 5.103911e-06 | C15: ='DF raw data'!K20 -> 6.9099947e-06 | D15: ='DF raw data'!L20 -> -1.9365386e-06 | F15: 5.107422491e-06 | G15: 6.927975088e-06 | H15: -1.937870939e-06 | J15: 2.800267836e-05 | K15: 7.826653625e-05 | L15: -3.157110064e-05 | M15: -0.0001196957813 | N15: 4.966392669e-09
A16: 5.578533333 | B16: ='DF raw data'!J21 -> 5.3598937e-06 | C16: ='DF raw data'!K21 -> 3.6892416e-08 | D16: ='DF raw data'!L21 -> -6.6342795e-07 | F16: 5.363581307e-06 | G16: 3.698841317e-08 | H16: -6.638843884e-07 | J16: 3.068511264e-05 | K16: 9.361277479e-05 | L16: -3.155260199e-05 | M16: -0.0001354758687 | N16: 5.935196541e-09
A17: 6.078653333 | B17: ='DF raw data'!J22 -> 5.6212243e-06 | C17: ='DF raw data'!K22 -> -7.6702599e-06 | D17: ='DF raw data'!L22 -> -4.0813088e-06 | F17: 5.625091702e-06 | G17: -7.690218563e-06 | H17: -4.08411674e-06 | J17: 3.34983335e-05 | K17: 0.0001103659613 | L17: -3.53986341e-05 | M17: -0.0001531794335 | N17: 7.123082387e-09
A18: 6.578773333 | B18: ='DF raw data'!J23 -> 5.382391e-06 | C18: ='DF raw data'!K23 -> -3.3283538e-07 | D18: ='DF raw data'!L23 -> 4.2247237e-07 | F18: 5.386094085e-06 | G18: -3.337014457e-07 | H18: 4.22763031e-07 | J18: 3.619202688e-05 | K18: 0.0001284663178 | L18: -3.556552487e-05 | M18: -0.0001709664638 | N18: 8.410776043e-09
A19: 7.078893333 | B19: ='DF raw data'!J24 -> 5.8507735e-06 | C19: ='DF raw data'!K24 -> -1.4283181e-05 | D19: ='DF raw data'!L24 -> -7.2376338e-06 | F19: 5.854798832e-06 | G19: -1.432034704e-05 | H19: -7.242613292e-06 | J19: 3.912012887e-05 | K19: 0.0001480310767 | L19: -4.272741683e-05 | M19: -0.0001923352995 | N19: 1.008918708e-08
A20: 7.579013333 | B20: ='DF raw data'!J25 -> 5.2723858e-06 | C20: ='DF raw data'!K25 -> 1.0913678e-06 | D20: ='DF raw data'!L25 -> -9.9177041e-06 | F20: 5.276013201e-06 | G20: 1.094207631e-06 | H20: -9.92452748e-06 | J20: 4.175876859e-05 | K20: 0.000168915472 | L20: -4.218018171e-05 | M20: -0.000213430452 | N20: 1.185109108e-08
A21: 8.079133333 | B21: ='DF raw data'!J26 -> 4.9718815e-06 | C21: ='DF raw data'!K26 -> 8.7881162e-06 | D21: ='DF raw data'!L26 -> -1.2398304e-05 | F21: 4.975302154e-06 | G21: 8.810983619e-06 | H21: -1.240683403e-05 | J21: 4.42470167e-05 | K21: 0.00019104429 | L21: -3.777363258e-05 | M21: -0.0002323218011 | N21: 1.354382014e-08
A22: 8.579253333 | B22: ='DF raw data'!J27 -> 3.0868118e-06 | C22: ='DF raw data'!K27 -> -4.6241153e-06 | D22: ='DF raw data'!L27 -> -7.7870418e-06 | F22: 3.088935527e-06 | G22: -4.636147638e-06 | H22: -7.792399285e-06 | J22: 4.579185514e-05 | K22: 0.0002139457126 | L22: -4.009226274e-05 | M22: -0.0002523727436 | N22: 1.539640642e-08
A23: 9.079373333 | B23: ='DF raw data'!J28 -> -4.8895743e-07 | C23: ='DF raw data'!K28 -> 2.3730679e-06 | D23: ='DF raw data'!L28 -> -5.2513265e-06 | F23: =(1-$G$1*($B$2-$G$2))*B23 -> -4.892938327e-07 | G23: 2.379242823e-06 | H23: -5.254939413e-06 | J23: 4.554714951e-05 | K23: 0.000236724753 | L23: -3.890235582e-05 | M23: -0.0002718285898 | N23: 1.719080503e-08
A24: 9.579493333 | B24: ='DF raw data'!J29 -> 2.7268993e-06 | C24: ='DF raw data'!K29 -> -5.0877757e-06 | D24: ='DF raw data'!L29 -> -2.1600924e-06 | F24: 2.728775407e-06 | G24: -5.101014521e-06 | H24: -2.161578544e-06 | J24: 4.691186466e-05 | K24: 0.0002601863148 | L24: -4.14534752e-05 | M24: -0.0002925603018 | N24: 1.915083215e-08
A25: 10.07961333 | B25: ='DF raw data'!J30 -> 5.1501715e-06 | C25: ='DF raw data'!K30 -> 3.7188145e-06 | D25: ='DF raw data'!L30 -> -3.7028865e-06 | F25: 5.153714818e-06 | G25: 3.728491169e-06 | H25: -3.705434086e-06 | J25: 4.948934052e-05 | K25: 0.0002849369238 | L25: -3.95887822e-05 | M25: -0.0003123594435 | N25: 2.115954737e-08
A26: 10.57973333 | B26: ='DF raw data'!J31 -> 3.5097996e-06 | C26: ='DF raw data'!K31 -> 2.5231745e-06 | D26: ='DF raw data'!L31 -> -8.8731645e-07 | F26: 3.512214342e-06 | G26: 2.529740013e-06 | H26: -8.879269237e-07 | J26: 5.124586916e-05 | K26: 0.0003105660078 | L26: -3.832360862e-05 | M26: -0.0003315258467 | N26: 2.32074578e-08
A27: 11.07985333 | B27: ='DF raw data'!J32 -> 6.9724922e-07 | C27: ='DF raw data'!K32 -> -7.3918022e-06 | D27: ='DF raw data'!L32 -> 1.0412925e-06 | F27: 6.977289275e-07 | G27: -7.411036292e-06 | H27: 1.042008909e-06 | J27: 5.159481735e-05 | K27: 0.0003363696079 | L27: -4.203001609e-05 | M27: -0.0003525458983 | N27: 2.542226294e-08
A28: 11.57997333 | B28: ='DF raw data'!J33 -> 5.9211891e-07 | C28: ='DF raw data'!K33 -> 7.797953e-06 | D28: ='DF raw data'!L33 -> -2.1700096e-06 | F28: 5.925262878e-07 | G28: 7.818243931e-06 | H28: -2.171502567e-06 | J28: 5.189115159e-05 | K28: 0.0003623214106 | L28: -3.811995594e-05 | M28: -0.0003716104507 | N28: 2.749567176e-08
A29: 12.08009333 | B29: ='DF raw data'!J34 -> -2.1788438e-07 | C29: ='DF raw data'!K34 -> -1.0539476e-05 | D29: ='DF raw data'!L34 -> -2.1216244e-06 | F29: -2.180342845e-07 | G29: -1.05669006e-05 | H29: -2.123084078e-06 | J29: 5.178210829e-05 | K29: 0.0003882186786 | L29: -4.340467427e-05 | M29: -0.0003933179964 | N29: 2.977889585e-08
A30: 12.58021333 | B30: ='DF raw data'!J35 -> -8.5968202e-07 | C30: ='DF raw data'!K35 -> -6.4696837e-06 | D30: ='DF raw data'!L35 -> -6.3136672e-06 | F30: -8.602734812e-07 | G30: -6.486518362e-06 | H30: -6.318011003e-06 | J30: 5.135186831e-05 | K30: 0.000413900775 | L30: -4.664871183e-05 | M30: -0.0004166479501 | N30: 3.218603177e-08
A31: 13.08033333 | B31: ='DF raw data'!J36 -> 6.3378407e-06 | C31: ='DF raw data'!K36 -> -1.1591688e-05 | D31: ='DF raw data'!L36 -> -4.9345967e-06 | F31: 6.342201134e-06 | G31: -1.162185055e-05 | H31: -4.937991703e-06 | J31: 5.452372995e-05 | K31: 0.0004411691828 | L31: -5.246103173e-05 | M31: -0.0004428847613 | N31: 3.504921726e-08
A32: 13.58045333 | B32: ='DF raw data'!J37 -> 1.0327329e-05 | C32: ='DF raw data'!K37 -> 3.5053306e-06 | D32: ='DF raw data'!L37 -> 3.1164466e-06 | F32: 1.03344342e-05 | G32: 3.514451766e-06 | H32: 3.118590715e-06 | J32: 5.969218718e-05 | K32: 0.0004710224395 | L32: -5.070338411e-05 | M32: -0.0004682425378 | N32: 3.811694852e-08
A33: 14.08057333 | B33: ='DF raw data'!J38 -> 2.2914915e-06 | C33: ='DF raw data'!K38 -> 2.9061118e-06 | D33: ='DF raw data'!L38 -> 1.2240876e-05 | F33: 2.293068046e-06 | G33: 2.913673748e-06 | H33: 1.224929772e-05 | J33: 6.083899637e-05 | K33: 0.0005014492383 | L33: -4.924619759e-05 | M33: -0.0004928715461 | N33: 4.118096944e-08
A34: 14.58069333 | B34: ='DF raw data'!J39 -> -5.6950144e-06 | C34: ='DF raw data'!K39 -> -1.1512962e-05 | D34: ='DF raw data'!L39 -> -4.8725519e-07 | F34: -5.69893257e-06 | G34: -1.15429197e-05 | H34: -4.875904216e-07 | J34: 5.798884621e-05 | K34: 0.0005304506201 | L34: -5.501904259e-05 | M34: -0.0005203876697 | N34: 4.437663688e-08
A35: 15.08081333 | B35: ='DF raw data'!J40 -> -7.9705696e-06 | C35: ='DF raw data'!K40 -> -2.991372e-06 | D35: ='DF raw data'!L40 -> -1.0985698e-05 | F35: -7.976053352e-06 | G35: -2.999155802e-06 | H35: -1.099325616e-05 | J35: 5.399986241e-05 | K35: 0.0005574570313 | L35: -5.651898039e-05 | M35: -0.0005486539422 | N35: 4.743256027e-08
A36: 15.58093333 | B36: ='DF raw data'!J41 -> -7.0319425e-06 | C36: ='DF raw data'!K41 -> -4.1088822e-07 | D36: ='DF raw data'!L41 -> -9.4305933e-06 | F36: -7.036780476e-06 | G36: -4.119573858e-07 | H36: -9.437081548e-06 | J36: 5.048062776e-05 | K36: 0.0005827034029 | L36: -5.672500852e-05 | M36: -0.0005770232534 | N36: 5.031626238e-08
A37: 16.08105333 | B37: ='DF raw data'!J42 -> -6.8641953e-06 | C37: ='DF raw data'!K42 -> -3.9753982e-06 | D37: ='DF raw data'!L42 -> -7.8690346e-06 | F37: -6.868917866e-06 | G37: -3.985742521e-06 | H37: -7.874448496e-06 | J37: 4.704534456e-05 | K37: 0.0006062317206 | L37: -5.871835807e-05 | M37: -0.0006063894787 | N37: 5.314749672e-08
A38: 16.58117333 | B38: ='DF raw data'!J43 -> -1.1210524e-05 | C38: ='DF raw data'!K43 -> 1.3078999e-05 | D38: ='DF raw data'!L43 -> -4.6511473e-06 | F38: -1.121823684e-05 | G38: 1.311303166e-05 | H38: -4.654347289e-06 | J38: 4.143487995e-05 | K38: 0.0006269541327 | L38: -5.216026868e-05 | M38: -0.0006324758723 | N38: 5.536680068e-08
A39: 17.08129333 | B39: ='DF raw data'!J44 -> -1.189477e-05 | C39: ='DF raw data'!K44 -> 3.5791161e-06 | D39: ='DF raw data'!L44 -> 5.489966e-06 | F39: -1.19029536e-05 | G39: 3.588429262e-06 | H39: 5.493743097e-06 | J39: 3.548197479e-05 | K39: 0.000644699378 | L39: -5.036562344e-05 | M39: -0.0006576647279 | N39: 5.726508944e-08
A40: 17.58141333 | B40: ='DF raw data'!J45 -> -9.7488428e-06 | C40: ='DF raw data'!K45 -> -1.0389307e-06 | D40: ='DF raw data'!L45 -> 7.9061438e-06 | F40: -9.755550004e-06 | G40: -1.041634085e-06 | H40: 7.911583227e-06 | J40: 3.060302912e-05 | K40: 0.0006600045649 | L40: -5.088656547e-05 | M40: -0.000683114117 | N40: 5.902850652e-08
A41: 18.08153333 | B41: ='DF raw data'!J46 -> -8.8138167e-06 | C41: ='DF raw data'!K46 -> 8.0818827e-06 | D41: ='DF raw data'!L46 -> 4.7952067e-06 | F41: -8.819880606e-06 | G41: 8.10291244e-06 | H41: 4.798505802e-06 | J41: 2.619203044e-05 | K41: 0.0006731037232 | L41: -4.68341369e-05 | M41: -0.0007065368055 | N41: 6.046858148e-08
A42: 18.58165333 | B42: ='DF raw data'!J47 -> -9.3978724e-06 | C42: ='DF raw data'!K47 -> 3.5432238e-06 | D42: ='DF raw data'!L47 -> -2.7887643e-06 | F42: -9.404338136e-06 | G42: 3.552443567e-06 | H42: -2.79068297e-06 | J42: 2.148873285e-05 | K42: 0.0006838506682 | L42: -4.505748883e-05 | M42: -0.0007290709568 | N42: 6.171485198e-08
A43: 19.08177333 | B43: ='DF raw data'!J48 -> -1.2001101e-05 | C43: ='DF raw data'!K48 -> 4.705322e-07 | D43: ='DF raw data'!L48 -> -2.9931532e-06 | F43: -1.200935776e-05 | G43: 4.717565644e-07 | H43: -2.995212489e-06 | J43: 1.548261285e-05 | K43: 0.0006915938326 | L43: -4.482155393e-05 | M43: -0.0007514871124 | N43: 6.283946332e-08
A44: 19.58189333 | B44: ='DF raw data'!J49 -> -7.1681775e-06 | C44: ='DF raw data'!K49 -> -3.0346021e-06 | D44: ='DF raw data'!L49 -> 8.5989022e-06 | F44: -7.173109206e-06 | G44: -3.04249839e-06 | H44: 8.604818245e-06 | J44: 1.189519747e-05 | K44: 0.0006975428587 | L44: -4.634316823e-05 | M44: -0.0007746642577 | N44: 6.398433051e-08
A45: 20.08201333 | B45: ='DF raw data'!J50 -> -6.2773177e-07 | C45: ='DF raw data'!K50 -> -5.8300325e-06 | D45: ='DF raw data'!L50 -> 6.7532906e-06 | F45: -6.281636495e-07 | G45: -5.845202736e-06 | H45: 6.757936864e-06 | J45: 1.158104026e-05 | K45: 0.0007033347686 | L45: -4.926647102e-05 | M45: -0.0007993034052 | N45: 6.526529069e-08
A46: 20.58213333 | B46: ='DF raw data'!J51 -> -2.4924434e-06 | C46: ='DF raw data'!K51 -> -9.4625902e-06 | D46: ='DF raw data'!L51 -> 6.3823841e-06 | F46: -2.494158201e-06 | G46: -9.487212657e-06 | H46: 6.38677518e-06 | J46: 1.033366187e-05 | K46: 0.0007085028395 | L46: -5.401121582e-05 | M46: -0.0008263154944 | N46: 6.677765157e-08
A47: 21.08225333 | B47: ='DF raw data'!J52 -> -8.0783047e-06 | C47: ='DF raw data'!K52 -> 2.2500496e-06 | D47: ='DF raw data'!L52 -> 4.7209337e-06 | F47: -8.083862574e-06 | G47: 2.255904419e-06 | H47: 4.724181702e-06 | J47: 6.290760515e-06 | K47: 0.0007116489747 | L47: -5.28829929e-05 | M47: -0.0008527633368 | N47: 6.819608422e-08
A48: 21.58237333 | B48: ='DF raw data'!J53 -> -8.639463e-06 | C48: ='DF raw data'!K53 -> -1.1457323e-05 | D48: ='DF raw data'!L53 -> 8.5565125e-06 | F48: -8.645406951e-06 | G48: -1.148713592e-05 | H48: 8.562399381e-06 | J48: 1.967019591e-06 | K48: 0.0007126327205 | L48: -5.862793931e-05 | M48: -0.0008820843418 | N48: 6.991704937e-08
A49: 22.08249333 | B49: ='DF raw data'!J54 -> -2.8838608e-06 | C49: ='DF raw data'!K54 -> -8.0850841e-06 | D49: ='DF raw data'!L54 -> 6.5370564e-06 | F49: -2.885844896e-06 | G49: -8.10612217e-06 | H49: 6.541553895e-06 | J49: 5.237508415e-07 | K49: 0.0007128946588 | L49: -6.268197313e-05 | M49: -0.0009134328502 | N49: 7.188217292e-08
A50: 22.58261333 | B50: ='DF raw data'!J55 -> 4.0408645e-06 | C50: ='DF raw data'!K55 -> -4.6904356e-06 | D50: ='DF raw data'!L55 -> 3.694536e-06 | F50: 4.043644615e-06 | G50: -4.702640509e-06 | H50: 3.697077841e-06 | J50: 2.546058386e-06 | K50: 0.0007141679935 | L50: -6.503385771e-05 | M50: -0.0009459575832 | N50: 7.400062376e-08
A51: 23.08273333 | B51: ='DF raw data'!J56 -> 9.4946899e-06 | C51: ='DF raw data'!K56 -> 1.2121196e-06 | D51: ='DF raw data'!L56 -> -9.0115532e-07 | F51: 9.501222247e-06 | G51: 1.215273637e-06 | H51: -9.017753149e-07 | J51: 7.297809656e-06 | K51: 0.0007178177741 | L51: -6.442607505e-05 | M51: -0.0009781783518 | N51: 7.610311682e-08
A52: 23.58285333 | B52: ='DF raw data'!J57 -> 7.5444709e-06 | C52: ='DF raw data'!K57 -> 6.3629409e-06 | D52: ='DF raw data'!L57 -> -3.2191008e-06 | F52: 7.549661496e-06 | G52: 6.379497808e-06 | H52: -3.221315541e-06 | J52: 1.107354636e-05 | K52: 0.0007233558761 | L52: -6.123556061e-05 | M52: -0.00100880348 | N52: 7.803979017e-08
A53: 24.08297333 | B53: ='DF raw data'!J58 -> -1.7609331e-06 | C53: ='DF raw data'!K58 -> 9.135827e-06 | D53: ='DF raw data'!L58 -> 1.6907882e-06 | F53: -1.762144622e-06 | G53: 9.159599192e-06 | H53: 1.691951462e-06 | J53: 1.01922626e-05 | K53: 0.0007284532305 | L53: -5.665466186e-05 | M53: -0.00103713761 | N53: 7.969700427e-08
A54: 24.58309333 | B54: ='DF raw data'!J59 -> -4.258231e-06 | C54: ='DF raw data'!K59 -> -3.235142e-06 | D54: ='DF raw data'!L59 -> 4.1223479e-06 | F54: -4.261160663e-06 | G54: -3.243560112e-06 | H54: 4.125184075e-06 | J54: 8.061170924e-06 | K54: 0.0007324847833 | L54: -5.827683115e-05 | M54: -0.001066283019 | N54: 8.142800537e-08
A55: 25.08321333 | B55: ='DF raw data'!J60 -> -1.8769482e-06 | C55: ='DF raw data'!K60 -> -5.0922642e-07 | D55: ='DF raw data'!L60 -> 4.7206645e-06 | F55: -1.87823954e-06 | G55: -5.105514701e-07 | H55: 4.723912317e-06 | J55: 7.121825766e-06 | K55: 0.0007360465508 | L55: -5.853216815e-05 | M55: -0.001095556127 | N55: 8.316679013e-08
A56: 25.58333333 | B56: ='DF raw data'!J61 -> -1.8540508e-06 | C56: ='DF raw data'!K61 -> 6.6911739e-06 | D56: ='DF raw data'!L61 -> -3.8969579e-06 | F56: -1.855326387e-06 | G56: 6.708584898e-06 | H56: -3.899639007e-06 | J56: 6.193939933e-06 | K56: 0.000739144264 | L56: -5.517707067e-05 | M56: -0.001123151283 | N56: 8.470859709e-08
A57: 26.08345333 | B57: ='DF raw data'!J62 -> -6.4653709e-06 | C57: ='DF raw data'!K62 -> 3.1414745e-06 | D57: ='DF raw data'!L62 -> 2.1694839e-07 | F57: -6.469819075e-06 | G57: 3.149648881e-06 | H57: 2.170976505e-07 | J57: 2.958254017e-06 | K57: 0.000740623746 | L57: -5.360186827e-05 | M57: -0.00114995865 | N57: 8.614989869e-08
A58: 26.58357333 | B58: ='DF raw data'!J63 -> -1.0818103e-05 | C58: ='DF raw data'!K63 -> 6.4371818e-07 | D58: ='DF raw data'!L63 -> 5.0775939e-06 | F58: -1.082554585e-05 | G58: 6.453931889e-07 | H58: 5.081087285e-06 | J58: -2.455817976e-06 | K58: 0.0007393955423 | L58: -5.327909423e-05 | M58: -0.00117660459 | N58: 8.757258652e-08
A59: 27.08369333 | B59: ='DF raw data'!J64 -> -7.1772506e-06 | C59: ='DF raw data'!K64 -> -1.8385584e-06 | D59: ='DF raw data'!L64 -> 1.5499632e-05 | F59: -7.182188548e-06 | G59: -1.843342484e-06 | H59: 1.551029575e-05 | J59: -6.047774113e-06 | K59: 0.0007363709295 | L59: -5.420098667e-05 | M59: -0.001203711588 | N59: 8.90601047e-08
A60: 27.58381333 | B60: ='DF raw data'!J65 -> 2.1157902e-07 | C60: ='DF raw data'!K65 -> -8.2758231e-07 | D60: ='DF raw data'!L65 -> 9.6528538e-06 | F60: 2.117245864e-07 | G60: -8.297357489e-07 | H60: 9.659494963e-06 | J60: -5.941886413e-06 | K60: 0.0007333992733 | L60: -5.461595411e-05 | M60: -0.001231026119 | N60: 9.056957111e-08
A61: 28.08393333 | B61: ='DF raw data'!J66 -> 4.682393e-06 | C61: ='DF raw data'!K66 -> 5.9118242e-06 | D61: ='DF raw data'!L66 -> 1.2165267e-06 | F61: 4.685614486e-06 | G61: 5.927207265e-06 | H61: 1.21736367e-06 | J61: -3.598516896e-06 | K61: 0.000731599583 | L61: -5.165163922e-05 | M61: -0.001256858136 | N61: 9.191031339e-08
A62: 28.58405333 | B62: ='DF raw data'!J67 -> 7.3675196e-06 | C62: ='DF raw data'!K67 -> -2.4483924e-08 | D62: ='DF raw data'!L67 -> 6.4100109e-06 | F62: 7.372588453e-06 | G62: -2.454763323e-08 | H62: 6.414420987e-06 | J62: 8.86620417e-08 | K62: 0.0007316439247 | L62: -5.166391598e-05 | M62: -0.001282696294 | N62: 9.324521773e-08
A63: 29.08417333 | B63: ='DF raw data'!J68 -> 6.0743855e-06 | C63: ='DF raw data'!K68 -> -2.8169818e-06 | D63: ='DF raw data'!L68 -> 1.1288424e-05 | F63: 6.078564677e-06 | G63: -2.824311824e-06 | H63: 1.129619044e-05 | J63: 3.128673808e-06 | K63: 0.000733208637 | L63: -5.307641081e-05 | M63: -0.001309240869 | N63: 9.465900395e-08
A64: 29.58429333 | B64: ='DF raw data'!J69 -> 1.1241078e-06 | C64: ='DF raw data'!K69 -> -5.7192924e-06 | D64: ='DF raw data'!L69 -> 9.0577241e-06 | F64: 1.124881186e-06 | G64: -5.734174481e-06 | H64: 9.063955814e-06 | J64: 3.691249387e-06 | K64: 0.0007350547047 | L64: -5.594418615e-05 | M64: -0.001337219675 | N64: 9.62310698e-08
A65: 30.08441333 | B65: ='DF raw data'!J70 -> -6.9206712e-06 | C65: ='DF raw data'!K70 -> 2.2847414e-06 | D65: ='DF raw data'!L70 -> 5.9702884e-06 | F65: -6.925432622e-06 | G65: 2.29068649e-06 | H65: 5.974395958e-06 | J65: 2.277020241e-07 | K65: 0.000735168583 | L65: -5.479856802e-05 | M65: -0.001364625535 | N65: 9.77328976e-08
A66: 30.58453333 | B66: ='DF raw data'!J71 -> -5.6035701e-06 | C66: ='DF raw data'!K71 -> -2.6113705e-06 | D66: ='DF raw data'!L71 -> 5.8938836e-06 | F66: -5.607425356e-06 | G66: -2.618165506e-06 | H66: 5.897938592e-06 | J66: -2.576683545e-06 | K66: 0.000733879932 | L66: -5.610796495e-05 | M66: -0.00139268625 | N66: 9.931064769e-08
A67: 31.08465333 | B67: ='DF raw data'!J72 -> -2.355408e-06 | C67: ='DF raw data'!K72 -> -6.6360042e-07 | D67: ='DF raw data'!L72 -> 5.3243143e-06 | F67: -2.357028521e-06 | G67: -6.653271642e-07 | H67: 5.327977428e-06 | J67: -3.755480649e-06 | K67: 0.0007320017411 | L67: -5.644070838e-05 | M67: -0.001420913377 | N67: 1.009108602e-07
A68: 31.58477333 | B68: ='DF raw data'!J73 -> -3.7736304e-06 | C68: ='DF raw data'!K73 -> 9.3802628e-06 | D68: ='DF raw data'!L73 -> 2.64917e-06 | F68: -3.776226658e-06 | G68: 9.404671034e-06 | H68: 2.650992629e-06 | J68: -5.644047125e-06 | K68: 0.0007291790402 | L68: -5.17372443e-05 | M68: -0.001446788208 | N68: 1.022654841e-07
A69: 32.08489333 | B69: ='DF raw data'!J74 -> -4.52416e-06 | C69: ='DF raw data'!K74 -> 6.4847623e-06 | D69: ='DF raw data'!L74 -> -3.5735054e-06 | F69: -4.527272622e-06 | G69: 6.501636198e-06 | H69: -3.575963972e-06 | J69: -7.908226709e-06 | K69: 0.0007252239779 | L69: -4.8485646e-05 | M69: -0.001471036849 | N69: 1.034724727e-07
A70: 32.58501333 | B70: ='DF raw data'!J75 -> 1.0107048e-06 | C70: ='DF raw data'!K75 -> -5.1745051e-06 | D70: ='DF raw data'!L75 -> -2.8800121e-06 | F70: 1.011400165e-06 | G70: -5.187969598e-06 | H70: -2.881993548e-06 | J70: -7.402405258e-06 | K70: 0.000721521887 | L70: -5.108025336e-05 | M70: -0.001496583106 | N70: 1.048047863e-07
A71: 33.08513333 | B71: ='DF raw data'!J76 -> 8.4413205e-06 | C71: ='DF raw data'!K76 -> 1.7423787e-05 | D71: ='DF raw data'!L76 -> 8.1244508e-08 | F71: 8.447128129e-06 | G71: =(1-$G$1*($B$2-$G$2))*C71*$M$2/$M$1 -> 1.746912516e-05 | H71: 8.130040422e-08 | J71: -3.177827539e-06 | K71: 0.0007199325918 | L71: -4.234359448e-05 | M71: -0.001517759984 | N71: 1.05706542e-07
A72: =A71+$B$1 -> 33.58525333 | B72: ='DF raw data'!J77 -> 6.6457592e-06 | C72: ='DF raw data'!K77 -> 1.7020306e-05 | D72: ='DF raw data'!L77 -> -3.3087479e-06 | F72: 6.650331482e-06 | G72: 1.706459427e-05 | H72: -3.311024319e-06 | J72: =F72*$B$1+J71 -> 1.481362424e-07 | K72: =J72*$B$1+K71 -> 0.0007200066777 | L72: =G72*$B$1+L71 -> -3.38092496e-05 | M72: =L72*$B$1+M71 -> -0.001534668666 | N72: =(J72^2+L72^2)*$B$1+N71 -> 1.062782228e-07
A73: 34.08537333 | B73: ='DF raw data'!J78 -> 3.6293933e-08 | C73: ='DF raw data'!K78 -> 2.9736254e-06 | D73: ='DF raw data'!L78 -> -3.7388879e-06 | F73: 3.631890323e-08 | G73: 2.981363024e-06 | H73: -3.741460255e-06 | J73: 1.663000523e-07 | K73: 0.0007200898477 | L73: -3.231821032e-05 | M73: -0.001550831649 | N73: 1.068005953e-07
A74: 34.58549333 | B74: ='DF raw data'!J79 -> -3.0445285e-06 | C74: ='DF raw data'!K79 -> 2.0312289e-06 | D74: ='DF raw data'!L79 -> -8.904949e-06 | F74: -3.046623136e-06 | G74: 2.036514329e-06 | H74: -8.911075605e-06 | J74: -1.35737711e-06 | K74: 0.0007194109963 | L74: -3.129970877e-05 | M74: -0.00156648526 | N74: 1.072914702e-07
A75: 35.08561333 | B75: ='DF raw data'!J80 -> -2.4062015e-06 | C75: ='DF raw data'!K80 -> 3.5378218e-07 | D75: ='DF raw data'!L80 -> -7.8535295e-06 | F75: -2.407856967e-06 | G75: 3.54702751e-07 | H75: -7.858932728e-06 | J75: -2.561594536e-06 | K75: 0.0007181298916 | L75: -3.112231483e-05 | M75: -0.001582050152 | N75: 1.077791674e-07
A76: 35.58573333 | B76: ='DF raw data'!J81 -> -3.369531e-06 | C76: ='DF raw data'!K81 -> -9.6781548e-07 | D76: ='DF raw data'!L81 -> -4.7330091e-06 | F76: -3.371849237e-06 | G76: -9.703338174e-07 | H76: -4.73626541e-06 | J76: -4.247923777e-06 | K76: 0.00071600542 | L76: -3.160759818e-05 | M76: -0.001597857744 | N76: 1.08287832e-07
A77: 36.08585333 | B77: ='DF raw data'!J82 -> -3.0132201e-06 | C77: ='DF raw data'!K82 -> 4.0447771e-06 | D77: ='DF raw data'!L82 -> 1.9381052e-06 | F77: -3.015293195e-06 | G77: 4.055301951e-06 | H77: 1.939438616e-06 | J77: -5.75593221e-06 | K77: 0.0007131267632 | L77: -2.957946057e-05 | M77: -0.001612651024 | N77: 1.087419786e-07
A78: 36.58597333 | B78: ='DF raw data'!J83 -> 6.3149639e-07 | C78: ='DF raw data'!K83 -> 2.1154226e-06 | D78: ='DF raw data'!L83 -> -1.0793217e-06 | F78: 6.319308595e-07 | G78: 2.120927108e-06 | H78: -1.080064273e-06 | J78: -5.439890948e-06 | K78: 0.0007104061649 | L78: -2.851874251e-05 | M78: -0.001626913817 | N78: 1.091635353e-07
A79: 37.08609333 | B79: ='DF raw data'!J84 -> 2.2035833e-06 | C79: ='DF raw data'!K84 -> -5.5690512e-06 | D79: ='DF raw data'!L84 -> 3.0899653e-07 | F79: 2.205099365e-06 | G79: -5.58354234e-06 | H79: 3.092091196e-07 | J79: -4.337076654e-06 | K79: 0.0007082371061 | L79: -3.13111837e-05 | M79: -0.001642573166 | N79: 1.096632554e-07
A80: 37.58621333 | B80: ='DF raw data'!J85 -> -1.6447215e-06 | C80: ='DF raw data'!K85 -> -8.2157601e-07 | D80: ='DF raw data'!L85 -> 6.743046e-06 | F80: -1.645853068e-06 | G80: -8.2371382e-07 | H80: 6.747685216e-06 | J80: -5.16020069e-06 | K80: 0.0007056563866 | L80: -3.172313946e-05 | M80: -0.001658438543 | N80: 1.10179872e-07
A81: 38.08633333 | B81: ='DF raw data'!J86 -> -5.9663494e-06 | C81: ='DF raw data'!K86 -> -4.1121571e-06 | D81: ='DF raw data'!L86 -> 3.1192147e-07 | F81: -5.970454248e-06 | G81: -4.122857279e-06 | H81: 3.12136072e-07 | J81: -8.146144269e-06 | K81: 0.0007015823369 | L81: -3.378506284e-05 | M81: -0.001675335128 | N81: 1.10783912e-07
A82: 38.58645333 | B82: ='DF raw data'!J87 -> -8.5226548e-06 | C82: ='DF raw data'!K87 -> 5.8842047e-06 | D82: ='DF raw data'!L87 -> -1.3082746e-05 | F82: -8.528518387e-06 | G82: 5.899515896e-06 | H82: -1.309174693e-05 | J82: -1.241142688e-05 | K82: 0.0006953751341 | L82: -3.083459695e-05 | M82: -0.001690756127 | N82: 1.113364525e-07
A83: 39.08657333 | B83: ='DF raw data'!J88 -> -5.8508726e-06 | C83: ='DF raw data'!K88 -> -8.7639601e-06 | D83: ='DF raw data'!L88 -> -8.9266459e-06 | F83: -5.854898e-06 | G83: -8.786764663e-06 | H83: -8.932787432e-06 | J83: -1.533957847e-05 | K83: 0.0006877035041 | L83: -3.522903369e-05 | M83: -0.001708374871 | N83: 1.120748234e-07
A84: 39.58669333 | B84: ='DF raw data'!J89 -> -3.6873885e-06 | C84: ='DF raw data'!K89 -> -1.6543036e-05 | D84: ='DF raw data'!L89 -> 4.8248198e-06 | F84: -3.689925423e-06 | G84: -1.658608237e-05 | H84: 4.828139276e-06 | J84: -1.718498398e-05 | K84: 0.0006791089499 | L84: -4.352406521e-05 | M84: -0.001730142127 | N84: 1.131699201e-07
A85: 40.08681333 | B85: ='DF raw data'!J90 -> -6.2910171e-06 | C85: ='DF raw data'!K90 -> -2.7435965e-06 | D85: ='DF raw data'!L90 -> 3.1914544e-06 | F85: -6.29534532e-06 | G85: -2.750735569e-06 | H85: 3.193650121e-06 | J85: -2.033341208e-05 | K85: 0.0006689398039 | L85: -4.489976308e-05 | M85: -0.001752597396 | N85: 1.143849299e-07
A86: 40.58693333 | B86: ='DF raw data'!J91 -> -6.0678126e-06 | C86: ='DF raw data'!K91 -> 6.3111725e-06 | D86: ='DF raw data'!L91 -> -2.0147406e-06 | F86: -6.071987255e-06 | G86: 6.327594703e-06 | H86: -2.016126742e-06 | J86: -2.337013434e-05 | K86: 0.0006572519323 | L86: -4.173520642e-05 | M86: -0.001773470008 | N86: 1.155291997e-07
A87: 41.08705333 | B87: ='DF raw data'!J92 -> 1.3325713e-06 | C87: ='DF raw data'!K92 -> -3.2229252e-07 | D87: ='DF raw data'!L92 -> -2.5689358e-06 | F87: =(1-$G$1*($B$2-$G$2))*B87 -> 1.333488109e-06 | G87: -3.231311523e-07 | H87: -2.570703228e-06 | J87: -2.270323027e-05 | K87: 0.0006458975927 | L87: -4.189681077e-05 | M87: -0.001794423441 | N87: 1.166648619e-07
A88: 41.58717333 | B88: ='DF raw data'!J93 -> 3.3690244e-06 | C88: ='DF raw data'!K93 -> -9.1304864e-06 | D88: ='DF raw data'!L93 -> -2.3642122e-06 | F88: 3.371342289e-06 | G88: -9.154244695e-06 | H88: -2.365838778e-06 | J88: -2.101715456e-05 | K88: 0.0006353864934 | L88: -4.647503163e-05 | M88: -0.001817666534 | N88: 1.179659988e-07
A89: 42.08729333 | B89: ='DF raw data'!J94 -> 1.1156968e-06 | C89: ='DF raw data'!K94 -> -5.0991189e-06 | D89: ='DF raw data'!L94 -> 2.5069428e-07 | F89: 1.116464399e-06 | G89: -5.112387237e-06 | H89: 2.508667577e-07 | J89: -2.045878839e-05 | K89: 0.0006251546442 | L89: -4.903183873e-05 | M89: -0.001842188337 | N89: 1.193776791e-07
A90: 42.58741333 | B90: ='DF raw data'!J95 -> 5.0370304e-06 | C90: ='DF raw data'!K95 -> 1.902739e-06 | D90: ='DF raw data'!L95 -> 6.9049725e-06 | F90: 5.040495877e-06 | G90: 1.907690087e-06 | H90: 6.909723121e-06 | J90: -1.793793559e-05 | K90: 0.0006161835238 | L90: -4.807776477e-05 | M90: -0.001866232988 | N90: 1.206946156e-07
A91: 43.08753333 | B91: ='DF raw data'!J96 -> 8.0476329e-06 | C91: ='DF raw data'!K96 -> -6.1801443e-06 | D91: ='DF raw data'!L96 -> 3.9176243e-06 | F91: 8.053169671e-06 | G91: -6.196225556e-06 | H91: 3.920319626e-06 | J91: -1.391038437e-05 | K91: 0.0006092266624 | L91: -5.117662109e-05 | M91: -0.00189182744 | N91: 1.221012258e-07
A92: 43.58765333 | B92: ='DF raw data'!J97 -> 5.3794515e-06 | C92: ='DF raw data'!K97 -> -1.9180185e-07 | D92: ='DF raw data'!L97 -> 4.8429615e-07 | F92: 5.383152563e-06 | G92: -1.923009346e-07 | H92: 4.846293458e-07 | J92: -1.121816211e-05 | K92: 0.0006036162351 | L92: -5.127279464e-05 | M92: -0.00191746999 | N92: 1.234789297e-07
A93: 44.08777333 | B93: ='DF raw data'!J98 -> -1.5738391e-06 | C93: ='DF raw data'!K98 -> 7.2769176e-06 | D93: ='DF raw data'!L98 -> -1.7949776e-06 | F93: -1.574921901e-06 | G93: 7.295852753e-06 | H93: -1.796212545e-06 | J93: -1.200581206e-05 | K93: 0.0005976118884 | L93: -4.762399276e-05 | M93: -0.001941287702 | N93: 1.246853113e-07
A94: 44.58789333 | B94: ='DF raw data'!J99 -> -4.320244e-06 | C94: ='DF raw data'!K99 -> -9.1977961e-07 | D94: ='DF raw data'!L99 -> -2.4414173e-06 | F94: -4.323216328e-06 | G94: -9.22172954e-07 | H94: -2.443096995e-06 | J94: -1.416793901e-05 | K94: 0.0005905262188 | L94: -4.808518989e-05 | M94: -0.001965336067 | N94: 1.259420708e-07
A95: 45.08801333 | B95: ='DF raw data'!J100 -> -4.8053757e-06 | C95: ='DF raw data'!K100 -> -1.6185371e-06 | D95: ='DF raw data'!L100 -> -3.7068737e-06 | F95: -4.808681798e-06 | G95: -1.62274867e-06 | H95: -3.709424029e-06 | J95: -1.657285695e-05 | K95: 0.0005822378015 | L95: -4.889675896e-05 | M95: -0.001989790314 | N95: 1.27275167e-07
A96: 45.58813333 | B96: ='DF raw data'!J101 -> -5.239714e-06 | C96: ='DF raw data'!K101 -> 3.5168084e-06 | D96: ='DF raw data'!L101 -> -3.6853151e-06 | F96: -5.243318923e-06 | G96: 3.525959432e-06 | H96: -3.687850597e-06 | J96: -1.919514561e-05 | K96: 0.0005726379253 | L96: -4.713335613e-05 | M96: -0.002013362648 | N96: 1.285704812e-07
A97: 46.08825333 | B97: ='DF raw data'!J102 -> 7.5705759e-07 | C97: ='DF raw data'!K102 -> -1.2877721e-06 | D97: ='DF raw data'!L102 -> -1.5243356e-05 | F97: 7.575784456e-07 | G97: -1.291122992e-06 | H97: -1.525384343e-05 | J97: -1.881626547e-05 | K97: 0.0005632275346 | L97: -4.777907256e-05 | M97: -0.002037257918 | N97: 1.298892435e-07
A98: 46.58837333 | B98: ='DF raw data'!J103 -> 8.2705101e-06 | C98: ='DF raw data'!K103 -> 3.7792595e-06 | D98: ='DF raw data'!L103 -> -1.053373e-05 | F98: 8.276200211e-06 | G98: 3.789093452e-06 | H98: -1.054097721e-05 | J98: -1.467717223e-05 | K98: 0.0005558871873 | L98: -4.588407114e-05 | M98: -0.002060205459 | N98: 1.310499056e-07
A99: 47.08849333 | B99: ='DF raw data'!J104 -> 9.4882143e-06 | C99: ='DF raw data'!K104 -> 3.5282826e-06 | D99: ='DF raw data'!L104 -> -2.9357823e-06 | F99: 9.494742191e-06 | G99: 3.537463489e-06 | H99: -2.937802118e-06 | J99: -9.928661761e-06 | K99: 0.0005509216649 | L99: -4.41149149e-05 | M99: -0.002082268211 | N99: 1.32072503e-07
A100: 47.58861333 | B100: ='DF raw data'!J105 -> 1.0285608e-05 | C100: ='DF raw data'!K105 -> -1.605997e-06 | D100: ='DF raw data'!L105 -> -1.6423062e-06 | F100: 1.02926845e-05 | G100: -1.61017594e-06 | H100: -1.643436107e-06 | J100: -4.781084389e-06 | K100: 0.000548530549 | L100: -4.492019609e-05 | M100: -0.002104733699 | N100: 1.330930893e-07
A101: 48.08873333 | B101: ='DF raw data'!J106 -> 1.0464095e-05 | C101: ='DF raw data'!K106 -> 8.0366517e-06 | D101: ='DF raw data'!L106 -> 1.4380214e-06 | F101: 1.04712943e-05 | G101: 8.057563745e-06 | H101: 1.439010759e-06 | J101: 4.558193148e-07 | K101: 0.0005487585134 | L101: -4.089044731e-05 | M101: -0.00212518383 | N101: 1.339294082e-07
A102: 48.58885333 | B102: ='DF raw data'!J107 -> 8.3943978e-06 | C102: ='DF raw data'!K107 -> 1.5156653e-06 | D102: ='DF raw data'!L107 -> 1.9535448e-06 | F102: 8.400173146e-06 | G102: 1.519609189e-06 | H102: 1.954888839e-06 | J102: 4.656913908e-06 | K102: 0.0005510875292 | L102: -4.013046037e-05 | M102: -0.002145253875 | N102: 1.347456744e-07
A103: 49.08897333 | B103: ='DF raw data'!J108 -> 3.9286547e-06 | C103: ='DF raw data'!K108 -> 2.3477185e-06 | D103: ='DF raw data'!L108 -> -2.9898208e-06 | F103: 3.931357614e-06 | G103: 2.353827461e-06 | H103: -2.991877797e-06 | J103: 6.623064479e-06 | K103: 0.0005543998562 | L103: -3.895326418e-05 | M103: -0.002164735182 | N103: 1.355264726e-07
A104: 49.58909333 | B104: ='DF raw data'!J109 -> 1.7865983e-06 | C104: ='DF raw data'!K109 -> -3.5058658e-06 | D104: ='DF raw data'!L109 -> 1.0340384e-06 | F104: 1.78782748e-06 | G104: -3.514988358e-06 | H104: 1.034749818e-06 | J104: 7.517192758e-06 | K104: 0.0005581593546 | L104: -4.071118015e-05 | M104: -0.002185095657 | N104: 1.363836325e-07
A105: 50.08921333 | B105: ='DF raw data'!J110 -> 1.8729057e-06 | C105: ='DF raw data'!K110 -> -3.8421026e-06 | D105: ='DF raw data'!L110 -> 5.4425328e-08 | F105: 1.874194259e-06 | G105: -3.852100075e-06 | H105: 5.446277263e-08 | J105: 8.454514791e-06 | K105: 0.0005623876265 | L105: -4.263769244e-05 | M105: -0.00220641962 | N105: 1.37328585e-07
A106: 50.58933333 | B106: ='DF raw data'!J111 -> 1.0375385e-06 | C106: ='DF raw data'!K111 -> -2.7650788e-06 | D106: ='DF raw data'!L111 -> -8.5603961e-06 | F106: 1.038252326e-06 | G106: -2.772273768e-06 | H106: -8.566285653e-06 | J106: 8.973765544e-06 | K106: 0.0005668755862 | L106: -4.4024162e-05 | M106: -0.002228436984 | N106: 1.383381549e-07
A107: 51.08945333 | B107: ='DF raw data'!J112 -> -1.0281568e-06 | C107: ='DF raw data'!K112 -> 1.6202717e-06 | D107: ='DF raw data'!L112 -> -1.1393807e-05 | F107: -1.028864172e-06 | G107: 1.624487783e-06 | H107: -1.140164594e-05 | J107: 8.459209994e-06 | K107: 0.0005711062063 | L107: -4.321172317e-05 | M107: -0.002250048031 | N107: 1.393077932e-07
A108: 51.58957333 | B108: ='DF raw data'!J113 -> -3.379013e-07 | C108: ='DF raw data'!K113 -> 7.1536817e-07 | D108: ='DF raw data'!L113 -> -1.2328826e-05 | F108: -3.381337761e-07 | G108: 7.172296183e-07 | H108: -1.233730823e-05 | J108: 8.29010253e-06 | K108: 0.0005752522523 | L108: -4.285302229e-05 | M108: -0.002271479684 | N108: 1.402605755e-07
A109: 52.08969333 | B109: ='DF raw data'!J114 -> 1.2761681e-06 | C109: ='DF raw data'!K114 -> 2.2778038e-06 | D109: ='DF raw data'!L114 -> -1.2386924e-05 | F109: 1.277046104e-06 | G109: 2.283730837e-06 | H109: -1.23954462e-05 | J109: 8.928778828e-06 | K109: 0.0005797177132 | L109: -4.171088283e-05 | M109: -0.002292340131 | N109: 1.411705542e-07
A110: 52.58981333 | B110: ='DF raw data'!J115 -> 4.2978499e-07 | C110: ='DF raw data'!K115 -> 9.5383766e-06 | D110: ='DF raw data'!L115 -> -1.1151816e-05 | F110: 4.300806821e-07 | G110: 9.56319626e-06 | H110: -1.115948845e-05 | J110: 9.143870778e-06 | K110: 0.0005842907459 | L110: -3.692813711e-05 | M110: -0.002310808631 | N110: 1.418943768e-07
A111: 53.08993333 | B111: ='DF raw data'!J116 -> 2.7451183e-06 | C111: ='DF raw data'!K116 -> -3.0318008e-06 | D111: ='DF raw data'!L116 -> -5.8899154e-06 | F111: 2.747006941e-06 | G111: -3.039689801e-06 | H111: -5.893967662e-06 | J111: 1.051770389e-05 | K111: 0.0005895508599 | L111: -3.844834678e-05 | M111: -0.002330037418 | N111: 1.426890162e-07
A112: 53.59005333 | B112: ='DF raw data'!J117 -> 4.2948463e-06 | C112: ='DF raw data'!K117 -> -8.7099288e-06 | D112: ='DF raw data'!L117 -> -2.036634e-06 | F112: 4.297801154e-06 | G112: -8.732592769e-06 | H112: -2.038035204e-06 | J112: 1.26671202e-05 | K112: 0.0005958859401 | L112: -4.281569107e-05 | M112: -0.002351450402 | N112: 1.436860751e-07
A113: 54.09017333 | B113: ='DF raw data'!J118 -> 1.4623962e-06 | C113: ='DF raw data'!K118 -> 1.4779067e-06 | D113: ='DF raw data'!L118 -> 6.8121967e-06 | F113: 1.463402329e-06 | G113: 1.481752338e-06 | H113: 6.816883491e-06 | J113: 1.339899698e-05 | K113: 0.0006025870465 | L113: -4.207463709e-05 | M113: -0.002372492769 | N113: 1.446612132e-07
A114: 54.59029333 | B114: ='DF raw data'!J119 -> 2.0386447e-06 | C114: ='DF raw data'!K119 -> 3.9668553e-06 | D114: ='DF raw data'!L119 -> 3.8327648e-06 | F114: 2.040047288e-06 | G114: 3.977177392e-06 | H114: 3.835401742e-06 | J114: 1.441926543e-05 | K114: 0.0006097984095 | L114: -4.008557114e-05 | M114: -0.002392540365 | N114: 1.45568815e-07
A115: 55.09041333 | B115: ='DF raw data'!J120 -> 4.4942221e-06 | C115: ='DF raw data'!K120 -> -2.809775e-06 | D115: ='DF raw data'!L120 -> 1.5146882e-06 | F115: 4.497314125e-06 | G115: -2.817086271e-06 | H115: 1.515730305e-06 | J115: 1.666846217e-05 | K115: 0.0006181346408 | L115: -4.149445232e-05 | M115: -0.00241329257 | N115: 1.465688686e-07
A116: 55.59053333 | B116: ='DF raw data'!J121 -> 6.176911e-06 | C116: ='DF raw data'!K121 -> -5.8495175e-06 | D116: ='DF raw data'!L121 -> 3.4437555e-06 | F116: 6.181160715e-06 | G116: -5.864738437e-06 | H116: 3.446124804e-06 | J116: 1.975978426e-05 | K116: 0.0006280169041 | L116: -4.442752531e-05 | M116: -0.002435511664 | N116: 1.477512793e-07
A117: 56.09065333 | B117: ='DF raw data'!J122 -> 6.6711232e-06 | C117: ='DF raw data'!K122 -> 1.2621746e-05 | D117: ='DF raw data'!L122 -> 6.5161407e-07 | F117: 6.675712933e-06 | G117: 1.265458885e-05 | H117: 6.520623805e-07 | J117: 2.309844181e-05 | K117: 0.0006395688968 | L117: -3.809871233e-05 | M117: -0.002454565592 | N117: 1.487440425e-07
A118: 56.59077333 | B118: ='DF raw data'!J123 -> 6.504984e-06 | C118: ='DF raw data'!K123 -> 1.2006378e-05 | D118: ='DF raw data'!L123 -> 2.0447926e-06 | F118: 6.509459429e-06 | G118: 1.203761961e-05 | H118: 2.046199417e-06 | J118: 2.635395266e-05 | K118: 0.0006527490356 | L118: -3.207845802e-05 | M118: -0.002470608671 | N118: 1.496060285e-07
A119: 57.09089333 | B119: ='DF raw data'!J124 -> 8.7907556e-06 | C119: ='DF raw data'!K124 -> -6.5047388e-08 | D119: ='DF raw data'!L124 -> 1.7129904e-07 | F119: 8.79680364e-06 | G119: -6.521664678e-08 | H119: 1.714168937e-07 | J119: 3.07534101e-05 | K119: 0.0006681294311 | L119: -3.211107417e-05 | M119: -0.002486668061 | N119: 1.505947124e-07
A120: 57.59101333 | B120: ='DF raw data'!J125 -> 1.1192797e-05 | C120: ='DF raw data'!K125 -> 4.1025519e-06 | D120: ='DF raw data'!L125 -> -1.3322922e-06 | F120: 1.120049764e-05 | G120: 4.113227086e-06 | H120: -1.333208817e-06 | J120: 3.635500298e-05 | K120: 0.0006863112952 | L120: -3.005396704e-05 | M120: -0.002501698651 | N120: 1.517074429e-07
A121: 58.09113333 | B121: ='DF raw data'!J126 -> 1.2807935e-05 | C121: ='DF raw data'!K126 -> -6.6942416e-06 | D121: ='DF raw data'!L126 -> 4.5824358e-06 | F121: 1.281674686e-05 | G121: -6.711660581e-06 | H121: 4.585588516e-06 | J121: 4.276491442e-05 | K121: 0.0007076988842 | L121: -3.341060273e-05 | M121: -0.002518407962 | N121: 1.531803495e-07
A122: 58.59125333 | B122: ='DF raw data'!J127 -> 1.0711732e-05 | C122: ='DF raw data'!K127 -> -5.5112728e-06 | D122: ='DF raw data'!L127 -> 6.0550751e-06 | F122: 1.071910167e-05 | G122: -5.525613596e-06 | H122: 6.059240992e-06 | J122: 4.812575155e-05 | K122: 0.000731767535 | L122: -3.61740726e-05 | M122: -0.002536499339 | N122: 1.549931102e-07
A123: 59.09137333 | B123: ='DF raw data'!J128 -> 6.704629e-06 | C123: ='DF raw data'!K128 -> 1.1347325e-06 | D123: ='DF raw data'!L128 -> 5.9195677e-06 | F123: 6.709241785e-06 | G123: 1.13768517e-06 | H123: 5.923640363e-06 | J123: 5.148117755e-05 | K123: 0.0007575143015 | L123: -3.560509349e-05 | M123: -0.002554306158 | N123: 1.569525975e-07
A124: 59.59149333 | B124: ='DF raw data'!J129 -> 1.6531645e-06 | C124: ='DF raw data'!K129 -> -3.8740507e-07 | D124: ='DF raw data'!L129 -> 1.7651339e-06 | F124: 1.654301877e-06 | G124: -3.884131306e-07 | H124: 1.766348312e-06 | J124: 5.230852701e-05 | K124: 0.0007836748421 | L124: -3.579934667e-05 | M124: -0.002572210128 | N124: 1.589619673e-07
A125: 60.09161333 | B125: ='DF raw data'!J130 -> -5.6331396e-06 | C125: ='DF raw data'!K130 -> -7.5573812e-06 | D125: ='DF raw data'!L130 -> -1.2174016e-07 | F125: -5.6370152e-06 | G125: -7.577046143e-06 | H125: -1.218239172e-07 | J125: 4.948934296e-05 | K125: 0.0008084254523 | L125: -3.958877898e-05 | M125: -0.002592009268 | N125: 1.609706825e-07
A126: 60.59173333 | B126: ='DF raw data'!J131 -> -6.0288935e-06 | C126: ='DF raw data'!K131 -> 3.2610258e-06 | D126: ='DF raw data'!L131 -> -4.1111954e-07 | F126: -6.033041379e-06 | G126: 3.269511264e-06 | H126: -4.114023902e-07 | J126: 4.647209831e-05 | K126: 0.0008316670781 | L126: -3.795363101e-05 | M126: -0.002610990638 | N126: 1.627711815e-07
A127: 61.09185333 | B127: ='DF raw data'!J132 -> -8.7797378e-07 | C127: ='DF raw data'!K132 -> 2.5597876e-07 | D127: ='DF raw data'!L132 -> -5.7057946e-07 | F127: -8.78577826e-07 | G127: 2.566448383e-07 | H127: -5.709720187e-07 | J127: 4.603270397e-05 | K127: 0.000854688954 | L127: -3.782527779e-05 | M127: -0.002629907816 | N127: 1.645464882e-07
A128: 61.59197333 | B128: ='DF raw data'!J133 -> -1.4521487e-06 | C128: ='DF raw data'!K133 -> 1.4654976e-06 | D128: ='DF raw data'!L133 -> -2.9082282e-06 | F128: -1.453147778e-06 | G128: 1.469310948e-06 | H128: -2.910229061e-06 | J128: 4.53059557e-05 | K128: 0.0008773473686 | L128: -3.7090446e-05 | M128: -0.00264845749 | N128: 1.66261065e-07
A129: 62.09209333 | B129: ='DF raw data'!J134 -> -4.6814225e-06 | C129: ='DF raw data'!K134 -> -6.1783464e-07 | D129: ='DF raw data'!L134 -> -6.3697066e-06 | F129: -4.684643319e-06 | G129: -6.194422978e-07 | H129: -6.374088958e-06 | J129: 4.296307188e-05 | K129: 0.0008988340601 | L129: -3.740024148e-05 | M129: -0.002667162098 | N129: 1.678837562e-07
A130: 62.59221333 | B130: ='DF raw data'!J135 -> -2.7426199e-06 | C130: ='DF raw data'!K135 -> -5.1295899e-07 | D130: ='DF raw data'!L135 -> -3.3852182e-06 | F130: -2.744506822e-06 | G130: -5.142937525e-07 | H130: -3.38754723e-06 | J130: 4.159048913e-05 | K130: 0.0009196342955 | L130: -3.765745007e-05 | M130: -0.002685995342 | N130: 1.694580601e-07
A131: 63.09233333 | B131: ='DF raw data'!J136 -> 2.9663947e-06 | C131: ='DF raw data'!K136 -> 1.2940636e-05 | D131: ='DF raw data'!L136 -> 7.9508691e-06 | F131: 2.96843558e-06 | G131: 1.297430863e-05 | H131: 7.956339298e-06 | J131: 4.307506313e-05 | K131: 0.0009411769961 | L131: -3.116873884e-05 | M131: -0.002701583452 | N131: 1.70871875e-07
A132: 63.59245333 | B132: ='DF raw data'!J137 -> 5.170064e-06 | C132: ='DF raw data'!K137 -> 1.3713845e-05 | D132: ='DF raw data'!L137 -> -2.4931931e-06 | F132: 5.173621004e-06 | G132: 1.374952958e-05 | H132: -2.494908417e-06 | J132: 4.566249447e-05 | K132: 0.0009640137228 | L132: -2.429232411e-05 | M132: -0.002713732529 | N132: 1.722097862e-07
A133: 64.09257333 | B133: ='DF raw data'!J138 -> 2.1148749e-06 | C133: ='DF raw data'!K138 -> 5.8939436e-06 | D133: ='DF raw data'!L138 -> -5.9612635e-06 | F133: 2.116329934e-06 | G133: 5.909280138e-06 | H133: -5.965364849e-06 | J133: 4.67209134e-05 | K133: 0.000987379786 | L133: -2.133697493e-05 | M133: -0.002724403577 | N133: 1.735291579e-07
A134: 64.59269333 | B134: ='DF raw data'!J139 -> 1.8704392e-06 | C134: ='DF raw data'!K139 -> 2.847002e-06 | D134: ='DF raw data'!L139 -> 4.2577171e-06 | F134: 1.871726062e-06 | G134: 2.854410139e-06 | H134: 4.260646409e-06 | J134: 4.765700103e-05 | K134: 0.001011214005 | L134: -1.990942733e-05 | M134: -0.00273436068 | N134: 1.748632656e-07
A135: 65.09281333 | B135: ='DF raw data'!J140 -> 4.5099091e-06 | C135: ='DF raw data'!K140 -> -7.2604269e-07 | D135: ='DF raw data'!L140 -> 4.3808409e-06 | F135: 4.513011917e-06 | G135: =(1-$G$1*($B$2-$G$2))*C135*$M$2/$M$1 -> -7.279319143e-07 | H135: 4.383854919e-06 | J135: 4.991404855e-05 | K135: 0.001036177019 | L135: -2.027348064e-05 | M135: -0.002744499853 | N135: 1.76314827e-07
A136: =A135+$B$1 -> 65.59293333 | B136: ='DF raw data'!J141 -> 5.7107331e-06 | C136: ='DF raw data'!K141 -> 5.3257429e-07 | D136: ='DF raw data'!L141 -> -2.4067296e-07 | F136: 5.714662084e-06 | G136: 5.339600932e-07 | H136: -2.40838543e-07 | J136: =F136*$B$1+J135 -> 5.277206536e-05 | K136: =J136*$B$1+K135 -> 0.001062569385 | L136: =G136*$B$1+L135 -> -2.000643652e-05 | M136: =L136*$B$1+M135 -> -0.002754505472 | N136: =(J136^2+L136^2)*$B$1+N135 -> 1.779077834e-07
A137: 66.09305333 | B137: ='DF raw data'!J142 -> 6.9034081e-06 | C137: ='DF raw data'!K142 -> 9.9957072e-07 | D137: ='DF raw data'!L142 -> -3.2862579e-06 | F137: 6.908157645e-06 | G137: 1.002171687e-06 | H137: -3.288518845e-06 | J137: 5.622697316e-05 | K137: 0.001090689618 | L137: -1.950523041e-05 | M137: -0.002764260428 | N137: 1.796791717e-07
A138: 66.59317333 | B138: ='DF raw data'!J143 -> 1.7689759e-06 | C138: ='DF raw data'!K143 -> -4.5802194e-06 | D138: ='DF raw data'!L143 -> -1.2510979e-05 | F138: 1.770192955e-06 | G138: -4.592137517e-06 | H138: -1.251958655e-05 | J138: 5.711228206e-05 | K138: 0.001119252613 | L138: -2.180185023e-05 | M138: -0.002775163969 | N138: 1.815481868e-07
A139: 67.09329333 | B139: ='DF raw data'!J144 -> -7.8502908e-06 | C139: ='DF raw data'!K144 -> 2.7351923e-06 | D139: ='DF raw data'!L144 -> -1.328461e-05 | F139: -7.8556918e-06 | G139: 2.742309501e-06 | H139: -1.329374981e-05 | J139: 5.318349348e-05 | K139: 0.001145850742 | L139: -2.04303664e-05 | M139: -0.002785381604 | N139: 1.831715183e-07
A140: 67.59341333 | B140: ='DF raw data'!J145 -> -9.2135797e-06 | C140: ='DF raw data'!K145 -> -8.031642e-07 | D140: ='DF raw data'!L145 -> -6.4256078e-06 | F140: -9.219918643e-06 | G140: -8.052541009e-07 | H140: -6.430028618e-06 | J140: 4.857242776e-05 | K140: 0.001170142784 | L140: -2.083309008e-05 | M140: -0.002795800649 | N140: 1.845685027e-07
A141: 68.09353333 | B141: ='DF raw data'!J146 -> -3.8204876e-06 | C141: ='DF raw data'!K146 -> -9.1071379e-06 | D141: ='DF raw data'!L146 -> -3.7585257e-06 | F141: -3.823116095e-06 | G141: -9.13083544e-06 | H141: -3.761111566e-06 | J141: 4.666041094e-05 | K141: 0.001193478589 | L141: -2.53996035e-05 | M141: -0.002808503499 | N141: 1.859800082e-07
A142: 68.59365333 | B142: ='DF raw data'!J147 -> 2.6710927e-06 | C142: ='DF raw data'!K147 -> -9.7968259e-06 | D142: ='DF raw data'!L147 -> -4.9574942e-06 | F142: 2.672930412e-06 | G142: -9.822318066e-06 | H142: -4.960904956e-06 | J142: 4.79971969e-05 | K142: 0.001217482947 | L142: -3.031194121e-05 | M142: -0.002823663107 | N142: 1.875916673e-07
A143: 69.09377333 | B143: ='DF raw data'!J148 -> 2.4086344e-06 | C143: ='DF raw data'!K148 -> -1.2917739e-06 | D143: ='DF raw data'!L148 -> -2.7299309e-06 | F143: 2.41029154e-06 | G143: -1.295135205e-06 | H143: -2.731809092e-06 | J143: 4.92026319e-05 | K143: 0.001242090167 | L143: -3.095966423e-05 | M143: -0.002839146654 | N143: 1.892817727e-07
A144: 69.59389333 | B144: ='DF raw data'!J149 -> -1.2693912e-06 | C144: ='DF raw data'!K149 -> 1.6738308e-07 | D144: ='DF raw data'!L149 -> 1.0247575e-07 | F144: -1.270264541e-06 | G144: 1.678186249e-07 | H144: 1.025462533e-07 | J144: 4.85673472e-05 | K144: 0.001266379669 | L144: -3.087573478e-05 | M144: -0.002854588226 | N144: 1.909382193e-07
A145: 70.09401333 | B145: ='DF raw data'!J150 -> -5.029782e-07 | C145: ='DF raw data'!K150 -> -1.2629349e-05 | D145: ='DF raw data'!L150 -> 5.2015835e-06 | F145: -5.03324249e-07 | G145: -1.266221163e-05 | H145: 5.205162189e-06 | J145: 4.831562468e-05 | K145: 0.001290543279 | L145: -3.720836006e-05 | M145: -0.002873196872 | N145: 1.927980964e-07
A146: 70.59413333 | B146: ='DF raw data'!J151 -> 7.7895095e-07 | C146: ='DF raw data'!K151 -> 3.6231502e-06 | D146: ='DF raw data'!L151 -> 5.2791233e-06 | F146: 7.794868683e-07 | G146: 3.632577942e-06 | H146: 5.282755337e-06 | J146: 4.870546165e-05 | K146: 0.001314901855 | L146: -3.539163518e-05 | M146: -0.002890896936 | N146: 1.946109263e-07
A147: 71.09425333 | B147: ='DF raw data'!J152 -> 2.0111415e-06 | C147: ='DF raw data'!K152 -> 1.0021915e-05 | D147: ='DF raw data'!L152 -> -1.5872636e-06 | F147: 2.012525165e-06 | G147: 1.004799287e-05 | H147: -1.588355637e-06 | J147: 4.971196574e-05 | K147: 0.001339763803 | L147: -3.036643299e-05 | M147: -0.002906083797 | N147: 1.963080334e-07
A148: 71.59437333 | B148: ='DF raw data'!J153 -> 6.3909115e-06 | C148: ='DF raw data'!K153 -> -3.6203458e-06 | D148: ='DF raw data'!L153 -> -7.0174124e-06 | F148: 6.395308447e-06 | G148: -3.629766245e-06 | H148: -7.02224038e-06 | J148: 5.29103874e-05 | K148: 0.001366225346 | L148: -3.218175168e-05 | M148: -0.002922178534 | N148: 1.982260807e-07
A149: 72.09449333 | B149: ='DF raw data'!J154 -> 8.9876648e-06 | C149: ='DF raw data'!K154 -> -1.1528708e-05 | D149: ='DF raw data'!L154 -> -3.4127067e-06 | F149: 8.993848313e-06 | G149: -1.155870667e-05 | H149: -3.415054642e-06 | J149: 5.740839082e-05 | K149: 0.00139493643 | L149: -3.796249206e-05 | M149: -0.002941164336 | N149: 2.005950862e-07
A150: 72.59461333 | B150: ='DF raw data'!J155 -> 7.611759e-06 | C150: ='DF raw data'!K155 -> -3.3321451e-06 | D150: ='DF raw data'!L155 -> -2.1485819e-06 | F150: 7.61699589e-06 | G150: -3.340815622e-06 | H150: -2.150060124e-06 | J150: 6.12178028e-05 | K150: 0.001425552678 | L150: -3.963330077e-05 | M150: -0.002960985742 | N150: 2.032549334e-07
A151: 73.09473333 | B151: ='DF raw data'!J156 -> 6.2969934e-06 | C151: ='DF raw data'!K156 -> 6.1265087e-06 | D151: ='DF raw data'!L156 -> -1.9602292e-06 | F151: =(1-$G$1*($B$2-$G$2))*B151 -> 6.301325731e-06 | G151: 6.142450392e-06 | H151: -1.961577838e-06 | J151: 6.436922183e-05 | K151: 0.001457745013 | L151: -3.656133848e-05 | M151: -0.002979270799 | N151: 2.059956551e-07
A152: 73.59485333 | B152: ='DF raw data'!J157 -> 4.4292769e-06 | C152: ='DF raw data'!K157 -> 8.6297368e-06 | D152: ='DF raw data'!L157 -> -3.6145636e-06 | F152: 4.432324243e-06 | G152: 8.652192102e-06 | H152: -3.61705042e-06 | J152: 6.658591583e-05 | K152: 0.001491045961 | L152: -3.223420417e-05 | M152: -0.002995391769 | N152: 2.087326759e-07
A153: 74.09497333 | B153: ='DF raw data'!J158 -> 2.0441817e-06 | C153: ='DF raw data'!K158 -> 8.6585569e-06 | D153: ='DF raw data'!L158 -> -2.8473939e-06 | F153: 2.045588097e-06 | G153: 8.681087195e-06 | H153: -2.849352907e-06 | J153: 6.760895535e-05 | K153: 0.001524858552 | L153: -2.789261884e-05 | M153: -0.003009341425 | N153: 2.114078022e-07
A154: 74.59509333 | B154: ='DF raw data'!J159 -> 2.1270839e-06 | C154: ='DF raw data'!K159 -> 2.0968762e-06 | D154: ='DF raw data'!L159 -> 3.4729103e-06 | F154: 2.128547334e-06 | G154: 2.102332449e-06 | H154: 3.475299662e-06 | J154: 6.867348444e-05 | K154: 0.001559203535 | L154: -2.684120033e-05 | M154: -0.003022765247 | N154: 2.141267034e-07
A155: 75.09521333 | B155: ='DF raw data'!J160 -> 6.5632923e-07 | C155: ='DF raw data'!K160 -> 7.1663085e-06 | D155: ='DF raw data'!L160 -> 1.5778508e-06 | F155: 6.567807845e-07 | G155: 7.184955839e-06 | H155: 1.578936361e-06 | J155: 6.900195364e-05 | K155: 0.001593712792 | L155: -2.324786022e-05 | M155: -0.003034391966 | N155: 2.167782059e-07
A156: 75.59533333 | B156: ='DF raw data'!J161 -> -1.5831814e-06 | C156: ='DF raw data'!K161 -> 1.5964095e-05 | D156: ='DF raw data'!L161 -> 6.8436725e-06 | F156: -1.584270629e-06 | G156: 1.600563492e-05 | H156: 6.848380947e-06 | J156: 6.820962822e-05 | K156: 0.001627825792 | L156: -1.524312208e-05 | M156: -0.003042015357 | N156: 2.192212452e-07
A157: 76.09545333 | B157: ='DF raw data'!J162 -> -1.7571277e-06 | C157: ='DF raw data'!K162 -> 3.6739837e-06 | D157: ='DF raw data'!L162 -> -1.4616555e-07 | F157: -1.758336604e-06 | G157: 3.683543715e-06 | H157: -1.462661119e-07 | J157: 6.733024891e-05 | K157: 0.001661498996 | L157: -1.34009082e-05 | M157: -0.003048717419 | N157: 2.215782841e-07
A158: 76.59557333 | B158: ='DF raw data'!J163 -> 1.254071e-06 | C158: ='DF raw data'!K163 -> -3.3073268e-06 | D158: ='DF raw data'!L163 -> -3.0439976e-06 | F158: 1.254933801e-06 | G158: -3.315932743e-06 | H158: -3.04609187e-06 | J158: 6.795786641e-05 | K158: 0.001695486084 | L158: -1.505927248e-05 | M158: -0.003056248862 | N158: 2.240013921e-07
A159: 77.09569333 | B159: ='DF raw data'!J164 -> 5.243151e-06 | C159: ='DF raw data'!K164 -> 1.8533716e-06 | D159: ='DF raw data'!L164 -> -2.008949e-06 | F159: 5.246758288e-06 | G159: 1.858194229e-06 | H159: -2.010331157e-06 | J159: 7.058187516e-05 | K159: 0.001730785491 | L159: -1.412995239e-05 | M159: -0.003063315534 | N159: 2.265927422e-07
A160: 77.59581333 | B160: ='DF raw data'!J165 -> 3.5963762e-06 | C160: ='DF raw data'!K165 -> 2.861281e-06 | D160: ='DF raw data'!L165 -> -1.251784e-05 | F160: 3.598850507e-06 | G160: 2.868726294e-06 | H160: -1.252645227e-05 | J160: 7.238173228e-05 | K160: 0.001766985043 | L160: -1.269524499e-05 | M160: -0.00306966468 | N160: 2.292935325e-07
A161: 78.09593333 | B161: ='DF raw data'!J166 -> -2.7086412e-06 | C161: ='DF raw data'!K166 -> 2.650864e-06 | D161: ='DF raw data'!L166 -> -9.7946458e-06 | F161: -2.710504745e-06 | G161: 2.657761771e-06 | H161: -9.801384516e-06 | J161: 7.102615464e-05 | K161: 0.001802506644 | L161: -1.136604518e-05 | M161: -0.003075349066 | N161: 2.318811042e-07
A162: 78.59605333 | B162: ='DF raw data'!J167 -> -8.1873713e-06 | C162: ='DF raw data'!K167 -> 1.2881261e-05 | D162: ='DF raw data'!L167 -> 3.4766097e-07 | F162: -8.193004211e-06 | G162: 1.291477913e-05 | H162: 3.479001607e-07 | J162: 6.692866938e-05 | K162: 0.00183597901 | L162: -4.907105839e-06 | M162: -0.003077803208 | N162: 2.341334078e-07
A163: 79.09617333 | B163: ='DF raw data'!J168 -> -8.5021657e-06 | C163: ='DF raw data'!K168 -> 4.5751508e-06 | D163: ='DF raw data'!L168 -> 2.9755477e-06 | F163: -8.50801519e-06 | G163: 4.587055728e-06 | H163: 2.977594877e-06 | J163: 6.267364082e-05 | K163: 0.001867323351 | L163: -2.613027528e-06 | M163: -0.003079110036 | N163: 2.361012866e-07
A164: 79.59629333 | B164: ='DF raw data'!J169 -> -6.5240442e-06 | C164: ='DF raw data'!K169 -> -6.0422497e-07 | D164: ='DF raw data'!L169 -> 1.6093993e-06 | F164: -6.528532742e-06 | G164: -6.057972143e-07 | H164: 1.610506567e-06 | J164: 5.940859103e-05 | K164: 0.001897034775 | L164: -2.915998831e-06 | M164: -0.003080568385 | N164: 2.37870653e-07
A165: 80.09641333 | B165: ='DF raw data'!J170 -> -4.892549e-06 | C165: ='DF raw data'!K170 -> -5.048551e-06 | D165: ='DF raw data'!L170 -> -2.6213154e-06 | F165: -4.895915074e-06 | G165: -5.061687755e-06 | H165: -2.623118865e-06 | J165: 5.696004598e-05 | K165: 0.001925521634 | L165: -5.447450111e-06 | M165: -0.003083292764 | N165: 2.395081067e-07
A166: 80.59653333 | B166: ='DF raw data'!J171 -> -2.4635433e-06 | C166: ='DF raw data'!K171 -> 4.8213735e-07 | D166: ='DF raw data'!L171 -> -9.5171117e-06 | F166: -2.465238218e-06 | G166: 4.83391912e-07 | H166: -9.523659473e-06 | J166: 5.572713104e-05 | K166: 0.001953391886 | L166: -5.205696148e-06 | M166: -0.003085896236 | N166: 2.410747888e-07
A167: 81.09665333 | B167: ='DF raw data'!J172 -> -2.4588649e-06 | C167: ='DF raw data'!K172 -> -7.6046167e-06 | D167: ='DF raw data'!L172 -> -7.3838587e-06 | F167: -2.460556599e-06 | G167: -7.624404553e-06 | H167: -7.388938795e-06 | J167: 5.449655748e-05 | K167: 0.001980646705 | L167: -9.018813353e-06 | M167: -0.003090406725 | N167: 2.426007618e-07
A168: 81.59677333 | B168: ='DF raw data'!J173 -> -5.7755155e-06 | C168: ='DF raw data'!K173 -> -5.2993969e-06 | D168: ='DF raw data'!L173 -> -5.6637641e-06 | F168: -5.779489055e-06 | G168: -5.313186377e-06 | H168: -5.66766077e-06 | J168: 5.160611941e-05 | K168: 0.002006455957 | L168: -1.167604412e-05 | M168: -0.003096246148 | N168: 2.440008585e-07
A169: 82.09689333 | B169: ='DF raw data'!J174 -> -1.0416732e-05 | C169: ='DF raw data'!K174 -> 4.2712049e-06 | D169: ='DF raw data'!L174 -> -9.105278e-06 | F169: -1.042389871e-05 | G169: 4.282318935e-06 | H169: -9.111542431e-06 | J169: 4.639291919e-05 | K169: 0.002029657984 | L169: -9.534370779e-06 | M169: -0.003101014478 | N169: 2.451227313e-07
A170: 82.59701333 | B170: ='DF raw data'!J175 -> -9.1643142e-06 | C170: ='DF raw data'!K175 -> 3.9950096e-06 | D170: ='DF raw data'!L175 -> 1.3343972e-06 | F170: -9.170619248e-06 | G170: 4.005404952e-06 | H170: 1.335315265e-06 | J170: 4.180650909e-05 | K170: 0.002050566255 | L170: -7.531187654e-06 | M170: -0.003104780976 | N170: 2.460251994e-07
A171: 83.09713333 | B171: ='DF raw data'!J176 -> -1.4576275e-06 | C171: ='DF raw data'!K176 -> -3.0161866e-06 | D171: ='DF raw data'!L176 -> 3.3785993e-06 | F171: -1.458630348e-06 | G171: -3.024034972e-06 | H171: 3.380923776e-06 | J171: 4.107701888e-05 | K171: 0.002071109694 | L171: -9.043568024e-06 | M171: -0.003109303845 | N171: 2.469099654e-07
A172: 83.59725333 | B172: ='DF raw data'!J177 -> -1.9098502e-06 | C172: ='DF raw data'!K177 -> 1.6208065e-06 | D172: ='DF raw data'!L177 -> -5.6417398e-06 | F172: -1.911164177e-06 | G172: 1.625023975e-06 | H172: -5.645621317e-06 | J172: 4.012120745e-05 | K172: 0.002091175112 | L172: -8.230861034e-06 | M172: -0.003113420263 | N172: 2.477488959e-07
A173: 84.09737333 | B173: ='DF raw data'!J178 -> -7.5991106e-06 | C173: ='DF raw data'!K178 -> 3.3991234e-06 | D173: ='DF raw data'!L178 -> -1.6483598e-06 | F173: -7.604338788e-06 | G173: 3.407968205e-06 | H173: -1.649493872e-06 | J173: 3.631812554e-05 | K173: 0.002109338533 | L173: -6.526467975e-06 | M173: -0.00311668428 | N173: 2.484298598e-07
A174: 84.59749333 | B174: ='DF raw data'!J179 -> -8.9771547e-06 | C174: ='DF raw data'!K179 -> -4.1935459e-06 | D174: ='DF raw data'!L179 -> 2.2746943e-07 | F174: -8.983330982e-06 | G174: -4.20445786e-06 | H174: 2.27625929e-07 | J174: 3.182538204e-05 | K174: 0.002125255043 | L174: -8.62920144e-06 | M174: -0.003120999916 | N174: 2.489736493e-07
A175: 85.09761333 | B175: ='DF raw data'!J180 -> -7.7313434e-06 | C175: ='DF raw data'!K180 -> -1.2727014e-05 | D175: ='DF raw data'!L180 -> -1.3371525e-06 | F175: -7.736662564e-06 | G175: -1.276013076e-05 | H175: -1.338072461e-06 | J175: 2.795612236e-05 | K175: 0.002139236459 | L175: -1.501079804e-05 | M175: -0.003128507117 | N175: 2.494772046e-07
A176: 85.59773333 | B176: ='DF raw data'!J181 -> -6.2142558e-06 | C176: ='DF raw data'!K181 -> -6.1261057e-06 | D176: ='DF raw data'!L181 -> -1.9022616e-06 | F176: -6.218531208e-06 | G176: -6.142046343e-06 | H176: -1.903570356e-06 | J176: 2.484611053e-05 | K176: 0.002151662496 | L176: -1.808255825e-05 | M176: -0.003137550566 | N176: 2.49949472e-07
A177: 86.09785333 | B177: ='DF raw data'!J182 -> -2.7419505e-06 | C177: ='DF raw data'!K182 -> -1.4756373e-06 | D177: ='DF raw data'!L182 -> 2.7384169e-06 | F177: -2.743836962e-06 | G177: -1.479477033e-06 | H177: 2.740300931e-06 | J177: 2.347386279e-05 | K177: 0.002163402244 | L177: -1.882247431e-05 | M177: -0.003146964062 | N177: 2.504022345e-07
A178: 86.59797333 | B178: ='DF raw data'!J183 -> 5.5480646e-06 | C178: ='DF raw data'!K183 -> -9.3725212e-06 | D178: ='DF raw data'!L183 -> 5.312862e-06 | F178: 5.551881668e-06 | G178: -9.39690929e-06 | H178: 5.316517249e-06 | J178: 2.625046985e-05 | K178: 0.002176530629 | L178: -2.352205658e-05 | M178: -0.003158727913 | N178: 2.510235707e-07
A179: 87.09809333 | B179: ='DF raw data'!J184 -> 1.2543542e-05 | C179: ='DF raw data'!K184 -> -6.7757687e-06 | D179: ='DF raw data'!L184 -> 1.5005801e-06 | F179: 1.255217196e-05 | G179: -6.793399821e-06 | H179: 1.501612499e-06 | J179: 3.252806209e-05 | K179: 0.002192798564 | L179: -2.69195717e-05 | M179: -0.003172190929 | N179: 2.519151537e-07
A180: 87.59821333 | B180: ='DF raw data'!J185 -> 1.2157392e-05 | C180: ='DF raw data'!K185 -> 6.5214549e-06 | D180: ='DF raw data'!L185 -> -3.0270955e-06 | F180: 1.216575629e-05 | G180: 6.538424275e-06 | H180: -3.029178142e-06 | J180: 3.861240013e-05 | K180: 0.002212109397 | L180: -2.364957495e-05 | M180: -0.003184018554 | N180: 2.529405097e-07
A181: 88.09833333 | B181: ='DF raw data'!J186 -> 1.2515638e-05 | C181: ='DF raw data'!K186 -> 9.7086267e-06 | D181: ='DF raw data'!L186 -> -5.0309013e-06 | F181: 1.252424876e-05 | G181: 9.733889365e-06 | H181: -5.03436256e-06 | J181: 4.487602742e-05 | K181: 0.002234552796 | L181: -1.87814622e-05 | M181: -0.003193411539 | N181: 2.541240942e-07
A182: 88.59845333 | B182: ='DF raw data'!J187 -> 1.3366496e-05 | C182: ='DF raw data'!K187 -> 4.9723635e-06 | D182: ='DF raw data'!L187 -> -9.770155e-06 | F182: 1.337569215e-05 | G182: 4.985302009e-06 | H182: -9.776876867e-06 | J182: 5.156547857e-05 | K182: 0.002260341723 | L182: -1.628821296e-05 | M182: -0.0032015576 | N182: 2.555865974e-07
A183: 89.09857333 | B183: ='DF raw data'!J188 -> 8.4284347e-06 | C183: ='DF raw data'!K188 -> 7.6019455e-06 | D183: ='DF raw data'!L188 -> -1.3795739e-05 | F183: 8.434233463e-06 | G183: 7.621726403e-06 | H183: -1.380523047e-05 | J183: 5.578360741e-05 | K183: 0.002288240221 | L183: -1.247643515e-05 | M183: -0.003207797315 | N183: 2.572207256e-07
A184: 89.59869333 | B184: ='DF raw data'!J189 -> 5.0786125e-06 | C184: ='DF raw data'!K189 -> -5.2800501e-06 | D184: ='DF raw data'!L189 -> -1.1233808e-05 | F184: 5.082106585e-06 | G184: -5.293789235e-06 | H184: -1.124153686e-05 | J184: 5.832527056e-05 | K184: 0.002317409855 | L184: -1.512396503e-05 | M184: -0.003215361112 | N184: 2.590364471e-07
A185: 90.09881333 | B185: ='DF raw data'!J190 -> 4.6853906e-06 | C185: ='DF raw data'!K190 -> -1.1495434e-06 | D185: ='DF raw data'!L190 -> -1.6713227e-06 | F185: 4.688614149e-06 | G185: -1.152534609e-06 | H185: -1.67247257e-06 | J185: 6.067014027e-05 | K185: 0.002347752206 | L185: -1.570037063e-05 | M185: -0.003223213182 | N185: 2.610006021e-07
A186: 90.59893333 | B186: ='DF raw data'!J191 -> 5.823736e-06 | C186: ='DF raw data'!K191 -> 7.6651922e-06 | D186: ='DF raw data'!L191 -> 3.8856101e-06 | F186: 5.82774273e-06 | G186: 7.685137676e-06 | H186: 3.8882834e-06 | J186: 6.358471096e-05 | K186: 0.002379552191 | L186: -1.185687958e-05 | M186: -0.003229143044 | N186: 2.630929047e-07
A187: 91.09905333 | B187: ='DF raw data'!J192 -> 8.7779354e-06 | C187: ='DF raw data'!K192 -> -4.6913669e-06 | D187: ='DF raw data'!L192 -> -2.2441516e-06 | F187: 8.78397462e-06 | G187: -4.703574232e-06 | H187: -2.245695576e-06 | J187: 6.797775235e-05 | K187: 0.002413549225 | L187: -1.420923112e-05 | M187: -0.003236249365 | N187: 2.65504922e-07
A188: 91.59917333 | B188: ='DF raw data'!J193 -> 1.0193895e-05 | C188: ='DF raw data'!K193 -> 2.0196201e-06 | D188: ='DF raw data'!L193 -> -4.9222203e-06 | F188: 1.02009084e-05 | G188: 2.024875322e-06 | H188: -4.925606788e-06 | J188: 7.307943066e-05 | K188: 0.00245009771 | L188: -1.319655048e-05 | M188: -0.003242849224 | N188: 2.682629598e-07
A189: 92.09929333 | B189: ='DF raw data'!J194 -> 5.6738222e-06 | C189: ='DF raw data'!K194 -> 8.0497302e-06 | D189: ='DF raw data'!L194 -> -3.6214176e-06 | F189: 5.67772579e-06 | G189: 8.070676276e-06 | H189: -3.623909135e-06 | J189: 7.591897488e-05 | K189: 0.002488066307 | L189: -9.160243859e-06 | M189: -0.003247430445 | N189: 2.711874619e-07
A190: 92.59941333 | B190: ='DF raw data'!J195 -> 1.8475417e-06 | C190: ='DF raw data'!K195 -> 8.4432068e-06 | D190: ='DF raw data'!L195 -> -1.7330156e-06 | F190: 1.848812809e-06 | G190: 8.465176735e-06 | H190: -1.734207915e-06 | J190: 7.684360314e-05 | K190: 0.00252649733 | L190: -4.92663967e-06 | M190: -0.003249894356 | N190: 2.74152779e-07
A191: 93.09953333 | B191: ='DF raw data'!J196 -> 4.4699277e-06 | C191: ='DF raw data'!K196 -> 8.0764148e-06 | D191: ='DF raw data'!L196 -> -1.4285968e-06 | F191: 4.47300301e-06 | G191: 8.097430312e-06 | H191: -1.429579675e-06 | J191: 7.908064141e-05 | K191: 0.002566047141 | L191: -8.769528229e-07 | M191: -0.003250332938 | N191: 2.77280788e-07
A192: 93.59965333 | B192: ='DF raw data'!J197 -> 4.9048626e-06 | C192: ='DF raw data'!K197 -> 1.1942331e-05 | D192: ='DF raw data'!L197 -> -1.2983498e-06 | F192: 4.908237145e-06 | G192: 1.197340595e-05 | H192: -1.299243065e-06 | J192: 8.153534897e-05 | K192: 0.002606824599 | L192: 5.111186962e-06 | M192: -0.003247776731 | N192: 2.806186575e-07
A193: 94.09977333 | B193: ='DF raw data'!J198 -> 3.1678442e-06 | C193: ='DF raw data'!K198 -> 7.0340789e-06 | D193: ='DF raw data'!L198 -> 7.3607339e-07 | F193: 3.170023677e-06 | G193: 7.052382166e-06 | H193: 7.365798085e-07 | J193: 8.312074121e-05 | K193: 0.002648394944 | L193: 8.63822433e-06 | M193: -0.003243456582 | N193: 2.841113339e-07
A194: 94.59989333 | B194: ='DF raw data'!J199 -> 3.135408e-06 | C194: ='DF raw data'!K199 -> 3.495112e-07 | D194: ='DF raw data'!L199 -> -9.5300379e-07 | F194: 3.137565161e-06 | G194: 3.504206576e-07 | H194: -9.536594566e-07 | J194: 8.46899003e-05 | K194: 0.002690750057 | L194: 8.81347671e-06 | M194: -0.003239048786 | N194: 2.877372322e-07
A195: 95.10001333 | B195: ='DF raw data'!J200 -> 4.0231039e-06 | C195: ='DF raw data'!K200 -> 5.8918117e-06 | D195: ='DF raw data'!L200 -> -2.8915226e-06 | F195: 4.025871795e-06 | G195: 5.90714269e-06 | H195: -2.893511968e-06 | J195: 8.67033193e-05 | K195: 0.002734112121 | L195: 1.176775691e-05 | M195: -0.003233163495 | N195: 2.915661237e-07
A196: 95.60013333 | B196: ='DF raw data'!J201 -> 5.3671042e-06 | C196: ='DF raw data'!K201 -> -9.276522e-07 | D196: ='DF raw data'!L201 -> -1.2362899e-05 | F196: 5.370796768e-06 | G196: -9.300660292e-07 | H196: -1.237140467e-05 | J196: 8.938936218e-05 | K196: 0.002778817529 | L196: 1.130261229e-05 | M196: -0.003227510833 | N196: 2.956262015e-07
A197: 96.10025333 | B197: ='DF raw data'!J202 -> 6.1257101e-06 | C197: ='DF raw data'!K202 -> -8.6760374e-06 | D197: ='DF raw data'!L202 -> -1.1503485e-05 | F197: 6.129924589e-06 | G197: -8.69861318e-06 | H197: -1.15113994e-05 | J197: 9.245506006e-05 | K197: 0.002825056154 | L197: 6.952261866e-06 | M197: -0.003224033868 | N197: 2.99925369e-07
A198: 96.60037333 | B198: ='DF raw data'!J203 -> 5.9923491e-06 | C198: ='DF raw data'!K203 -> 1.352753e-06 | D198: ='DF raw data'!L203 -> -7.5254852e-06 | F198: 5.996471836e-06 | G198: 1.356272977e-06 | H198: -7.530662734e-06 | J198: 9.545401556e-05 | K198: 0.002872794616 | L198: 7.630561107e-06 | M198: -0.003220217672 | N198: 3.045113167e-07
A199: 97.10049333 | B199: ='DF raw data'!J204 -> 3.724535e-06 | C199: ='DF raw data'!K204 -> 8.1117723e-06 | D199: ='DF raw data'!L204 -> -5.6134509e-06 | F199: 3.72709748e-06 | G199: =(1-$G$1*($B$2-$G$2))*C199*$M$2/$M$1 -> 8.132879815e-06 | H199: -5.617312954e-06 | J199: 9.731801155e-05 | K199: 0.0029214653 | L199: 1.169797696e-05 | M199: -0.003214367279 | N199: 3.093162886e-07
A200: =A199+$B$1 -> 97.60061333 | B200: ='DF raw data'!J205 -> 8.8826347e-08 | C200: ='DF raw data'!K205 -> 2.3425162e-06 | D200: ='DF raw data'!L205 -> -2.7895646e-06 | F200: 8.888745953e-08 | G200: 2.348611625e-06 | H200: -2.79148382e-06 | J200: =F200*$B$1+J199 -> 9.736246595e-05 | K200: =J200*$B$1+K199 -> 0.002970158217 | L200: =G200*$B$1+L199 -> 1.287256461e-05 | M200: =L200*$B$1+M199 -> -0.003207929452 | N200: =(J200^2+L200^2)*$B$1+N199 -> 3.141400224e-07
A201: 98.10073333 | B201: ='DF raw data'!J206 -> -1.1680662e-06 | C201: ='DF raw data'!K206 -> -1.2967987e-05 | D201: ='DF raw data'!L206 -> 3.4544075e-06 | F201: -1.16886983e-06 | G201: -1.300173079e-05 | H201: 3.456784132e-06 | J201: 9.677789077e-05 | K201: 0.003018558775 | L201: 6.370139001e-06 | M201: -0.003204743618 | N201: 3.188444206e-07
... 1002 more rows

Sheet 10 x=2
A1: dz | B1: ='DF raw data'!N7 -> 0.50012 | C1: mm | F1: T_coeff | G1: -0.0008 | H1: /degC | L1: Hallref | M1: ='PI vs x'!B44 -> 0.50555 | N1: T | P1: IBy total | Q1: =L1203*1000 -> 9.751343246 | R1: muTm | X1: DF ref | Y1: 21
A2: Tref | B2: ='DF raw data'!N8 -> 20.91 | C2: degC | F2: Tcorr | G2: 20 | H2: degC | L2: NMRref | M2: ='PI vs x'!B45 -> 0.506517 | N2: T | P2: JBy total | Q2: =M1203 -> 1.781947537 | R2: muTm^2
A3: Encoder | B3: ='DF raw data'!N9 -> 15632212 | P3: PI total | Q3: =N1203 -> 708.3984728 | R3: T^2mm^3
A5: z [mm] | B5: Bx | C5: By | D5: Bz | F5: Bx_corr | G5: By_corr | H5: Bz_corr | J5: Ix | K5: Jx | L5: Iy | M5: Jy | N5: PI
A6: ='PI vs x'!B53 -> 0.5773333333 | B6: ='DF raw data'!M11 -> 1.1090882e-05 | C6: ='DF raw data'!N11 -> 3.2548282e-06 | D6: ='DF raw data'!O11 -> -8.5700531e-06 | F6: =(1-$G$1*($B$2-$G$2))*B6 -> 1.109895616e-05 | G6: =(1-$G$1*($B$2-$G$2))*C6*$M$2/$M$1 -> 3.263427979e-06 | H6: =(1-$G$1*($B$2-$G$2))*D6 -> -8.576292099e-06 | J6: =F6*$B$1 -> 5.550809956e-06 | K6: =J6*$B$1 -> 2.776071075e-06 | L6: =G6*$B$1 -> 1.632105601e-06 | M6: =L6*$B$1 -> 8.162486532e-07 | N6: =(J6^2+L6^2)*$B$1 -> 1.674164696e-11
A7: =A6+$B$1 -> 1.077453333 | B7: ='DF raw data'!M12 -> 1.1060782e-05 | C7: ='DF raw data'!N12 -> 4.0864811e-06 | D7: ='DF raw data'!O12 -> -8.4876601e-06 | F7: =(1-$G$1*($B$2-$G$2))*B7 -> 1.106883425e-05 | G7: =(1-$G$1*($B$2-$G$2))*C7*$M$2/$M$1 -> 4.09727824e-06 | H7: -8.493839117e-06 | J7: =F7*$B$1+J6 -> 1.108655534e-05 | K7: =J7*$B$1+K6 -> 8.320679132e-06 | L7: =G7*$B$1+L6 -> 3.681236394e-06 | M7: =L7*$B$1+M6 -> 2.657308599e-06 | N7: =(J7^2+L7^2)*$B$1+N6 -> 8.49896279e-11
A8: =A7+$B$1 -> 1.577573333 | B8: ='DF raw data'!M13 -> 1.1395658e-05 | C8: ='DF raw data'!N13 -> -4.1710578e-06 | D8: ='DF raw data'!O13 -> -3.0542512e-06 | F8: 1.140395404e-05 | G8: -4.182078405e-06 | H8: -3.056474695e-06 | J8: =F8*$B$1+J7 -> 1.678990083e-05 | K8: =J8*$B$1+K7 -> 1.671764434e-05 | L8: =G8*$B$1+L7 -> 1.589695342e-06 | M8: =L8*$B$1+M7 -> 3.452347033e-06 | N8: =(J8^2+L8^2)*$B$1+N7 -> 2.272377099e-10
A9: 2.077693333 | B9: ='DF raw data'!M14 -> 1.1065184e-05 | C9: ='DF raw data'!N14 -> 5.5177529e-06 | D9: ='DF raw data'!O14 -> 1.296655e-06 | F9: 1.107323945e-05 | G9: 5.53233169e-06 | H9: 1.297598965e-06 | J9: 2.232784935e-05 | K9: 2.788424835e-05 | L9: 4.356525067e-06 | M9: 5.63113235e-06 | N9: 4.86055895e-10
A10: 2.577813333 | B10: ='DF raw data'!M15 -> 1.1739017e-05 | C10: ='DF raw data'!N15 -> -1.366854e-05 | D10: ='DF raw data'!O15 -> -3.6908466e-06 | F10: 1.1747563e-05 | G10: -1.370465448e-05 | H10: -3.693533536e-06 | J10: 2.820304056e-05 | K10: 4.1989153e-05 | L10: -2.497446731e-06 | M10: 4.382109291e-06 | N10: 8.869764614e-10
A11: 3.077933333 | B11: ='DF raw data'!M16 -> 1.1751838e-05 | C11: ='DF raw data'!N16 -> -1.3452524e-05 | D11: ='DF raw data'!O16 -> -1.1598611e-06 | F11: 1.176039334e-05 | G11: -1.348806773e-05 | H11: -1.160705479e-06 | J11: 3.408464848e-05 | K11: 5.90355674e-05 | L11: -9.243099165e-06 | M11: -2.405494635e-07 | N11: 1.510725197e-09
A12: 3.578053333 | B12: ='DF raw data'!M17 -> 1.1451464e-05 | C12: ='DF raw data'!N17 -> -4.4136309e-06 | D12: ='DF raw data'!O17 -> 3.3820609e-06 | F12: 1.145980067e-05 | G12: -4.425292422e-06 | H12: 3.38452304e-06 | J12: 3.981592399e-05 | K12: 7.89483073e-05 | L12: -1.145627641e-05 | M12: -5.970062422e-06 | N12: 2.36920822e-09
A13: 4.078173333 | B13: ='DF raw data'!M18 -> 1.1213904e-05 | C13: ='DF raw data'!N18 -> 7.9056321e-07 | D13: ='DF raw data'!O18 -> -4.022681e-06 | F13: 1.122206772e-05 | G13: 7.926520051e-07 | H13: -4.025609512e-06 | J13: 4.542830449e-05 | K13: 0.0001016679109 | L13: -1.105985529e-05 | M13: -1.150131725e-05 | N13: 3.46249617e-09
A14: 4.578293333 | B14: ='DF raw data'!M19 -> 1.1433638e-05 | C14: ='DF raw data'!N19 -> -6.0172883e-06 | D14: ='DF raw data'!O19 -> -8.6397349e-06 | F14: 1.144196169e-05 | G14: -6.033186943e-06 | H14: -8.646024627e-06 | J14: 5.115065837e-05 | K14: 0.0001272493782 | L14: -1.407717274e-05 | M14: -1.854159288e-05 | N14: 4.870112239e-09
A15: 5.078413333 | B15: ='DF raw data'!M20 -> 1.1233862e-05 | C15: ='DF raw data'!N20 -> 1.83156e-06 | D15: ='DF raw data'!O20 -> 5.7737411e-06 | F15: 1.124204025e-05 | G15: 1.836399276e-06 | H15: 5.777944384e-06 | J15: 5.677302754e-05 | K15: 0.0001556427047 | L15: -1.315875274e-05 | M15: -2.51225483e-05 | N15: 6.568684514e-09
A16: 5.578533333 | B16: ='DF raw data'!M21 -> 1.1278915e-05 | C16: ='DF raw data'!N21 -> -2.83259e-07 | D16: ='DF raw data'!O21 -> 4.1181855e-07 | F16: 1.128712605e-05 | G16: -2.840074158e-07 | H16: 4.121183539e-07 | J16: 6.241794502e-05 | K16: 0.0001868591674 | L16: -1.330079053e-05 | M16: -3.177453966e-05 | N16: 8.605628708e-09
A17: 6.078653333 | B17: ='DF raw data'!M22 -> 1.1392791e-05 | C17: ='DF raw data'!N22 -> -4.4768735e-06 | D17: ='DF raw data'!O22 -> -6.3572666e-06 | F17: 1.140108495e-05 | G17: -4.48870212e-06 | H17: -6.36189469e-06 | J17: 6.811985563e-05 | K17: 0.0002209272696 | L17: -1.554568023e-05 | M17: -3.954924526e-05 | N17: 1.1047206e-08
A18: 6.578773333 | B18: ='DF raw data'!M23 -> 1.1008045e-05 | C18: ='DF raw data'!N23 -> 8.2472734e-06 | D18: ='DF raw data'!O23 -> 6.904163e-06 | F18: 1.101605886e-05 | G18: 8.269064022e-06 | H18: 6.909189231e-06 | J18: 7.362920699e-05 | K18: 0.0002577507086 | L18: -1.141015593e-05 | M18: -4.525569244e-05 | N18: 1.382359806e-08
A19: 7.078893333 | B19: ='DF raw data'!M24 -> 1.1132137e-05 | C19: ='DF raw data'!N24 -> 5.3843264e-06 | D19: ='DF raw data'!O24 -> 1.0428738e-05 | F19: 1.11402412e-05 | G19: 5.398552656e-06 | H19: 1.043633012e-05 | J19: 7.920066441e-05 | K19: 0.0002973605449 | L19: -8.710231778e-06 | M19: -4.961185356e-05 | N19: 1.699866659e-08
A20: 7.579013333 | B20: ='DF raw data'!M25 -> 1.1068458e-05 | C20: ='DF raw data'!N25 -> 6.6573571e-06 | D20: ='DF raw data'!O25 -> 8.1859316e-06 | F20: 1.107651584e-05 | G20: 6.674946908e-06 | H20: 8.191890958e-06 | J20: 8.474025151e-05 | K20: 0.0003397408395 | L20: -5.371957331e-06 | M20: -5.229847686e-05 | N20: 2.060441583e-08
A21: 8.079133333 | B21: ='DF raw data'!M26 -> 1.118547e-05 | C21: ='DF raw data'!N26 -> 3.1487557e-06 | D21: ='DF raw data'!O26 -> 6.4762203e-06 | F21: 1.119361302e-05 | G21: 3.157075219e-06 | H21: 6.480934988e-06 | J21: 9.033840126e-05 | K21: 0.0003849208807 | L21: -3.793040872e-06 | M21: -5.419545246e-05 | N21: 2.469310383e-08
A22: 8.579253333 | B22: ='DF raw data'!M27 -> 1.0333077e-05 | C22: ='DF raw data'!N27 -> -4.7181079e-06 | D22: ='DF raw data'!O27 -> 5.1110687e-06 | F22: 1.034059948e-05 | G22: -4.7305739e-06 | H22: 5.114789558e-06 | J22: 9.550994187e-05 | K22: 0.0004326873128 | L22: -6.158895491e-06 | M22: -5.727563927e-05 | N22: 2.927424354e-08
A23: 9.079373333 | B23: ='DF raw data'!M28 -> 5.5062869e-06 | C23: ='DF raw data'!N28 -> -1.0177741e-06 | D23: ='DF raw data'!O28 -> 4.5166739e-06 | F23: =(1-$G$1*($B$2-$G$2))*B23 -> 5.510295477e-06 | G23: -1.020463223e-06 | H23: 4.519962039e-06 | J23: 9.826575084e-05 | K23: 0.0004818319802 | L23: -6.669249558e-06 | M23: -6.061106436e-05 | N23: 3.412572596e-08
A24: 9.579493333 | B24: ='DF raw data'!M29 -> -9.552582e-07 | C24: ='DF raw data'!N29 -> 4.3888263e-06 | D24: ='DF raw data'!O29 -> -2.4600602e-06 | F24: -9.55953628e-07 | G24: 4.400422285e-06 | H24: -2.461851124e-06 | J24: 9.778765932e-05 | K24: 0.0005307375443 | L24: -4.468510365e-06 | M24: -6.284585577e-05 | N24: 3.891807279e-08
A25: 10.07961333 | B25: ='DF raw data'!M30 -> -2.4802189e-06 | C25: ='DF raw data'!N30 -> 3.6992765e-06 | D25: ='DF raw data'!O30 -> -1.6574202e-06 | F25: -2.482024499e-06 | G25: 3.709050583e-06 | H25: -1.658626802e-06 | J25: 9.654634922e-05 | K25: 0.0005790223045 | L25: -2.613539987e-06 | M25: -6.415293939e-05 | N25: 4.358320623e-08
A26: 10.57973333 | B26: ='DF raw data'!M31 -> 7.3685875e-08 | C26: ='DF raw data'!N31 -> -2.8458621e-06 | D26: ='DF raw data'!O31 -> -6.7574069e-07 | F26: 7.373951832e-08 | G26: -2.853381325e-06 | H26: -6.762326292e-07 | J26: 9.658322783e-05 | K26: 0.0006273255084 | L26: -4.040573056e-06 | M26: -6.617371078e-05 | N26: 4.825665065e-08
A27: 11.07985333 | B27: ='DF raw data'!M32 -> 2.4960923e-06 | C27: ='DF raw data'!N32 -> -7.155561e-06 | D27: ='DF raw data'!O32 -> -2.8769792e-08 | F27: 2.497909455e-06 | G27: -7.174467143e-06 | H27: -2.879073641e-08 | J27: 9.783248231e-05 | K27: 0.0006762534895 | L27: -7.628667563e-06 | M27: -6.998896e-05 | N27: 5.307250176e-08
A28: 11.57997333 | B28: ='DF raw data'!M33 -> 7.6066958e-06 | C28: ='DF raw data'!N33 -> 1.2582254e-06 | D28: ='DF raw data'!O33 -> -2.9627415e-06 | F28: 7.612233475e-06 | G28: 1.261549834e-06 | H28: -2.964898376e-06 | J28: 0.0001016395125 | K28: 0.0007270854425 | L28: -6.99774126e-06 | M28: -7.348867036e-05 | N28: 5.826352675e-08
A29: 12.08009333 | B29: ='DF raw data'!M34 -> 1.0942096e-05 | C29: ='DF raw data'!N34 -> 2.9676935e-06 | D29: ='DF raw data'!O34 -> 8.6744626e-07 | F29: 1.095006185e-05 | G29: 2.975534623e-06 | H29: 8.680777609e-07 | J29: 0.0001071158574 | K29: 0.0007806562251 | L29: -5.509616884e-06 | M29: -7.624413996e-05 | N29: 6.401698864e-08
A30: 12.58021333 | B30: ='DF raw data'!M35 -> 7.4983641e-06 | C30: ='DF raw data'!N35 -> -5.806674e-07 | D30: ='DF raw data'!O35 -> 2.9573778e-06 | F30: 7.503822909e-06 | G30: -5.822016166e-07 | H30: 2.959530771e-06 | J30: 0.0001108686694 | K30: 0.000836103864 | L30: -5.800787557e-06 | M30: -7.914522983e-05 | N30: 7.018122319e-08
A31: 13.08033333 | B31: ='DF raw data'!M36 -> 9.2689534e-06 | C31: ='DF raw data'!N36 -> -4.0090804e-06 | D31: ='DF raw data'!O36 -> 7.1591344e-06 | F31: 9.275701198e-06 | G31: -4.019673035e-06 | H31: 7.16434625e-06 | J31: 0.000115507633 | K31: 0.0008938715414 | L31: -7.811106435e-06 | M31: -8.305172038e-05 | N31: 7.68843449e-08
A32: 13.58045333 | B32: ='DF raw data'!M37 -> 1.1988997e-05 | C32: ='DF raw data'!N37 -> 1.08914e-05 | D32: ='DF raw data'!O37 -> 2.0416999e-07 | F32: 1.199772499e-05 | G32: 1.092017683e-05 | H32: 2.043186258e-07 | J32: 0.0001215079353 | K32: 0.00095464009 | L32: -2.349707599e-06 | M32: -8.422685615e-05 | N32: 8.427096699e-08
A33: 14.08057333 | B33: ='DF raw data'!M38 -> 1.1923179e-05 | C33: ='DF raw data'!N38 -> -2.5108261e-06 | D33: ='DF raw data'!O38 -> -6.6672078e-06 | F33: 1.193185907e-05 | G33: -2.517460106e-06 | H33: -6.672061527e-06 | J33: 0.0001274752966 | K33: 0.001018393035 | L33: -3.608739747e-06 | M33: -8.603165907e-05 | N33: 9.240440567e-08
A34: 14.58069333 | B34: ='DF raw data'!M39 -> 1.2773105e-05 | C34: ='DF raw data'!N39 -> -2.1675173e-06 | D34: ='DF raw data'!O39 -> -6.4468481e-06 | F34: 1.278240382e-05 | G34: -2.173244229e-06 | H34: -6.451541405e-06 | J34: 0.0001338680324 | K34: 0.001085343116 | L34: -4.695622651e-06 | M34: -8.838003387e-05 | N34: 1.013779083e-07
A35: 15.08081333 | B35: ='DF raw data'!M40 -> 8.5561423e-06 | C35: ='DF raw data'!N40 -> 1.224475e-05 | D35: ='DF raw data'!O40 -> -1.1086747e-06 | F35: 8.562371172e-06 | G35: 1.22771026e-05 | H35: -1.109481815e-06 | J35: 0.0001381502455 | K35: 0.001154434817 | L35: 1.4444019e-06 | M35: -8.765765959e-05 | N35: 1.109239871e-07
A36: 15.58093333 | B36: ='DF raw data'!M41 -> 1.6328217e-06 | C36: ='DF raw data'!N41 -> 4.0481877e-06 | D36: ='DF raw data'!O41 -> -2.6784917e-06 | F36: 1.634010394e-06 | G36: 4.058883663e-06 | H36: -2.680441642e-06 | J36: 0.0001389674468 | K36: 0.001223935216 | L36: 3.474330798e-06 | M36: -8.592007727e-05 | N36: 1.205883171e-07
A37: 16.08105333 | B37: ='DF raw data'!M42 -> -3.2163275e-06 | C37: ='DF raw data'!N42 -> 3.1667673e-06 | D37: ='DF raw data'!O42 -> -3.6746721e-06 | F37: -3.218668986e-06 | G37: 3.175134408e-06 | H37: -3.677347261e-06 | J37: 0.000137357726 | K37: 0.001292630562 | L37: 5.062279018e-06 | M37: -8.338833029e-05 | N37: 1.3003697e-07
A38: 16.58117333 | B38: ='DF raw data'!M43 -> -5.4148527e-06 | C38: ='DF raw data'!N43 -> 3.8608573e-06 | D38: ='DF raw data'!O43 -> 1.8353538e-07 | F38: -5.418794713e-06 | G38: 3.871058306e-06 | H38: 1.836689938e-07 | J38: 0.0001346476784 | K38: 0.001359970559 | L38: 6.998272698e-06 | M38: -7.988835415e-05 | N38: 1.391286381e-07
A39: 17.08129333 | B39: ='DF raw data'!M44 -> -2.5091845e-06 | C39: ='DF raw data'!N44 -> -2.7998271e-06 | D39: ='DF raw data'!O44 -> 5.6188724e-06 | F39: -2.511011186e-06 | G39: -2.807224693e-06 | H39: 5.622962939e-06 | J39: 0.0001333918715 | K39: 0.001426682502 | L39: 5.594323484e-06 | M39: -7.709052109e-05 | N39: 1.480431209e-07
A40: 17.58141333 | B40: ='DF raw data'!M45 -> 2.4443077e-07 | C40: ='DF raw data'!N45 -> 7.6974669e-07 | D40: ='DF raw data'!O45 -> 5.8323126e-06 | F40: 2.446087156e-07 | G40: 7.717804845e-07 | H40: 5.836558524e-06 | J40: 0.0001335142052 | K40: 0.001493455626 | L40: 5.98030634e-06 | M40: -7.409965028e-05 | N40: 1.569761679e-07
A41: 18.08153333 | B41: ='DF raw data'!M46 -> 1.1293982e-06 | C41: ='DF raw data'!N46 -> -6.5157788e-06 | D41: ='DF raw data'!O46 -> 7.3964688e-06 | F41: 1.130220402e-06 | G41: -6.532994535e-06 | H41: 7.401853429e-06 | J41: 0.000134079451 | K41: 0.001560511441 | L41: 2.713025113e-06 | M41: -7.274281216e-05 | N41: 1.659706559e-07
A42: 18.58165333 | B42: ='DF raw data'!M47 -> -1.296617e-06 | C42: ='DF raw data'!N47 -> 6.11524e-06 | D42: ='DF raw data'!O47 -> -4.0984892e-06 | F42: -1.297560937e-06 | G42: 6.131397447e-06 | H42: -4.1014729e-06 | J42: 0.0001334305149 | K42: 0.00162724271 | L42: 5.779459604e-06 | M42: -6.985238882e-05 | N42: 1.748913486e-07
A43: 19.08177333 | B43: ='DF raw data'!M48 -> -4.2972001e-06 | C43: ='DF raw data'!N48 -> 1.8274272e-06 | D43: ='DF raw data'!O48 -> -7.2337793e-06 | F43: -4.300328462e-06 | G43: 1.832255556e-06 | H43: -7.239045491e-06 | J43: 0.0001312798346 | K43: 0.001692898381 | L43: 6.695807253e-06 | M43: -6.65036817e-05 | N43: 1.835330365e-07
A44: 19.58189333 | B44: ='DF raw data'!M49 -> -3.2306102e-06 | C44: ='DF raw data'!N49 -> 1.7374964e-06 | D44: ='DF raw data'!O49 -> -4.5151178e-06 | F44: -3.232962084e-06 | G44: 1.742087145e-06 | H44: -4.518404806e-06 | J44: 0.0001296629656 | K44: 0.001757745423 | L44: 7.567059876e-06 | M44: -6.271924372e-05 | N44: 1.919699334e-07
A45: 20.08201333 | B45: ='DF raw data'!M50 -> -6.2315353e-06 | C45: ='DF raw data'!N50 -> -1.7158659e-06 | D45: ='DF raw data'!O50 -> -4.3225086e-06 | F45: -6.236071858e-06 | G45: -1.720399494e-06 | H45: -4.325655386e-06 | J45: 0.0001265441813 | K45: 0.001821032699 | L45: 6.706653681e-06 | M45: -5.936511208e-05 | N45: 2.000010649e-07
A46: 20.58213333 | B46: ='DF raw data'!M51 -> -7.6948836e-06 | C46: ='DF raw data'!N51 -> 1.0124729e-05 | D46: ='DF raw data'!O51 -> 7.6390561e-06 | F46: -7.700485475e-06 | G46: 1.015148016e-05 | H46: 7.644617333e-06 | J46: 0.0001226930146 | K46: 0.00188239393 | L46: 1.178361194e-05 | M46: -5.347189207e-05 | N46: 2.075991027e-07
A47: 21.08225333 | B47: ='DF raw data'!M52 -> -8.0126983e-07 | C47: ='DF raw data'!N52 -> 5.2025985e-06 | D47: ='DF raw data'!O52 -> 1.7837738e-05 | F47: -8.018531544e-07 | G47: 5.216344602e-06 | H47: 1.785072387e-05 | J47: 0.0001222919918 | K47: 0.001943554601 | L47: 1.43924102e-05 | M47: -4.627395988e-05 | N47: 2.151821585e-07
A48: 21.58237333 | B48: ='DF raw data'!M53 -> 3.4104255e-06 | C48: ='DF raw data'!N53 -> 1.1121242e-06 | D48: ='DF raw data'!O53 -> 1.14735e-05 | F48: 3.41290829e-06 | G48: 1.115062611e-06 | H48: 1.148185271e-05 | J48: 0.0001239988554 | K48: 0.002005568908 | L48: 1.495007532e-05 | M48: -3.879712822e-05 | N48: 2.229836409e-07
A49: 22.08249333 | B49: ='DF raw data'!M54 -> 2.7526717e-06 | C49: ='DF raw data'!N54 -> -2.7253759e-06 | D49: ='DF raw data'!O54 -> 8.4898193e-06 | F49: 2.754675645e-06 | G49: -2.732576781e-06 | H49: 8.495999888e-06 | J49: 0.0001253765238 | K49: 0.002068272215 | L49: 1.358345902e-05 | M49: -3.200376869e-05 | N49: 2.309374409e-07
A50: 22.58261333 | B50: ='DF raw data'!M55 -> 7.1561453e-07 | C50: ='DF raw data'!N55 -> -3.2341327e-06 | D50: ='DF raw data'!O55 -> 5.9663503e-06 | F50: 7.161354974e-07 | G50: -3.242677799e-06 | H50: 5.970693803e-06 | J50: 0.0001257346775 | K50: 0.002131154642 | L50: 1.196173099e-05 | M50: -2.602146779e-05 | N50: 2.389155012e-07
A51: 23.08273333 | B51: ='DF raw data'!M56 -> -2.990249e-06 | C51: ='DF raw data'!N56 -> 1.1953794e-06 | D51: ='DF raw data'!O56 -> -5.2456821e-06 | F51: -2.992425901e-06 | G51: 1.198537785e-06 | H51: -5.249500957e-06 | J51: 0.0001242381055 | K51: 0.002193288604 | L51: 1.256114371e-05 | M51: -1.97393886e-05 | N51: 2.46713817e-07
A52: 23.58285333 | B52: ='DF raw data'!M57 -> -5.4989628e-06 | C52: ='DF raw data'!N57 -> -6.4829496e-06 | D52: ='DF raw data'!O57 -> -2.9691298e-06 | F52: -5.502966045e-06 | G52: -6.500078595e-06 | H52: -2.971291326e-06 | J52: 0.0001214859621 | K52: 0.002254046163 | L52: 9.310324404e-06 | M52: -1.508310915e-05 | N52: 2.54138359e-07
A53: 24.08297333 | B53: ='DF raw data'!M58 -> -7.5999683e-06 | C53: ='DF raw data'!N58 -> 5.2962655e-06 | D53: ='DF raw data'!O58 -> -1.9082588e-06 | F53: -7.605501077e-06 | G53: 5.310259085e-06 | H53: -1.909648012e-06 | J53: 0.0001176822989 | K53: 0.002312901434 | L53: 1.196609118e-05 | M53: -9.098627634e-06 | N53: 2.611361935e-07
A54: 24.58309333 | B54: ='DF raw data'!M59 -> -4.8028937e-06 | C54: ='DF raw data'!N59 -> 5.3148119e-06 | D54: ='DF raw data'!O59 -> -2.6744972e-06 | F54: -4.806390207e-06 | G54: 5.328854487e-06 | H54: -2.676444234e-06 | J54: 0.000115278527 | K54: 0.002370554531 | L54: 1.463115788e-05 | M54: -1.781292953e-06 | N54: 2.678894186e-07
A55: 25.08321333 | B55: ='DF raw data'!M60 -> -1.5126184e-06 | C55: ='DF raw data'!N60 -> 7.8193743e-06 | D55: ='DF raw data'!O60 -> -3.3706535e-06 | F55: -1.513719586e-06 | G55: 7.840034344e-06 | H55: -3.373107336e-06 | J55: 0.0001145214856 | K55: 0.002427829017 | L55: 1.855211586e-05 | M55: 7.496991231e-06 | N55: 2.746207096e-07
A56: 25.58333333 | B56: ='DF raw data'!M61 -> -7.0988381e-07 | C56: ='DF raw data'!N61 -> 1.1269401e-05 | D56: ='DF raw data'!O61 -> -2.7405847e-06 | F56: -7.104006054e-07 | G56: 1.129917657e-05 | H56: -2.742579846e-06 | J56: 0.0001141662 | K56: 0.002484925817 | L56: 2.420306005e-05 | M56: 1.960142562e-05 | N56: 2.814321986e-07
A57: 26.08345333 | B57: ='DF raw data'!M62 -> 6.6910966e-06 | C57: ='DF raw data'!N62 -> 5.9656071e-07 | D57: ='DF raw data'!O62 -> 2.930886e-06 | F57: 6.695967718e-06 | G57: 5.981369193e-07 | H57: 2.933019685e-06 | J57: 0.0001175149874 | K57: 0.002543697412 | L57: 2.450220028e-05 | M57: 3.185546603e-05 | N57: 2.886389929e-07
A58: 26.58357333 | B58: ='DF raw data'!M63 -> 6.9826515e-06 | C58: ='DF raw data'!N63 -> 1.3120968e-05 | D58: ='DF raw data'!O63 -> -5.0217936e-06 | F58: 6.98773487e-06 | G58: 1.315563571e-05 | H58: -5.025449466e-06 | J58: 0.0001210096934 | K58: 0.00260421678 | L58: 3.108159681e-05 | M58: 4.739999422e-05 | N58: 2.964455718e-07
A59: 27.08369333 | B59: ='DF raw data'!M64 -> 2.6013536e-06 | C59: ='DF raw data'!N64 -> 2.1148793e-07 | D59: ='DF raw data'!O64 -> -7.6407605e-06 | F59: 2.603247385e-06 | G59: 2.120467151e-07 | H59: -7.646322974e-06 | J59: 0.0001223116295 | K59: 0.002665387272 | L59: 3.118764562e-05 | M59: 6.299755955e-05 | N59: 3.044138857e-07
A60: 27.58381333 | B60: ='DF raw data'!M65 -> 7.8516541e-07 | C60: ='DF raw data'!N65 -> -1.0352072e-05 | D60: ='DF raw data'!O65 -> 1.184045e-06 | F60: 7.857370104e-07 | G60: -1.037942384e-05 | H60: 1.184906985e-06 | J60: 0.0001227045922 | K60: 0.002726754293 | L60: 2.599668817e-05 | M60: 7.599902323e-05 | N60: 3.122818959e-07
A61: 28.08393333 | B61: ='DF raw data'!M66 -> 3.2267294e-06 | C61: ='DF raw data'!N66 -> 9.1841985e-06 | D61: ='DF raw data'!O66 -> 1.5699021e-05 | F61: 3.229078459e-06 | G61: 9.208464629e-06 | H61: 1.571044989e-05 | J61: 0.000124319519 | K61: 0.002788928971 | L61: 3.06020255e-05 | M61: 9.130370823e-05 | N61: 3.204797763e-07
A62: 28.58405333 | B62: ='DF raw data'!M67 -> 5.1083284e-06 | C62: ='DF raw data'!N67 -> -6.6991038e-06 | D62: ='DF raw data'!O67 -> 1.9601219e-05 | F62: 5.112047263e-06 | G62: -6.716803909e-06 | H62: 1.961548869e-05 | J62: 0.000126876156 | K62: 0.002852382274 | L62: 2.724281752e-05 | M62: 0.0001049283861 | N62: 3.289016622e-07
A63: 29.08417333 | B63: ='DF raw data'!M68 -> 6.5051959e-06 | C63: ='DF raw data'!N68 -> -7.7595823e-06 | D63: ='DF raw data'!O68 -> 6.9548109e-06 | F63: 6.509931683e-06 | G63: -7.780084364e-06 | H63: 6.959874002e-06 | J63: 0.0001301319031 | K63: 0.002917463841 | L63: 2.335184173e-05 | M63: 0.0001166071092 | N63: 3.376435701e-07
A64: 29.58429333 | B64: ='DF raw data'!M69 -> 7.412988e-06 | C64: ='DF raw data'!N69 -> 6.0463913e-06 | D64: ='DF raw data'!O69 -> -4.5271595e-06 | F64: 7.418384655e-06 | G64: 6.062366838e-06 | H64: -4.530455272e-06 | J64: 0.0001338419856 | K64: 0.002984400895 | L64: 2.638375264e-05 | M64: 0.0001298021516 | N64: 3.46950693e-07
A65: 30.08441333 | B65: ='DF raw data'!M70 -> 6.1426786e-06 | C65: ='DF raw data'!N70 -> 5.9602593e-07 | D65: ='DF raw data'!O70 -> 7.4558125e-07 | F65: 6.14715047e-06 | G65: 5.976007263e-07 | H65: 7.461240331e-07 | J65: 0.0001369162985 | K65: 0.003052875474 | L65: 2.668262471e-05 | M65: 0.0001431466659 | N65: 3.566820456e-07
A66: 30.58453333 | B66: ='DF raw data'!M71 -> -3.4705131e-06 | C66: ='DF raw data'!N71 -> 1.083149e-05 | D66: ='DF raw data'!O71 -> 7.3493652e-07 | F66: -3.473039634e-06 | G66: 1.086010854e-05 | H66: 7.354715538e-07 | J66: 0.0001351793619 | K66: 0.003120481377 | L66: 3.211398219e-05 | M66: 0.0001592075106 | N66: 3.66336746e-07
A67: 31.08465333 | B67: ='DF raw data'!M72 -> -6.135951e-06 | C67: ='DF raw data'!N72 -> 1.0240597e-06 | D67: ='DF raw data'!O72 -> -9.3834105e-06 | F67: -6.140417972e-06 | G67: 1.02676543e-06 | H67: -9.390241623e-06 | J67: 0.0001321084161 | K67: 0.003186551438 | L67: 3.262748812e-05 | M67: 0.00017552517 | N67: 3.755975614e-07
A68: 31.58477333 | B68: ='DF raw data'!M73 -> -2.6464891e-06 | C68: ='DF raw data'!N73 -> -8.5766311e-07 | D68: ='DF raw data'!O73 -> -1.1326724e-05 | F68: -2.648415744e-06 | G68: -8.599291938e-07 | H68: -1.133496986e-05 | J68: 0.0001307838904 | K68: 0.003251959077 | L68: 3.219742033e-05 | M68: 0.0001916277438 | N68: 3.846702883e-07
A69: 32.08489333 | B69: ='DF raw data'!M74 -> -4.9716377e-06 | C69: ='DF raw data'!N74 -> 1.2280642e-05 | D69: ='DF raw data'!O74 -> -4.3510595e-06 | F69: -4.975257052e-06 | G69: 1.231308943e-05 | H69: -4.354227071e-06 | J69: 0.0001282956648 | K69: 0.003316122305 | L69: 3.835544262e-05 | M69: 0.0002108100678 | N69: 3.936378988e-07
A70: 32.58501333 | B70: ='DF raw data'!M75 -> -3.8688718e-06 | C70: ='DF raw data'!N75 -> 1.6717145e-06 | D70: ='DF raw data'!O75 -> -1.5834091e-06 | F70: -3.871688339e-06 | G70: 1.676131438e-06 | H70: -1.584561822e-06 | J70: 0.0001263593561 | K70: 0.003379317146 | L70: 3.919370947e-05 | M70: 0.0002304116258 | N70: 4.02391416e-07
A71: 33.08513333 | B71: ='DF raw data'!M76 -> -3.5672324e-06 | C71: ='DF raw data'!N76 -> -4.5825495e-06 | D71: ='DF raw data'!O76 -> -5.8209703e-06 | F71: -3.569829345e-06 | G71: =(1-$G$1*($B$2-$G$2))*C71*$M$2/$M$1 -> -4.594657333e-06 | H71: -5.825207966e-06 | J71: 0.000124574013 | K71: 0.003441619101 | L71: 3.689582945e-05 | M71: 0.000248863968 | N71: 4.10833435e-07
A72: =A71+$B$1 -> 33.58525333 | B72: ='DF raw data'!M77 -> -7.458189e-06 | C72: ='DF raw data'!N77 -> -7.9969532e-06 | D72: ='DF raw data'!O77 -> -9.040793e-06 | F72: -7.463618562e-06 | G72: -8.018082436e-06 | H72: -9.047374697e-06 | J72: =F72*$B$1+J71 -> 0.0001208413081 | K72: =J72*$B$1+K71 -> 0.003502054256 | L72: =G72*$B$1+L71 -> 3.288582606e-05 | M72: =L72*$B$1+M71 -> 0.0002653108273 | N72: =(J72^2+L72^2)*$B$1+N71 -> 4.186773668e-07
A73: 34.08537333 | B73: ='DF raw data'!M78 -> -6.7108608e-06 | C73: ='DF raw data'!N78 -> 6.3277889e-06 | D73: ='DF raw data'!O78 -> -1.1222365e-05 | F73: -6.715746307e-06 | G73: 6.344507936e-06 | H73: -1.123053488e-05 | J73: 0.0001174826291 | K73: 0.003560809669 | L73: 3.605884137e-05 | M73: 0.0002833445751 | N73: 4.262303832e-07
A74: 34.58549333 | B74: ='DF raw data'!M79 -> 4.3533734e-07 | C74: ='DF raw data'!N79 -> 3.7714613e-06 | D74: ='DF raw data'!O79 -> 3.4626217e-07 | F74: 4.356542656e-07 | G74: 3.781426107e-06 | H74: 3.465142489e-07 | J74: 0.0001177005085 | K74: 0.003619674047 | L74: 3.795000819e-05 | M74: 0.0003023241332 | N74: 4.338790248e-07
